Workbook

Sheet Hlavní list
F1: vytvořil:
B3: Nástroj k posouzení potenciálu úspor energie v programu Úspory energie | G3: Verze - 14.01
B4: u klientů Národní rozvojové banky realizací jednoho až čtyř úsporných opatření nebo jejich kombinací.
B5: 0. Vyplňte identifikační údaje | I5: Viditelnost | J5: Hodnota buňky | K5: Další buňka | L5: Řádek OK | M5: Průběžně OK | N5: Porušení podmínek | O5: Hlášení | P5: Hláška č. | Q5: Hlášky… | Z5: Vyplněnost | AA5: Způsobilost
B6: Název projektu: | H6: =IFERROR(INDEX(Q6:S6,1,P6),"") -> Zadejte název projektu. | I6: TRUE | J6: =IF(AND(I6,L6),C6,"") ->  | L6: =NOT(ISBLANK(C6)) -> FALSE | M6: =L6 -> FALSE | P6: =myidx(AND(L6),ISBLANK(C6)) -> 2 | Q6: OK | R6: Zadejte název projektu. | Z6: =NOT(ISBLANK(C6)) -> FALSE
B7: Klient: | H7: =IFERROR(INDEX(Q7:S7,1,P7),"") -> Zadejte klienta. | I7: TRUE | J7: =IF(AND(I7,L7),C7,"") ->  | L7: =NOT(ISBLANK(C7)) -> FALSE | M7: =AND(M6,L7) -> FALSE | P7: =myidx(AND(L7),ISBLANK(C7)) -> 2 | Q7: OK | R7: Zadejte klienta. | Z7: =NOT(ISBLANK(C7)) -> FALSE
B8: IČ klienta: | H8: =IFERROR(INDEX(Q8:S8,1,P8),"") -> Zadejte IČ klienta. | I8: TRUE | L8: FALSE | M8: =AND(M7,L8) -> FALSE | P8: =myidx(AND(L8),ISBLANK(C8)) -> 2 | Q8: OK | R8: Zadejte IČ klienta. | Z8: FALSE
B9: Adresa žadatele: | H9: =IFERROR(INDEX(Q9:S9,1,P9),"") -> Zadejte adresu žadatele. | I9: TRUE | L9: FALSE | M9: FALSE | P9: =myidx(AND(L9),ISBLANK(C9)) -> 2 | Q9: OK | R9: Zadejte adresu žadatele. | Z9: FALSE
B10: Adresa místa realizace projektu: | H10: =IFERROR(INDEX(Q10:S10,1,P10),"") -> Zadejte adresu místarealizace projektu | I10: TRUE | L10: FALSE | M10: FALSE | P10: =myidx(AND(L10),ISBLANK(C10)) -> 2 | Q10: OK | R10: Zadejte adresu místarealizace projektu | Z10: FALSE
B11: Popis projektu: | H11: =IFERROR(INDEX(Q11:S11,1,P11),"") -> Vyplňte popis projektu | I11: TRUE | L11: FALSE | M11: FALSE | P11: =myidx(AND(L11),ISBLANK(C11)) -> 2 | Q11: OK | R11: Vyplňte popis projektu | Z11: FALSE
I12: TRUE
B13: 1. Vyplňte povinné údaje | I13: TRUE
B14: Součástí projektu je náhrada zařízení, které již nelze používat ze zákona. | C14: Vyberte ano nebo ne | E14: =IF(N14,O14,IFERROR(INDEX(Q14:S14,1,P14),"")) -> Vyberte ano nebo ne. | I14: TRUE | J14: =IF(AND(I14,L14),D14,"") ->  | L14: =OR(D14="ano",D14="ne") -> FALSE | M14: =AND(M11,L14) -> FALSE | N14: =D14=ano -> FALSE | O14: Projekt není způsobilý k podpoře. | P14: =myidx(AND(L14),ISBLANK(D14)) -> 2 | Q14: OK | R14: Vyberte ano nebo ne. | Z14: =NOT(ISBLANK(C14)) -> TRUE
B15: Způsob veřejné podpory | C15: Vyberte bloková výjimka nebo de minimis | E15: =IF(N15,O15,IFERROR(INDEX(Q15:S15,1,P15),"")) -> Vyberte způsob podpory | I15: TRUE | J15: =IF(AND(I15,L15),D15,"") ->  | L15: =NOT(ISBLANK(D15)) -> FALSE | M15: =AND(M14,L15) -> FALSE | N15: =Globální!E1=2 -> FALSE | O15: Pro žádost dle blokové výjimky je nutný energetický posudek. | P15: =myidx(AND(L15),ISBLANK(D15)) -> 2 | Q15: OK | R15: Vyberte způsob podpory | Z15: TRUE
I16: TRUE
I17: TRUE
B18: 2. Zaškrtněte, jaká opatření plánujete realizovat: | I18: TRUE
C19: 1. Zateplení, výměna výplní | E19: =IFERROR(INDEX(Q19:T19,1,P19),"") -> OK | I19: TRUE | L19: =je_zateplení -> TRUE | P19: =myidx(L19,NOT(je_zateplení)) -> 1 | Q19: OK | R19: List Zateplení musí být vybrán.
C20: 2. Rekuperace tepla | E20: =IFERROR(INDEX(Q20:T20,1,P20),"") -> OK | I20: TRUE | L20: TRUE | P20: 1 | Q20: OK
C21: 3. Náhrada světelných zdrojů LED zdroji | E21: =IFERROR(INDEX(Q21:T21,1,P21),"") -> OK | I21: TRUE | L21: TRUE | P21: 1 | Q21: OK
C22: 4. Výměna zdroje tepla | E22: =IFERROR(INDEX(Q22:T22,1,P22),"") -> OK | I22: TRUE | L22: =OR(NOT(je_zdroj),AND(je_zdroj,OR(je_zateplení,je_rekuperace,je_osvětlení))) -> TRUE | P22: =IF(L22,1,2) -> 1 | Q22: OK | R22: Výměna zdroje musí být v kombinaci s alespoň jedním z prvních tří opatření.
C23: 5. FVE | E23: =IFERROR(INDEX(Q23:T23,1,P23),"") -> OK | I23: TRUE | L23: =OR(NOT(je_FVE),AND(je_FVE,OR(je_zateplení,je_rekuperace,je_osvětlení))) -> TRUE | P23: =IF(L23,1,2) -> 1 | Q23: OK | R23: FVE musí být v kombinaci s alespoň jedním z prvních tří opatření.
I24: TRUE
B25: 3. Vyplňte údaje o výdajích | I25: TRUE
B26: Celkové výdaje na technické zhodnocení stavby (materiál a práce pro provedení zateplení, výměna u stavebních otvorů, další stavební práce spojené s provedením energetického opatření) | E26: =IFERROR(INDEX(Q26:T26,1,P26),"") -> Doplňte náklady na zateplení. | I26: =je_zateplení -> TRUE | J26: =D26*I26*L26 -> 0 | L26: =AND(ISNUMBER(D26),IF(ISNUMBER(D26),D26>0,FALSE)) -> FALSE | P26: =myidx(L26,ISBLANK(D26),NOT(ISNUMBER(D26)),D26<=0) -> 2 | Q26: OK | R26: Doplňte náklady na zateplení. | S26: Hodnota není číslo. | T26: Náklady musí být kladné. | Z26: =OR(NOT(ISBLANK(D26)),NOT(Parametry!B18)) -> TRUE
B27: Celkové výdaje na instalaci rekuperace | E27: =IFERROR(INDEX(Q27:T27,1,P27),"") -> Doplňte náklady na rekuperaci. | I27: =je_rekuperace -> FALSE | J27: =D27*I27*L27 -> 0 | L27: =AND(ISNUMBER(D27),IF(ISNUMBER(D27),D27>0,FALSE)) -> FALSE | P27: =myidx(L27,ISBLANK(D27),NOT(ISNUMBER(D27)),D27<=0) -> 2 | Q27: OK | R27: Doplňte náklady na rekuperaci. | S27: Hodnota není číslo. | T27: Náklady musí být kladné.
B28: Celkové výdaje na výměnu stávajícího zdroje energie (výměna kotle, apod.) | E28: =IFERROR(INDEX(Q28:T28,1,P28),"") -> Doplňte náklady na výměnu zdroje tepla. | I28: =je_zdroj -> FALSE | J28: 0 | L28: FALSE | P28: =myidx(L28,ISBLANK(D28),NOT(ISNUMBER(D28)),D28<=0) -> 2 | Q28: OK | R28: Doplňte náklady na výměnu zdroje tepla. | S28: Hodnota není číslo. | T28: Náklady musí být kladné. | Z28: =OR(NOT(ISBLANK(D28)),NOT(Parametry!B17)) -> TRUE
B29: Celkové výdaje na provedení výměny stávajícího osvětlení v budovách | E29: =IFERROR(INDEX(Q29:T29,1,P29),"") -> Doplňte náklady na modernizaci osvětlení. | I29: =je_osvětlení -> FALSE | J29: 0 | L29: FALSE | P29: =myidx(L29,ISBLANK(D29),NOT(ISNUMBER(D29)),D29<=0) -> 2 | Q29: OK | R29: Doplňte náklady na modernizaci osvětlení. | S29: Hodnota není číslo. | T29: Náklady musí být kladné. | Z29: =OR(NOT(ISBLANK(D29)),NOT(Parametry!B19)) -> TRUE
B30: Celkové výdaje na FVE | E30: =IFERROR(INDEX(Q30:T30,1,P30),"") -> Doplňte náklady na FVE. | I30: =je_FVE -> FALSE | J30: 0 | L30: FALSE | P30: =myidx(L30,ISBLANK(D30),NOT(ISNUMBER(D30)),D30<=0) -> 2 | Q30: OK | R30: Doplňte náklady na FVE. | S30: Hodnota není číslo. | T30: Náklady musí být kladné. | Z30: =OR(NOT(ISBLANK(D30)),NOT(Parametry!B20)) -> TRUE
B31: Celkové způsobilé výdaje | D31: =SUM(J26:J30) -> 0 | E31: =IF(N31,O31,"OK") -> OK | I31: TRUE | N31: =D31>Globální!B8 -> FALSE | O31: ="Kalkulačku lze použít pro investice do maximální výše " & Globální!B8 & " Kč." -> Kalkulačku lze použít pro investice do maximální výše 5000000 Kč. | Z31: =AND(Z6:Z11,Z14:Z15,Z26:Z30) -> FALSE | AA31: Jen tento list:
I32: TRUE
B33: 4. Vyplňte postupně následující formuláře: | H33: =IF(C35="Doplňte list Zateplení",IF(C35="List Zateplení je celý vyplněn",TRUE,FALSE),"") -> FALSE | I33: TRUE | Z33: Všechny listy:
I34: TRUE
C35: =IF(L35,"List Zateplení je celý vyplněn","Doplňte list Zateplení") -> Doplňte list Zateplení | I35: =je_zateplení -> TRUE | L35: =OR(AND(Zateplení!M81,NOT(Zateplení!I86)),AND(JePENB,Výjimka,Zateplení!M20)) -> FALSE | Z35: =Kontrola -> FALSE
C36: =IF(L36,"List Rekuperace je celý vyplněn","Doplňte list Rekuperace") -> Doplňte list Rekuperace | I36: =je_rekuperace -> FALSE | L36: =Rekuperace!K6 -> FALSE
C37: =IF(L37,"List Osvětlení je celý vyplněn","Doplňte list Osvětlení") -> Doplňte list Osvětlení | I37: =je_osvětlení -> FALSE | L37: =Osvětlení!L41 -> FALSE
C38: =IF(L38,"List Zdroj je celý vyplněn","Doplňte list Zdroj") -> Doplňte list Zdroj | I38: =je_zdroj -> FALSE | L38: =Zdroj!L26 -> FALSE
C39: =IF(L39,"List FVE je celý vyplněn","Doplňte list FVE") -> Doplňte list FVE | I39: =je_FVE -> FALSE | L39: =FVE!L9 -> FALSE
I40: TRUE
B41: 5. Výsledky | I41: TRUE
B42: Jedná se o komplexní opatření | C42: =IF(AND(je_zateplení,OR(je_rekuperace,je_osvětlení)),"Ano","Ne, intenzita podpory může být snížena o 5 %.") -> Ne, intenzita podpory může být snížena o 5 %. | I42: TRUE
I43: TRUE
C44: Celkem / Total | I44: TRUE
C45: kWh | D45: GJ | I45: TRUE
B46: Výchozí roční konečná spotřeba energie bez vlivu opatření dle 4.1.c) Výzvy | C46: =IF(Kontrola,IF(Výjimka,Bilance!E34,Bilance!E33),0) -> 0 | D46: =IF(Kontrola,C46*kWh_na_GJ,0) -> 0 | I46: TRUE
B47: Navrhovaná roční konečná spotřeba energie bez vlivu opatření dle 4.1.c) Výzvy | C47: =IF(Kontrola,IF(IF(Výjimka,Bilance!F34,Bilance!F33)/C46<0.05,0.05*C46,IF(Výjimka,Bilance!F34,Bilance!F33)),0) -> 0 | D47: 0 | I47: TRUE
B48: Roční úspora v konečné spotřebě energie bez vlivu opatření dle 4.1.c) Výzvy | C48: =IF(Kontrola,IFERROR(IF(C46="","",C46-C47),0),0) -> 0 | D48: 0 | I48: TRUE
B49: Roční úspora v konečné spotřebě energie bez vlivu opatření dle 4.1.c) Výzvy [%] | C49: =IF(Kontrola,IFERROR(C48/C46,0),0) -> 0 | I49: TRUE
B50: Výchozí roční konečná spotřeba energie celého projektu | C50: =IF(Kontrola,Bilance!E35,0) -> 0 | D50: 0 | I50: TRUE
B51: Navrhovaná roční konečná spotřeba energie celého projektu | C51: =IF(Kontrola,IF(Bilance!F35/C50<0.05,0.05*C50,Bilance!F35),0) -> 0 | D51: 0 | I51: TRUE
B52: Roční úspora v konečné spotřebě energie celého projektu [%] | C52: =IF(Kontrola,IFERROR(IF(C50="","",C50-C51),0),0) -> 0 | D52: 0 | I52: TRUE
B53: Roční úspora v konečné spotřebě energie celého projektu [%] | C53: =IF(Kontrola,IFERROR(C52/C50,0),0) -> 0 | I53: TRUE
B54: Roční výroba FVE | C54: =IF(Kontrola,IF(Parametry!B20,FVE!E5,0),0) -> 0 | D54: 0 | I54: =je_FVE -> FALSE
B55: Podíl FVE na úspoře konečné spotřeby energie projektu [%] | C55: =IF(Kontrola,IFERROR(C54/C52,0),0) -> 0 | I55: =je_FVE -> FALSE
B56: Výchozí roční spotřeba primární energie bez vlivu opatření dle 4.1.c) Výzvy | C56: =IF(Kontrola,IF(Výjimka,Bilance!H34,Bilance!H33),0) -> 0 | D56: 0 | I56: TRUE
B57: Navrhovaná roční spotřeba primární energie bez vlivu opatření dle 4.1.c) Výzvy | C57: =IF(Kontrola,IF(IF(Výjimka,Bilance!I34,Bilance!I33)/C56<0.05,0.05*C56,IF(Výjimka,Bilance!I34,Bilance!I33)),0) -> 0 | D57: 0 | I57: TRUE
B58: Roční úspora primární energie bez vlivu opatření dle 4.1.c) Výzvy | C58: =C56-C57 -> 0 | D58: 0 | I58: TRUE
B59: Roční úspora primární energie bez vlivu opatření dle 4.1.c) Výzvy [%] | C59: =IF(Kontrola,IFERROR(C58/C56,0),0) -> 0 | I59: TRUE
B60: Výchozí roční spotřeba primární energie celého projektu | C60: =IF(Kontrola,Bilance!H35,0) -> 0 | D60: 0 | I60: TRUE
B61: Navrhovaná roční spotřeba primární energie celého projektu | C61: =IF(Kontrola,IF(Bilance!I35/C60<0.05,0.05*C60,Bilance!I35),0) -> 0 | D61: 0 | I61: TRUE
B62: Roční úspora primární energie celého projektu | C62: =C60-C61 -> 0 | D62: =IF(Kontrola,C62*kWh_na_GJ,0) -> 0 | I62: TRUE
B63: Roční úspora primární energie celého projektu [%] | C63: =MIN(IF(Kontrola,IFERROR(C62/C60,0),0),1) -> 0 | I63: TRUE
B64: Roční úspora emisí CO2 [kg] | C64: =IF(Kontrola,Bilance!M35,0) -> 0 | I64: TRUE
B65: Roční úspora emisí CO2 [%] | C65: =MIN(IF(Kontrola,IFERROR(Bilance!M35/Bilance!K35,0),0),1) -> 0 | I65: TRUE
B66: Roční úspora emisí tuhých látek [kg] | C66: =IF(Kontrola,Bilance!P35,0) -> 0 | I66: TRUE
B67: Roční úspora emisí frakcí PM10 [kg] | C67: =IF(Kontrola,Bilance!S35,0) -> 0 | I67: TRUE
B68: Roční úspora emisí frakcí PM2,5 [kg] | C68: =IF(Kontrola,Bilance!V34,0) -> 0 | I68: TRUE
B69: Roční úspora nákladů na energii [Kč] | C69: =IF(Kontrola,Bilance!Y35,0) -> 0 | I69: TRUE
I70: TRUE
B71: Celkové vyhodnocení | C71: =IF(OR(N31,I79),"Kalkulačku nelze použít.",IF(Kontrola,IF(Způsobilost,"Projekt je způsobilý k podpoře.","Projekt není způsobilý k podpoře."),"Nejsou správně vyplněna všechna data.")) -> Nejsou správně vyplněna všechna data. | I71: TRUE
B72: =IF(NOT(Zateplení!M81),"Data pro zateplení nejsou kompletní.","Zateplení nesplňuje podmínky programu.") & " Viz list Zateplení." -> Data pro zateplení nejsou kompletní. Viz list Zateplení. | I72: =AND(je_zateplení,OR(Zateplení!N42:N83,NOT(Zateplení!M81)),NOT(AND(Výjimka,Zateplení!M20))) -> TRUE
B73: =IF(NOT(Rekuperace!K6),"Data pro rekuperaci nejsou kompletní.","Rekuperace nesplňuje podmínky programu.") & " Viz list Rekuperace." -> Data pro rekuperaci nejsou kompletní. Viz list Rekuperace. | I73: =AND(je_rekuperace,OR(Rekuperace!L4:L6,NOT(Rekuperace!K6))) -> FALSE
B74: Data pro osvětlení nejsou kompletní. Viz list Osvětlení. | I74: =AND(je_osvětlení,NOT(Osvětlení!L41)) -> FALSE
B75: =IF(NOT(Zdroj!L24),"Data pro zdroj nejsou kompletní.","Zdroj nesplňuje podmínky programu.") & " Viz list Zdroj." -> Data pro zdroj nejsou kompletní. Viz list Zdroj. | I75: =AND(je_zdroj,OR(Zdroj!M4:M24,NOT(Zdroj!L24))) -> FALSE
B76: =IF(NOT(FVE!L8),"Data pro FVE nejsou kompletní.","FVE nesplňuje podmínky programu.") & " Viz list FVE." -> Data pro FVE nejsou kompletní. Viz list FVE. | I76: =AND(je_FVE,OR(FVE!M4:M8,NOT(FVE!L8))) -> FALSE
B77: Projekt nedosahuje požadované úspory primární energie bez vlivu opatření dle 4.1.c) Výzvy ve výši 10 %. | I77: =AND(NOT(Výjimka),C59<0.1) -> TRUE
B78: Součástí projektu je náhrada zařízení, které již nelze používat ze zákona. | I78: =J14=ano -> FALSE
B79: Kalkulačku nelze použít pro žádost o podporu podle blokové výjimky. Je potřeba zpracovat energetický posudek. | I79: =J15="bloková výjimka" -> FALSE
B80: Kalkulačku lze použít pouze pro celkové uznatelné náklady do 5 000 000 Kč. | I80: =N31 -> FALSE
B81: Podíl FVE na snížení konečné spotřeby energie projektu přesahuje 30 %. | I81: =IFERROR(AND(je_FVE,C54/Bilance!G35>Globální!B9),FALSE) -> FALSE
B82: Zdroj musí být v kombinaci se zateplením. | I82: =AND(je_zdroj,NOT(je_zateplení),NOT(Výjimka)) -> FALSE
B83: FVE musí být v kombinaci s alespoň jedním z opatření zateplení, rekuperace, osvětlení. | I83: =AND(je_FVE,NOT(OR(je_zateplení,je_rekuperace,je_osvětlení))) -> FALSE
B84: Není vybráno žádné opatření. | I84: =NOT(OR(je_zateplení,je_rekuperace,je_osvětlení,je_zdroj,je_FVE)) -> FALSE
I85: TRUE
A86: 1 | B86: 6. Specifikace realizovaných opatření | I86: TRUE
A87: 2 | B87: Realizovaná opatření | C87: Popis opatření | E87: Vyhodnocení opatření | I87: TRUE
A88: 3 | B88: Výměna zdroje | C88: =Zdroj!I16 & ", instalovaný výkon " & TEXT(Zdroj!E19,"### 0") & " kW, " & IF(ZdrojIdxNew=4, "COP " & Zdroj!I21,"účinnost " & Zdroj!I18*100 & " %") -> , instalovaný výkon 0 kW, účinnost 0 % | E88: =IFERROR(INDEX(Zdroj!C29:C32,MATCH(TRUE,Zdroj!H29:H32,0)),"") ->  | I88: =je_zdroj -> FALSE
A89: 4 | B89: Zateplení obvodového pláště | C89: =Zateplení!J43 & ", tloušťka " & Zateplení!F44 & " mm, plocha " & TEXT(Zateplení!F45,"### 0") & " m2" -> , tloušťka mm, plocha 0 m2 | E89: =Zateplení!F49 -> Zateplení obvodových stěn splňuje požadavky programu. | I89: =AND(je_zateplení,ZatepleníStěn) -> FALSE
A90: 5 | B90: Zateplení střechy | C90: =Zateplení!J51 & ", tloušťka " & Zateplení!F52 & " mm, plocha " & TEXT(Zateplení!F53,"### 0") & " m2" -> , tloušťka mm, plocha 0 m2 | E90: =Zateplení!F57 -> Zateplení střechy splňuje požadavky programu. | I90: =AND(je_zateplení,ZatepleníStřechy) -> FALSE
A91: 6 | B91: Zateplení podlahy | C91: =Zateplení!J59 & ", tloušťka " & Zateplení!F60 & " mm, plocha " & TEXT(Zateplení!F61,"### 0") & " m2" -> , tloušťka mm, plocha 0 m2 | E91: =Zateplení!F65 -> Zateplení podlahy splňuje požadavky programu. | I91: =AND(je_zateplení,ZatepleníPodlahy) -> FALSE
A92: 7 | B92: Výměna oken, výplní ve stěně | C92: =Zateplení!J67 & ", plocha " & TEXT(Zateplení!F68,"### 0") & " m2, součinitel prostupu tepla " & Zateplení!F69 & " W/(m2.K)" -> , plocha 0 m2, součinitel prostupu tepla W/(m2.K) | E92: =Zateplení!F71 -> Okna splňují požadavky programu. | I92: =AND(je_zateplení,VýměnaOken) -> FALSE
A93: 8 | B93: Výměna dveří, vrat | C93: =Zateplení!J73 & ", plocha " & TEXT(Zateplení!F74,"### 0") & " m2, součinitel prostupu tepla " & Zateplení!F75 & " W/(m2.K)" -> , plocha 0 m2, součinitel prostupu tepla W/(m2.K) | E93: =Zateplení!F77 -> Dveře/vrata splňují požadavky programu. | I93: =AND(je_zateplení,VýměnaDveří) -> FALSE
A94: 9 | B94: Výměna střešních oken, světlíků | C94: =Zateplení!J79 & ", plocha " & TEXT(Zateplení!F80,"### 0") & " m2, součinitel prostupu tepla " & Zateplení!F81 & " W/(m2.K)" -> , plocha 0 m2, součinitel prostupu tepla W/(m2.K) | E94: =Zateplení!F83 -> Světlíky/střešní okna splňují požadavky programu. | I94: =AND(je_zateplení,VýměnaSvětlíků) -> FALSE
A95: 10 | B95: Instalace mechanického větrání s rekuperací | C95: =IF(je_rekuperace,"účinnost rekuperace " & Rekuperace!D4*100 & " %, objem vzduchu " & TEXT(Rekuperace!D5,"### 0") & " m3/h","") ->  | E95: =IFERROR(INDEX(Rekuperace!C9:C10,MATCH(TRUE,Rekuperace!G9:G10,0)),"") ->  | I95: =je_rekuperace -> FALSE
A96: 11 | B96: Výměna klasických žárovek | C96: ="počet vyměňovaných zdrojů " & TEXT(Osvětlení!E5,"### 0") & ", celkový příkon " & TEXT(IF(Osvětlení!I6=ano,Osvětlení!I7,Osvětlení!I5*Osvětlení!I8),"### 0") & " W, průměrný příkon zdroje " & TEXT(IF(Osvětlení!I6=ano,IFERROR(Osvětlení!I7/Osvětlení!I5,0),Osvětlení!I8),"### 0") & " W" -> počet vyměňovaných zdrojů 0, celkový příkon 0 W, průměrný příkon zdroje 0 W | I96: =AND(je_osvětlení,Osvětlení!I4=ano) -> FALSE
A97: 12 | B97: Výměna halogenových žárovek | C97: ="počet vyměňovaných zdrojů " & TEXT(Osvětlení!I11,"### 0") & ", celkový příkon " & TEXT(IF(Osvětlení!I12=ano,Osvětlení!I13,Osvětlení!I11*Osvětlení!I14),"### 0") & " W, průměrný příkon zdroje " & TEXT(IF(Osvětlení!I12=ano,IFERROR(Osvětlení!I13/Osvětlení!I11,0),Osvětlení!I14),"### 0") & " W" -> počet vyměňovaných zdrojů 0, celkový příkon 0 W, průměrný příkon zdroje 0 W | I97: =AND(je_osvětlení,Osvětlení!I10=ano) -> FALSE
A98: 13 | B98: Výměna zářivek | C98: ="počet vyměňovaných zdrojů " & TEXT(Osvětlení!I17,"### 0") & ", celkový příkon " & TEXT(IF(Osvětlení!I18=ano,Osvětlení!I19,Osvětlení!I17*Osvětlení!I20),"### 0") & " W, průměrný příkon zdroje " & TEXT(IF(Osvětlení!I18=ano,IFERROR(Osvětlení!I19/Osvětlení!I17,0),Osvětlení!I20),"### 0") & " W" -> počet vyměňovaných zdrojů 0, celkový příkon 0 W, průměrný příkon zdroje 0 W | I98: =AND(je_osvětlení,Osvětlení!I16=ano) -> FALSE
A99: 14 | B99: Výměna rtuťových výbojek | C99: ="počet vyměňovaných zdrojů " & TEXT(Osvětlení!I23,"### 0") & ", celkový příkon " & TEXT(IF(Osvětlení!I24=ano,Osvětlení!I25,Osvětlení!I23*Osvětlení!I26),"### 0") & " W, průměrný příkon zdroje " & TEXT(IF(Osvětlení!I24=ano,IFERROR(Osvětlení!I25/Osvětlení!I23,0),Osvětlení!I26),"### 0") & " W" -> počet vyměňovaných zdrojů 0, celkový příkon 0 W, průměrný příkon zdroje 0 W | I99: =AND(je_osvětlení,Osvětlení!I22=ano) -> FALSE
B100: Výměna kompaktních zářivek (CFL) | C100: ="počet vyměňovaných zdrojů " & TEXT(Osvětlení!I29,"### 0") & ", celkový příkon " & TEXT(IF(Osvětlení!I30=ano,Osvětlení!I31,Osvětlení!I29*Osvětlení!I32),"### 0") & " W, průměrný příkon zdroje " & TEXT(IF(Osvětlení!I30=ano,IFERROR(Osvětlení!I31/Osvětlení!I29,0),Osvětlení!I32),"### 0") & " W" -> počet vyměňovaných zdrojů 0, celkový příkon 0 W, průměrný příkon zdroje 0 W | I100: =AND(je_osvětlení,Osvětlení!I28=ano) -> FALSE
B101: FVE | C101: =IF(je_FVE,"instalovaný výkon "&FVE!I4&" kWp, roční výroba elektřiny " & TEXT(FVE!I5,"### 0") & " kWh, kapacita baterie " & FVE!I7 & " kWh","") ->  | E101: =IFERROR(INDEX(FVE!C11:C15,MATCH(TRUE,FVE!H11:H15,0)),"") ->  | I101: =je_FVE -> FALSE
I102: TRUE
I103: TRUE
I104: TRUE
I105: TRUE
I106: TRUE
I107: TRUE
I108: TRUE
I109: TRUE
B110: Heslo: | I110: TRUE
I111: =AdminMode -> FALSE
I112: TRUE
A113: Konec listu | I113: TRUE

Sheet Zateplení
B1: Zateplení budovy
B3: 1. | C3: Základní informace o budově | I3: Viditelnost | J3: Hodnota buňky | K3: Další řádek | L3: Řádek OK | M3: Průběžně OK | N3: Porušení podmínek | O3: Hlášení | P3: Hláška č. | Q3: Hlášky…
B4: 1.1 | C4: Jakým způsobem budete zadávat projekt? | D4: Vyberte | G4: =IFERROR(INDEX(Q4:S4,1,P4),"") -> Vyberte způsob zadání. | I4: TRUE | J4: =IF(AND(I4,L4),F4,"") ->  | K4: =IF(L4,IF(ZpůsobVýpočtu=2,ROW(F5),ROW(F6)),ROW()) -> 4 | L4: =NOT(ISBLANK(F4)) -> FALSE | M4: =L4 -> FALSE | P4: =myidx(L4,ISBLANK(F4)) -> 2 | Q4: OK | R4: Vyberte způsob zadání.
B5: 1.2 | C5: Obálka budovy splňuje již před registrací žádosti o podporu referenční hodnotu průměrného součinitele tepla Uem, R | D5: Vyberte ano/ne | G5: =IFERROR(INDEX(Q5:S5,1,P5),"") -> Vyberte ano nebo ne. | I5: =AND(I4,M4,ZpůsobVýpočtu=2) -> FALSE | J5: =IF(AND(I5,L5),F5,"") ->  | K5: =IF(L5,ROW(F6),ROW()) -> 5 | L5: =OR(F5=ano,F5=ne) -> FALSE | M5: =AND(M3,L5) -> FALSE | P5: =myidx(L5,ISBLANK(F5)) -> 2 | Q5: OK | R5: Vyberte ano nebo ne.
B6: 1.3. | C6: Vyberte typ posuzované budovy | D6: Vyberte | G6: =IFERROR(INDEX(Q6:S6,1,P6),"") -> Vyberte typ budovy | I6: =IF(JePENB,AND(I5,M5),AND(I4,M4)) -> FALSE | J6: =IF(AND(I6,L6),F6,"") ->  | K6: =IF(L6,ROW(F7),ROW()) -> 6 | L6: =NOT(ISBLANK(F6)) -> FALSE | M6: =AND(M4,L6) -> FALSE | P6: =myidx(L6,ISBLANK(F6)) -> 2 | Q6: OK | R6: Vyberte typ budovy
B7: 1.4 | C7: Památková ochrana budovy | D7: Vyberte ano/ne | G7: =IFERROR(INDEX(Q7:S7,1,P7),"") -> Vyberte ano nebo ne. | I7: =AND(I6,M6) -> FALSE | J7: =IF(AND(I7,L7),F7,"") ->  | K7: =IF(L7,IF(JePENB,ROW(F10),ROW(F8)),ROW()) -> 7 | L7: =OR(F7=ano,F7=ne) -> FALSE | M7: =AND(L7,M6) -> FALSE | P7: =myidx(L7,ISBLANK(F7)) -> 2 | Q7: OK | R7: Vyberte ano nebo ne.
B8: 1.5 | C8: Znáte roční spotřebu budovy? | D8: Vyberte ano/ne | G8: =IFERROR(INDEX(Q8:S8,1,P8),"") -> Vyberte ano nebo ne. | I8: =AND(NOT(JePENB),I7,M7) -> FALSE | J8: =IF(AND(I8,L8),F8,"") ->  | K8: =IF(L8,IF(J8=ano,ROW(F9),ROW(F10)),ROW()) -> 8 | L8: =OR(F8=ano,F8=ne) -> FALSE | M8: =AND(M7,OR(L8,JePENB)) -> FALSE | P8: =myidx(L8,ISBLANK(F8)) -> 2 | Q8: OK | R8: Vyberte ano nebo ne.
B9: 1.6 | C9: Jaká je roční spotřeba energie budovy? | D9: kWh | G9: =IFERROR(INDEX(Q9:S9,1,P9),"") -> Zdejte roční spotřebu energie budovy. | I9: =AND(J8=ano,I8,M8) -> FALSE | J9: =I9*L9*F9 -> 0 | K9: =IF(L9,ROW(F10),ROW()) -> 9 | L9: =OR(J8=ne,AND(ISNUMBER(F9),IF(ISNUMBER(F9),F9>0,FALSE))) -> FALSE | M9: =AND(M8,OR(L9,JePENB)) -> FALSE | P9: =myidx(L9,ISBLANK(F9),NOT(ISNUMBER(F9)),F9<=0) -> 2 | Q9: OK | R9: Zdejte roční spotřebu energie budovy. | S9: Hodnota není číslo. | T9: Spotřeba energie musí být kladná.
B10: 1.7 | C10: Jaká je celková vytápěná (energeticky vztažná) plocha? | D10: m2 | G10: =IFERROR(INDEX(Q10:S10,1,P10),"") -> Zadejte plochu. | I10: =OR(M9,OR(AND(I8,J8=ne),AND(M9,J8=ano))) -> FALSE | J10: =I10*L10*F10 -> 0 | K10: =IF(L10,ROW(F11),ROW()) -> 10 | L10: =AND(ISNUMBER(F10),IF(ISNUMBER(F10),F10>0,FALSE)) -> FALSE | M10: =AND(M9,L10) -> FALSE | P10: =myidx(L10,ISBLANK(F10),NOT(ISNUMBER(F10)),F10<=0) -> 2 | Q10: OK | R10: Zadejte plochu. | S10: Hodnota není číslo. | T10: Plocha musí být kladná.
B11: 1.8 | C11: Období výstavby | D11: Vyberte | G11: =IFERROR(INDEX(Q11:S11,1,P11),"") -> Vyberte období výstavby. | I11: =AND(I10,M10) -> FALSE | J11: =IF(AND(I11,L11),F11,"") ->  | K11: =IF(L11,ROW(F12),ROW()) -> 11 | L11: =NOT(ISBLANK(F11)) -> FALSE | M11: =AND(M10,L11) -> FALSE | P11: =myidx(L11,ISBLANK(F11)) -> 2 | Q11: OK | R11: Vyberte období výstavby.
B12: 1.9 | C12: Vnitřní návrhová teplota v otopném období | D12: °C | G12: =IFERROR(INDEX(Q12:T12,1,P12),"") -> Zadejte vnitřní teplotu v objektu, pozn. standartně 20°C pro pobyt osob | I12: =AND(I11,M11) -> FALSE | J12: =I12*L12*F12 -> 0 | K12: =IF(L12,IF(JePENB,IF(NOT(je_zdroj),ROW(F13),ROW(F17)),IF(NOT(je_zdroj),ROW(F13),ROW(F26))),ROW()) -> 12 | L12: =AND(ISNUMBER(F12),IF(ISNUMBER(F12),AND(F12>=MinTeplota,F12<=MaxTeplota),FALSE)) -> FALSE | M12: FALSE | P12: =myidx(L12,ISBLANK(F12),NOT(ISNUMBER(F12)),OR(F12<MinTeplota,F12>MaxTeplota)) -> 2 | Q12: OK | R12: Zadejte vnitřní teplotu v objektu, pozn. standartně 20°C pro pobyt osob | S12: Hodnota není číslo. | T12: ="Teplota musí být v rozmezí " & MinTeplota & " - " & MaxTeplota & " °C." -> Teplota musí být v rozmezí 5 - 30 °C.
B13: 1.9 | C13: Jaký typ zdroje je instalován? | D13: Vyberte | G13: =IFERROR(INDEX(Q13:S13,1,P13),"") -> Vyberte typ zdroje. | I13: =AND(NOT(je_zdroj),I12,M12) -> FALSE | J13: =IF(AND(I13,L13),F13,"") ->  | K13: =IF(L13,IF(ZdrojPočetPalivBudova>1,ROW(F14),IF(ZdrojIdxBudova=6,ROW(Zateplení!F15),IF(ZpůsobVýpočtu=1,ROW(F26),ROW(F17)))),ROW(F13)) -> 13 | L13: =OR(je_zdroj,NOT(ISBLANK(F13))) -> FALSE | M13: FALSE | P13: =myidx(L13,ISBLANK(F13)) -> 2 | Q13: OK | R13: Vyberte typ zdroje.
B14: 1.10 | C14: Jaké se používá palivo? | D14: Vyberte | G14: =IF(P14>0,INDEX(Q14:S14,1,P14),"") -> Vyberte palivo. | I14: =AND(ZdrojPočetPalivBudova>1,I13,M13) -> FALSE | J14: =IF(L14,IF(ZdrojPočetPalivBudova=1,INDEX(ParametryZateplení!$B$20:$G$20,1,ZdrojIdxBudova),F14),"") ->  | K14: =IF(L14,IF(ZdrojIdxBudova=6,ROW(F15),IF(ZpůsobVýpočtu=1,ROW(F26),ROW(F17))),ROW()) -> 14 | L14: =OR(je_zdroj,OR(ZdrojPočetPalivBudova=1,AND(ZdrojPočetPalivBudova>1,INDEX(ParametryZateplení!$B$18:$G$18,1,ZdrojIdxBudova)))) -> FALSE | M14: FALSE | P14: =myidx(L14,ISBLANK(F14),AND(ZdrojPočetPalivBudova>1,NOT(INDEX(ParametryZateplení!$B$18:$G$18,1,ZdrojIdxBudova)))) -> 2 | Q14: OK | R14: =IF(ParametryZateplení!B15=6,"Vyberte palivo zdroje SZT. Pokud nevíte, zvolte ""zemní plyn"".","Vyberte palivo.") -> Vyberte palivo. | S14: Nesprávné palivo.
B15: 1.11 | C15: Jak účinná je soustava zásobování teplem (SZT)? | D15: Vyberte | G15: =IFERROR(INDEX(Q15:S15,1,P15),"") -> OK | I15: =AND(M14,ZdrojIdxBudova=6,OR(I14,ZdrojPočetPalivBudova=1)) -> FALSE | J15: =IF(AND(L15,ZdrojIdxBudova=6),F15,"") ->  | K15: =IF(L15,IF(ZpůsobVýpočtu=1,ROW(F26),ROW(F17)),ROW()) -> 17 | L15: =OR(je_zdroj,OR(ZdrojIdxBudova<>6,NOT(ISBLANK(F15)))) -> TRUE | M15: FALSE | P15: =myidx(OR(L15,ZdrojIdxBudova<>6),ISBLANK(F15)) -> 1 | Q15: OK | R15: Vyberte typ soustavy. Pokud nevíte, zvolte "ostatní SZT".
I16: =I17 -> FALSE
B17: 2.1 | C17: =IF(Výjimka,"Vypočtená hodnota průměrného součinitele prostupu tepla Uem stávajícího stavu projektu","Vypočtená hodnota průměrného součinitele prostupu tepla Uem po realizaci projektu") -> Vypočtená hodnota průměrného součinitele prostupu tepla Uem po realizaci projektu | D17: W/(m2K) | G17: =IFERROR(INDEX(Q17:T17,1,P17),"") -> Zadejte hodnotu z PENB po realizaci z tabulky: Informace o stavebních prvcích a konstrukcích a technických systémech a.2) požadavky na průměrný součinitel prostupu tepla. | I17: =AND(JePENB,OR(AND(je_zdroj,I12,M12),AND(NOT(je_zdroj),OR(AND(ZdrojIdxBudova=6,I15,M15),AND(ZdrojIdxBudova<>6,ZdrojPočetPalivBudova=1,I13,M13),AND(ZdrojIdxBudova<>6,ZdrojPočetPalivBudova>1,I14,M14))))) -> FALSE | J17: =I17*L17*F17 -> 0 | K17: =IF(L17,ROW(F18),ROW()) -> 17 | L17: =AND(ISNUMBER(F17),IF(ISNUMBER(F17),AND(F17>=MinU,F17<=MaxU),FALSE)) -> FALSE | M17: =AND(M15,L17) -> FALSE | P17: =myidx(L17,ISBLANK(F17),NOT(ISNUMBER(F17)),OR(F17<MinU,F17>MaxU)) -> 2 | Q17: OK | R17: Zadejte hodnotu z PENB po realizaci z tabulky: Informace o stavebních prvcích a konstrukcích a technických systémech a.2) požadavky na průměrný součinitel prostupu tepla. | S17: Hodnota není číslo. | T17: ="Hodnota musí být v rozsahu " & MinU & " - " & MaxU & "." -> Hodnota musí být v rozsahu 0 - 5.
B18: 2.2 | C18: =IF(Výjimka,"Referenční hodnota průměrného součinitele prostupu tepla Uem,R stávajícího stavu projektu","Referenční hodnota průměrného součinitele prostupu tepla Uem,R po realizaci projektu") -> Referenční hodnota průměrného součinitele prostupu tepla Uem,R po realizaci projektu | D18: W/(m2K) | G18: =IFERROR(INDEX(Q18:U18,1,P18),"") -> Zadejte hodnotu z PENB po realizaci z tabulky: Informace o stavebních prvcích a konstrukcích a technických systémech a.2) požadavky na průměrný součinitel prostupu tepla. | I18: =AND(I17,M17) -> FALSE | J18: 0 | K18: 18 | L18: =AND(ISNUMBER(F18),IF(ISNUMBER(F18),AND(F18>=MinU,F18<=MaxU,F18>=F17),FALSE)) -> FALSE | M18: =AND(M17,L18) -> FALSE | N18: =P18=4 -> FALSE | P18: =myidx(L18,ISBLANK(F18),NOT(ISNUMBER(F18)),F18<F17,OR(F18<MinU,F18>MaxU)) -> 2 | Q18: OK | R18: Zadejte hodnotu z PENB po realizaci z tabulky: Informace o stavebních prvcích a konstrukcích a technických systémech a.2) požadavky na průměrný součinitel prostupu tepla. | S18: Hodnota není číslo. | T18: Referenční hodnota nemůže být nižší než vypočtená hodnota v bodu 2.1. | U18: ="Hodnota musí být v rozsahu " & MinU & " - " & MaxU & "." -> Hodnota musí být v rozsahu 0 - 5.
B19: 2.3 | C19: =IF(Výjimka,"Vypočtená hodnota dodané energie ER stávajícího stavu projektu","Vypočtená hodnota dodané energie ER po realizaci projektu") -> Vypočtená hodnota dodané energie ER po realizaci projektu | D19: kWh | G19: =IFERROR(INDEX(Q19:U19,1,P19),"") ->  | I19: FALSE | J19: 0 | K19: =IF(L19,ROW(F20),ROW()) -> 19 | L19: =AND(ISNUMBER(F19),IF(ISNUMBER(F19),F19>0,FALSE)) -> FALSE | M19: =AND(M18,L19) -> FALSE | P19: =IFERROR(myidx(AND(L19,(F19/$F$10)>=MinSpotř_m2),ISBLANK(F19),NOT(ISNUMBER(F19)),F19<0,(F19/$F$10)<MinSpotř_m2),0) -> 0 | Q19: OK | R19: Zadejte hodnotu z PENB po realizaci z tabulky: Energetická náročnost hodnocené budovy e) požadavek na celkovou dodanou energii. | S19: Hodnota není číslo. | T19: Spotřeba musí být kladná. | U19: Zadaná hodnota spotřeby je příliš nízká
B20: 2.4 | C20: =IF(Výjimka,"Vypočtená hodnota referenční dodané energie ER stávajícího stavu projektu","Vypočtená hodnota referenční dodané energie ER po realizaci projektu") -> Vypočtená hodnota referenční dodané energie ER po realizaci projektu | D20: kWh | G20: =IFERROR(INDEX(Q20:V20,1,P20),"") ->  | I20: =AND(I19,M19) -> FALSE | J20: 0 | K20: =IF(Výjimka,ROW(),IF(L20,ROW(F21),ROW())) -> 20 | L20: =AND(ISNUMBER(F20),IF(ISNUMBER(F20),AND(F20>0,F20>F19),FALSE)) -> FALSE | M20: =AND(M19,L20) -> FALSE | N20: =P20=5 -> FALSE | P20: =IFERROR(myidx(AND(L20,(F20/$F$10)>=MinSpotř_m2),ISBLANK(F20),NOT(ISNUMBER(F20)),F20<0,F20<F19,(F20/$F$10)<MinSpotř_m2),0) -> 0 | Q20: OK | R20: Zadejte hodnotu z PENB po realizaci z tabulky: Energetická náročnost hodnocené budovy e) požadavek na celkovou dodanou energii. | S20: Hodnota není číslo. | T20: Spotřeba musí být kladná. | U20: Referenční hodnota nemůže být nižší než vypočtená hodnota v bodu 2.3. | V20: Zadaná hodnota spotřeby je příliš nízká
B21: 2.5 | C21: Vypočtená hodnota dodané energie ER před realizací projektu | D21: kWh | G21: =IFERROR(INDEX(Q21:V21,1,P21),"") ->  | I21: =AND(I20,M20,J5=ne) -> FALSE | J21: =IF(Výjimka,J19,I21*L21*F21) -> 0 | K21: =IF(L21,IF(AND(JePENB,P18<>5,P19<>5,P20<>5),ROW(F26),IF(J5=27,ROW(F26),ROW(F22))),ROW()) -> 21 | L21: =OR(AND(ISNUMBER(F21),IF(ISNUMBER(F21),AND(F21>0,F21>F19),FALSE)),J5=ano) -> FALSE | M21: FALSE | N21: =P21=5 -> FALSE | P21: =IFERROR(myidx(OR(AND(L21,(F21/$F$10)>=MinSpotř_m2),J5=ano),ISBLANK(F21),NOT(ISNUMBER(F21)),F21<0,F21<F19,(F21/$F$10)<MinSpotř_m2),0) -> 0 | Q21: OK | R21: Zadejte hodnotu z PENB po realizaci z tabulky: Energetická náročnost hodnocené budovy e) požadavek na celkovou dodanou energii. | S21: Hodnota není číslo. | T21: Spotřeba musí být kladná. | U21: Hodnota před realizací projektu nemůže být nižší než vypočtená hodnota v bodu 2.3. | V21: Zadaná hodnota spotřeby je příliš nízká
B22: 2.6 | C22: Potvrďte, že jsou hodnoty zadány správně | G22: =IFERROR(INDEX(Q22:S22,1,P22),"") -> OK | I22: =AND(JePENB,I21,M21,OR(P19=5,P20=6,P21=6)) -> FALSE | J22: =IF(AND(JePENB,P18<>5,P19<>6,P20<>6),ano,IF(AND(I22,L22),F22,"")) ->  | K22: =IF(L22,ROW(F26),ROW()) -> 26 | L22: =OR(F22=ano,F22=ne,AND(P19<>5,P20<>6,P21<>6)) -> TRUE | M22: =AND(M21,OR(L22,J5=ano)) -> FALSE | P22: =IFERROR(myidx(OR(F22=ano,AND(L22,P19<>5,P20<>6,P21<>6)),AND(OR(ISBLANK(F22),F22=ne),OR(P19=5,P20=5,P21=5))),0) -> 1 | Q22: OK | R22: Zkontrolujte prosím správnost zadaných zadaných spotřeb (body 2.3, 2.4, 2.5) a vytápěné plochy (bod 1.6). Pokud jsou zadány správně, zvolte ano.
I23: TRUE
B24: 3. | C24: Vlastnosti budovy před realizací opatření | G24: Výběrem z předvolených možností definujte budovu, kterou chcete rekonstruovat v rámci programu | I24: =I26 -> FALSE
B25: Popis stávajících konstrukcí | I25: =I26 -> FALSE
B26: 3.1.1 | C26: Obvodový plášť | D26: Specifikujte konstrukci | G26: =IF(P26>0,INDEX(Q26:S26,1,P26),"") -> Vyberte z předvolených konstrukcí konstrukci, která nejvíce odpovídá vašemu objektu | I26: =OR(AND(NOT(JePENB),M15),AND(JePENB,M22)) -> FALSE | J26: =IF(AND(I26,L26),F26,"") ->  | K26: =IF(L26,ROW(F27),ROW()) -> 26 | L26: =AND(NOT(ISBLANK(F26)),Budova!K16>0) -> FALSE | M26: =AND(M15,L26) -> FALSE | P26: =myidx(L26,ISBLANK(F26),Budova!K16<=0) -> 2 | Q26: OK | R26: Vyberte z předvolených konstrukcí konstrukci, která nejvíce odpovídá vašemu objektu | S26: Nesprávná kombinace období výstavby v bodu 1.7 a zvolené konstrukce.
B27: 3.1.2 | D27: Celková plocha | E27: m2 | G27: =IFERROR(INDEX(Q27:U27,1,P27),"") -> Zadejte celkovou plochu obvodového pláště. | I27: =AND(I26,M26) -> FALSE | J27: =I27*L27*F27 -> 0 | K27: =IF(L27,ROW(F28),ROW()) -> 27 | L27: =AND(ISNUMBER(F27),IF(ISNUMBER(F27),F27>0,FALSE)) -> FALSE | M27: =AND(M26,L27) -> FALSE | P27: =myidx(L27,ISBLANK(F27),NOT(ISNUMBER(F27)),F27<=0) -> 2 | Q27: OK | R27: Zadejte celkovou plochu obvodového pláště. | S27: Hodnota není číslo. | T27: Plocha musí být kladná.
B28: 3.2.1 | C28: Střecha | D28: Vyberte typ konstrukce | G28: =IF(P28>0,INDEX(Q28:S28,1,P28),"") -> "Šikmá střecha" znamená využívané podkroví, "Strop půdy" znamená nevytápěnou půdu | I28: =AND(I27,M27) -> FALSE | J28: =IF(AND(I28,L28),F28,"") ->  | K28: =IF(L28,ROW(F29),ROW()) -> 28 | L28: =NOT(ISBLANK(F28)) -> FALSE | M28: =AND(M26,L28) -> FALSE | P28: =myidx(L28,ISBLANK(F28)) -> 2 | Q28: OK | R28: "Šikmá střecha" znamená využívané podkroví, "Strop půdy" znamená nevytápěnou půdu | S28: Nesprávná kombinace období výstavby v bodu 1.7 a zvolené konstrukce.
B29: 3.2.2 | D29: Specifikujte konstrukci | G29: =IF(P29>0,INDEX(Q29:S29,1,P29),"") -> Vyberte z předvolených konstrukcí konstrukci, která nejvíce odpovídá vašemu objektu, pokud je předvolená pouze 1 možnost, vyberte ji | I29: =AND(I28,M28) -> FALSE | K29: 29 | L29: =AND(NOT(ISBLANK(F29)),Budova!J13) -> FALSE | M29: =AND(M28,L29) -> FALSE | P29: =myidx(L29,ISBLANK(F29),NOT(Budova!J13)) -> 2 | Q29: OK | R29: Vyberte z předvolených konstrukcí konstrukci, která nejvíce odpovídá vašemu objektu, pokud je předvolená pouze 1 možnost, vyberte ji | S29: Nesprávná kombinace typu střechy v bodu 3.1.2 a zvolené konstrukce.
B30: 3.2.3 | D30: Celková plocha | E30: m2 | G30: =IFERROR(INDEX(Q30:U30,1,P30),"") -> Zadejte celkovou plochu střechy nebo stropu pod půdou. | I30: FALSE | J30: =I30*L30*F30 -> 0 | K30: 30 | L30: =AND(ISNUMBER(F30),IF(ISNUMBER(F30),F30>0,FALSE)) -> FALSE | M30: FALSE | P30: =myidx(L30,ISBLANK(F30),NOT(ISNUMBER(F30)),F30<=0) -> 2 | Q30: OK | R30: Zadejte celkovou plochu střechy nebo stropu pod půdou. | S30: Hodnota není číslo. | T30: Plocha musí být kladná.
B31: 3.3.1 | C31: Podlaha, strop nad suterénem | D31: Vyberte typ konstrukce | G31: =IF(P31>0,INDEX(Q31:S31,1,P31),"") -> Pokud je v budově vytápěný suterén - zvolte "Podlaha na zemině" | I31: FALSE | J31: =IF(AND(I31,L31),F31,"") ->  | K31: 31 | L31: =NOT(ISBLANK(F31)) -> FALSE | M31: =AND(M29,L31) -> FALSE | P31: =myidx(L31,ISBLANK(F31)) -> 2 | Q31: OK | R31: Pokud je v budově vytápěný suterén - zvolte "Podlaha na zemině" | S31: Nesprávná kombinace období výstavby v bodu 1.7 a zvolené konstrukce.
B32: 3.3.2 | D32: Specifikujte konstrukci | G32: =IF(P32>0,INDEX(Q32:S32,1,P32),"") -> Vyberte z předvolených konstrukcí konstrukci, která nejvíce odpovídá vašemu objektu, pokud je předvolená pouze 1 možnost, vyberte ji. | I32: FALSE | K32: 32 | L32: =AND(NOT(ISBLANK(F32)),Budova!L13) -> FALSE | M32: =AND(M31,L32) -> FALSE | P32: =myidx(L32,ISBLANK(F32),NOT(Budova!L13)) -> 2 | Q32: OK | R32: Vyberte z předvolených konstrukcí konstrukci, která nejvíce odpovídá vašemu objektu, pokud je předvolená pouze 1 možnost, vyberte ji. | S32: Nesprávná kombinace typu podlahy v bodu 3.1.4 a zvolené konstrukce.
B33: 3.3.3 | D33: Celková plocha | E33: m2 | G33: =IFERROR(INDEX(Q33:U33,1,P33),"") -> Zadejte celkovou plochu podlahy. | I33: FALSE | J33: =I33*L33*F33 -> 0 | K33: 33 | L33: =AND(ISNUMBER(F33),IF(ISNUMBER(F33),F33>0,FALSE)) -> FALSE | M33: FALSE | P33: =myidx(L33,ISBLANK(F33),NOT(ISNUMBER(F33)),F33<=0) -> 2 | Q33: OK | R33: Zadejte celkovou plochu podlahy. | S33: Hodnota není číslo. | T33: Plocha musí být kladná.
B34: 3.4.1 | C34: Okna | D34: Vyberte typ konstrukce | G34: =IF(P34>0,INDEX(Q34:S34,1,P34),"") -> Vyberte výplň, kterou hodláte měnit. Pokud měníte více typů výplní, zvolte tu , která odpovídá největší ploše měněných výplní. | I34: FALSE | J34: =IF(AND(I34,L34),F34,"") ->  | K34: 34 | L34: =AND(NOT(ISBLANK(F34)),Budova!K19>0) -> FALSE | M34: =AND(M32,L34) -> FALSE | P34: =myidx(L34,ISBLANK(F34),Budova!K19<=0) -> 2 | Q34: OK | R34: Vyberte výplň, kterou hodláte měnit. Pokud měníte více typů výplní, zvolte tu , která odpovídá největší ploše měněných výplní. | S34: Nesprávná kombinace období výstavby v bodu 1.7 a zvolené konstrukce.
B35: 3.4.2 | D35: Celková plocha | E35: m2 | G35: =IFERROR(INDEX(Q35:U35,1,P35),"") -> Zadejte celkovou plochu oken. | I35: FALSE | J35: =I35*L35*F35 -> 0 | K35: 35 | L35: =AND(ISNUMBER(F35),IF(ISNUMBER(F35),F35>0,FALSE)) -> FALSE | M35: =AND(M34,L35) -> FALSE | P35: =myidx(L35,ISBLANK(F35),NOT(ISNUMBER(F35)),F35<=0) -> 2 | Q35: OK | R35: Zadejte celkovou plochu oken. | S35: Hodnota není číslo. | T35: Plocha musí být kladná.
B36: 3.5.1 | C36: Dveře, vrata | D36: Vyberte typ konstrukce | G36: =IF(P36>0,INDEX(Q36:S36,1,P36),"") -> Vyberte dveřní výplň, kterou hodláte měnit. Pokud měníte více typů výplní, zvolte tu , která odpovídá největší ploše měněných výplní. | I36: FALSE | J36: =IF(AND(I36,L36),F36,"") ->  | K36: 36 | L36: =AND(NOT(ISBLANK(F36)),Budova!K20>0) -> FALSE | M36: =AND(M34,L36) -> FALSE | P36: =myidx(L36,ISBLANK(F36),Budova!K20<=0) -> 2 | Q36: OK | R36: Vyberte dveřní výplň, kterou hodláte měnit. Pokud měníte více typů výplní, zvolte tu , která odpovídá největší ploše měněných výplní. | S36: Nesprávná kombinace období výstavby v bodu 1.7 a zvolené konstrukce.
B37: 3.5.2 | D37: Celková plocha | E37: m2 | G37: =IFERROR(INDEX(Q37:U37,1,P37),"") -> Zadejte celkovou plochu dveří nebo vrat. | I37: FALSE | J37: =I37*L37*F37 -> 0 | K37: 37 | L37: =AND(ISNUMBER(F37),IF(ISNUMBER(F37),F37>0,FALSE)) -> FALSE | M37: =AND(M36,L37) -> FALSE | P37: =myidx(L37,ISBLANK(F37),NOT(ISNUMBER(F37)),F37<=0) -> 2 | Q37: OK | R37: Zadejte celkovou plochu dveří nebo vrat. | S37: Hodnota není číslo. | T37: Plocha musí být kladná.
B38: 3.6.1 | C38: Střešní okna, světlíky | D38: Vyberte typ konstrukce | G38: =IF(P38>0,INDEX(Q38:S38,1,P38),"") -> Pokud v budově nejsou střešní okna ani světlíky, nevybírejte nic a pokračujte vyplněním tabulky č. 4 | I38: FALSE | J38: =IF(AND(I38,L38),F38,"") ->  | K38: =IF(L38,IF(ISBLANK(F38),ROW(F42),ROW(F39)),ROW()) -> 38 | L38: =AND(NOT(ISBLANK(F38)),Budova!K21>0) -> FALSE | M38: =M36 -> FALSE | P38: =myidx(L38,ISBLANK(F38),Budova!K21<=0) -> 2 | Q38: OK | R38: Pokud v budově nejsou střešní okna ani světlíky, nevybírejte nic a pokračujte vyplněním tabulky č. 4 | S38: Nesprávná kombinace období výstavby v bodu 1.7 a zvolené konstrukce.
B39: 3.6.2 | D39: Celková plocha | E39: m2 | G39: =IFERROR(INDEX(Q39:U39,1,P39),"") -> Zadejte celkovou plochu střešních oken nebo světlíků. | I39: =AND(NOT(ISBLANK(F38)),I38,M38) -> FALSE | J39: =I39*L39*F39 -> 0 | K39: =IF(L39,ROW(F42),ROW()) -> 39 | L39: =AND(ISNUMBER(F39),IF(ISNUMBER(F39),F39>0,FALSE)) -> FALSE | M39: =AND(M38,OR(L39,ISBLANK(F38))) -> FALSE | P39: =myidx(L39,ISBLANK(F39),NOT(ISNUMBER(F39)),F39<=0) -> 2 | Q39: OK | R39: Zadejte celkovou plochu střešních oken nebo světlíků. | S39: Hodnota není číslo. | T39: Plocha musí být kladná.
I40: =I38 -> FALSE
B41: 4. | C41: Opatření k realizaci | G41: Definujte parametry opatření, která hodláte realizovat v rámci programu | I41: =I38 -> FALSE
B42: 4.1. | C42: Zateplení obvodového pláště | D42: Vyberte ano / ne | G42: =IFERROR(INDEX(Q42:S42,1,P42),"") -> Vyberte ano nebo ne. | I42: =I38 -> FALSE | J42: =IF(AND(I42,L42,je_zateplení),F42=ano,FALSE) -> FALSE | K42: =IF(L42,IF(F42=ano,ROW(F43),ROW(F50)),ROW()) -> 42 | L42: =OR(F42=ano,F42=ne) -> FALSE | M42: =OR($F$42=ne,AND(M38,L42)) -> FALSE | P42: =myidx(L42,ISBLANK(F42)) -> 2 | Q42: OK | R42: Vyberte ano nebo ne.
B43: 4.1.2 | D43: Typ zateplení | G43: =IFERROR(INDEX(Q43:S43,1,P43),"") -> Vyberte typ zateplení, které nejlépe charakterizuje vámi realizované. V případě realizace více typů, uveďte ten s největší plochou. | I43: =AND(I42,M42,$J$42) -> FALSE | J43: =IF(AND(I43,L43),F43,"") ->  | K43: =IF(L43,ROW(F44),ROW()) -> 43 | L43: =NOT(ISBLANK(F43)) -> FALSE | M43: =OR($F$42=ne,AND(M42,L43)) -> FALSE | P43: =myidx(L43,ISBLANK(F43)) -> 2 | Q43: OK | R43: Vyberte typ zateplení, které nejlépe charakterizuje vámi realizované. V případě realizace více typů, uveďte ten s největší plochou.
B44: 4.1.3 | D44: Tloušťka tepelné izolace [mm] | G44: =IFERROR(INDEX(Q44:U44,1,P44),"") -> Zadejte tloušťku izolace v mm. | I44: =AND(I43,M43,$J$42) -> FALSE | J44: =I44*L44*F44 -> 0 | K44: 44 | L44: =AND(ISNUMBER(F44),IF(ISNUMBER(F44),AND(F44>0,F44<=MaxTlIzol),FALSE)) -> FALSE | M44: =OR($F$42=ne,AND(M43,L44)) -> FALSE | P44: =myidx(L44,ISBLANK(F44),NOT(ISNUMBER(F44)),F44<=0,F44>MaxTlIzol) -> 2 | Q44: OK | R44: Zadejte tloušťku izolace v mm. | S44: Hodnota není číslo. | T44: Hodnota musí být kladná. | U44: ="Obvyklá tloušťka izolace je do " & MaxTlIzol & " mm." -> Obvyklá tloušťka izolace je do 500 mm.
B45: 4.1.4 | D45: Plocha zateplované konstrukce [m2] | G45: =IFERROR(INDEX(Q45:V45,1,P45),"") -> Zadejte plochu. | I45: =AND(I44,M44,$J$42) -> FALSE | J45: 0 | K45: =IF(L45,IF(JePENB,ROW(F46),ROW(F50)),ROW()) -> 45 | L45: =AND(ISNUMBER(F45),IF(ISNUMBER(F45),AND(F45>0,F45<=F27),FALSE)) -> FALSE | M45: =OR($F$42=ne,AND(M44,L45)) -> FALSE | P45: =myidx(L45,ISBLANK(F45),NOT(ISNUMBER(F45)),F45<=0,F45>F27) -> 2 | Q45: OK | R45: Zadejte plochu. | S45: Hodnota není číslo. | T45: Hodnota musí být kladná. | U45: Zateplovaná plocha nemůže být větší než celková plocha v bodu 3.1.2.
B46: 4.1.5 | D46: Součinitel prostupu tepla konstrukce z PENB [W/(m2.K)] | G46: =IFERROR(INDEX(Q46:T46,1,P46),"") -> Zadejte hodnotu z Průkazu energetické náročnosti po realizaci projektu z tabulky a.1) požadavky na součinitel prostupu tepla - Vypočtená hodnota Uj. | I46: =AND(I45,M45,$J$42,JePENB) -> FALSE | J46: 0 | K46: =IF(L46,ROW(F50),ROW()) -> 46 | L46: =OR(AND(M45,NOT(JePENB)),AND(ISNUMBER(F46),IF(ISNUMBER(F46),AND(F46>MinUPENB,F46<=MaxUPENB),FALSE))) -> FALSE | M46: =OR($F$42=ne,AND(M45,L46)) -> FALSE | P46: =myidx(L46,ISBLANK(F46),NOT(ISNUMBER(F46)),OR(F46<=MinUPENB,F46>MaxUPENB)) -> 2 | Q46: OK | R46: Zadejte hodnotu z Průkazu energetické náročnosti po realizaci projektu z tabulky a.1) požadavky na součinitel prostupu tepla - Vypočtená hodnota Uj. | S46: Hodnota není číslo. | T46: ="Hodnota musí být větší než " & MinUPENB & " menší nebo rovna " & MaxUPENB & "." -> Hodnota musí být větší než 0 menší nebo rovna 7.
B47: 4.1.6 | D47: Součinitel prostupu tepla výpočet z kalkulačky [W/(m2.K)] | F47: =IF(ISBLANK(F44),"",Parametry!D8) ->  | I47: =AND(J42,M46,NOT(JePENB)) -> FALSE
B48: 4.1.7 | D48: Požadavek programu na U [W/(m2.K)] | F48: =IF(ISBLANK(F44),"",Parametry!G8) ->  | G48: Hodnota je nastavená dle specifických podmínek programu a vámi zvoleného typu budovy a dalších kritérií | I48: =AND(J42,M46) -> FALSE
B49: 4.1.8 | D49: Vyhodnocení plnění požadavku | F49: =IF(N49,O49,"Zateplení obvodových stěn splňuje požadavky programu.") -> Zateplení obvodových stěn splňuje požadavky programu. | I49: =AND(J42,M46) -> FALSE | J49: =IF(JePENB,J46,F47) ->  | N49: =IFERROR(AND(F42=ano,J49>F48),FALSE) -> FALSE | O49: Zateplení obvodových stěn nesplňuje podmínky programu.
B50: 4.2. | C50: Zateplení střechy | D50: Vyberte ano / ne | G50: =IFERROR(INDEX(Q50:S50,1,P50),"") -> Vyberte ano nebo ne. | I50: =OR(AND(F42=ne,I42),AND(JePENB,I46,M46),AND(NOT(JePENB),I45,M45)) -> FALSE | J50: =IF(AND(I50,L50,je_zateplení),F50=ano,FALSE) -> FALSE | K50: =IF(L50,IF(F50=ano,ROW(F51),ROW(F58)),ROW()) -> 50 | L50: =OR(F50=ano,F50=ne) -> FALSE | M50: =AND(M46,L50) -> FALSE | P50: =myidx(L50,ISBLANK(F50)) -> 2 | Q50: OK | R50: Vyberte ano nebo ne.
B51: 4.2.2 | D51: Typ zateplení | G51: =IFERROR(INDEX(Q51:S51,1,P51),"") -> Vyberte typ zateplení, které nejlépe charakterizuje vámi realizované. V případě realizace více typů, uveďte ten s největší plochou. | I51: =AND(I50,M50,$J$50) -> FALSE | J51: =IF(AND(I51,L51),F51,"") ->  | K51: =IF(L51,ROW(F52),ROW()) -> 51 | L51: =AND(NOT(ISBLANK(F51)),LambdaStřecha>0) -> FALSE | M51: =OR($F$50=ne,AND(M50,L51)) -> FALSE | P51: =myidx(L51,ISBLANK(F51),LambdaStřecha<=0) -> 2 | Q51: OK | R51: Vyberte typ zateplení, které nejlépe charakterizuje vámi realizované. V případě realizace více typů, uveďte ten s největší plochou. | S51: Nesprávná kombinace typu střechy v bodu 3.1.2 a způsobu zateplení.
B52: 4.2.3 | D52: Tloušťka tepelné izolace [mm] | G52: =IFERROR(INDEX(Q52:U52,1,P52),"") -> Zadejte tloušťku izolace v mm. | I52: =AND(I51,M51,$J$50) -> FALSE | J52: =I52*L52*F52 -> 0 | K52: 52 | L52: =AND(ISNUMBER(F52),IF(ISNUMBER(F52),AND(F52>0,F52<=MaxTlIzol),FALSE)) -> FALSE | M52: =OR($F$50=ne,AND(M51,L52)) -> FALSE | P52: =myidx(L52,ISBLANK(F52),NOT(ISNUMBER(F52)),F52<=0,F52>MaxTlIzol) -> 2 | Q52: OK | R52: Zadejte tloušťku izolace v mm. | S52: Hodnota není číslo. | T52: Hodnota musí být kladná. | U52: ="Obvyklá tloušťka izolace je do " & MaxTlIzol & " mm." -> Obvyklá tloušťka izolace je do 500 mm.
B53: 4.2.4 | D53: Plocha zateplované konstrukce [m2] | G53: =IFERROR(INDEX(Q53:V53,1,P53),"") -> Zadejte plochu zateplované konstrukce. | I53: =AND(I52,M52,$J$50) -> FALSE | J53: 0 | K53: =IF(L53,IF(JePENB,ROW(F54),ROW(F58)),ROW()) -> 53 | L53: =AND(ISNUMBER(F53),IF(ISNUMBER(F53),AND(F53>0,F53<=F30),FALSE)) -> FALSE | M53: =OR($F$50=ne,AND(M52,L53)) -> FALSE | P53: =myidx(L53,ISBLANK(F53),NOT(ISNUMBER(F53)),F53<=0,F53>F328) -> 2 | Q53: OK | R53: Zadejte plochu zateplované konstrukce. | S53: Hodnota není číslo. | T53: Hodnota musí být kladná. | U53: Zateplovaná plocha nemůže být větší než celková plocha v bodu 3.2.3.
B54: 4.2.5 | D54: Součinitel prostupu tepla konstrukce z PENB [W/(m2.K)] | G54: =IFERROR(INDEX(Q54:T54,1,P54),"") -> Zadejte hodnotu z Průkazu energetické náročnosti po realizaci projektu z tabulky a.1) požadavky na součinitel prostupu tepla - Vypočtená hodnota Uj | I54: =AND(I53,M53,$J$50,JePENB) -> FALSE | J54: 0 | K54: =IF(L54,ROW(F58),ROW()) -> 54 | L54: =OR(AND(M53,NOT(JePENB)),AND(ISNUMBER(F54),IF(ISNUMBER(F54),AND(F54>MinUPENB,F54<=MaxUPENB),FALSE))) -> FALSE | M54: =OR($F$50=ne,AND(M53,L54)) -> FALSE | P54: =myidx(L54,ISBLANK(F54),NOT(ISNUMBER(F54)),OR(F54<=MinUPENB,F54>MaxUPENB)) -> 2 | Q54: OK | R54: Zadejte hodnotu z Průkazu energetické náročnosti po realizaci projektu z tabulky a.1) požadavky na součinitel prostupu tepla - Vypočtená hodnota Uj | S54: Hodnota není číslo. | T54: ="Hodnota musí být větší než " & MinUPENB & " menší nebo rovna " & MaxUPENB & "." -> Hodnota musí být větší než 0 menší nebo rovna 7.
B55: 4.2.6 | D55: Součinitel prostupu tepla výpočet z kalkulačky [W/(m2.K)] | F55: =IF(ISBLANK(F52),"",Parametry!D9) ->  | I55: =AND(J50,M54,NOT(JePENB)) -> FALSE | Q55: OK
B56: 4.2.7 | D56: Požadavek programu na U [W/(m2.K)] | E56: =Parametry!H9 -> Upož,20*e1 | F56: =IF(ISBLANK(F52),"",Parametry!G9) ->  | G56: Hodnota je nastavená dle specifických podmínek programu a vámi zvoleného typu budovy a dalších kritérií | I56: =AND(J50,M54) -> FALSE
B57: 4.2.8 | D57: Vyhodnocení plnění požadavku | F57: =IF(N57,O57,"Zateplení střechy splňuje požadavky programu.") -> Zateplení střechy splňuje požadavky programu. | G57: =IF(F57="Konstrukce nesplňuje požadavky programu","Pozn. Upravte tloušťku nebo typ zateplení nebo součinitel prostupu tepla konstrukce","") ->  | I57: =AND(J50,M54) -> FALSE | J57: =IF(JePENB,J54,F55) ->  | N57: =IFERROR(AND(F50=ano,J57>F56),FALSE) -> FALSE | O57: Zateplení střechy nesplňuje podmínky programu.
B58: 4.3. | C58: Zateplení podlahy | D58: Vyberte ano / ne | G58: =IFERROR(INDEX(Q58:S58,1,P58),"") -> Vyberte ano nebo ne. | I58: =OR(AND(F50=ne,I50),AND(JePENB,I54,M54),AND(NOT(JePENB),I53,M53)) -> FALSE | J58: =IF(AND(I58,L58,je_zateplení),F58=ano,FALSE) -> FALSE | K58: =IF(L58,IF(F58=ano,ROW(F59),ROW(F66)),ROW()) -> 58 | L58: =OR(F58=ano,F58=ne) -> FALSE | M58: =AND(M54,L58) -> FALSE | P58: =myidx(L58,ISBLANK(F58)) -> 2 | Q58: OK | R58: Vyberte ano nebo ne.
B59: 4.3.2 | D59: Typ zateplení | G59: =IFERROR(INDEX(Q59:S59,1,P59),"") -> Vyberte typ zateplení, které nejlépe charakterizuje vámi realizované. V případě realizace více typů, uveďte ten s největší plochou. | I59: =AND(I58,M58,$J$58) -> FALSE | J59: =IF(AND(I59,L59),F59,"") ->  | K59: =IF(L59,ROW(F60),ROW()) -> 59 | L59: =AND(NOT(ISBLANK(F59)),LambdaPodlaha>0) -> FALSE | M59: =OR($F$58=ne,AND(M58,L59)) -> FALSE | P59: =myidx(L59,ISBLANK(F59),LambdaPodlaha<=0) -> 2 | Q59: OK | R59: Vyberte typ zateplení, které nejlépe charakterizuje vámi realizované. V případě realizace více typů, uveďte ten s největší plochou. | S59: Nesprávná kombinace typu podlahy v bodu 3.1.5 a způsobu zateplení.
B60: 4.3.3 | D60: Tloušťka tepelné izolace [mm] | G60: =IFERROR(INDEX(Q60:U60,1,P60),"") -> Zadejte tloušťku izolace v mm. | I60: =AND(I59,M59,$J$58) -> FALSE | J60: =I60*L60*F60 -> 0 | K60: 60 | L60: =AND(ISNUMBER(F60),IF(ISNUMBER(F60),AND(F60>0,F60<=MaxTlIzol),FALSE)) -> FALSE | M60: =OR($F$58=ne,AND(M59,L60)) -> FALSE | P60: =myidx(L60,ISBLANK(F60),NOT(ISNUMBER(F60)),F60<=0,F60>MaxTlIzol) -> 2 | Q60: OK | R60: Zadejte tloušťku izolace v mm. | S60: Hodnota není číslo. | T60: Hodnota musí být kladná. | U60: ="Obvyklá tloušťka izolace je do " & MaxTlIzol & " mm." -> Obvyklá tloušťka izolace je do 500 mm.
B61: 4.3.4 | D61: Plocha zateplované konstrukce [m2] | G61: =IFERROR(INDEX(Q61:V61,1,P61),"") -> Zadejte plochu zateplované konstrukce. | I61: =AND(I60,M60,$J$58) -> FALSE | J61: 0 | K61: =IF(L61,IF(JePENB,ROW(F62),ROW(F66)),ROW()) -> 61 | L61: =AND(ISNUMBER(F61),IF(ISNUMBER(F61),AND(F61>0,F61<=F33),FALSE)) -> FALSE | M61: =OR($F$58=ne,AND(M60,L61)) -> FALSE | P61: =myidx(L61,ISBLANK(F61),NOT(ISNUMBER(F61)),F61<=0,F61>F33) -> 2 | Q61: OK | R61: Zadejte plochu zateplované konstrukce. | S61: Hodnota není číslo. | T61: Hodnota musí být kladná. | U61: Zateplovaná plocha nemůže být větší než celková plocha v bodu 3.3.3.
B62: 4.3.5 | D62: Součinitel prostupu tepla konstrukce z PENB [W/(m2.K)] | G62: =IFERROR(INDEX(Q62:T62,1,P62),"") -> Zadejte hodnotu z Průkazu energetické náročnosti po realizaci projektu z tabulky a.1) požadavky na součinitel prostupu tepla - Vypočtená hodnota Uj | I62: =AND(I61,M61,$J$58,JePENB) -> FALSE | J62: 0 | K62: =IF(L62,ROW(F66),ROW()) -> 62 | L62: =OR(AND(M61,NOT(JePENB)),AND(ISNUMBER(F62),IF(ISNUMBER(F62),AND(F62>MinUPENB,F62<=MaxUPENB),FALSE))) -> FALSE | M62: =OR($F$58=ne,AND(M61,L62)) -> FALSE | P62: =myidx(L62,ISBLANK(F62),NOT(ISNUMBER(F62)),OR(F62<=MinUPENB,F62>MaxUPENB)) -> 2 | Q62: OK | R62: Zadejte hodnotu z Průkazu energetické náročnosti po realizaci projektu z tabulky a.1) požadavky na součinitel prostupu tepla - Vypočtená hodnota Uj | S62: Hodnota není číslo. | T62: ="Hodnota musí být větší než " & MinUPENB & " menší nebo rovna " & MaxUPENB & "." -> Hodnota musí být větší než 0 menší nebo rovna 7.
B63: 4.3.6 | D63: Součinitel prostupu tepla výpočet z kalkulačky [W/(m2.K)] | F63: =IF(ISBLANK(F60),"",Parametry!D10) ->  | I63: =AND(I61,M61,$J$58,NOT(JePENB)) -> FALSE | Q63: OK
B64: 4.3.7 | D64: Požadavek programu [W/(m2.K)] | E64: =Parametry!H10 -> Upož,20*e1 | F64: =IF(ISBLANK(F60),"",Parametry!G10) ->  | G64: Hodnota je nastavená dle specifických podmínek programu a vámi zvoleného typu budovy a dalších kritérií | I64: =AND(J58,M62) -> FALSE
B65: 4.3.8 | D65: Vyhodnocení plnění požadavku | F65: =IF(N65,O65,"Zateplení podlahy splňuje požadavky programu.") -> Zateplení podlahy splňuje požadavky programu. | G65: =IF(F65="Konstrukce nesplňuje požadavky programu","Pozn. Upravte tloušťku nebo typ zateplení nebo součinitel prostupu tepla konstrukce","") ->  | I65: =AND(J58,M62) -> FALSE | J65: =IF(JePENB,J62,F63) ->  | N65: =IFERROR(AND(F58=ano,J65>F64),FALSE) -> FALSE | O65: Zateplení podlahy nesplňuje podmínky programu.
B66: 4.4. | C66: Výměna oken, výplní ve stěně | D66: Vyberte ano / ne | G66: =IFERROR(INDEX(Q66:S66,1,P66),"") -> Vyberte ano nebo ne. | I66: =OR(AND(F58=ne,I58),AND(JePENB,I62,M62),AND(NOT(JePENB),I61,M61)) -> FALSE | J66: =IF(AND(I66,L66,je_zateplení),F66=ano,FALSE) -> FALSE | K66: =IF(L66,IF(F66=ano,ROW(F67),ROW(F72)),ROW()) -> 66 | L66: =OR(F66=ano,F66=ne) -> FALSE | M66: =AND(M62,L66) -> FALSE | P66: =myidx(L66,ISBLANK(F66)) -> 2 | Q66: OK | R66: Vyberte ano nebo ne.
B67: 4.4.2 | D67: Typ oken | G67: =IFERROR(INDEX(Q67:S67,1,P67),"") -> Vyberte typ oken, která nejlépe charakterizují vámi realizované. V případě realizace více typů, uveďte ten s největší plochou | I67: =AND(I66,M66,$J$66) -> FALSE | J67: =IF(AND(I67,L67),F67,"") ->  | K67: =IF(L67,ROW(F68),ROW()) -> 67 | L67: =NOT(ISBLANK(F67)) -> FALSE | M67: =OR($F$66=ne,AND(M66,L67)) -> FALSE | P67: =myidx(L67,ISBLANK(F67)) -> 2 | Q67: OK | R67: Vyberte typ oken, která nejlépe charakterizují vámi realizované. V případě realizace více typů, uveďte ten s největší plochou
B68: 4.4.3 | D68: Plocha vyměňovaných oken [m2] | G68: =IFERROR(INDEX(Q68:V68,1,P68),"") -> Zadejte plochu vyměňovaných oken. | I68: =AND(I67,M67,$J$66) -> FALSE | J68: =I68*L68*F68 -> 0 | K68: 68 | L68: =AND(ISNUMBER(F68),IF(ISNUMBER(F68),AND(F68>0,F68<=F35),FALSE)) -> FALSE | M68: =OR($F$66=ne,AND(M67,L68)) -> FALSE | P68: =myidx(L68,ISBLANK(F68),NOT(ISNUMBER(F68)),F68<=0,F68>F35) -> 2 | Q68: OK | R68: Zadejte plochu vyměňovaných oken. | S68: Hodnota není číslo. | T68: Hodnota musí být kladná. | U68: Plocha měněných oken nemůže být větší než celová plocha oken v bodu 3.4.2.
B69: 4.4.4 | D69: Zadejte součinitel prostupu tepla nových oken [W/(m2.K)] | G69: =IFERROR(INDEX(Q69:T69,1,P69),"") -> Zadejte součinitel prostupu tepla. | I69: =AND(I68,M68,$J$66) -> FALSE | J69: =I69*L69*F69 -> 0 | K69: =IF(L69,ROW(F72),ROW()) -> 69 | L69: =AND(M68,ISNUMBER(F69),IF(ISNUMBER(F69),AND(F69>MinUPENB,F69<=MaxUPENB),FALSE)) -> FALSE | M69: =OR($F$66=ne,AND(M68,L69)) -> FALSE | P69: =myidx(L69,ISBLANK(F69),NOT(ISNUMBER(F69)),OR(F69<=MinUPENB,F69>MaxUPENB)) -> 2 | Q69: OK | R69: Zadejte součinitel prostupu tepla. | S69: Hodnota není číslo. | T69: ="Hodnota musí být větší než " & MinUPENB & " menší nebo rovna " & MaxUPENB & "." -> Hodnota musí být větší než 0 menší nebo rovna 7.
B70: 4.4.5 | D70: Požadavek programu [W/(m2.K)] | E70: =Parametry!H11 -> Upož,20*e1 | F70: =IF(ISBLANK(F69),"",Parametry!G11) ->  | G70: Hodnota je nastavená dle specifických podmínek programu a vámi zvoleného typu budovy a dalších kritérií | I70: =AND(I69,M69,$J$58) -> FALSE
B71: 4.4.6 | D71: Vyhodnocení plnění požadavku | F71: =IF(N71,O71,"Okna splňují požadavky programu.") -> Okna splňují požadavky programu. | G71: =IF(F71="Konstrukce nesplňuje požadavky programu","Pozn. Upravte tloušťku nebo typ zateplení nebo součinitel prostupu tepla konstrukce","") ->  | I71: =I70 -> FALSE | N71: =AND(F66=ano,UOken>F70) -> FALSE | O71: Okna nesplňují požadavky programu.
B72: 4.5. | C72: Výměna dveří, vrat | D72: Vyberte ano / ne | G72: =IFERROR(INDEX(Q72:S72,1,P72),"") -> Vyberte ano nebo ne. | I72: =OR(AND(I66,F66=ne),AND(M69,J66)) -> FALSE | J72: =IF(AND(I72,L72,je_zateplení),F72=ano,FALSE) -> FALSE | K72: =IF(L72,IF(F72=ano,ROW(F73),ROW(F78)),ROW()) -> 72 | L72: =OR(F72=ano,F72=ne) -> FALSE | M72: =AND(M69,L72) -> FALSE | P72: =myidx(L72,ISBLANK(F72)) -> 2 | Q72: OK | R72: Vyberte ano nebo ne.
B73: 4.5.2 | D73: Vyberte typ dveří, vrat | G73: =IFERROR(INDEX(Q73:S73,1,P73),"") -> Vyberte typ dveří, které nejlépe charakterizují vámi realizované. V případě realizace více typů, uveďte ten s největší plochou. | I73: =AND(I72,M72,$J$72) -> FALSE | J73: =IF(AND(I73,L73),F73,"") ->  | K73: =IF(L73,ROW(F74),ROW()) -> 73 | L73: =NOT(ISBLANK(F73)) -> FALSE | M73: =OR($F$72=ne,AND(M72,L73)) -> FALSE | P73: =myidx(L73,ISBLANK(F73)) -> 2 | Q73: OK | R73: Vyberte typ dveří, které nejlépe charakterizují vámi realizované. V případě realizace více typů, uveďte ten s největší plochou.
B74: 4.5.3 | D74: Plocha vyměňovaných dveří [m2] | G74: =IFERROR(INDEX(Q74:V74,1,P74),"") -> Zadejte plochu vyměňovaných dveří. | I74: =AND(I73,M73,$J$72) -> FALSE | J74: =I74*L74*F74 -> 0 | K74: 74 | L74: =AND(ISNUMBER(F74),IF(ISNUMBER(F74),AND(F74>0,F74<=F37),FALSE)) -> FALSE | M74: =OR($F$72=ne,AND(M73,L74)) -> FALSE | P74: =myidx(L74,ISBLANK(F74),NOT(ISNUMBER(F74)),F74<=0,F74>F37) -> 2 | Q74: OK | R74: Zadejte plochu vyměňovaných dveří. | S74: Hodnota není číslo. | T74: Hodnota musí být kladná. | U74: Plocha měněných dveří nemůže být větší než celová plocha dveří v bodu 3.5.2.
B75: 4.5.4 | D75: Zadejte součinitel prostupu tepla [W/(m2.K)] | G75: =IFERROR(INDEX(Q75:T75,1,P75),"") -> Zadejte součinitel prostupu tepla. | I75: =AND(I74,M74,$J$72) -> FALSE | J75: =I75*L75*F75 -> 0 | K75: =IF(L75,ROW(F78),ROW()) -> 75 | L75: =AND(M74,ISNUMBER(F75),IF(ISNUMBER(F75),AND(F75>MinUPENB,F75<=MaxUPENB),FALSE)) -> FALSE | M75: =OR($F$72=ne,AND(M74,L75)) -> FALSE | P75: =myidx(L75,ISBLANK(F75),NOT(ISNUMBER(F75)),OR(F75<=MinUPENB,F75>MaxUPENB)) -> 2 | Q75: OK | R75: Zadejte součinitel prostupu tepla. | S75: Hodnota není číslo. | T75: ="Hodnota musí být větší než " & MinUPENB & " menší nebo rovna " & MaxUPENB & "." -> Hodnota musí být větší než 0 menší nebo rovna 7.
B76: 4.5.5 | D76: Požadavek programu [W/(m2.K)] | E76: =Parametry!H12 -> Upož,20*e1 | F76: =IF(ISBLANK(F75),"",Parametry!G12) ->  | G76: Hodnota je nastavená dle specifických podmínek programu a vámi zvoleného typu budovy a dalších kritérií | I76: =AND(I75,M75,$J$72) -> FALSE | Q76: OK
B77: 4.5.6 | D77: Vyhodnocení plnění požadavku | F77: =IF(N77,O77,"Dveře/vrata splňují požadavky programu.") -> Dveře/vrata splňují požadavky programu. | G77: =IF(F77="Konstrukce nesplňuje požadavky programu","Pozn. Upravte tloušťku nebo typ zateplení nebo součinitel prostupu tepla konstrukce","") ->  | I77: =I76 -> FALSE | N77: =AND(F72=ano,UDveří>F76) -> FALSE | O77: Dveře/vrata nesplňují požadavky programu. | Q77: OK
B78: 4.6. | C78: Výměna střešních oken, světlíků | D78: Vyberte ano / ne | G78: =IFERROR(INDEX(Q78:S78,1,P78),"") -> OK | I78: =AND(OR(AND(I72,F72=ne),AND(M75,J72)),NOT(ISBLANK(F38))) -> FALSE | J78: =IF(AND(I78,L78,je_zateplení),F78=ano,FALSE) -> FALSE | K78: =IF(L78,IF(F78=ano,ROW(F79),ROW()),ROW()) -> 78 | L78: =OR(F78=ano,F78=ne,ISBLANK(F38)) -> TRUE | M78: =AND(M75,L78) -> FALSE | P78: =myidx(L78,ISBLANK(F78)) -> 1 | Q78: OK | R78: Vyberte ano nebo ne.
B79: 4.6.2 | D79: Vyperte typ oken | G79: =IFERROR(INDEX(Q79:S79,1,P79),"") -> OK | I79: =AND(I78,M78,$J$78) -> FALSE | J79: =IF(AND(I79,L79),F79,"") ->  | K79: =IF(L79,ROW(F80),ROW()) -> 80 | L79: =OR(ISBLANK(F38),NOT(ISBLANK(F79))) -> TRUE | M79: =OR($F$78=ne,AND(M78,L79)) -> FALSE | P79: =myidx(L79,ISBLANK(F79)) -> 1 | Q79: OK | R79: Vyberte typ oken, která nejlépe charakterizují vámi realizované. V případě realizace více typů, uveďte ten s největší plochou
B80: 4.6.3 | D80: Plocha vyměňovaných oken / světlíků [m2] | G80: =IFERROR(INDEX(Q80:V80,1,P80),"") -> OK | I80: =AND(I79,M79,$J$78) -> FALSE | J80: =I80*L80*F80 -> 0 | K80: 81 | L80: =OR(ISBLANK(F38),AND(ISNUMBER(F80),IF(ISNUMBER(F80),AND(F80>0,F80<=F39),FALSE))) -> TRUE | M80: =OR($F$78=ne,AND(M79,L80)) -> FALSE | P80: =myidx(L80,ISBLANK(F80),NOT(ISNUMBER(F80)),F80<=0,F80>F39) -> 1 | Q80: OK | R80: Zadejte plochu vyměňovaných dveří. | S80: Hodnota není číslo. | T80: Hodnota musí být kladná. | U80: Plocha měněných střešních oken nemůže být větší než celová plocha střešních oken v bodu 3.6.2.
B81: 4.6.4 | D81: Zadejte součinitel prostupu tepla | G81: =IFERROR(INDEX(Q81:T81,1,P81),"") -> OK | I81: =AND(I80,M80,$J$78) -> FALSE | J81: =I81*L81*F81 -> 0 | K81: =ROW() -> 81 | L81: =OR(ISBLANK(F38),AND(M80,ISNUMBER(F81),IF(ISNUMBER(F81),AND(F81>MinUPENB,F81<=MaxUPENB),FALSE))) -> TRUE | M81: =OR($F$78=ne,AND(M80,L81)) -> FALSE | P81: =myidx(L81,ISBLANK(F81),NOT(ISNUMBER(F81)),OR(F81<=MinUPENB,F81>MaxUPENB)) -> 1 | Q81: OK | R81: Zadejte součinitel prostupu tepla. | S81: Hodnota není číslo. | T81: ="Hodnota musí být větší než " & MinUPENB & " menší nebo rovna " & MaxUPENB & "." -> Hodnota musí být větší než 0 menší nebo rovna 7.
B82: 4.6.5 | D82: Požadavek programu [W/(m2.K)] | E82: =Parametry!H13 -> Upož,20*e1 | F82: =IF(ISBLANK(F81),"",Parametry!G13) ->  | G82: Hodnota je nastavená dle specifických podmínek programu a vámi zvoleného typu budovy a dalších kritérií | I82: =AND(I81,M81,$J$78) -> FALSE | Q82: OK
B83: 4.6.6 | D83: Vyhodnocení plnění požadavku | F83: =IF(N83,O83,"Světlíky/střešní okna splňují požadavky programu.") -> Světlíky/střešní okna splňují požadavky programu. | G83: =IF(F83="Konstrukce nesplňuje požadavky programu","Pozn. Upravte tloušťku nebo typ zateplení nebo součinitel prostupu tepla konstrukce","") ->  | I83: =I82 -> FALSE | N83: =AND(F78=ano,USvětlíků>F82) -> FALSE | O83: Světlíky/střešní okna nesplňují požadavky programu. | Q83: OK
F84: =IF(OR(M81,AND(JePENB,Výjimka,M20)),"Konec formuláře","") ->  | I84: TRUE
B85: 5. | C85: Vyhodnocení plnění požadavků na energetickou náročnost | I85: =AND(OR(ZatepleníStěn,ZatepleníStřechy,ZatepleníPodlahy,VýměnaOken,VýměnaDveří,VýměnaSvětlíků),AND(M46,M54,M62,M69,M75,M81)) -> FALSE
C86: Vyplňte alespoň jedno opatření pro zateplení. | I86: =AND(NOT(OR(ZatepleníStěn,ZatepleníStřechy,ZatepleníPodlahy,VýměnaOken,VýměnaDveří,VýměnaSvětlíků)),M81,NOT(Výjimka)) -> FALSE
C87: Byla zvolena výměna zdroje tepla, ale list Zdroj není vyplněn. | I87: =AND(je_zdroj,NOT(Zdroj!L24)) -> FALSE
C88: Opatření pro zateplení splňují požadavky programu. | I88: =AND(NOT(I90),$I$85) -> FALSE
C89: Nesrovnalosti v zadání spotřeby budovy podle PENB. | I89: =OR(N18,N20,N21) -> FALSE
C90: Opatření pro zateplení nesplňují požadavky programu. | I90: =AND(OR(N49,N57,N65,N71,N77,N83),$I$85) -> FALSE
I91: =AND(I88,NOT(I87)) -> FALSE
B92: 6. | C92: Bilance spotřeby energie před a po realizaci opatření (bez vlivu zdrojů tepla). | G92: =je_zdroj -> FALSE | I92: =I91 -> FALSE
C93: Konečná spotřeba energie | I93: =I92 -> FALSE
C94: Před zateplením | D94: =Bilance!E24 -> 0 | F94: kWh/rok | I94: FALSE
C95: Po zateplení | D95: =Bilance!F24 -> 0 | F95: kWh/rok | I95: FALSE
C96: Úspora | D96: =Bilance!G24 -> 0 | F96: kWh/rok | I96: FALSE
C97: Úspora | D97: =IFERROR(D96/D94,0) -> 0 | F97: % | I97: FALSE
C98: Snížení emisí CO2 | D98: =Bilance!M24 -> 0 | F98: kg/rok | I98: FALSE
C99: Úspora nákladů za energii Kč | D99: =Bilance!Y24 -> 0 | F99: Kč/rok | I99: FALSE
C100: Spotřeba primární energie | I100: FALSE
C101: Před zateplením | D101: =Bilance!H24 -> 0 | F101: kWh/rok | I101: FALSE
C102: Po zateplení | D102: =Bilance!I24 -> 0 | F102: kWh/rok | I102: FALSE
C103: Úspora | D103: =Bilance!J24 -> 0 | F103: kWh/rok | I103: FALSE
C104: Úspora | D104: =IFERROR(D103/D101,0) -> 0 | F104: % | I104: FALSE
A106: Konec listu

Sheet Rekuperace (hidden)
B1: Rekuperace tepla
B3: 1. | C3: Základní informace o rekuperaci tepla | G3: Viditelnost | H3: Hodnota buňky | I3: Další řádek | J3: Řádek OK | K3: Průběžně OK | L3: Porušení podmínek | M3: Hlášení | N3: Hláška č. | O3: Hlášky…
B4: 1.1 | C4: Zadejte účinnost rekuperace systému nuceného větrání v % | E4: =IFERROR(INDEX(O4:S4,1,N4),"") -> Zadejte účinnost rekuperace. | G4: TRUE | H4: =G4*J4*D4 -> 0 | I4: =IF(J4,ROW(D5),ROW()) -> 4 | J4: =AND(NOT(ISBLANK(D4)),IF(NOT(ISBLANK(D4)),AND(D4>=0,D4<=1))) -> FALSE | K4: =AND(NOT(ISBLANK(D4)),IF(NOT(ISBLANK(D4)),AND(D4>=0,D4<=1))) -> FALSE | L4: =AND(J4,H4<MinEtaRekuperace) -> FALSE | M4: ="Nesplňuje požadavky na účinnost rekuperace tepla, účinnost musí být alespoň " & MinEtaRekuperace*100 & " %." -> Nesplňuje požadavky na účinnost rekuperace tepla, účinnost musí být alespoň 67 %. | N4: =myidx(AND(J4,H4>=MinEtaRekuperace),ISBLANK(D4),NOT(ISNUMBER(D4)),D4<MinEtaRekuperace,OR(D4<0,D4>1)) -> 2 | O4: OK | P4: Zadejte účinnost rekuperace. | Q4: Hodnota není číslo. | R4: ="Nesplňuje požadavky na účinnost rekuperace, účinnost musí být alespoň " & MinEtaRekuperace & " %." -> Nesplňuje požadavky na účinnost rekuperace, účinnost musí být alespoň 0,67 %. | S4: Účinnost musí být v rozmezí 0 - 100 %.
B5: 1.2 | C5: Zadejte větraný objem v m3/h | E5: =IFERROR(INDEX(O5:R5,1,N5),"") -> Zadejte větraný objem vzduchu. | G5: =AND(G4,K4) -> FALSE | H5: 0 | I5: 5 | J5: =AND(ISNUMBER(D5),IF(ISNUMBER(D5),D5>0)) -> FALSE | K5: =AND(K4,J5) -> FALSE | N5: =myidx(J5,ISBLANK(D5),NOT(ISNUMBER(D5)),D5<=0) -> 2 | O5: OK | P5: Zadejte větraný objem vzduchu. | Q5: Hodnota není číslo. | R5: Větrané množství vzduchu musí být kladné.
B6: 1.3 | C6: Je toto opatření součástí PENB? Vyberte ano / ne | E6: =IFERROR(INDEX(O6:Q6,1,N6),"") -> OK | G6: =AND(G5,K5,JePENB) -> FALSE | H6: =IF(AND(G6,J6),D6,"") ->  | I6: =ROW() -> 6 | J6: =OR(D6=ano,D6=ne,NOT(JePENB)) -> TRUE | K6: FALSE | N6: =myidx(J6,ISBLANK(D6)) -> 1 | O6: OK | P6: Vyberte ano nebo ne.
D7: =IF(K6=TRUE,"Konec formuláře","") ->  | G7: TRUE
B8: 2. | C8: Vyhodnocení rekuperace tepla | G8: =K6 -> FALSE
C9: Rekuperace tepla vyhovuje podmínkám programu. | G9: =AND(NOT(L4),K6) -> FALSE
C10: =M4 -> Nesplňuje požadavky na účinnost rekuperace tepla, účinnost musí být alespoň 67 %. | G10: =AND(L4,K6) -> FALSE
A11: Konec listu | G11: TRUE

Sheet Osvětlení (hidden)
B1: Náhrada světelných zdrojů
B3: 1 | C3: Jakého typu jsou stávající světelné zdroje? | H3: Viditelnost | I3: Hodnota buňky | J3: Další řádek | K3: Řádek OK | L3: Průběžně OK | M3: Porušení podmínek | N3: Hlášení | O3: Hláška č. | P3: Hlášky…
B4: 1.1 | C4: Jsou to klasické žárovky? | D4: Vyberte ano / ne | F4: =IFERROR(INDEX(P4:Q4,1,O4),"") -> Vyberte ano nebo ne. | H4: TRUE | I4: =IF(AND(H4,K4,L4),E4,"") ->  | J4: =IF(K4,IF(E4=ano,ROW(E5),ROW(E10)),ROW()) -> 4 | K4: =OR(E4=ano,E4=ne) -> FALSE | L4: =K4 -> FALSE | O4: =myidx(AND(K4,L4),AND(E4<>ano,E4<>ne),NOT(L4)) -> 2 | P4: OK | Q4: Vyberte ano nebo ne.
B5: 1.1.1 | C5: Jaký je jejich počet? | F5: =IFERROR(INDEX(P5:S5,1,O5),"") -> Zadejte jejich počet. | H5: =E4=ano -> FALSE | I5: =E5*H5*K5*L5 -> 0 | J5: =IF(K5,ROW(E6),ROW()) -> 5 | K5: =AND(ISNUMBER(E5),IF(ISNUMBER(E5),E5>0,FALSE)) -> FALSE | L5: =K5 -> FALSE | O5: =myidx(K5,ISBLANK(E5),NOT(ISNUMBER(E5)),E5<=0) -> 2 | P5: OK | Q5: Zadejte jejich počet. | R5: Hodnota není číslo. | S5: Počet musí být kladný.
B6: 1.1.2 | C6: Znáte celkový příkon všech klasických žárovek? | D6: Vyberte ano / ne | F6: =IFERROR(INDEX(P6:Q6,1,O6),"") -> Vyberte ano nebo ne. | H6: =AND(H5,K5,L5) -> FALSE | I6: =IF(AND(H6,K6,L6),E6,"") ->  | J6: =IF(K6,IF(E6=ano,ROW(E7),ROW(E8)),ROW()) -> 6 | K6: =OR(E6=ano,E6=ne) -> FALSE | L6: =K6 -> FALSE | O6: =myidx(AND(K6,L6),AND(E6<>ano,E6<>ne),NOT(L6)) -> 2 | P6: OK | Q6: Vyberte ano nebo ne.
B7: 1.1.3 | C7: Uveďte jejich celkový příkon | D7: W | F7: =IFERROR(INDEX(P7:T7,1,O7),"") -> Zadejte celkový příkon klasických žárovek. | H7: =AND(E6=ano,H6,K6,L6) -> FALSE | I7: =E7*H7*K7*L7 -> 0 | J7: =IF(K7,ROW(E10),ROW()) -> 7 | K7: =IFERROR(AND(ISNUMBER(E7),IF(ISNUMBER(E7),AND(E7/E5>=ŽárovkaMin,E7/E5<=ŽárovkaMax),FALSE)),FALSE) -> FALSE | L7: =K7 -> FALSE | O7: =myidx(K7,ISBLANK(E7),NOT(ISNUMBER(E7)),E7/E5 < ŽárovkaMin, E7/E5 > ŽárovkaMax) -> 2 | P7: OK | Q7: Zadejte celkový příkon klasických žárovek. | R7: Hodnota není číslo. | S7: ="Příliš malý příkon, průměrný příkon klasické žárovky musí být alespoň " & ŽárovkaMin & " W." -> Příliš malý příkon, průměrný příkon klasické žárovky musí být alespoň 40 W. | T7: ="Příliš velký příkon, průměrný příkon klasické žárovky může být nejvíce " & ŽárovkaMax & " W." -> Příliš velký příkon, průměrný příkon klasické žárovky může být nejvíce 1000 W.
B8: 1.1.4 | C8: Jaký je průměrný příkon klasických žárovek? | D8: W | F8: =IFERROR(INDEX(P8:T8,1,O8),"") -> Zadejte průměrný příkon klasických žárovek. | H8: =AND(E6=ne,H6,K6,L6) -> FALSE | I8: =E8*H8*K8*L8 -> 0 | J8: =IF(K8,ROW(E10),ROW()) -> 8 | K8: =IFERROR(AND(ISNUMBER(E8),IF(ISNUMBER(E8),AND(E8>=ŽárovkaMin,E8<=ŽárovkaMax),FALSE)),FALSE) -> FALSE | L8: =K8 -> FALSE | O8: =myidx(K8,ISBLANK(E8),NOT(ISNUMBER(E8)),E8 < ŽárovkaMin, E8 > ŽárovkaMax) -> 2 | P8: OK | Q8: Zadejte průměrný příkon klasických žárovek. | R8: Hodnota není číslo. | S8: ="Příliš malý příkon, průměrný příkon žárovky musí být alespoň " & ŽárovkaMin & " W." -> Příliš malý příkon, průměrný příkon žárovky musí být alespoň 40 W. | T8: ="Příliš velký příkon, průměrný příkon žárovky může být nejvíce " & ŽárovkaMax & " W." -> Příliš velký příkon, průměrný příkon žárovky může být nejvíce 1000 W.
H9: TRUE | K9: =OR(E4=ne,AND(K4,K5,E6=ano,K7),AND(K4,K5,E6=ne,K8)) -> FALSE | L9: =IFERROR(K9*(I8+I7/I5),0) -> 0 | O9: =IFERROR(SIGN(L9)*E5*VLOOKUP(L9,TOsvětlení[[klasika]:[příkon led]],6,1),0) -> 0
B10: 1.2 | C10: Halogenové žárovky | D10: Vyberte ano / ne | F10: =IFERROR(INDEX(P10:Q10,1,O10),"") -> Vyberte ano nebo ne. | H10: TRUE | I10: =IF(AND(H10,K10,L10),E10,"") ->  | J10: =IF(K10,IF(E10=ano,ROW(E11),ROW(E16)),ROW()) -> 10 | K10: =OR(E10=ano,E10=ne) -> FALSE | L10: =K10 -> FALSE | O10: =myidx(AND(K10,L10),AND(E10<>ano,E10<>ne),NOT(L10)) -> 2 | P10: OK | Q10: Vyberte ano nebo ne.
B11: 1.2.1 | C11: Jaký je jejich počet? | F11: =IFERROR(INDEX(P11:S11,1,O11),"") -> Zadejte jejich počet. | H11: =E10=ano -> FALSE | I11: =E11*H11*K11*L11 -> 0 | J11: =IF(K11,ROW(E12),ROW()) -> 11 | K11: =AND(ISNUMBER(E11),IF(ISNUMBER(E11),E11>0,FALSE)) -> FALSE | L11: =K11 -> FALSE | O11: =myidx(K11,ISBLANK(E11),NOT(ISNUMBER(E11)),E11<=0) -> 2 | P11: OK | Q11: Zadejte jejich počet. | R11: Hodnota není číslo. | S11: Počet musí být kladný.
B12: 1.2.2 | C12: Znáte celkový příkon všech halogenových žárovek? | D12: Vyberte ano / ne | F12: =IFERROR(INDEX(P12:Q12,1,O12),"") -> Vyberte ano nebo ne. | H12: =AND(H11,K11,L11) -> FALSE | I12: =IF(AND(H12,K12,L12),E12,"") ->  | J12: =IF(K12,IF(E12=ano,ROW(E13),ROW(E14)),ROW()) -> 12 | K12: =OR(E12=ano,E12=ne) -> FALSE | L12: =K12 -> FALSE | O12: =myidx(AND(K12,L12),AND(E12<>ano,E12<>ne),NOT(L12)) -> 2 | P12: OK | Q12: Vyberte ano nebo ne.
B13: 1.2.3 | C13: Uveďte jejich celkový příkon | D13: W | F13: =IFERROR(INDEX(P13:T13,1,O13),"") -> Zadejte celkový příkon hlogenových žárovek. | H13: =AND(E12=ano,H12,K12,L12) -> FALSE | I13: =E13*H13*K13*L13 -> 0 | J13: =IF(K13,ROW(E16),ROW()) -> 13 | K13: =IFERROR(AND(ISNUMBER(E13),IF(ISNUMBER(E13),AND(E13/E11>=HalogenMin,E13/E11<=HalogenMax),FALSE)),FALSE) -> FALSE | L13: =K13 -> FALSE | O13: =myidx(K13,ISBLANK(E13),NOT(ISNUMBER(E13)),E13/E11 < HalogenMin, E13/E11 > HalogenMax) -> 2 | P13: OK | Q13: Zadejte celkový příkon hlogenových žárovek. | R13: Hodnota není číslo. | S13: ="Příliš malý příkon, průměrný příkon halogenové žárovky musí být alespoň " & HalogenMin & " W." -> Příliš malý příkon, průměrný příkon halogenové žárovky musí být alespoň 30 W. | T13: ="Příliš velký příkon, průměrný příkon halogenové žárovky může být nejvíce " & HalogenMax & " W." -> Příliš velký příkon, průměrný příkon halogenové žárovky může být nejvíce 500 W.
B14: 1.2.4 | C14: Jaký je průměrný příkon halogenových žárovek? | D14: W | F14: =IFERROR(INDEX(P14:T14,1,O14),"") -> Zadejte průměrný příkon halogenových žárovek. | H14: =AND(E12=ne,H12,K12,L12) -> FALSE | I14: =E14*H14*K14*L14 -> 0 | J14: =IF(K14,ROW(E16),ROW()) -> 14 | K14: =IFERROR(AND(ISNUMBER(E14),IF(ISNUMBER(E14),AND(E14>=HalogenMin,E14<=HalogenMax),FALSE)),FALSE) -> FALSE | L14: =K14 -> FALSE | O14: =myidx(K14,ISBLANK(E14),NOT(ISNUMBER(E14)),E14 < HalogenMin, E14 > HalogenMax) -> 2 | P14: OK | Q14: Zadejte průměrný příkon halogenových žárovek. | R14: Hodnota není číslo. | S14: ="Příliš malý příkon, průměrný příkon halogenové žárovky musí být alespoň " & HalogenMin & " W." -> Příliš malý příkon, průměrný příkon halogenové žárovky musí být alespoň 30 W. | T14: ="Příliš velký příkon, průměrný příkon halogenové žárovky může být nejvíce " & HalogenMax & " W." -> Příliš velký příkon, průměrný příkon halogenové žárovky může být nejvíce 500 W.
H15: TRUE | K15: =OR(E10=ne,AND(K10,K11,E12=ano,K13),AND(K10,K11,E12=ne,K14)) -> FALSE | L15: =IFERROR(K15*(I14+I13/I11),0) -> 0 | O15: =IFERROR(SIGN(L15)*E11*VLOOKUP(L15,TOsvětlení[[halogen]:[příkon led]],5,1),0) -> 0
B16: 1.3 | C16: Zářivky | D16: Vyberte ano / ne | F16: =IFERROR(INDEX(P16:Q16,1,O16),"") -> Vyberte ano nebo ne. | H16: TRUE | I16: =IF(AND(H16,K16,L16),E16,"") ->  | J16: =IF(K16,IF(E16=ano,ROW(E17),ROW(E22)),ROW()) -> 16 | K16: =OR(E16=ano,E16=ne) -> FALSE | L16: =K16 -> FALSE | O16: =myidx(AND(K16,L16),AND(E16<>ano,E16<>ne),NOT(L16)) -> 2 | P16: OK | Q16: Vyberte ano nebo ne.
B17: 1.3.1 | C17: Jaký je jejich počet? | F17: =IFERROR(INDEX(P17:S17,1,O17),"") -> Zadejte jejich počet. | H17: =E16=ano -> FALSE | I17: =E17*H17*K17*L17 -> 0 | J17: =IF(K17,ROW(E18),ROW()) -> 17 | K17: =AND(ISNUMBER(E17),IF(ISNUMBER(E17),E17>0,FALSE)) -> FALSE | L17: =K17 -> FALSE | O17: =myidx(K17,ISBLANK(E17),NOT(ISNUMBER(E17)),E17<=0) -> 2 | P17: OK | Q17: Zadejte jejich počet. | R17: Hodnota není číslo. | S17: Počet musí být kladný.
B18: 1.3.2 | C18: Znáte celkový příkon všech zářivek? | D18: Vyberte ano / ne | F18: =IFERROR(INDEX(P18:Q18,1,O18),"") -> Vyberte ano nebo ne. | H18: =AND(H17,K17,L17) -> FALSE | I18: =IF(AND(H18,K18,L18),E18,"") ->  | J18: =IF(K18,IF(E18=ano,ROW(E19),ROW(E20)),ROW()) -> 18 | K18: =OR(E18=ano,E18=ne) -> FALSE | L18: =K18 -> FALSE | O18: =myidx(AND(K18,L18),AND(E18<>ano,E18<>ne),NOT(L18)) -> 2 | P18: OK | Q18: Vyberte ano nebo ne.
B19: 1.3.3 | C19: Uveďte jejich celkový příkon | D19: W | F19: =IFERROR(INDEX(P19:T19,1,O19),"") -> Zadejte celkový příkon zářivek. | H19: =AND(E18=ano,H18,K18,L18) -> FALSE | I19: =E19*H19*K19*L19 -> 0 | J19: =IF(K19,ROW(E22),ROW()) -> 19 | K19: =IFERROR(AND(ISNUMBER(E19),IF(ISNUMBER(E19),AND(E19/E17>=ZářivkaMin,E19/E17<=ZářivkaMax),FALSE)),FALSE) -> FALSE | L19: =K19 -> FALSE | O19: =myidx(K19,ISBLANK(E19),NOT(ISNUMBER(E19)),E19/E17 < ZářivkaMin, E19/E17 > ZářivkaMax) -> 2 | P19: OK | Q19: Zadejte celkový příkon zářivek. | R19: Hodnota není číslo. | S19: ="Příliš malý příkon, průměrný příkon zářivky musí být alespoň " & ZářivkaMin & " W." -> Příliš malý příkon, průměrný příkon zářivky musí být alespoň 4 W. | T19: ="Příliš velký příkon, průměrný příkon zářivky může být nejvíce " & ZářivkaMax & " W." -> Příliš velký příkon, průměrný příkon zářivky může být nejvíce 500 W.
B20: 1.3.4 | C20: Jaký je průměrný příkon zářivek? | D20: W | F20: =IFERROR(INDEX(P20:T20,1,O20),"") -> Zadejte průměrný příkon zářivek. | H20: =AND(E18=ne,H18,K18,L18) -> FALSE | I20: =E20*H20*K20*L20 -> 0 | J20: =IF(K20,ROW(E22),ROW()) -> 20 | K20: =IFERROR(AND(ISNUMBER(E20),IF(ISNUMBER(E20),AND(E20>=RtuťovkaMin,E20<=RtuťovkaMax),FALSE)),FALSE) -> FALSE | L20: =K20 -> FALSE | O20: =myidx(K20,ISBLANK(E20),NOT(ISNUMBER(E20)),E20 < ZářivkaMin, E20 > ZářivkaMax) -> 2 | P20: OK | Q20: Zadejte průměrný příkon zářivek. | R20: Hodnota není číslo. | S20: ="Příliš malý příkon, průměrný příkon zářivky musí být alespoň " & ZářivkaMin & " W." -> Příliš malý příkon, průměrný příkon zářivky musí být alespoň 4 W. | T20: ="Příliš velký příkon, průměrný příkon zářivky může být nejvíce " & ZářivkaMax & " W." -> Příliš velký příkon, průměrný příkon zářivky může být nejvíce 500 W.
H21: TRUE | K21: =OR(E16=ne,AND(K16,K17,E18=ano,K19),AND(K16,K17,E18=ne,K20)) -> FALSE | L21: =IFERROR(K21*(I20+I19/I17),0) -> 0 | O21: =IFERROR(SIGN(L21)*E17*VLOOKUP(L21,TOsvětlení[[zářivka]:[příkon led]],2,1),0) -> 0
B22: 1.4. | C22: Rtuťové výbojky | D22: Vyberte ano / ne | F22: =IFERROR(INDEX(P22:Q22,1,O22),"") -> Vyberte ano nebo ne. | H22: TRUE | I22: =IF(AND(H22,K22,L22),E22,"") ->  | J22: =IF(K22,IF(E22=ano,ROW(E23),ROW(E28)),ROW()) -> 22 | K22: =OR(E22=ano,E22=ne) -> FALSE | L22: =K22 -> FALSE | O22: =myidx(AND(K22,L22),AND(E22<>ano,E22<>ne),NOT(L22)) -> 2 | P22: OK | Q22: Vyberte ano nebo ne.
B23: 1.4.1 | C23: Jaký je jejich počet? | F23: =IFERROR(INDEX(P23:S23,1,O23),"") -> Zadejte jejich počet. | H23: =E22=ano -> FALSE | I23: =E23*H23*K23*L23 -> 0 | J23: =IF(K23,ROW(E24),ROW()) -> 23 | K23: =AND(ISNUMBER(E23),IF(ISNUMBER(E23),E23>0,FALSE)) -> FALSE | L23: =K23 -> FALSE | O23: =myidx(K23,ISBLANK(E23),NOT(ISNUMBER(E23)),E23<=0) -> 2 | P23: OK | Q23: Zadejte jejich počet. | R23: Hodnota není číslo. | S23: Počet musí být kladný.
B24: 1.4.2 | C24: Znáte celkový příkon všech rtuťových výbojek? | D24: Vyberte ano / ne | F24: =IFERROR(INDEX(P24:Q24,1,O24),"") -> Vyberte ano nebo ne. | H24: =AND(H23,K23,L23) -> FALSE | I24: =IF(AND(H24,K24,L24),E24,"") ->  | J24: =IF(K24,IF(E24=ano,ROW(E25),ROW(E26)),ROW()) -> 24 | K24: =OR(E24=ano,E24=ne) -> FALSE | L24: =K24 -> FALSE | O24: =myidx(AND(K24,L24),AND(E24<>ano,E24<>ne),NOT(L24)) -> 2 | P24: OK | Q24: Vyberte ano nebo ne.
B25: 1.4.3 | C25: Uveďte jejich celkový příkon | D25: W | F25: =IFERROR(INDEX(P25:T25,1,O25),"") -> Zadejte celkový příkon rtuťových výbojek. | H25: =AND(E24=ano,H24,K24,L24) -> FALSE | I25: =E25*H25*K25*L25 -> 0 | J25: =IF(K25,ROW(E28),ROW()) -> 25 | K25: =IFERROR(AND(ISNUMBER(E25),IF(ISNUMBER(E25),AND(E25/E23>=RtuťovkaMin,E25/E23<=RtuťovkaMax),FALSE)),FALSE) -> FALSE | L25: =K25 -> FALSE | O25: =myidx(K25,ISBLANK(E25),NOT(ISNUMBER(E25)),E25/E23 < RtuťovkaMin, E25/E23 > RtuťovkaMax) -> 2 | P25: OK | Q25: Zadejte celkový příkon rtuťových výbojek. | R25: Hodnota není číslo. | S25: ="Příliš malý příkon, průměrný příkon rtuťové výbojky musí být alespoň " & RtuťovkaMin & " W." -> Příliš malý příkon, průměrný příkon rtuťové výbojky musí být alespoň 7 W. | T25: ="Příliš velký příkon, průměrný příkon rtuťové výbojky může být nejvíce " & RtuťovkaMax & " W." -> Příliš velký příkon, průměrný příkon rtuťové výbojky může být nejvíce 500 W.
B26: 1.4.4 | C26: Jaký je průměrný příkon rtuťových výbojek? | D26: W | F26: =IFERROR(INDEX(P26:T26,1,O26),"") -> Zadejte průměrný příkon rtuťových výbojek. | H26: =AND(E24=ne,H24,K24,L24) -> FALSE | I26: =E26*H26*K26*L26 -> 0 | J26: =IF(K26,ROW(E28),ROW()) -> 26 | K26: =IFERROR(AND(ISNUMBER(E26),IF(ISNUMBER(E26),AND(E26>=RtuťovkaMin,E26<=RtuťovkaMax),FALSE)),FALSE) -> FALSE | L26: =K26 -> FALSE | O26: =myidx(K26,ISBLANK(E26),NOT(ISNUMBER(E26)),E26 < RtuťovkaMin, E26 > RtuťovkaMax) -> 2 | P26: OK | Q26: Zadejte průměrný příkon rtuťových výbojek. | R26: Hodnota není číslo. | S26: ="Příliš malý příkon, průměrný příkon rtuťové výbojky musí být alespoň " & RtuťovkaMin & " W." -> Příliš malý příkon, průměrný příkon rtuťové výbojky musí být alespoň 7 W. | T26: ="Příliš velký příkon, průměrný příkon rtuťové výbojky může být nejvíce " & RtuťovkaMax & " W." -> Příliš velký příkon, průměrný příkon rtuťové výbojky může být nejvíce 500 W.
H27: TRUE | K27: =OR(E22=ne,AND(K22,K23,E24=ano,K25),AND(K22,K23,E24=ne,K26)) -> FALSE | L27: =IFERROR(K27*(I26+I25/I23),0) -> 0 | O27: =IFERROR(SIGN(L27)*E23*VLOOKUP(L27,TOsvětlení[[výbojka]:[příkon led]],4,1),0) -> 0
B28: 1.5 | C28: Kompaktní zářivky (CFL) | D28: Vyberte ano / ne | F28: =IFERROR(INDEX(P28:Q28,1,O28),"") -> Vyberte ano nebo ne. | H28: TRUE | I28: =IF(AND(H28,K28,L28),E28,"") ->  | J28: =IF(K28,IF(E28=ano,ROW(E29),ROW(E35)),ROW()) -> 28 | K28: =OR(E28=ano,E28=ne) -> FALSE | L28: =K28 -> FALSE | O28: =myidx(AND(K28,L28),AND(E28<>ano,E28<>ne),NOT(L28)) -> 2 | P28: OK | Q28: Vyberte ano nebo ne.
B29: 1.5.1 | C29: Jaký je jejich počet? | F29: =IFERROR(INDEX(P29:S29,1,O29),"") -> Zadejte jejich počet. | H29: =E28=ano -> FALSE | I29: =E29*H29*K29*L29 -> 0 | J29: =IF(K29,ROW(E30),ROW()) -> 29 | K29: =AND(ISNUMBER(E29),IF(ISNUMBER(E29),E29>0,FALSE)) -> FALSE | L29: =K29 -> FALSE | O29: =myidx(K29,ISBLANK(E29),NOT(ISNUMBER(E29)),E29<=0) -> 2 | P29: OK | Q29: Zadejte jejich počet. | R29: Hodnota není číslo. | S29: Počet musí být kladný.
B30: 1.5.2 | C30: Znáte celkový příkon všech kompaktních zářivek? | D30: Vyberte ano / ne | F30: =IFERROR(INDEX(P30:Q30,1,O30),"") -> Vyberte ano nebo ne. | H30: =AND(H29,K29,L29) -> FALSE | I30: =IF(AND(H30,K30,L30),E30,"") ->  | J30: =IF(K30,IF(E30=ano,ROW(E31),ROW(E32)),ROW()) -> 30 | K30: =OR(E30=ano,E30=ne) -> FALSE | L30: =K30 -> FALSE | O30: =myidx(AND(K30,L30),AND(E30<>ano,E30<>ne),NOT(L30)) -> 2 | P30: OK | Q30: Vyberte ano nebo ne.
B31: 1.5.3 | C31: Uveďte jejich celkový příkon | D31: W | F31: =IFERROR(INDEX(P31:T31,1,O31),"") -> Zadejte celkový příkon kompaktních zářivek. | H31: =AND(E30=ano,H30,K30,L30) -> FALSE | I31: =E31*H31*K31*L31 -> 0 | J31: =IF(K31,ROW(E35),ROW()) -> 31 | K31: =IFERROR(AND(ISNUMBER(E31),IF(ISNUMBER(E31),AND(E31/E29>=CFLMin,E31/E29<=CFLMax),FALSE)),FALSE) -> FALSE | L31: =K31 -> FALSE | O31: =myidx(K31,ISBLANK(E31),NOT(ISNUMBER(E31)),E31/E29 < CFLMin, E31/E29 > CFLMax) -> 2 | P31: OK | Q31: Zadejte celkový příkon kompaktních zářivek. | R31: Hodnota není číslo. | S31: ="Příliš malý příkon, průměrný příkon kompaktní zářivky musí být alespoň " & CFLMin & " W." -> Příliš malý příkon, průměrný příkon kompaktní zářivky musí být alespoň 5 W. | T31: ="Příliš velký příkon, průměrný příkon kompaktní zářivky může být nejvíce " & CFLMax & " W." -> Příliš velký příkon, průměrný příkon kompaktní zářivky může být nejvíce 500 W.
B32: 1.5.4 | C32: Jaký je průměrný příkon kompaktních zářivek? | D32: W | F32: =IFERROR(INDEX(P32:T32,1,O32),"") -> Zadejte průměrný příkon kompaktních zářivek. | H32: =AND(E30=ne,H30,K30,L30) -> FALSE | I32: =E32*H32*K32*L32 -> 0 | J32: =IF(K32,ROW(E35),ROW()) -> 32 | K32: =IFERROR(AND(ISNUMBER(E32),IF(ISNUMBER(E32),AND(E32>=CFLMin,E32<=CFLMax),FALSE)),FALSE) -> FALSE | L32: =K32 -> FALSE | O32: =myidx(K32,ISBLANK(E32),NOT(ISNUMBER(E32)),E32 < CFLMin, E32 > CFLMax) -> 2 | P32: OK | Q32: Zadejte průměrný příkon kompaktních zářivek. | R32: Hodnota není číslo. | S32: ="Příliš malý příkon, průměrný příkon kompaktní zářivky musí být alespoň " & CFLMin & " W." -> Příliš malý příkon, průměrný příkon kompaktní zářivky musí být alespoň 5 W. | T32: ="Příliš velký příkon, průměrný příkon kompaktní zářivky může být nejvíce " & CFLMax & " W." -> Příliš velký příkon, průměrný příkon kompaktní zářivky může být nejvíce 500 W.
H33: TRUE | K33: =OR(E28=ne,AND(K28,K29,E30=ano,K31),AND(K28,K29,E30=ne,K32)) -> FALSE | L33: =IFERROR(K33*(I32+I31/I29),0) -> 0 | O33: =IFERROR(SIGN(L33)*E29*VLOOKUP(L33,TOsvětlení[[CFL]:[příkon led]],3,1),0) -> 0
B34: 2 | C34: Stávající spotřeba elektřiny | H34: =AND(K9,K15,K21,K27,K33,OR(E4=ano,E10=ano,E16=ano,E22=ano,E28=ano)) -> FALSE
B35: 2.1 | C35: Znáte celkovou spotřebu elektřiny všech světelných zdrojů? | D35: Vyberte ano / ne | F35: =IFERROR(INDEX(P35:Q35,1,O35),"") -> Vyberte ano nebo ne. | H35: =H34 -> FALSE | I35: =IF(AND(H35,K35,L35),E35,"") ->  | J35: =IF(K35,IF(E35=ano,ROW(E36),ROW(E37)),ROW()) -> 35 | K35: =OR(E35=ano,E35=ne) -> FALSE | L35: =K35 -> FALSE | O35: =myidx(AND(K35,L35),AND(E35<>ano,E35<>ne),NOT(L35)) -> 2 | P35: OK | Q35: Vyberte ano nebo ne.
B36: 2.1.1 | C36: Uveďte spotřebu elektřiny | D36: kWh | F36: =IFERROR(INDEX(P36:T36,1,O36),"") -> Zadejte celkovou spotřebu elekřiny na osvětlení. | H36: =AND(E35=ano,H35,K35,L35) -> FALSE | I36: =E36*H36*K36*L36 -> 0 | J36: =IF(K36,ROW(E37),ROW()) -> 36 | K36: =AND(ISNUMBER(E36),IF(ISNUMBER(E36),E36>0,FALSE)) -> FALSE | L36: =K36 -> FALSE | O36: =myidx(K36,ISBLANK(E36),NOT(ISNUMBER(E36)),E36<=0) -> 2 | P36: OK | Q36: Zadejte celkovou spotřebu elekřiny na osvětlení. | R36: Hodnota není číslo. | S36: Hodnota musí být kladná.
B37: 2.2 | C37: Kolik hodin denně jsou v průměru zapnuté všechny světelné zdroje? | D37: h | F37: =IFERROR(INDEX(P37:T37,1,O37),"") -> Zadejte počet hodin. | H37: =AND(H35,K35,L35) -> FALSE | I37: =E37*H37*K37*L37 -> 0 | J37: =IF(K37,ROW(E38),ROW()) -> 37 | K37: =AND(ISNUMBER(E37),IF(ISNUMBER(E37),AND(E37>=0,E37<=24),FALSE)) -> FALSE | L37: =K37 -> FALSE | O37: =myidx(K37,ISBLANK(E37),NOT(ISNUMBER(E37)),OR(E37<0,E37>24)) -> 2 | P37: OK | Q37: Zadejte počet hodin. | R37: Hodnota není číslo. | S37: Hodnota musí být v rozsahu 0 - 24.
B38: 2.2 | C38: Jaký je počet uvažovaných pracovních dní za rok? | D38: d | F38: =IFERROR(INDEX(P38:T38,1,O38),"") -> Zadejte počet dní. | H38: =AND(H37,K37,L37) -> FALSE | I38: =E38*H38*K38*L38 -> 0 | J38: =IF(K38,IF(JePENB,ROW(E40),ROW(E38)),ROW()) -> 38 | K38: =AND(ISNUMBER(E38),IF(ISNUMBER(E38),AND(E38>=1,E38<=365),FALSE)) -> FALSE | L38: =K38 -> FALSE | O38: =myidx(K38,ISBLANK(E38),NOT(ISNUMBER(E38)),OR(E38<1,E38>365)) -> 2 | P38: OK | Q38: Zadejte počet dní. | R38: Hodnota není číslo. | S38: Hodnota musí být v rozsahu 1 - 365.
B39: 3 | C39: PENB | H39: =H40 -> FALSE
B40: 3.1 | C40: Je výměna osvětlení zahrnuta v PENB? | D40: Vyberte ano/ne | F40: =IFERROR(INDEX(P40:Q40,1,O40),"") -> Vyberte ano nebo ne. | H40: =AND(JePENB,H38,K38,L38) -> FALSE | I40: =IF(AND(H40,K40,L40),E40,"") ->  | J40: =ROW() -> 40 | K40: =OR(E40=ano,E40=ne) -> FALSE | L40: =AND(L38,K40) -> FALSE | O40: =myidx(AND(K40,L40),AND(E40<>ano,E40<>ne),NOT(L40)) -> 2 | P40: OK | Q40: Vyberte ano nebo ne.
D41: =IFERROR(IF(L41,"Konec formuláře",""),"") ->  | F41: =IF(AND(E4=ne,E10=ne,E16=ne,E22=ne,E28=ne),"Nebyl vybrán žádný světelný zdroj.","") ->  | H41: TRUE | L41: =IF(JePENB,L40,L38) -> FALSE
B42: 4 | C42: Bilance spotřeby energie před výměnou po výměně světelných zdrojů | H42: =$L$41 -> FALSE
C43: Spotřeba elektrické energie | H43: FALSE
C44: Spotřeba před výměnou světlených zdrojů | D44: =IF(E35=ano,E36,(I7+I13+I19+I25+I31+I5*I8+I11*I14+I17*I20+I23*I26+I29*I32)*E37*E38/1000) -> 0 | E44: kWh | H44: FALSE
C45: Spotřeba po výměně světelných zdrojů | D45: =E37*E38/1000*(O9+O15+O21+O27+O33) -> 0 | E45: kWh | H45: FALSE
C46: Úspora | D46: =D44-D45 -> 0 | E46: kWh | H46: FALSE
C47: Úspora | D47: =IFERROR(D46/D44,0) -> 0 | E47: % | H47: FALSE
C48: Snížení emisí CO2 | D48: =Bilance!M20 -> 0 | E48: kg | H48: FALSE
C49: Úsporá nákladů za energii Kč | D49: =Bilance!Y20 -> 0 | E49: Kč | H49: FALSE
C50: Neobnovitelná primární energie | H50: FALSE
C51: Spotřeba před výměnou světlených zdrojů | D51: =Bilance!H20 -> 0 | E51: kWh | H51: FALSE
C52: Spotřeba po výměně světelných zdrojů | D52: =Bilance!I20 -> 0 | E52: kWh | H52: FALSE
C53: Úspora | D53: =D51-D52 -> 0 | E53: kWh | H53: FALSE
C54: Úspora | D54: =IFERROR(D53/D51,0) -> 0 | E54: % | H54: FALSE
H55: FALSE
B56: Konec listu

Sheet Zdroj (hidden)
B1: Výměna zdroje tepla
B3: 1 | C3: Parametry stávajícího zdroje tepla | H3: Viditelnost | I3: Hodnota buňky | J3: Další řádek | K3: Řádek OK | L3: Průběžně OK | M3: Porušení podmínek | N3: Hlášení | O3: Hláška č. | P3: Hlášky…
B4: 1.1 | C4: O jaký typ zdroje se jedná? | D4: Vyberte | F4: =IFERROR(INDEX(P4:R4,1,O4),"") -> Vyberte typ zdroje. | H4: TRUE | I4: =IF(AND(H4,K4),E4,"") ->  | J4: =IF(K4,ROW(E5),ROW(E4)) -> 4 | K4: =NOT(ISBLANK(E4)) -> FALSE | L4: =K4 -> FALSE | O4: =myidx(AND(K4),ISBLANK(E4)) -> 2 | P4: OK | Q4: Vyberte typ zdroje.
B5: 1.2 | C5: V jakém období byl zdroj vyroben? | D5: Vyberte | F5: =IFERROR(INDEX(P5:R5,1,O5),"") -> Vyberte období. | H5: =AND(L4,H4) -> FALSE | I5: =IF(AND(H5,K5),E5,"") ->  | J5: =IF(K5,IF(ZdrojPočetPaliv=1,ROW(E7)+IF(ZdrojPočetPaliv=6,0,1),ROW(E6)),ROW(E5)) -> 5 | K5: =NOT(ISBLANK(E5)) -> FALSE | L5: =AND(K5,$L$4:L4) -> FALSE | O5: =myidx(AND(K5),ISBLANK(E5)) -> 2 | P5: OK | Q5: Vyberte období.
B6: 1.3 | C6: Jaké se používá palivo? | D6: Vyberte | F6: =IF(O6>0,INDEX(P6:R6,1,O6),"") -> Vyberte palivo. | H6: =AND(L5,H5,ZdrojPočetPaliv>1) -> FALSE | I6: =IF(K6,IF(ZdrojPočetPaliv=1,INDEX(ParametryZdroje!$B$8:$G$8,1,ZdrojIdxOld),E6),"") ->  | J6: =IF(K6,IF(ZdrojIdxOld=6,ROW(E7),ROW(E8)),ROW(E6)) -> 6 | K6: =OR(ZdrojPočetPaliv=1,AND(ZdrojPočetPaliv>1,INDEX(ParametryZdroje!$B$6:$G$6,1,ZdrojIdxOld))) -> FALSE | L6: =AND(K6,$L$4:L5) -> FALSE | O6: =myidx(AND(K6),ISBLANK(E6),AND(ZdrojPočetPaliv>1,NOT(INDEX(ParametryZdroje!$B$6:$G$6,1,ZdrojIdxOld)))) -> 2 | P6: OK | Q6: =IF(ZdrojIdxOld=6,"Vyberte palivo zdroje SZT. Pokud nevíte, zvolte ""zemní plyn"".","Vyberte palivo.") -> Vyberte palivo. | R6: Nesprávné palivo.
B7: 1.4 | C7: Jak účinná je soustava zásobování teplem (SZT)? | D7: Vyberte | F7: =IFERROR(INDEX(P7:R7,1,O7),"") -> OK | H7: =AND(L6,ZdrojIdxOld=6,OR(H6,ZdrojPočetPaliv=1)) -> FALSE | I7: =IF(AND(K7,ZdrojIdxOld=6),E7,"") ->  | J7: =IF(K7,ROW(E8),ROW(E7)) -> 8 | K7: =OR(ZdrojIdxOld<>6,NOT(ISBLANK(E7))) -> TRUE | L7: =AND(K7,$L$4:L6) -> FALSE | O7: =myidx(AND(K7),ISBLANK(E7)) -> 1 | P7: OK | Q7: Vyberte typ soustavy. Pokud nevíte, zvolte "ostatní SZT".
B8: 1.5 | C8: ="Jaká je spotřeba " & ParametryZdroje!N6 & " za jeden rok?" -> Jaká je spotřeba za jeden rok? | D8: =ParametryZdroje!N5 ->  | F8: =IFERROR(INDEX(P8:S8,1,O8),"") -> Zadejte spotřebu. | H8: =AND(L7,OR(ZdrojPočetPaliv=1,H6),OR(ZdrojIdxOld<>6,H7)) -> FALSE | I8: =H8*K8*E8 -> 0 | J8: =IF(K8,IF(ZdrojIdxOld<5,ROW(E9),IF(ZdrojIdxOld=5,ROW(E11),ROW(E16))),ROW(E8)) -> 8 | K8: =AND(ISNUMBER(E8),IF(ISNUMBER(E8),E8>0,FALSE)) -> FALSE | L8: =AND(K8,$L$4:L7) -> FALSE | O8: =myidx(AND(K8),ISBLANK(E8),NOT(ISNUMBER(E8)),E8<=0) -> 2 | P8: OK | Q8: Zadejte spotřebu. | R8: Hodnota není číslo. | S8: Spotřeba musí být kladná.
B9: 1.6 | C9: Znáte účinnost zdroje? | D9: Vyberte ano/ne | F9: =IFERROR(INDEX(P9:R9,1,O9),"") -> Vyberte ano nebo ne. | H9: =AND(L8,H8,ZdrojIdxOld<5) -> FALSE | I9: =IF(AND(H9,K9),E9,"") ->  | J9: =IF(K9,IF(E9="ano",ROW(E10),ROW(E13)),ROW(E9)) -> 9 | K9: =OR(ZdrojIdxOld>=5,E9="ano",E9="ne") -> FALSE | L9: =AND(K9,$L$4:L8) -> FALSE | O9: =myidx(AND(K9),ISBLANK(E9)) -> 2 | P9: OK | Q9: Vyberte ano nebo ne.
B10: 1.7 | C10: Jaká je účinnost? | D10: Zatejte v % | F10: =IFERROR(INDEX(P10:T10,1,O10),"") -> Zadejte účinnost. | H10: =AND(L9,H9,E9="ano") -> FALSE | I10: =IF(AND(ZdrojIdxOld<5,E9="ano"),H10*K10*E10,IF(AND(ZdrojIdxOld<>5,E9="ne"),ETAZdrOld,0)) -> 0 | J10: =IF(K10,ROW(E13),ROW(E10)) -> 10 | K10: =OR(ZdrojIdxOld>=5,E9="ne",AND(ISNUMBER(E10),IF(ISNUMBER(E10),AND(E10>=0,E10<=0.995),FALSE))) -> FALSE | L10: =AND(K10,$L$4:L9) -> FALSE | O10: =myidx(AND(K10),ISBLANK(E10),NOT(ISNUMBER(E10)),E10<0,E10>0.995) -> 2 | P10: OK | Q10: Zadejte účinnost. | R10: Hodnota není číslo. | S10: ="Účinnost musí být alespoň " & 100 * MinEtaZdrOld & " %." -> Účinnost musí být alespoň 5 %. | T10: ="Účinnost může být maximálně " & 100 * MaxEtaZdrOld & " %." -> Účinnost může být maximálně 95 %.
B11: 1.8 | C11: Znáte sezónní účinnost (COP) tepelného čerpadla? | D11: Vyberte ano / ne | F11: =IFERROR(INDEX(P11:R11,1,O11),"") -> OK | H11: =AND(L8,H8,ZdrojIdxOld=5) -> FALSE | I11: =IF(AND(H11,K11),E11,"") ->  | J11: =IF(K11,IF(E11="ano",ROW(E12),ROW(E13)),ROW(E11)) -> 13 | K11: =OR(ZdrojIdxOld<>5,E11="ano",E11="ne") -> TRUE | L11: =AND(K11,$L$4:L10) -> FALSE | O11: =myidx(AND(K11),ISBLANK(E11)) -> 1 | P11: OK | Q11: Vyberte ano nebo ne.
B12: 1.9 | C12: Zadejte sezónní účinnost tepelného čerpadla | D12: COP | F12: =IFERROR(INDEX(P12:V12,1,O12),"") -> OK | H12: =AND(H11,K11,L11,E11="ano") -> FALSE | I12: =IF(AND(E11="ano",ZdrojIdxOld=5),H12*K12*E12,IF(AND(E11="ne",ZdrojIdxOld=5),ETAZdrOld,0)) -> 0 | J12: =IF(K12,ROW(E13),ROW(E12)) -> 13 | K12: =OR(ZdrojIdxOld<>5,E11="ne",AND(ISNUMBER(E12),IF(ISNUMBER(E12),AND(E12>=1,E12<=6),FALSE))) -> TRUE | L12: =AND(K12,$L$4:L11) -> FALSE | O12: =IF(E11="ne",1,myidx(K12,ISBLANK(E12),NOT(ISNUMBER(E12)),E12<1,E12>6)) -> 1 | P12: OK | Q12: Zadejte COP. | R12: Hodnota není číslo. | S12: ="COP musí být alespoň " & MinCOPTČOld & "." -> COP musí být alespoň 1. | T12: ="COP může být nejvýše " & MaxCOPTČOld & "." -> COP může být nejvýše 6.
B13: 1.10 | C13: Jaký je instalovaný výkon zdroje? | D13: kWt | F13: =IFERROR(INDEX(P13:V13,1,O13),"") -> Zadejte instalovaný výkon. | H13: =AND(AND(ZdrojIdxOld<6,L8,H8,L12),OR(AND(ZdrojIdxOld=5,L11,H11,IF(E11="ano",AND(L12,H12),TRUE)),AND(ZdrojIdxOld<5,L8,H8,IF(E9="ano",AND(L10,H10),TRUE)))) -> FALSE | I13: =H13*K13*E13 -> 0 | J13: =IF(K13,ROW(E16),ROW(E13)) -> 13 | K13: =OR(ZdrojIdxOld=6,AND(ISNUMBER(E13),IF(ISNUMBER(E13),E13>0,FALSE))) -> FALSE | L13: =AND(K13,$L$4:L12) -> FALSE | O13: =myidx(AND(K13),ISBLANK(E13),NOT(ISNUMBER(E13)),E13<=0) -> 2 | P13: OK | Q13: Zadejte instalovaný výkon. | R13: Hodnota není číslo. | S13: Instalovaný výkon musí být kladný.
H14: =H16 -> FALSE
B15: 2 | C15: Parametry nového zdroje tepla | H15: =H16 -> FALSE
B16: 2.1 | C16: Jaký je typ nového zdroje? | D16: Vyberte | F16: =IFERROR(INDEX(P16:R16,1,O16),"") -> Vyberte typ zdroje. | H16: =AND(L13,OR(AND(ZdrojIdxOld=6,H8),AND(ZdrojIdxOld<6,H13))) -> FALSE | I16: =IF(AND(H16,K16),E16,"") ->  | J16: =IF(K16,IF(ZdrojIdxNew<4,ROW(E17),ROW(E19)),ROW(E16)) -> 16 | K16: =NOT(ISBLANK(E16)) -> FALSE | L16: =K16 -> FALSE | O16: =myidx(AND(K16),ISBLANK(E16)) -> 2 | P16: OK | Q16: Vyberte typ zdroje.
B17: 2.2 | C17: Znáte účinnost nového zdroje? | D17: Vyberte ano/ne | F17: =IFERROR(INDEX(P17:R17,1,O17),"") -> Vyberte ano nebo ne. | H17: =AND(L16,H16,ZdrojIdxNew<4) -> FALSE | I17: =IF(AND(H17,K17),E17,"") ->  | J17: =IF(K17,IF(E17="ano",ROW(E18),ROW(E19)),ROW(E17)) -> 17 | K17: =OR(ZdrojIdxNew=4,E17="ano",E17="ne") -> FALSE | L17: =AND(K17,$L$4:L16) -> FALSE | O17: =myidx(AND(K17),ISBLANK(E17)) -> 2 | P17: OK | Q17: Vyberte ano nebo ne.
B18: 2.3 | C18: Jaká je účinnost? | D18: Zatejte v % | F18: =IF(M18,N18,IFERROR(INDEX(P18:T18,1,O18),"")) -> Zadejte účinnost. | H18: =AND(H17,K17,L17,E17="ano") -> FALSE | I18: =IF(ZdrojIdxNew=4,0,IF(E17="ano",H18*K18*E18,EtaZdrNew)) -> 0 | J18: =IF(K18,ROW(E19),ROW(E18)) -> 18 | K18: =OR(ZdrojIdxNew=4,E17="ne",AND(ISNUMBER(E18),IF(ISNUMBER(E18),AND(E18>=0.05,E18<=1.11),FALSE))) -> FALSE | L18: =AND(K18,$L$4:L17) -> FALSE | M18: =AND(ZdrojIdxNew<4,E17="ano",E18<ParametryZdroje!B25,K18) -> FALSE | N18: ="Nově instalovaný kotel nesplňuje požadavek na účinnost dle vyhl. 264/2020 Sb., minimální účinnost je " & ParametryZdroje!B25 * 100 & " %." -> Nově instalovaný kotel nesplňuje požadavek na účinnost dle vyhl. 264/2020 Sb., minimální účinnost je 0 %. | O18: =myidx(AND(K18),ISBLANK(E18),NOT(ISNUMBER(E18)),E18<0.05,E18>1.11) -> 2 | P18: OK | Q18: Zadejte účinnost. | R18: Hodnota není číslo. | S18: Příliš nízká účinnost. | T18: Příliš vysoká účinnost.
B19: 2.4 | C19: Jaký je instalovaný výkon zdroje? | D19: kWt | F19: =IF(M19,N19,IFERROR(INDEX(P19:T19,1,O19),"")) -> Zadejte výkon zdroje. | H19: =OR(AND(ZdrojIdxNew=4,H16,K16,L16),AND(ZdrojIdxNew<4,E17="ne"),AND(ZdrojIdxNew<4,E17="ano",H18,K18,L18)) -> FALSE | I19: =H19*K19*E19 -> 0 | J19: =IF(K19,IF(ZdrojIdxNew=4,ROW(E20),ROW(E24)),ROW(E19)) -> 19 | K19: =AND(ISNUMBER(E19),IF(ISNUMBER(E19),E19>0,FALSE)) -> FALSE | L19: =AND(K19,$L$4:L18) -> FALSE | M19: =AND(L19,E19>ParametryZdroje!B28) -> FALSE | N19: ="Nově instalovaný kotel na štěpku, pelety nebo brikety má vyšší příkon než " & ParametryZdroje!B28 & " MW, nesplňuje poždavek programu." -> Nově instalovaný kotel na štěpku, pelety nebo brikety má vyšší příkon než 0 MW, nesplňuje poždavek programu. | O19: =myidx(K19,ISBLANK(E19),NOT(ISNUMBER(E19)),E19<=0) -> 2 | P19: OK | Q19: Zadejte výkon zdroje. | R19: Hodnota není číslo. | S19: Výkon musí být kladný.
B20: 2.5 | C20: Znáte sezónní účinnost (COP) tepelného čerpadla? | D20: Vyberte ano / ne | F20: =IFERROR(INDEX(P20:R20,1,O20),"") -> OK | H20: =AND(ZdrojIdxNew=4,H19,K19,L19) -> FALSE | I20: =IF(AND(H20,K20),E20,"") ->  | J20: =IF(K20,IF(E20="ano",ROW(E21),ROW(E24)),ROW(E20)) -> 24 | K20: =OR(ZdrojIdxOld<>5,E20="ano",E20="ne") -> TRUE | L20: =AND(K20,$L$4:L19) -> FALSE | O20: =myidx(AND(K20),ISBLANK(E20)) -> 1 | P20: OK | Q20: Vyberte ano nebo ne.
B21: 2.6 | C21: Zadejte sezónní účinnost tepelného čerpadla | D21: COP | F21: =IF(M21,N21,IFERROR(INDEX(P21:T21,1,O21),"")) -> OK | H21: =AND(L20,H20,ZdrojIdxNew=4,E20="ano") -> FALSE | I21: =IF(ZdrojIdxNew=4,IF(E20="ano",H21*K21*E21,EtaZdrNew),0) -> 0 | J21: =IF(K21,ROW(E24),ROW(E21)) -> 24 | K21: =OR(ZdrojIdxNew<4,E20="ne",AND(ISNUMBER(E21),IF(ISNUMBER(E21),AND(E21>=1,E21<=6),FALSE))) -> TRUE | L21: =AND(K21,$L$4:L20) -> FALSE | M21: =AND(ZdrojIdxNew=4,E20="ano",E21<ParametryZdroje!B25,L21) -> FALSE | N21: ="Nově instalované tepelné čerpadlo nesplňuje požadavek na účinnost dle vyhl. 264/2020 Sb., minimální COP je " & ParametryZdroje!B25 & "." -> Nově instalované tepelné čerpadlo nesplňuje požadavek na účinnost dle vyhl. 264/2020 Sb., minimální COP je 0. | O21: =myidx(AND(K21),ISBLANK(E21),NOT(ISNUMBER(E21)),E21<1,E21>6) -> 1 | P21: OK | Q21: Zadejte COP. | R21: Hodnota není číslo. | S21: Příliš nízká hodnota COP. | T21: Příliš vysoká hodnota COP.
H22: =H24 -> FALSE
B23: 3 | C23: PENB | H23: =H24 -> FALSE
B24: 3.1 | C24: Je výměna kotle zahrnuta v PENB? | D24: Vyberte ano/ne | F24: =IFERROR(INDEX(P24:R24,1,O24),"") -> OK | H24: =AND(JePENB,OR(AND(ZdrojIdxNew=4,L21),AND(ZdrojIdxNew<4,L19))) -> FALSE | I24: =IF(AND(H24,K24),E24,"") ->  | J24: =ROW() -> 24 | K24: =OR(NOT(JePENB),E24="ano",E24="ne") -> TRUE | L24: =AND(K24,$L$4:L23) -> FALSE | O24: =myidx(AND(K24),ISBLANK(E24)) -> 1 | P24: OK | Q24: Vyberte ano nebo ne.
H25: TRUE
E26: =IF(L26,"Konec formuláře","") ->  | H26: TRUE | L26: =L24 -> FALSE | M26: =OR(M4:M24) -> FALSE
H27: TRUE
B28: 4 | C28: Vyhodnocení plnění požadavků programu | H28: =L26 -> FALSE
C29: Nově instalovaný zdroj splňuje požadavek na účinnost podle vyhlášky 264/2020 Sb. | H29: =AND(L26,NOT(M26)) -> FALSE
C30: =N18 -> Nově instalovaný kotel nesplňuje požadavek na účinnost dle vyhl. 264/2020 Sb., minimální účinnost je 0 %. | H30: =AND(L26,M18) -> FALSE
C31: =N21 -> Nově instalované tepelné čerpadlo nesplňuje požadavek na účinnost dle vyhl. 264/2020 Sb., minimální COP je 0. | H31: =AND(L26,M21) -> FALSE
C32: Nově instalovaný kotel na štěpku, pelety nebo brikety má vyšší příkon než 20 MW, nesplňuje poždavek programu. | H32: =AND(L24,M19) -> FALSE
C33: Je instalován kotel na biomasu, je nutno doložit smlouvu nebo čestné prohlášení o zabezpečení dodávky biomasy z lokálních zdrojů či budoucího dodavatele. | H33: =AND(L24,ZdrojIdxNew=1) -> FALSE
H34: =$L$26 -> FALSE
B35: 5 | C35: Bilance spotřeby energie před a po výměně kotle (včetně zateplení) | H35: =$L$26 -> FALSE
C36: Konečná spotřeba energie | H36: FALSE
C37: před realizací opatření | D37: =Bilance!E34 ->  | E37: kWh/rok | H37: FALSE
C38: po realizaci opatření | D38: =Bilance!F34 ->  | E38: kWh/rok | H38: FALSE
C39: úspora | D39: =Bilance!G34 ->  | E39: kWh/rok | H39: FALSE
C40: úspora | D40: =IFERROR(D39/D37,0) -> 0 | E40: % | H40: FALSE
C41: Snížení emisí CO2 | D41: =Bilance!M34 ->  | E41: kg/rok | H41: FALSE
C42: Snížení nákladů na energii | D42: =Bilance!Y34 ->  | E42: Kč/rok | H42: FALSE
C43: Spotřeba primární energie | H43: FALSE
C44: před realizací opatření | D44: =Bilance!H34 ->  | E44: kWh/rok | H44: FALSE
C45: po realizaci opatření | D45: =Bilance!I34 ->  | E45: kWh/rok | H45: FALSE
C46: úspora | D46: =Bilance!J34 ->  | E46: kWh/rok | H46: FALSE
C47: úspora | D47: =IFERROR(D46/D44,0) -> 0 | E47: % | H47: FALSE
H48: TRUE
B49: Konec listu | H49: TRUE

Sheet FVE (hidden)
B1: FVE
B3: 1 | C3: Parametry FVE systému | H3: Viditelnost | I3: Hodnota buňky | J3: Další řádek | K3: Řádek OK | L3: Průběžně OK | M3: Porušení podmínek | N3: Hlášení | O3: Hláška č. | P3: Hlášky…
B4: 1.1 | C4: Jaký je jmenovitý instalovaný výkon FVE ? | D4: kWp | F4: =IF(AND(L4,M4),N4,IFERROR(INDEX(P4:T4,1,O4),"")) -> Zadejte instalovaný výkon. | H4: TRUE | I4: =E4*H4*K4 -> 0 | J4: =IF(K4,ROW(E5),ROW()) -> 4 | K4: =AND(ISNUMBER(E4),IF(ISNUMBER(E4),E4>0,FALSE)) -> FALSE | L4: =K4 -> FALSE | M4: =I4>ParametryFVE!C6 -> FALSE | N4: ="Instalovaný výkon FVE může být maximálně " & ParametryFVE!C6 & " kWp." -> Instalovaný výkon FVE může být maximálně 1000 kWp. | O4: =myidx(K4,ISBLANK(E4),NOT(ISNUMBER(E4)),E4<=0) -> 2 | P4: OK | Q4: Zadejte instalovaný výkon. | R4: Hodnota není číslo. | S4: Výkon musí být kladný.
B5: 1.2 | C5: Jaká je předpokládaná roční výroba elektrické energie z FVE ? | D5: kWh | F5: =IFERROR(INDEX(P5:T5,1,O5),"") -> Zadejte výrobu. | H5: =IFERROR(AND(H4,K4,L4),FALSE) -> FALSE | I5: =E5*H5*K5 -> 0 | J5: =IF(K5,ROW(E6),ROW()) -> 5 | K5: =AND(ISNUMBER(E5),IF(ISNUMBER(E5),AND(E5/E4>=MinVyužFVE,E5/E4<=MaxVyužFVE),FALSE)) -> FALSE | L5: =AND(K5,$L$4:L4) -> FALSE | O5: =myidx(K5,ISBLANK(E5),NOT(ISNUMBER(E5)),(E5/E4)<MinVyužFVE,(E5/E4)>MaxVyužFVE) -> 2 | P5: OK | Q5: Zadejte výrobu. | R5: Hodnota není číslo. | S5: ="Výroba je příliš malá, musí být alespoň " & MinVyužFVE*E4 & " MWh." -> Výroba je příliš malá, musí být alespoň 0 MWh. | T5: ="Výroba je příliš velká. Může být maximálně " & E4*MaxVyužFVE & " MWh." -> Výroba je příliš velká. Může být maximálně 0 MWh.
B6: 1.3 | C6: Je součástí projektu instalace FVE také akumulace elektrické energie do baterie? | D6: Vyberte ano / ne | F6: =IF(AND(L6,M6),N6,IFERROR(INDEX(P6:R6,1,O6),"")) -> Vyberte ano nebo ne. | H6: =IFERROR(AND(H5,K5,L5),FALSE) -> FALSE | I6: =IF(AND(H6,K6),E6,"") ->  | J6: =IF(AND(K6,E6=ano),ROW(E7),ROW(E6)) -> 6 | K6: =OR(E6=ano,E6=ne) -> FALSE | L6: =AND(K6,$L$4:L5) -> FALSE | M6: =AND(L6,E6=ne) -> FALSE | N6: Projekt je nezpůsobilý, protože FVE bez baterie není podporována. | O6: =myidx(AND(K6,L6),AND(E6<>ano,E6<>ne)) -> 2 | P6: OK | Q6: Vyberte ano nebo ne.
B7: 1.4 | C7: Jaká je jmenovitá kapacita instalované baterie ? | D7: kWh | F7: =IF(AND(L7,M7),N7,IFERROR(INDEX(P7:T7,1,O7),"")) -> Zadejte kapacitu baterie. | H7: =IFERROR(AND(E6=ano,H6,K6,L6),FALSE) -> FALSE | I7: =E7*H7*K7 -> 0 | J7: =IF(K7,ROW(E8),ROW(E7)) -> 7 | K7: =AND(ISNUMBER(E7),IF(ISNUMBER(E7),E7>0,FALSE)) -> FALSE | L7: =AND(K7,$L$4:L6) -> FALSE | M7: =AND(L6,OR(E7<E4*MinPiBaterie,E7>E4*MaxPiBaterie,E4>ParametryFVE!C7)) -> FALSE | N7: ="Kapacita baterie může být maximálně " & ParametryFVE!C7 & " kWp." -> Kapacita baterie může být maximálně 1000 kWp. | O7: =myidx(K7,ISBLANK(E7),NOT(ISNUMBER(E7)),E7<=0) -> 2 | P7: OK | Q7: Zadejte kapacitu baterie. | R7: Hodnota není číslo. | S7: Kapacita baterie musí být větší než 0.
B8: 1.5 | C8: Jaká je celková roční spotřeba elektrické energie v budově / budovách, pro které se FVE instaluje ? | D8: kWh | F8: =IF(AND(L8,M8),N8,IFERROR(INDEX(P8:S8,1,O8),"")) -> Zadejte roční spotřebu elektřiny. | H8: =IFERROR(AND(H7,K7,L7),FALSE) -> FALSE | I8: =E8*H8*K8 -> 0 | J8: =ROW() -> 8 | K8: =AND(ISNUMBER(E8),IF(ISNUMBER(E8),E8>0,FALSE)) -> FALSE | L8: =AND(K8,$L$4:L7) -> FALSE | M8: =AND(L7,E8<E5) -> FALSE | N8: Za uvedených podmínek je příliš vysoká pravděpodobnost překročení limitu přetoků do distribuční sítě. Výroba FVE musí být menší nebo rovna spotřebě. | O8: =myidx(K8,ISBLANK(E8),NOT(ISNUMBER(E8)),E8<=0) -> 2 | P8: OK | Q8: Zadejte roční spotřebu elektřiny. | R8: Hodnota není číslo. | S8: Spotřeba musí být větší než 0.
D9: =IFERROR(IF(L9,"Konec formuláře",""),"") ->  | H9: TRUE | L9: =OR(L8,AND(L6,I6=ne)) -> FALSE | M9: =OR(M4:M8) -> FALSE
B10: 2 | C10: Vyhodnocení plnění požadavků programu | H10: =OR(L9,AND(L6,E6=ne)) -> FALSE
C11: FVE vyhovuje podmínkám programu. | H11: =AND(L9,NOT(M9)) -> FALSE
C12: =N4 -> Instalovaný výkon FVE může být maximálně 1000 kWp. | H12: =AND(M4,H10) -> FALSE
C13: Projekt je nezpůsobilý, protože FVE bez baterie není podporována. | H13: =AND(M6,H10) -> FALSE
C14: =N7 -> Kapacita baterie může být maximálně 1000 kWp. | H14: =AND(H10,M7,I6=ano) -> FALSE
C15: Za uvedených podmínek je příliš vysoká pravděpodobnost překročení limitu přetoků do distribuční sítě. Výroba FVE musí být menší nebo rovna spotřebě. | H15: =AND(M8,L9,I6=ano) -> FALSE
B17: Konec listu
B219: FALSE

Sheet Protokol (hidden)
B2: Energetické vyhodnocení projektu
B3: v programu podpory Úspory energie
E4: Evidenční číslo:
B6: Identifikační údaje | J6: Viditelnost
B7: Název projektu: | E7: =IF(ISBLANK('Hlavní list'!C6), "",'Hlavní list'!C6) ->  | J7: TRUE
B8: Klient: | E8: =IF(ISBLANK('Hlavní list'!C7), "",'Hlavní list'!C7) ->  | J8: TRUE
B9: IČ klienta: | E9: =IF(ISBLANK('Hlavní list'!C8), "",'Hlavní list'!C8) ->  | J9: TRUE
B10: Adresa žadatele: | E10: =IF(ISBLANK('Hlavní list'!C9), "",'Hlavní list'!C9) ->  | J10: TRUE
B11: Adresa místa realizace projektu: | E11: =IF(ISBLANK('Hlavní list'!C10), "",'Hlavní list'!C10) ->  | J11: TRUE
B12: Popis projektu: | E12: =IF(ISBLANK('Hlavní list'!C11), "",'Hlavní list'!C11) ->  | J12: TRUE
J13: TRUE
B14: Vysvětlivky pro žadatele: • Odpovězte prosím na otázky v checklistu ano / ne / není relevantní. • Po zaškrtnutí odpovědí pokračujte prosím podpisem prohlášení. | J14: TRUE
J15: TRUE
B16: Checklist | F16: Označte pomocí x jednu z možností | J16: TRUE
F17: ano | G17: ne | H17: není relevantní | J17: TRUE
B18: a) V rámci Výzvy bude podpořen projekt, který prokáže úsporu energie v konečné spotřebě energie podle Tabulky č. 3 Analýza užití energie – bilance přínosu projektů uvedené v Příloze č. 3 k vyhlášce č. 141/2021 Sb. o energetickém posudku a o údajích vedených v Systému monitoringu spotřeby energie, v platném znění. | J18: TRUE
B19: b) Navržená energeticky úsporná opatření musí splnit minimálně 10 % roční úsporu primární energie (režim de minimis) po realizaci projektu oproti stavu před realizací projektu. Pro výpočet primární energie je nutné použít faktory primární energie podle Přílohy č. 9 této Výzvy. Pro splnění uvedených limitů roční úspory primární energie nelze započítat úsporu primární energie z opatření dle bodu 7 čl. 38a GBER (realizace opatření dle 4.1.c) Výzvy, mimo případy v režimu de minimis, kdy obálka budovy splňuje již před registrací žádosti o podporu referenční hodnotu průměrného součinitele tepla Uem, R (referenční hodnota je stanovena v úrovni pro dokončenou budovu nebo její změnu podle průkazu energetické náročnosti budovy) v souladu s vyhláškou č.264/2020 Sb. o energetické náročnosti budov v platném znění. | J19: TRUE
B20: c) Pokud jsou absolutní anebo relativní emise vyšší než 20 000 tun CO2 ekv./rok, tak je nutné stanovit uhlíkovou stopu podle sdělení Evropské komise 2021/C373/01 (Technické pokyny k provádění infrastruktury z hlediska klimatického dopadu v období 2021-2027). | J20: TRUE
B21: d) Podle § 25 odst. 5 zákona č. 165/2012 Sb., o podporovaných zdrojích energie a o změně některých zákonů ve znění pozdějších předpisů se investiční podpora tepla nevztahuje na solární systémy nebo systémy s tepelnými čerpadly, které by svým provozem zhoršily celkovou průměrnou roční účinnost stávajících účinných soustav zásobování tepelnou energií. Tyto soustavy zásobování tepelnou energií eviduje a způsobem umožňujícím dálkový přístup zveřejňuje Energetický regulační úřad do 30. dubna následujícího roku. V případě částečné náhrady dodávek energií ze SZTE, je možno projekt podpořit pouze se souhlasem vlastníka či provozovatele SZTE. | J21: TRUE
B22: Checklist | F22: Označte pomocí x jednu z možností | J22: TRUE
F23: ano | G23: ne | H23: není relevantní | J23: TRUE
B24: e) V případě, že výroba elektřiny z FVE je připojena do přenosové nebo distribuční soustavy, nesmí dodat do přenosové nebo distribuční soustavy více než 20 % ročního množství elektřiny vyrobené v jím provozované výrobně elektřiny, sníženého o technologickou vlastní spotřebu elektřiny. Do výpočtu úspory primární energie nebude započítána energie dodaná mimo energetické hospodářství žadatele. U projektu zahrnujícího instalaci fotovoltaických systémů nesmí výše úspory energie z těchto opatření překročit hranici 30 % projektu. Jedná se o velikost podílu u indikátoru "323000 - Snížení konečné spotřeby energie u podpořených subjektů". Poměr kapacity bateriového úložiště energie (kWh) k výkonu FVE (kWp) nesmí být větší, než 2:1. | H24: =IF(NOT(je_FVE),"","x") ->  | J24: =je_FVE -> FALSE
B25: f) Zařízení pro ukládání energie musí ročně přijmout alespoň 75 % své energie z přímo připojeného zařízení na výrobu energie z obnovitelných zdrojů. Podpora na akumulaci elektrické energie může být poskytnuta pouze v případě, že akumulace je součástí investice do nové FVE. V případě projektů akumulace elektřiny je třeba prokázat množství přijaté energie akumulačním zařízením. Z toho vyplývá, že zařízení pro ukládání energie musí být osazeno mechanismem pro měření přijaté energie na bázi elektroměru nebo softwarového vyhodnocení přijaté energie. | H25: =IF(NOT(je_FVE),"","x") ->  | J25: =je_FVE -> FALSE
B26: g) Elektrická tepelná čerpadla a klimatizační zařízení musí splňovat podmínky, uvedené v Příloze č. 11 této Výzvy. | H26: =IF(OR(NOT(je_zdroj),AND(je_zdroj,ZdrojIdxNew<>4)),"x","") -> x | J26: =AND(je_zdroj,ZdrojIdxNew=4) -> FALSE
B27: h) V případě elektrických tepelných čerpadel jsou splněny požadavky pro obnovitelnou energii u vytápění a chlazení v souladu se směrnicí (EU) 2018/2001, a pomocných technických zařízení. Minimální sezonní topný faktor je požadován ve výši 2,8. | F27: =IF(AND(je_zdroj,ZdrojIdxNew=4,Zdroj!$I$21>=ParametryZdroje!$D$33),"x","") ->  | G27: =IF(AND(je_zdroj,ZdrojIdxNew=4,Zdroj!$I$21<ParametryZdroje!$D$33),"x","") ->  | H27: =IF(OR(NOT(je_zdroj),AND(je_zdroj,ZdrojIdxNew<>4)),"x","") -> x | J27: =AND(je_zdroj,ZdrojIdxNew=4) -> FALSE
B28: i) Podpořeny budou pouze projekty, které splňují požadavky vyhlášky č. 452/2017 Sb., kterou se mění vyhláška č. 415/2012 Sb., o přípustné úrovni znečišťování a jejím zjišťování a o provedení některých dalších ustanovení o ochraně ovzduší, ve znění pozdějších předpisů. | J28: TRUE
B29: j) Pokud nelze při stanovení výchozího stavu spotřeby energie předmětu energetického posudku postupovat na základě historie spotřeby energie stanovené pro ucelené období alespoň jednoho roku, postupuje se v souladu s vyhláškou č. 141/2021 Sb., v platném znění stanovením referenčního stavu. Referenčním stavem je spotřeba energie budovy stanovená na základě průkazu energetické náročnosti budovy pro stav po realizaci navržených úspor odpovídající 1,2 x ER - násobku spotřeby energie referenční budovy (pro všechny energetické ukazatele). Typický profil užívání je stanoven podrobně na základě skutečných projektových parametrů (nepřipouští se využití typického profilu užívání dle ČSN 730331-1). Pro stanovení výchozího stavu se uvažuje pro vytápění a přípravu teplé vody faktor primární energie zemního plynu, pro ostatní technické systémy faktor primární energie pro elektřinu. Referenční stav na základě 1,2 x ER není možné použít pro budovy, které jsou v době podání žádosti o podporu rozestavěné a/nebo nezkolaudované. | J29: TRUE
B30: k) V případě realizace opatření ke snižování energetické náročnosti budov musí být provedeno hydraulické vyvážení otopné soustavy. | J30: TRUE
B31: l) V rámci programu Nové Úspory energie nelze podporovat spotřebiče pro neprofesionální použití (zařízení pro domácnost) podle nařízení Evropského parlamentu a Rady 2017/1369 ze dne 4. července 2017, kterým se stanoví rámec pro označování energetickými štítky a zrušuje směrnice 2010/30/EU. | J31: TRUE
B32: m) Pokud se na elektromotory a pohony vztahují požadavky na ekodesign a označování energetickými štítky, v příslušných případech splňují požadavky na nejvyšší třídu energetického štítku stanovené v nařízení (EU) 2017/1369 a požadavky prováděcích předpisů podle směrnice 2009/125/ES a představují nejlepší dostupnou technologii. | J32: FALSE
B33: n) Pokud se na použité výrobky vztahují požadavky na označování energetickými štítky stanovené v nařízení (EU) 2017/1369 a požadavky prováděcích předpisů podle směrnice 2009/125/ES, tak v příslušných případech splňují požadavky na třídy energetického štítku podle přílohy č. 10 této Výzvy. | J33: TRUE
B34: o) Přírodní chladiva chladících a mrazících zařízení musí být v souladu s Přílohou č. 11 této Výzvy. | J34: TRUE
B35: p) zařízení musí být nové a současně musí být prokazatelné, že nahrazovaná zařízení již nejsou používána[3] | J35: TRUE
B36: q) Projekt musí být realizován na území ČR mimo NUTS II Praha. ● V rámci projektu lze uplatnit pouze jedno místo realizace. Místo realizace musí být součástí jednoho energetického hospodářství a zároveň se bude jednat o ucelené území podle katastrální mapy. ● Projekt nesmí být realizován na následujících objektech : ● rodinný rekreační dům, ● bytový dům, ● rodinný dům ● veřejné budovy (budovy vlastnictví státu, obcí, ústředních orgánů státní správy a právnických osob jimi založených či zřízených a používaných k činnostem, které nejsou podnikáním) | J36: TRUE
B37: Checklist | F37: Označte pomocí x jednu z možností | J37: TRUE
F38: ano | G38: ne | H38: není relevantní | J38: TRUE
B39: r) Projekty, které spadají pod integrovanou prevenci a omezování znečištění podle Přílohy č. 1 zákona č. 76/2002 Sb., o integrované prevenci a omezování znečištění, o integrovaném registru znečišťování a o změně některých zákonů, v platném znění (zákon o integrované prevenci), musí splňovat požadavky na úrovni nejlepších dostupných technik. | J39: TRUE
B40: s) Pro podporu využití obnovitelných zdrojů energie na pevnou biomasu jsou následující podmínky: ● Biomasou se rozumí přirozená dřevní hmota (kusové palivo, štěpka, pelety) bez jakýchkoliv příměsí jiných hmot (např. uhlí) ● Zdroj biomasy musí být do 250 km (musí se doložit smlouvou o smlouvě budoucí s dodavatelem biomasy) ● Max. výkon zařízení = 1 MW ● Zařízení musí splňovat emisní limity ● Musí dojít k docílení alespoň 80 % úspory emisí skleníkových plynů pocházejících z používání biomasy. Biomasa, která odpovídá této podmínce, je uvedena v Příloze č. 6 | J40: =AND(je_zdroj,OR(ZdrojIdxNew=1,ZdrojIdxNew=2)) -> FALSE
B41: t) Pokud je pro danou kombinaci podpor relevantní, tak v případě investiční podpory bude odpovídajícím způsobem snížena vnitrostátní provozní podpora podle oznámení Evropské komise | J41: TRUE
B42: x) Projekty obsahující návrh na kombinovanou výrobu elektřiny a tepla budou podporovány pouze v případě, pokud splní kritéria pro vysokoúčinnou výrobu elektřiny a tepla podle vyhlášky č. 37/2016 Sb. o elektřině z vysokoúčinné kombinované výroby elektřiny a tepla a elektřině z druhotných zdrojů. | J42: FALSE
B43: y) Podpořeny nebudou výdaje související s výrobou, zpracováním, přepravou, distribucí, skladováním nebo spalováním fosilních paliv. | J43: TRUE
B44: z) Tepelně technické vlastnosti budov jsou v souladu s požadavky, uvedenými v Příloze č. 8 Výzvy | J44: TRUE
B45: aa) Emise jsou nejvýše na úrovni emisí spojené s rozsahem hodnot nejlepších dostupných technik (BAT-AEL) stanovených v relevantních závěrech o nejlepších dostupných technikách (BAT), včetně závěrů o nejlepších dostupných technikách (BAT) pro předmětné odvětví. | J45: TRUE
J46: TRUE
B47: Checklist - specifické podmínky | F47: Označte pomocí x jednu z možností | J47: TRUE
F48: ano | G48: ne | H48: není relevantní | J48: TRUE
B49: 1) Byl posouzen výskyt ptáků a netopýrů a byla přijata vhodná opatření k jejich ochraně (práce mimo dobu jejich výskytu, instalace budek, realizace větracích otvorů tak, aby byly i nadále přístupné). Vztahuje se pouze na opatření v rámci Snížení energetické náročnosti budov podnikatelských subjektů včetně opatření podle bodu 7 článku 38a GBER. | J49: TRUE
B50: 5) Žadatel o podporu není provozovatel stacionárního zařízení v České republice, která jsou součástí Evropského systému emisního obchodování. | J50: TRUE
B51: 6) Pokud je žadatel o podporu provozovatel stacionárního zařízení v České republice, která jsou součástí Evropského systému emisního obchodování, tak se bude jednat o způsobilé opatření za předpokladu splnění podmínek uvedených v kapitole výzvy. | J51: TRUE
B52: 7) Je-li součástí Projektu pořízení zdroje na biomasu, musí příjemce nejpozději k prvnímu podání žádosti o platbu, ve které jsou zahrnuty způsobilé výdaje na zdroj na biomasu, předložit uzavřenou smlouvu o dodávce biomasy. Pokud příjemce používá jako druh biomasy Dřevní štěpku z průmyslových zbytků, Dřevěné brikety nebo pelety ze zbytků z dřevozpracujícího průmyslu (pouze výroba tepla) anebo Slámové pelety (pouze výroba tepla) podle Přílohy č. 6 Výzvy „Druhy pevné biomasy s úsporami emisí skleníkových plynů“, musí nejpozději k prvnímu podání žádosti o platbu, ve které jsou zahrnuty způsobilé výdaje na zdroj na biomasu, doložit provedení opatření k přizpůsobování se změnám klimatu a zavedení adaptačního opatření v podobě recyklace popela ze spalování biomasy zpět na ornou půdu. Uvedené příjemce doloží smlouvou o smlouvě budoucí/smlouvou na odběr popela se zemědělským podnikatelem. | J52: =AND(je_zdroj,OR(ZdrojIdxNew=1,ZdrojIdxNew=2)) -> FALSE
B53: 8) Je-li v rámci Projektu používána zemědělská biomasa, tak splňuje kritéria stanovená v čl. 29 odst. 2 až 5 směrnice (EU) 2018/2001. Pokud zařízení vyrábí elektřinu, KVET, tepelnou energii, chlazení s celkovým jmenovitým tepelným příkonem nejméně 2 MW využívající plynná paliva ze zemědělské biomasy, tak dokladem k prokázání plnění těchto kritérií je platný certifikát kritérií udržitelnosti podle systému KZR INiG nebo SURE nebo ISCC. Tento certifikát se dokládá nejpozději ve lhůtě pro předložení Ověřovacího energetického posudku. | J53: =AND(je_zdroj,OR(ZdrojIdxNew=1,ZdrojIdxNew=2)) -> FALSE
J54: TRUE
B55: Předpokládané výdaje na realizaci projektu: | G55: Kč | J55: TRUE
B56: Výdaje na technické zhodnocení stavby (materiál a práce pro provedení zateplení, výměna u stavebních otvorů, další stavební práce spojené s provedením energetického opatření) | G56: ='Hlavní list'!D26 -> 0 | J56: =je_zateplení -> TRUE
B57: Výdaje na instalaci rekuperace tepla | G57: ='Hlavní list'!D27 -> 0 | J57: =je_rekuperace -> FALSE
B58: Výdaje na výměnu stávajícího zdroje energie (výměna kotle, apod.) | G58: ='Hlavní list'!D28 -> 0 | J58: =je_zdroj -> FALSE
B59: Výdaje na provedení výměny stávajícího osvětlení v budovách | G59: ='Hlavní list'!D29 -> 0 | J59: =je_osvětlení -> FALSE
B60: Výdaje na FVE | G60: ='Hlavní list'!D30 -> 0 | J60: =je_FVE -> FALSE
B61: Výdaje celkem | G61: ='Hlavní list'!D31 -> 0 | J61: TRUE
J62: TRUE
J63: TRUE
B64: Dosažené výsledky projektu: | G64: kWh | H64: GJ | J64: TRUE
B65: Výchozí roční konečná spotřeba energie bez vlivu opatření dle 4.1.c) Výzvy | G65: ='Hlavní list'!C46 -> 0 | H65: ='Hlavní list'!D46 -> 0 | J65: TRUE
B66: Navrhovaná roční konečná spotřeba energie bez vlivu opatření dle 4.1.c) Výzvy | G66: ='Hlavní list'!C47 -> 0 | H66: ='Hlavní list'!D47 -> 0 | J66: TRUE
B67: Roční úspora konečné spotřeby energie bez vlivu opatření dle 4.1.c) Výzvy | G67: ='Hlavní list'!C48 -> 0 | H67: ='Hlavní list'!D48 -> 0 | J67: TRUE
B68: Výchozí roční konečná spotřeba energie celého projektu | G68: ='Hlavní list'!C50 -> 0 | H68: ='Hlavní list'!D50 -> 0 | J68: TRUE
B69: Navrhovaná roční konečná spotřeba energie celého projektu | G69: ='Hlavní list'!C51 -> 0 | H69: ='Hlavní list'!D51 -> 0 | J69: TRUE
B70: Roční úspora konečné spotřeby energi celého projektu | G70: ='Hlavní list'!C52 -> 0 | H70: ='Hlavní list'!D52 -> 0 | J70: =je_FVE -> FALSE
B71: Roční výroba FVE | G71: ='Hlavní list'!C54 -> 0 | H71: ='Hlavní list'!D54 -> 0 | J71: TRUE
B72: Výchozí roční spotřeba primární energie bez vlivu opatření dle 4.1.c) Výzvy | G72: ='Hlavní list'!C56 -> 0 | H72: ='Hlavní list'!D56 -> 0 | J72: TRUE
B73: Navrhovaná roční spotřeba primární energie bez vlivu opatření dle 4.1.c) Výzvy | G73: ='Hlavní list'!C57 -> 0 | H73: ='Hlavní list'!D57 -> 0 | J73: TRUE
B74: Roční úspora primární energie bez vlivu opatření dle 4.1.c) Výzvy | G74: ='Hlavní list'!C58 -> 0 | H74: ='Hlavní list'!D58 -> 0 | J74: TRUE
B75: Výchozí roční spotřeba primární energie celého projektu | G75: ='Hlavní list'!C60 -> 0 | H75: ='Hlavní list'!D60 -> 0 | J75: TRUE
B76: Navrhovaná roční spotřeba primární energie celého projektu | G76: ='Hlavní list'!C61 -> 0 | H76: ='Hlavní list'!D61 -> 0 | J76: TRUE
B77: Roční úspora primární energie celého projektu | G77: ='Hlavní list'!C62 -> 0 | H77: ='Hlavní list'!D62 -> 0 | J77: TRUE
J78: TRUE
B79: Roční úspora primární energie bez vlivu opatření dle 4.1.c) Výzvy [%] | H79: ='Hlavní list'!C59 -> 0 | J79: TRUE
B80: Podíl FVE na úspoře konečné spotřeby energie celého projektu [%] | H80: ='Hlavní list'!C55 -> 0 | J80: =je_FVE -> FALSE
B81: Roční úspora primární energie celého projektu [%] | H81: ='Hlavní list'!C63 -> 0 | J81: TRUE
B82: Roční úspora konečné spotřeby energi celého projektu [%] | H82: ='Hlavní list'!C53 -> 0 | J82: TRUE
B83: Roční úspora emisí CO2 [kg] | H83: ='Hlavní list'!C64 -> 0 | J83: TRUE
B84: Roční úspora emisí CO2 [%] | H84: ='Hlavní list'!C65 -> 0 | J84: TRUE
B85: Roční úspora emisí tuhých látek [kg] | H85: ='Hlavní list'!C66 -> 0 | J85: TRUE
B86: Roční úspora emisí frakcí PM10 [kg] | H86: ='Hlavní list'!C67 -> 0 | J86: TRUE
B87: Roční úspora emisí frakcí PM2,5 [kg] | H87: ='Hlavní list'!C68 -> 0 | J87: TRUE
B88: Roční úspora nákladů na energii [Kč] | H88: ='Hlavní list'!C69 -> 0 | J88: TRUE
J89: TRUE
B90: ='Hlavní list'!C71 -> Nejsou správně vyplněna všechna data. | J90: TRUE
J91: TRUE
B92: Realizovaná opatření | D92: Popis opatření | F92: Vyhodnocení opatření | J92: TRUE
B93: ='Hlavní list'!B88 -> Výměna zdroje | D93: =IF(ISBLANK('Hlavní list'!C88),"",'Hlavní list'!C88) -> , instalovaný výkon 0 kW, účinnost 0 % | F93: =IF(ISBLANK('Hlavní list'!E88),"",'Hlavní list'!E88) ->  | J93: ='Hlavní list'!I88 -> FALSE
B94: ='Hlavní list'!B89 -> Zateplení obvodového pláště | D94: =IF(ISBLANK('Hlavní list'!C89),"",'Hlavní list'!C89) -> , tloušťka mm, plocha 0 m2 | F94: =IF(ISBLANK('Hlavní list'!E89),"",'Hlavní list'!E89) -> Zateplení obvodových stěn splňuje požadavky programu. | J94: ='Hlavní list'!I89 -> FALSE
B95: ='Hlavní list'!B90 -> Zateplení střechy | D95: =IF(ISBLANK('Hlavní list'!C90),"",'Hlavní list'!C90) -> , tloušťka mm, plocha 0 m2 | F95: =IF(ISBLANK('Hlavní list'!E90),"",'Hlavní list'!E90) -> Zateplení střechy splňuje požadavky programu. | J95: ='Hlavní list'!I90 -> FALSE
B96: ='Hlavní list'!B91 -> Zateplení podlahy | D96: =IF(ISBLANK('Hlavní list'!C91),"",'Hlavní list'!C91) -> , tloušťka mm, plocha 0 m2 | F96: =IF(ISBLANK('Hlavní list'!E91),"",'Hlavní list'!E91) -> Zateplení podlahy splňuje požadavky programu. | J96: ='Hlavní list'!I91 -> FALSE
B97: ='Hlavní list'!B92 -> Výměna oken, výplní ve stěně | D97: =IF(ISBLANK('Hlavní list'!C92),"",'Hlavní list'!C92) -> , plocha 0 m2, součinitel prostupu tepla W/(m2.K) | F97: =IF(ISBLANK('Hlavní list'!E92),"",'Hlavní list'!E92) -> Okna splňují požadavky programu. | J97: ='Hlavní list'!I92 -> FALSE
B98: ='Hlavní list'!B93 -> Výměna dveří, vrat | D98: =IF(ISBLANK('Hlavní list'!C93),"",'Hlavní list'!C93) -> , plocha 0 m2, součinitel prostupu tepla W/(m2.K) | F98: =IF(ISBLANK('Hlavní list'!E93),"",'Hlavní list'!E93) -> Dveře/vrata splňují požadavky programu. | J98: ='Hlavní list'!I93 -> FALSE
B99: ='Hlavní list'!B94 -> Výměna střešních oken, světlíků | D99: =IF(ISBLANK('Hlavní list'!C94),"",'Hlavní list'!C94) -> , plocha 0 m2, součinitel prostupu tepla W/(m2.K) | F99: =IF(ISBLANK('Hlavní list'!E94),"",'Hlavní list'!E94) -> Světlíky/střešní okna splňují požadavky programu. | J99: ='Hlavní list'!I94 -> FALSE
B100: ='Hlavní list'!B95 -> Instalace mechanického větrání s rekuperací | D100: =IF(ISBLANK('Hlavní list'!C95),"",'Hlavní list'!C95) ->  | F100: =IF(ISBLANK('Hlavní list'!E95),"",'Hlavní list'!E95) ->  | J100: ='Hlavní list'!I95 -> FALSE
B101: ='Hlavní list'!B96 -> Výměna klasických žárovek | D101: =IF(ISBLANK('Hlavní list'!C96),"",'Hlavní list'!C96) -> počet vyměňovaných zdrojů 0, celkový příkon 0 W, průměrný příkon zdroje 0 W | F101: =IF(ISBLANK('Hlavní list'!E96),"",'Hlavní list'!E96) ->  | J101: ='Hlavní list'!I96 -> FALSE
B102: ='Hlavní list'!B97 -> Výměna halogenových žárovek | D102: =IF(ISBLANK('Hlavní list'!C97),"",'Hlavní list'!C97) -> počet vyměňovaných zdrojů 0, celkový příkon 0 W, průměrný příkon zdroje 0 W | F102: =IF(ISBLANK('Hlavní list'!E97),"",'Hlavní list'!E97) ->  | J102: ='Hlavní list'!I97 -> FALSE
B103: ='Hlavní list'!B98 -> Výměna zářivek | D103: =IF(ISBLANK('Hlavní list'!C98),"",'Hlavní list'!C98) -> počet vyměňovaných zdrojů 0, celkový příkon 0 W, průměrný příkon zdroje 0 W | F103: =IF(ISBLANK('Hlavní list'!E98),"",'Hlavní list'!E98) ->  | J103: ='Hlavní list'!I98 -> FALSE
B104: ='Hlavní list'!B99 -> Výměna rtuťových výbojek | D104: =IF(ISBLANK('Hlavní list'!C99),"",'Hlavní list'!C99) -> počet vyměňovaných zdrojů 0, celkový příkon 0 W, průměrný příkon zdroje 0 W | F104: =IF(ISBLANK('Hlavní list'!E99),"",'Hlavní list'!E99) ->  | J104: ='Hlavní list'!I99 -> FALSE
B105: ='Hlavní list'!B100 -> Výměna kompaktních zářivek (CFL) | D105: =IF(ISBLANK('Hlavní list'!C100),"",'Hlavní list'!C100) -> počet vyměňovaných zdrojů 0, celkový příkon 0 W, průměrný příkon zdroje 0 W | F105: =IF(ISBLANK('Hlavní list'!E100),"",'Hlavní list'!E100) ->  | J105: ='Hlavní list'!I100 -> FALSE
B106: ='Hlavní list'!B101 -> FVE | D106: =IF(ISBLANK('Hlavní list'!C101),"",'Hlavní list'!C101) ->  | F106: =IF(ISBLANK('Hlavní list'!E101),"",'Hlavní list'!E101) ->  | J106: ='Hlavní list'!I101 -> FALSE
J107: TRUE
J108: TRUE
B109: Projekt, který je předmětem energetického posouzení generuje roční úsporu primárních energetických vstupů v hodnotě | G109: =H74 -> 0 | H109: GJ | J109: TRUE
B110: Způsobilé výdaje pro realizaci projektu jsou ve výši | G110: =G61 -> 0 | J110: TRUE
B111: Výše roční úspory emisí CO2 realizované projektem jsou ve výši | G111: =H83 -> 0 | H111: kg | J111: TRUE
B112: Měrné způsobilé výdaje na snížení CO2 | G112: =IFERROR(G61/H83,0) -> 0 | H112: Kč/kg | J112: TRUE
J113: TRUE
B114: Žadatel, který provedl Energetické posouzení projektu, si zajistil patřičnou kontrolu kvality a platnosti výsledků samo-hodnotícího nástroje. Potvrzuje, že Energetické posouzení bylo provedeno správně a v souladu s podmínkami uvedenými v Příloze č .2 Výzvy v rámci Finančního nástroje Úspory energie - úvěry. Byly použity správné údaje a byla zvolena správná opatření. | J114: TRUE
B115: Žadatel je povinen realizovat projekt dle zadaných parametrů v rozsahu popisu zadanými pro správné vyhodnocení energetické úspory. V případě, že by došlo během realizace k odchýlení od plánovaného stavu, je žadatel povinen předložit nové energetické posouzení, které prokáže, že projekt splňuje parametry platné Výzvy programu Úspory energie - úvěry. V případě, že by energetické hodnocení nemohlo být použito pro nový stav, je žadatel povinen postupovat podle pravidel Výzvy, a to zpracovat energetický posudek a následně ověřovací energetický posudek, který prokáže splnění podmínek Výzvy. | J115: TRUE
J116: TRUE
J117: TRUE
J118: TRUE
J119: TRUE
J120: TRUE
B121: Dne | C121: =TODAY() -> 2024-10-03 | J121: TRUE
E122: Jméno osoby jednající za žadatele a podpis | J122: TRUE

Sheet Export (hidden)
A1: Hlavní list | Q1: Zateplení | CK1: Zdroj | CY1: Osvětlení | EC1: Hlavní list | ER1: FVE
Q2: Základní informace o budově / Basic information about the building | AC2: Vyhodnocení plnění požadavků dle Průkazu energetické náročnosti | AI2: Vlastnosti budovy před realizací opatření / Building description | AQ2: Opatření k realizaci / Measures for implementation | CK2: Parametry stávajícího zdroje tepla/Old boiler parameters | CS2: Parametry nového zdroje tepla / New boiler parameters | CY2: Jakého typu jsou stávající světelné zdroje? / What type of lighting do you plan to replace? | EC2: 3. Výsledky / Results
Q3: 1.1 | R3: 1.2 | S3: 1.3. | T3: 1.4 | U3: 1.5 | V3: 1.6 | W3: 1.7 | X3: 1.8 | Y3: 1.9 | Z3: 1.10 | AA3: 1.11 | AB3: 1.12 | AC3: 2.1 | AD3: 2.2 | AE3: 2.3 | AF3: 2.4 | AG3: 2.5 | AH3: 2.6 | AI3: 3.1.1 | AJ3: 3.1.2 | AK3: 3.1.3 | AL3: 3.1.4 | AM3: 3.1.5 | AN3: 3.1.6 | AO3: 3.1.7 | AP3: 3.1.8 | AQ3: 4.1.1 | AR3: 4.1.2 | AS3: 4.1.3 | AT3: 4.1.4 | AU3: 4.1.5 | AV3: 4.1.6 | AW3: 4.1.7 | AX3: 4.1.8 | AY3: 4.2.1 | AZ3: 4.2.2 | BA3: 4.2.3 | BB3: 4.2.4 | BC3: 4.2.5 | BD3: 4.2.6 | BE3: 4.2.7 | BF3: 4.2.8 | BG3: 4.3.1 | BH3: 4.3.2 | BI3: 4.3.3 | BJ3: 4.3.4 | BK3: 4.3.5 | BL3: 4.3.6 | BM3: 4.3.7 | BN3: 4.3.8 | BO3: 4.4.1 | BP3: 4.4.2 | BQ3: 4.4.3 | BR3: 4.4.4 | BS3: 4.4.5 | BT3: 4.4.6 | BU3: 4.5.1 | BV3: 4.5.2 | BW3: 4.5.3 | BX3: 4.5.4 | BY3: 4.5.5 | BZ3: 4.5.6 | CA3: 4.6.1 | CB3: 4.6.2 | CC3: 4.6.3 | CD3: 4.6.4 | CE3: 4.6.5 | CF3: 4.6.6 | CG3: 4.7.1 | CH3: 4.7.2 | CI3: 4.7.3 | CK3: 1.1 | CL3: 1.2 | CM3: 1.3 | CN3: 1.4 | CO3: 1.5 | CP3: 1.6 | CQ3: 1.7 | CR3: 1.8 | CS3: 2.1 | CT3: 2.2 | CU3: 2.3 | CV3: 2.4 | CW3: 2.5 | CX3: 2.6 | CY3: 1.1.1 | CZ3: 1.1.2 | DA3: 1.1.3 | DB3: 1.1.4 | DC3: 1.1.5 | DD3: 1.2.1 | DE3: 1.2.2 | DF3: 1.2.3 | DG3: 1.2.4 | DH3: 1.2.5 | DI3: 1.3.1 | DJ3: 1.3.2 | DK3: 1.3.3 | DL3: 1.3.4 | DM3: 1.3.5 | DN3: 1.4.1 | DO3: 1.4.2 | DP3: 1.4.3 | DQ3: 1.4.4 | DR3: 1.4.5 | DS3: 1.5.1 | DT3: 1.5.2 | DU3: 1.5.3 | DV3: 1.5.4 | DW3: 1.5.5 | DX3: 2.1.1 | DY3: 2.1.2 | DZ3: 2.2 | EA3: 2.3 | EB3: 3.1 | ER3: 1.1 | ES3: 1.2 | ET3: 1.3 | EU3: 1.4a | EV3: 1.4b
A4: =TRANSPOSE('Hlavní list'!B6:B11) -> Název projektu: | B4: Klient: | C4: IČ klienta: | D4: Adresa žadatele: | E4: Adresa místa realizace projektu: | F4: Popis projektu: | G4: =TRANSPOSE('Hlavní list'!B14:B15) -> Součástí projektu je náhrada zařízení, které již nelze používat ze zákona. | H4: Způsob veřejné podpory | I4: Výdaje na technické zhodnocení stavby | J4: Výdaje na výměnu stávajícího zdroje energie (výměna kotle, apod.) | K4: Výdaje na provedení výměny stávajícího osvětlení v budovách | L4: Náklady projektu: | M4: 1. Výměna zdroje tepla / Boiler replacement | N4: 2. Zateplení, výměna oken / thermal insulation, windows replacement | O4: 3. Náhrada světelných zdrojů LED zdroji / Replacement of lighting with LED | P4: 4. FVE | Q4: Jakým způsobem budete zadávat projekt? | R4: Typ posuzovaného objektu | S4: Památková ochrana budovy | T4: Znáte roční spotřebu budovy? | U4: Jaká je roční spotřeba domu? | V4: Jaká je celková vytápěná plocha? | W4: Období výstavby | X4: Vnitřní návrhová teplota v otopném období | Y4: Dochází v projektu ke změně zdroje na vytápění? | Z4: Jaký typ zdroje je instalován? | AA4: Jaké se používá palivo? | AB4: Jak účinná je soustava zásobování teplem (SZT)? | AC4: Vypočtená hodnota průměrného součinitele prostupu tepla Uem po realizaci projektu | AD4: Referenční hodnota průměrného součinitele prostupu tepla Uem,R po realizaci projektu | AE4: Vypočtená hodnota dodané energie ER po realizaci projektu | AF4: Vypočtená hodnota referenční dodané energie ER po realizaci projektu | AG4: Vypočtená hodnota dodané energie ER před realizací projektu | AH4: Vyhodnocení plnění požadavků na energetickou náročnost pro projekt jako celek | AI4: Obvodový plášť | AJ4: Střecha | AK4: Střecha - typ konstrukce | AL4: Podlaha, strop nad suterénem | AM4: Podlaha, strop nad suterénem typ konstrukce | AN4: Okna | AO4: Dveře, vrata | AP4: Střešní okna, světlíky | AQ4: Vyberte ano / ne | AR4: Typ zateplení | AS4: Tloušťka tepelné izolace [mm] | AT4: Plocha zateplované konstrukce [m2] | AU4: Součinitel prostupu tepla konstrukce z PENB [W/(m2.K)] | AV4: Součinitel prostupu tepla výpočet z kalkulačky [W/(m2.K)] | AW4: Požadavek programu na U [W/(m2.K)] | AX4: Vyhodnocení plnění požadavku | AY4: Vyberte ano / ne | AZ4: Typ zateplení | BA4: Tloušťka tepelné izolace [mm] | BB4: Plocha zateplované konstrukce [m2] | BC4: Součinitel prostupu tepla konstrukce z PENB [W/(m2.K)] | BD4: Součinitel prostupu tepla výpočet z kalkulačky [W/(m2.K)] | BE4: Požadavek programu na U [W/(m2.K)] | BF4: Vyhodnocení plnění požadavku | BG4: Vyberte ano / ne | BH4: Typ zateplení | BI4: Tloušťka tepelné izolace [mm] | BJ4: Plocha zateplované konstrukce [m2] | BK4: Součinitel prostupu tepla konstrukce z PENB [W/(m2.K)] | BL4: Součinitel prostupu tepla výpočet z kalkulačky [W/(m2.K)] | BM4: Požadavek programu na U [W/(m2.K)] | BN4: Vyhodnocení plnění požadavku | BO4: Vyberte ano / ne | BP4: Typ oken | BQ4: Plocha vyměňovaných oken [m2] | BR4: Součinitel prostupu tepla nových oken [W/(m2.K)] | BS4: Požadavek programu na U [W/(m2.K)] | BT4: Vyhodnocení plnění požadavku | BU4: Vyberte ano / ne | BV4: Typ dveří, vrat | BW4: Plocha vyměňovaných dveří, vrat [m2] | BX4: Součinitel prostupu tepla nových dveří, vrat [W/(m2.K)] | BY4: Požadavek programu na U [W/(m2.K)] | BZ4: Vyhodnocení plnění požadavku | CA4: Vyberte ano / ne | CB4: Typ oken | CC4: Plocha vyměňovaných oken [m2] | CD4: Součinitel prostupu tepla nových oken [W/(m2.K)] | CE4: Požadavek programu na U [W/(m2.K)] | CF4: Vyhodnocení plnění požadavku | CG4: Vyberte ano / ne | CH4: účinnost systému nuceného větrání v % | CI4: větraný objem v m3/h | CJ4: vyhonocení plnění požadavků | CK4: O jaký typ zdroje se jedná? | CL4: V jakém období byl Zdroj vyroben? | CM4: Jaké se používá palivo? | CN4: Jak účinná je soustava zásobování teplem (SZT)? | CO4: Jaká je spotřeba paliva za jeden rok? | CP4: Znáte účinnost kotle? | CQ4: Jaká je účinnost? | CR4: Jaký je instalovaný výkon kotle? | CS4: Jaký je typ nového kotle? | CT4: Znáte účinnost nového kotle? | CU4: Jaká je účinnost? | CV4: Jaký je instalovaný výkon zdroje? | CW4: Znáte sezónní účinnost (COP) tepelného čerpadla? | CX4: Zadejte sezónní účinnost tepelného čerpadla | CY4: Jsou to klasické žárovky? | CZ4: Jaký je jejich počet? | DA4: Znáte celkový příkon všech klasických žárovek? | DB4: Uveďte jejich celkový příkon | DC4: Jaký je průměrný příkon klasických žárovek? | DD4: Halogenové žárovky | DE4: Jaký je jejich počet? | DF4: Znáte celkový příkon všech halogenových žárovek? | DG4: Uveďte jejich celkový příkon | DH4: Jaký je průměrný příkon halogenových žárovek? | DI4: Zářivky / Fluorescent lamp | DJ4: Jaký je jejich počet? | DK4: Znáte celkový příkon všech zářivek? | DL4: Uveďte jejich celkový příkon | DM4: Jaký je průměrný příkon zářivek? | DN4: Rtuťové výbojky / Discharge lamp | DO4: Jaký je jejich počet? | DP4: Znáte celkový příkon všech rtuťových výbojek? | DQ4: Uveďte jejich celkový příkon | DR4: Jaký je průměrný příkon rtuťových výbojek? | DS4: Kompaktní zářivky (CFL) / Compact fluorescent lamps | DT4: Jaký je jejich počet? | DU4: Znáte celkový příkon všech kompaktních zářivek? | DV4: Uveďte jejich celkový příkon | DW4: Jaký je průměrný příkon kompaktních zářivek? | DX4: Znáte celkovou spotřebu elektřiny všech světelných zdrojů? | DY4: Uveďte spotřebu elektřiny? | DZ4: Kolik hodin denně jsou v průměru zapnuté všechny světelné zdroje? | EA4: Jaký se počet uvažovaných pracovních dní za rok? | EB4: Je výměna osvětlení zahrnuta v PENB? | EC4: Výchozí roční konečná spotřeba energie [kWh] | ED4: Výsledná roční konečná spotřeba energie [kWh] | EE4: Roční úspora v konečné spotřebě energie [kWh] | EF4: Roční výroba FVE [kWh] | EG4: Výchozí roční spotřeba neobnovitelné primární energie [kWh] | EH4: Výsledná roční spotřeba neobnovitelné primární energie [kWh] | EI4: Roční úspora neobnovitelné primární energie [kWh] | EJ4: Roční úspora neobnovitelné primární energie [%] | EK4: Roční úspora neobnovitelné primární energie včetně FVE [kWh] | EL4: Roční úspora emisí CO2 [kg] | EM4: Roční úspora emisí CO2 [%] | EN4: Roční úspora emisí tuhých látek [kg] | EO4: Roční úspora emisí frakcí PM10 [kg] | EP4: Roční úspora emisí frakcí PM2,5 [kg] | EQ4: Roční úspora nákladů na energii [Kč] | ER4: =FVE!C4 -> Jaký je jmenovitý instalovaný výkon FVE ? | ES4: =FVE!C5 -> Jaká je předpokládaná roční výroba elektrické energie z FVE ? | ET4: =FVE!C6 -> Je součástí projektu instalace FVE také akumulace elektrické energie do baterie? | EU4: =FVE!C7 -> Jaká je jmenovitá kapacita instalované baterie ? | EV4: =FVE!C8 -> Jaká je celková roční spotřeba elektrické energie v budově / budovách, pro které se FVE instaluje ?
A5: =TRANSPOSE('Hlavní list'!C6:C11) -> 0 | B5: 0 | C5: 0 | D5: 0 | E5: 0 | F5: 0 | G5: =TRANSPOSE('Hlavní list'!D14:D15) -> 0 | H5: 0 | I5: ='Hlavní list'!D25 -> 0 | J5: ='Hlavní list'!D26 -> 0 | K5: ='Hlavní list'!D27 -> 0 | L5: ='Hlavní list'!D29 -> 0 | M5: =Parametry!B113 -> 0 | N5: =Parametry!B114 -> 0 | O5: =Parametry!B115 -> 0 | P5: =Parametry!B116 -> 0 | Q5: =IF(Parametry!B140=1,Parametry!A123,Parametry!A124) -> 0 | R5: =Zateplení!F6 -> 0 | S5: =Zateplení!F7 -> 0 | T5: =Zateplení!F8 -> 0 | U5: =Zateplení!F9 -> 0 | V5: =Zateplení!F10 -> 0 | W5: =Zateplení!F11 -> 0 | X5: =Zateplení!F12 -> 0 | Y5: =Zateplení!F13 -> 0 | Z5: =Zateplení!F14 -> 0 | AA5: =Zateplení!F15 -> 0 | AB5: =Zateplení!F16 -> 0 | AC5: =Zateplení!F19 -> 0 | AD5: =Zateplení!F20 -> 0 | AE5: =Zateplení!F21 -> 0 | AF5: =Zateplení!F22 -> 0 | AG5: =Zateplení!#REF! ->  | AH5: =Zateplení!F23 -> 0 | AI5: =Zateplení!F29 -> 0 | AJ5: =Zateplení!#REF! ->  | AK5: =Zateplení!F31 -> 0 | AL5: =Zateplení!F32 -> 0 | AM5: =Zateplení!#REF! ->  | AN5: =Zateplení!F34 -> 0 | AO5: =Zateplení!#REF! ->  | AP5: =Zateplení!F36 -> 0 | AQ5: =Zateplení!#REF! ->  | AR5: =Zateplení!F40 -> 0 | AS5: =Zateplení!F41 -> 0 | AT5: =Zateplení!F42 -> 0 | AU5: =Zateplení!F43 -> 0 | AV5: =Zateplení!F44 -> 0 | AW5: =Zateplení!F45 -> 0 | AX5: =Zateplení!F54 -> 0 | AY5: =Zateplení!F47 ->  | AZ5: =Zateplení!F48 ->  | BA5: =Zateplení!F49 -> Zateplení obvodových stěn splňuje požadavky programu. | BB5: =Zateplení!F50 -> 0 | BC5: =Zateplení!F51 -> 0 | BD5: =Zateplení!F52 -> 0 | BE5: =Zateplení!F53 -> 0 | BF5: =Zateplení!F54 -> 0 | BG5: =Zateplení!F55 ->  | BH5: =Zateplení!F56 ->  | BI5: =Zateplení!F57 -> Zateplení střechy splňuje požadavky programu. | BJ5: =Zateplení!F58 -> 0 | BK5: =Zateplení!F59 -> 0 | BL5: =Zateplení!F60 -> 0 | BM5: =Zateplení!F61 -> 0 | BN5: =Zateplení!F62 -> 0 | BO5: =Zateplení!F63 ->  | BP5: =Zateplení!F64 ->  | BQ5: =Zateplení!F65 -> Zateplení podlahy splňuje požadavky programu. | BR5: =Zateplení!F66 -> 0 | BS5: =Zateplení!F67 -> 0 | BT5: =Zateplení!F68 -> 0 | BU5: =Zateplení!F69 -> 0 | BV5: =Zateplení!F70 ->  | BW5: =Zateplení!F71 -> Okna splňují požadavky programu. | BX5: =Zateplení!F72 -> 0 | BY5: =Zateplení!F73 -> 0 | BZ5: =Zateplení!F74 -> 0 | CA5: =Zateplení!F75 -> 0 | CB5: =Zateplení!F76 ->  | CC5: =Zateplení!F77 -> Dveře/vrata splňují požadavky programu. | CD5: =Zateplení!F78 -> 0 | CE5: =Zateplení!F79 -> 0 | CF5: =Zateplení!F80 -> 0 | CG5: =Zateplení!F81 -> 0 | CH5: =Zateplení!F82 ->  | CI5: =Zateplení!F83 -> Světlíky/střešní okna splňují požadavky programu. | CJ5: =Zateplení!G82 -> Hodnota je nastavená dle specifických podmínek programu a vámi zvoleného typu budovy a dalších kritérií | CK5: =Zdroj!E4 -> 0 | CL5: =Zdroj!E5 -> 0 | CM5: =Zdroj!E6 -> 0 | CN5: =Zdroj!E7 -> 0 | CO5: =Zdroj!E8 -> 0 | CP5: =Zdroj!E9 -> 0 | CQ5: =Parametry!G79 -> 0 | CR5: =Zdroj!E13 -> 0 | CS5: =Zdroj!E16 -> 0 | CT5: =Zdroj!E17 -> 0 | CU5: =Parametry!G80 -> 0 | CV5: =Zdroj!E19 -> 0 | CW5: =Zdroj!E20 -> 0 | CX5: =Zdroj!E21 -> 0 | CY5: =Osvětlení!E4 -> 0 | CZ5: =Osvětlení!E5 -> 0 | DA5: =Osvětlení!E6 -> 0 | DB5: =Osvětlení!E7 -> 0 | DC5: =Osvětlení!E8 -> 0 | DD5: =Osvětlení!E10 -> 0 | DE5: =Osvětlení!E11 -> 0 | DF5: =Osvětlení!E12 -> 0 | DG5: =Osvětlení!E13 -> 0 | DH5: =Osvětlení!E14 -> 0 | DI5: =Osvětlení!E16 -> 0 | DJ5: =Osvětlení!E17 -> 0 | DK5: =Osvětlení!E18 -> 0 | DL5: =Osvětlení!E19 -> 0 | DM5: =Osvětlení!E20 -> 0 | DN5: =Osvětlení!E22 -> 0 | DO5: =Osvětlení!E23 -> 0 | DP5: =Osvětlení!E24 -> 0 | DQ5: =Osvětlení!E25 -> 0 | DR5: =Osvětlení!E26 -> 0 | DS5: =Osvětlení!E28 -> 0 | DT5: =Osvětlení!E29 -> 0 | DU5: =Osvětlení!E30 -> 0 | DV5: =Osvětlení!E31 -> 0 | DW5: =Osvětlení!E32 -> 0 | DX5: =Osvětlení!E35 -> 0 | DY5: =Osvětlení!E36 -> 0 | DZ5: =Osvětlení!E37 -> 0 | EA5: =Osvětlení!E38 -> 0 | EB5: =Osvětlení!E40 -> 0 | EC5: ='Hlavní list'!C43 -> 0 | ED5: ='Hlavní list'!C44 -> Celkem / Total | EE5: ='Hlavní list'!C45 -> kWh | EF5: ='Hlavní list'!C54 -> 0 | EG5: ='Hlavní list'!C56 -> 0 | EH5: ='Hlavní list'!C57 -> 0 | EI5: ='Hlavní list'!C62 -> 0 | ER5: =FVE!E4 -> 0 | ES5: =FVE!E5 -> 0 | ET5: =FVE!E6 -> 0 | EU5: =FVE!E7 -> 0 | EV5: =FVE!E8 -> 0

Sheet Vstupy (hidden)
A1: Tool NRB | B1: =Verze -> Verze - 14.01
A3: Odkaz | B3: Default | C3: List | D3: Buňka | E3: Hodnota
A4: =CELL("odkaz",'Hlavní list'!C6) -> '[12 - Kalkulačka_2024_09_30.xlsm]Hlavní list'!$C$6 | C4: =MID(SUBSTITUTE(A4,"'",""),FIND("]",SUBSTITUTE(A4,"'",""))+1,FIND("!",SUBSTITUTE(A4,"'",""))-FIND("]",SUBSTITUTE(A4,"'",""))-1) -> Hlavní list | D4: =MID(A4,SEARCH("$",A4),20) -> $C$6 | E4: a
A5: =CELL("odkaz",'Hlavní list'!C7) -> '[12 - Kalkulačka_2024_09_30.xlsm]Hlavní list'!$C$7 | C5: =MID(SUBSTITUTE(A5,"'",""),FIND("]",SUBSTITUTE(A5,"'",""))+1,FIND("!",SUBSTITUTE(A5,"'",""))-FIND("]",SUBSTITUTE(A5,"'",""))-1) -> Hlavní list | D5: =MID(A5,SEARCH("$",A5),20) -> $C$7 | E5: b
A6: =CELL("odkaz",'Hlavní list'!C8) -> '[12 - Kalkulačka_2024_09_30.xlsm]Hlavní list'!$C$8 | C6: Hlavní list | D6: $C$8 | E6: c
A7: =CELL("odkaz",'Hlavní list'!C9) -> '[12 - Kalkulačka_2024_09_30.xlsm]Hlavní list'!$C$9 | C7: Hlavní list | D7: $C$9 | E7: d
A8: =CELL("odkaz",'Hlavní list'!C10) -> '[12 - Kalkulačka_2024_09_30.xlsm]Hlavní list'!$C$10 | C8: Hlavní list | D8: $C$10 | E8: e
A9: =CELL("odkaz",'Hlavní list'!C11) -> '[12 - Kalkulačka_2024_09_30.xlsm]Hlavní list'!$C$11 | C9: Hlavní list | D9: $C$11 | E9: f
A10: =CELL("odkaz",'Hlavní list'!D14) -> '[12 - Kalkulačka_2024_09_30.xlsm]Hlavní list'!$D$14 | C10: Hlavní list | D10: $D$14 | E10: ne
A11: =CELL("odkaz",'Hlavní list'!D15) -> '[12 - Kalkulačka_2024_09_30.xlsm]Hlavní list'!$D$15 | C11: Hlavní list | D11: $D$15 | E11: de minimis
A12: =CELL("odkaz",Listy!B2) -> '[12 - Kalkulačka_2024_09_30.xlsm]Listy'!$B$2 | B12: TRUE | C12: Listy | D12: $B$2 | E12: TRUE
A13: =CELL("odkaz",Listy!B3) -> '[12 - Kalkulačka_2024_09_30.xlsm]Listy'!$B$3 | B13: FALSE | C13: Listy | D13: $B$3 | E13: TRUE
A14: =CELL("odkaz",Listy!B4) -> '[12 - Kalkulačka_2024_09_30.xlsm]Listy'!$B$4 | B14: FALSE | C14: Listy | D14: $B$4 | E14: TRUE
A15: =CELL("odkaz",Listy!B5) -> '[12 - Kalkulačka_2024_09_30.xlsm]Listy'!$B$5 | B15: FALSE | C15: Listy | D15: $B$5 | E15: TRUE
A16: =CELL("odkaz",Listy!B6) -> '[12 - Kalkulačka_2024_09_30.xlsm]Listy'!$B$6 | B16: FALSE | C16: Listy | D16: $B$6 | E16: TRUE
A17: =CELL("odkaz",Listy!B7) -> '[12 - Kalkulačka_2024_09_30.xlsm]Listy'!$B$7 | B17: FALSE | C17: Listy | D17: $B$7 | E17: FALSE
A18: =CELL("odkaz",Listy!B8) -> '[12 - Kalkulačka_2024_09_30.xlsm]Listy'!$B$8 | B18: FALSE | C18: =MID(SUBSTITUTE(A18,"'",""),FIND("]",SUBSTITUTE(A18,"'",""))+1,FIND("!",SUBSTITUTE(A18,"'",""))-FIND("]",SUBSTITUTE(A18,"'",""))-1) -> Listy | D18: =MID(A18,SEARCH("$",A18),20) -> $B$8 | E18: FALSE
A19: =CELL("odkaz",'Hlavní list'!D26) -> '[12 - Kalkulačka_2024_09_30.xlsm]Hlavní list'!$D$26 | C19: Hlavní list | D19: $D$26 | E19: 1000000
A20: =CELL("odkaz",'Hlavní list'!D27) -> '[12 - Kalkulačka_2024_09_30.xlsm]Hlavní list'!$D$27 | C20: Hlavní list | D20: $D$27 | E20: 1000000
A21: =CELL("odkaz",'Hlavní list'!D28) -> '[12 - Kalkulačka_2024_09_30.xlsm]Hlavní list'!$D$28 | C21: Hlavní list | D21: $D$28 | E21: 1000000
A22: =CELL("odkaz",'Hlavní list'!D29) -> '[12 - Kalkulačka_2024_09_30.xlsm]Hlavní list'!$D$29 | C22: Hlavní list | D22: $D$29 | E22: 500000
A23: =CELL("odkaz",'Hlavní list'!D30) -> '[12 - Kalkulačka_2024_09_30.xlsm]Hlavní list'!$D$30 | C23: Hlavní list | D23: $D$30 | E23: 1000000
A24: =CELL("odkaz",Zateplení!F4) -> '[12 - Kalkulačka_2024_09_30.xlsm]Zateplení'!$F$4 | C24: Zateplení | D24: $F$4 | E24: Obecné zadaní projektu (vyplnění Kalkulačky)
A25: =CELL("odkaz",Zateplení!F5) -> '[12 - Kalkulačka_2024_09_30.xlsm]Zateplení'!$F$5 | C25: =MID(SUBSTITUTE(A25,"'",""),FIND("]",SUBSTITUTE(A25,"'",""))+1,FIND("!",SUBSTITUTE(A25,"'",""))-FIND("]",SUBSTITUTE(A25,"'",""))-1) -> Zateplení | D25: =MID(A25,SEARCH("$",A25),20) -> $F$5
A26: =CELL("odkaz",Zateplení!F6) -> '[12 - Kalkulačka_2024_09_30.xlsm]Zateplení'!$F$6 | C26: Zateplení | D26: $F$6 | E26: Výrobní hala
A27: =CELL("odkaz",Zateplení!F7) -> '[12 - Kalkulačka_2024_09_30.xlsm]Zateplení'!$F$7 | C27: Zateplení | D27: $F$7 | E27: ne
A28: =CELL("odkaz",Zateplení!F8) -> '[12 - Kalkulačka_2024_09_30.xlsm]Zateplení'!$F$8 | C28: =MID(SUBSTITUTE(A28,"'",""),FIND("]",SUBSTITUTE(A28,"'",""))+1,FIND("!",SUBSTITUTE(A28,"'",""))-FIND("]",SUBSTITUTE(A28,"'",""))-1) -> Zateplení | D28: =MID(A28,SEARCH("$",A28),20) -> $F$8 | E28: ne
A29: =CELL("odkaz",Zateplení!F9) -> '[12 - Kalkulačka_2024_09_30.xlsm]Zateplení'!$F$9 | C29: Zateplení | D29: $F$9
A30: =CELL("odkaz",Zateplení!F10) -> '[12 - Kalkulačka_2024_09_30.xlsm]Zateplení'!$F$10 | C30: Zateplení | D30: $F$10 | E30: 400
A31: =CELL("odkaz",Zateplení!F11) -> '[12 - Kalkulačka_2024_09_30.xlsm]Zateplení'!$F$11 | C31: Zateplení | D31: $F$11 | E31: 1961 až 1980
A32: =CELL("odkaz",Zateplení!F12) -> '[12 - Kalkulačka_2024_09_30.xlsm]Zateplení'!$F$12 | C32: Zateplení | D32: $F$12 | E32: 18
A33: =CELL("odkaz",Zateplení!F13) -> '[12 - Kalkulačka_2024_09_30.xlsm]Zateplení'!$F$13 | C33: Zateplení | D33: $F$13 | E33: kotel na zemní plyn
A34: =CELL("odkaz",Zateplení!F14) -> '[12 - Kalkulačka_2024_09_30.xlsm]Zateplení'!$F$14 | C34: Zateplení | D34: $F$14
A35: =CELL("odkaz",Zateplení!F15) -> '[12 - Kalkulačka_2024_09_30.xlsm]Zateplení'!$F$15 | C35: Zateplení | D35: $F$15
A36: =CELL("odkaz",Zateplení!F17) -> '[12 - Kalkulačka_2024_09_30.xlsm]Zateplení'!$F$17 | C36: Zateplení | D36: $F$17
A37: =CELL("odkaz",Zateplení!F18) -> '[12 - Kalkulačka_2024_09_30.xlsm]Zateplení'!$F$18 | C37: Zateplení | D37: $F$18
A38: =CELL("odkaz",Zateplení!F19) -> '[12 - Kalkulačka_2024_09_30.xlsm]Zateplení'!$F$19 | C38: Zateplení | D38: $F$19
A39: =CELL("odkaz",Zateplení!F20) -> '[12 - Kalkulačka_2024_09_30.xlsm]Zateplení'!$F$20 | C39: Zateplení | D39: $F$20
A40: =CELL("odkaz",Zateplení!F21) -> '[12 - Kalkulačka_2024_09_30.xlsm]Zateplení'!$F$21 | C40: Zateplení | D40: $F$21
A41: =CELL("odkaz",Zateplení!F22) -> '[12 - Kalkulačka_2024_09_30.xlsm]Zateplení'!$F$22 | C41: Zateplení | D41: $F$22
A42: =CELL("odkaz",Zateplení!F26) -> '[12 - Kalkulačka_2024_09_30.xlsm]Zateplení'!$F$26 | C42: Zateplení | D42: $F$26 | E42: zdivo z děrovaných cihel a tvárnic tloušťky cca 300 mm
A43: =CELL("odkaz",Zateplení!F27) -> '[12 - Kalkulačka_2024_09_30.xlsm]Zateplení'!$F$27 | C43: =MID(SUBSTITUTE(A43,"'",""),FIND("]",SUBSTITUTE(A43,"'",""))+1,FIND("!",SUBSTITUTE(A43,"'",""))-FIND("]",SUBSTITUTE(A43,"'",""))-1) -> Zateplení | D43: =MID(A43,SEARCH("$",A43),20) -> $F$27 | E43: 500
A44: =CELL("odkaz",Zateplení!F28) -> '[12 - Kalkulačka_2024_09_30.xlsm]Zateplení'!$F$28 | C44: Zateplení | D44: $F$28 | E44: plochá střecha
A45: =CELL("odkaz",Zateplení!F29) -> '[12 - Kalkulačka_2024_09_30.xlsm]Zateplení'!$F$29 | C45: Zateplení | D45: $F$29 | E45: plochá jednoplášťová střecha s tepelnou izolací z polystyrénu tl. 50 mm
A46: =CELL("odkaz",Zateplení!F30) -> '[12 - Kalkulačka_2024_09_30.xlsm]Zateplení'!$F$30 | C46: =MID(SUBSTITUTE(A46,"'",""),FIND("]",SUBSTITUTE(A46,"'",""))+1,FIND("!",SUBSTITUTE(A46,"'",""))-FIND("]",SUBSTITUTE(A46,"'",""))-1) -> Zateplení | D46: =MID(A46,SEARCH("$",A46),20) -> $F$30 | E46: 400
A47: =CELL("odkaz",Zateplení!F31) -> '[12 - Kalkulačka_2024_09_30.xlsm]Zateplení'!$F$31 | C47: Zateplení | D47: $F$31 | E47: podlaha na zemině
A48: =CELL("odkaz",Zateplení!F32) -> '[12 - Kalkulačka_2024_09_30.xlsm]Zateplení'!$F$32 | C48: Zateplení | D48: $F$32 | E48: podlaha na zemině nezateplená
A49: =CELL("odkaz",Zateplení!F33) -> '[12 - Kalkulačka_2024_09_30.xlsm]Zateplení'!$F$33 | C49: =MID(SUBSTITUTE(A49,"'",""),FIND("]",SUBSTITUTE(A49,"'",""))+1,FIND("!",SUBSTITUTE(A49,"'",""))-FIND("]",SUBSTITUTE(A49,"'",""))-1) -> Zateplení | D49: =MID(A49,SEARCH("$",A49),20) -> $F$33 | E49: 400
A50: =CELL("odkaz",Zateplení!F34) -> '[12 - Kalkulačka_2024_09_30.xlsm]Zateplení'!$F$34 | C50: Zateplení | D50: $F$34 | E50: okna dřevěná zdvojená se 2 skly
A51: =CELL("odkaz",Zateplení!F35) -> '[12 - Kalkulačka_2024_09_30.xlsm]Zateplení'!$F$35 | C51: =MID(SUBSTITUTE(A51,"'",""),FIND("]",SUBSTITUTE(A51,"'",""))+1,FIND("!",SUBSTITUTE(A51,"'",""))-FIND("]",SUBSTITUTE(A51,"'",""))-1) -> Zateplení | D51: =MID(A51,SEARCH("$",A51),20) -> $F$35 | E51: 70
A52: =CELL("odkaz",Zateplení!F36) -> '[12 - Kalkulačka_2024_09_30.xlsm]Zateplení'!$F$36 | C52: Zateplení | D52: $F$36 | E52: dveře/vrata kovová plná
A53: =CELL("odkaz",Zateplení!F37) -> '[12 - Kalkulačka_2024_09_30.xlsm]Zateplení'!$F$37 | C53: =MID(SUBSTITUTE(A53,"'",""),FIND("]",SUBSTITUTE(A53,"'",""))+1,FIND("!",SUBSTITUTE(A53,"'",""))-FIND("]",SUBSTITUTE(A53,"'",""))-1) -> Zateplení | D53: =MID(A53,SEARCH("$",A53),20) -> $F$37 | E53: 30
A54: =CELL("odkaz",Zateplení!F38) -> '[12 - Kalkulačka_2024_09_30.xlsm]Zateplení'!$F$38 | C54: Zateplení | D54: $F$38
A55: =CELL("odkaz",Zateplení!F39) -> '[12 - Kalkulačka_2024_09_30.xlsm]Zateplení'!$F$39 | C55: =MID(SUBSTITUTE(A55,"'",""),FIND("]",SUBSTITUTE(A55,"'",""))+1,FIND("!",SUBSTITUTE(A55,"'",""))-FIND("]",SUBSTITUTE(A55,"'",""))-1) -> Zateplení | D55: =MID(A55,SEARCH("$",A55),20) -> $F$39
A56: =CELL("odkaz",Zateplení!F42) -> '[12 - Kalkulačka_2024_09_30.xlsm]Zateplení'!$F$42 | C56: Zateplení | D56: $F$42 | E56: ano
A57: =CELL("odkaz",Zateplení!F43) -> '[12 - Kalkulačka_2024_09_30.xlsm]Zateplení'!$F$43 | C57: Zateplení | D57: $F$43 | E57: zateplení kontaktní systém, EPS
A58: =CELL("odkaz",Zateplení!F44) -> '[12 - Kalkulačka_2024_09_30.xlsm]Zateplení'!$F$44 | C58: Zateplení | D58: $F$44 | E58: 280
A59: =CELL("odkaz",Zateplení!F45) -> '[12 - Kalkulačka_2024_09_30.xlsm]Zateplení'!$F$45 | C59: Zateplení | D59: $F$45 | E59: 500
A60: =CELL("odkaz",Zateplení!F46) -> '[12 - Kalkulačka_2024_09_30.xlsm]Zateplení'!$F$46 | C60: Zateplení | D60: $F$46
A61: =CELL("odkaz",Zateplení!F50) -> '[12 - Kalkulačka_2024_09_30.xlsm]Zateplení'!$F$50 | C61: Zateplení | D61: $F$50 | E61: ano
A62: =CELL("odkaz",Zateplení!F51) -> '[12 - Kalkulačka_2024_09_30.xlsm]Zateplení'!$F$51 | C62: Zateplení | D62: $F$51 | E62: zateplení ploché střechy, EPS
A63: =CELL("odkaz",Zateplení!F52) -> '[12 - Kalkulačka_2024_09_30.xlsm]Zateplení'!$F$52 | C63: Zateplení | D63: $F$52 | E63: 380
A64: =CELL("odkaz",Zateplení!F53) -> '[12 - Kalkulačka_2024_09_30.xlsm]Zateplení'!$F$53 | C64: Zateplení | D64: $F$53 | E64: 400
A65: =CELL("odkaz",Zateplení!F54) -> '[12 - Kalkulačka_2024_09_30.xlsm]Zateplení'!$F$54 | C65: Zateplení | D65: $F$54
A66: =CELL("odkaz",Zateplení!F58) -> '[12 - Kalkulačka_2024_09_30.xlsm]Zateplení'!$F$58 | C66: Zateplení | D66: $F$58 | E66: ne
A67: =CELL("odkaz",Zateplení!F59) -> '[12 - Kalkulačka_2024_09_30.xlsm]Zateplení'!$F$59 | C67: Zateplení | D67: $F$59 | E67: zateplení v konstrukci podlahy, EPS
A68: =CELL("odkaz",Zateplení!F60) -> '[12 - Kalkulačka_2024_09_30.xlsm]Zateplení'!$F$60 | C68: Zateplení | D68: $F$60 | E68: 200
A69: =CELL("odkaz",Zateplení!F61) -> '[12 - Kalkulačka_2024_09_30.xlsm]Zateplení'!$F$61 | C69: Zateplení | D69: $F$61 | E69: 400
A70: =CELL("odkaz",Zateplení!F62) -> '[12 - Kalkulačka_2024_09_30.xlsm]Zateplení'!$F$62 | C70: =MID(SUBSTITUTE(A70,"'",""),FIND("]",SUBSTITUTE(A70,"'",""))+1,FIND("!",SUBSTITUTE(A70,"'",""))-FIND("]",SUBSTITUTE(A70,"'",""))-1) -> Zateplení | D70: =MID(A70,SEARCH("$",A70),20) -> $F$62
A71: =CELL("odkaz",Zateplení!F66) -> '[12 - Kalkulačka_2024_09_30.xlsm]Zateplení'!$F$66 | C71: Zateplení | D71: $F$66 | E71: ano
A72: =CELL("odkaz",Zateplení!F67) -> '[12 - Kalkulačka_2024_09_30.xlsm]Zateplení'!$F$67 | C72: Zateplení | D72: $F$67 | E72: plastová s izolačním trojsklem
A73: =CELL("odkaz",Zateplení!F68) -> '[12 - Kalkulačka_2024_09_30.xlsm]Zateplení'!$F$68 | C73: Zateplení | D73: $F$68 | E73: 70
A74: =CELL("odkaz",Zateplení!F69) -> '[12 - Kalkulačka_2024_09_30.xlsm]Zateplení'!$F$69 | C74: Zateplení | D74: $F$69 | E74: 0.8
A75: =CELL("odkaz",Zateplení!F72) -> '[12 - Kalkulačka_2024_09_30.xlsm]Zateplení'!$F$72 | C75: Zateplení | D75: $F$72 | E75: ano
A76: =CELL("odkaz",Zateplení!F73) -> '[12 - Kalkulačka_2024_09_30.xlsm]Zateplení'!$F$73 | C76: Zateplení | D76: $F$73 | E76: vrata tepelně izolační
A77: =CELL("odkaz",Zateplení!F74) -> '[12 - Kalkulačka_2024_09_30.xlsm]Zateplení'!$F$74 | C77: Zateplení | D77: $F$74 | E77: 30
A78: =CELL("odkaz",Zateplení!F75) -> '[12 - Kalkulačka_2024_09_30.xlsm]Zateplení'!$F$75 | C78: Zateplení | D78: $F$75 | E78: 1
A79: =CELL("odkaz",Zateplení!F78) -> '[12 - Kalkulačka_2024_09_30.xlsm]Zateplení'!$F$78 | C79: Zateplení | D79: $F$78
A80: =CELL("odkaz",Zateplení!F79) -> '[12 - Kalkulačka_2024_09_30.xlsm]Zateplení'!$F$79 | C80: Zateplení | D80: $F$79
A81: =CELL("odkaz",Zateplení!F80) -> '[12 - Kalkulačka_2024_09_30.xlsm]Zateplení'!$F$80 | C81: Zateplení | D81: $F$80
A82: =CELL("odkaz",Zateplení!F81) -> '[12 - Kalkulačka_2024_09_30.xlsm]Zateplení'!$F$81 | C82: Zateplení | D82: $F$81
A83: =CELL("odkaz",Rekuperace!D4) -> '[12 - Kalkulačka_2024_09_30.xlsm]Rekuperace'!$D$4 | C83: Rekuperace | D83: $D$4 | E83: 0.85
A84: =CELL("odkaz",Rekuperace!D5) -> '[12 - Kalkulačka_2024_09_30.xlsm]Rekuperace'!$D$5 | C84: Rekuperace | D84: $D$5 | E84: 1500
A85: =CELL("odkaz",Rekuperace!D6) -> '[12 - Kalkulačka_2024_09_30.xlsm]Rekuperace'!$D$6 | C85: Rekuperace | D85: $D$6
A86: =CELL("odkaz",Osvětlení!E4) -> '[12 - Kalkulačka_2024_09_30.xlsm]Osvětlení'!$E$4 | C86: Osvětlení | D86: $E$4 | E86: ne
A87: =CELL("odkaz",Osvětlení!E5) -> '[12 - Kalkulačka_2024_09_30.xlsm]Osvětlení'!$E$5 | C87: Osvětlení | D87: $E$5
A88: =CELL("odkaz",Osvětlení!E6) -> '[12 - Kalkulačka_2024_09_30.xlsm]Osvětlení'!$E$6 | C88: Osvětlení | D88: $E$6
A89: =CELL("odkaz",Osvětlení!E7) -> '[12 - Kalkulačka_2024_09_30.xlsm]Osvětlení'!$E$7 | C89: Osvětlení | D89: $E$7
A90: =CELL("odkaz",Osvětlení!E8) -> '[12 - Kalkulačka_2024_09_30.xlsm]Osvětlení'!$E$8 | C90: Osvětlení | D90: $E$8
A91: =CELL("odkaz",Osvětlení!E10) -> '[12 - Kalkulačka_2024_09_30.xlsm]Osvětlení'!$E$10 | C91: Osvětlení | D91: $E$10 | E91: ne
A92: =CELL("odkaz",Osvětlení!E11) -> '[12 - Kalkulačka_2024_09_30.xlsm]Osvětlení'!$E$11 | C92: Osvětlení | D92: $E$11
A93: =CELL("odkaz",Osvětlení!E12) -> '[12 - Kalkulačka_2024_09_30.xlsm]Osvětlení'!$E$12 | C93: Osvětlení | D93: $E$12
A94: =CELL("odkaz",Osvětlení!E13) -> '[12 - Kalkulačka_2024_09_30.xlsm]Osvětlení'!$E$13 | C94: Osvětlení | D94: $E$13
A95: =CELL("odkaz",Osvětlení!E14) -> '[12 - Kalkulačka_2024_09_30.xlsm]Osvětlení'!$E$14 | C95: Osvětlení | D95: $E$14
A96: =CELL("odkaz",Osvětlení!E16) -> '[12 - Kalkulačka_2024_09_30.xlsm]Osvětlení'!$E$16 | C96: Osvětlení | D96: $E$16 | E96: ne
A97: =CELL("odkaz",Osvětlení!E17) -> '[12 - Kalkulačka_2024_09_30.xlsm]Osvětlení'!$E$17 | C97: Osvětlení | D97: $E$17
A98: =CELL("odkaz",Osvětlení!E18) -> '[12 - Kalkulačka_2024_09_30.xlsm]Osvětlení'!$E$18 | C98: Osvětlení | D98: $E$18
A99: =CELL("odkaz",Osvětlení!E19) -> '[12 - Kalkulačka_2024_09_30.xlsm]Osvětlení'!$E$19 | C99: Osvětlení | D99: $E$19
A100: =CELL("odkaz",Osvětlení!E20) -> '[12 - Kalkulačka_2024_09_30.xlsm]Osvětlení'!$E$20 | C100: Osvětlení | D100: $E$20
A101: =CELL("odkaz",Osvětlení!E22) -> '[12 - Kalkulačka_2024_09_30.xlsm]Osvětlení'!$E$22 | C101: Osvětlení | D101: $E$22 | E101: ano
A102: =CELL("odkaz",Osvětlení!E23) -> '[12 - Kalkulačka_2024_09_30.xlsm]Osvětlení'!$E$23 | C102: Osvětlení | D102: $E$23 | E102: 10
A103: =CELL("odkaz",Osvětlení!E24) -> '[12 - Kalkulačka_2024_09_30.xlsm]Osvětlení'!$E$24 | C103: Osvětlení | D103: $E$24 | E103: ne
A104: =CELL("odkaz",Osvětlení!E25) -> '[12 - Kalkulačka_2024_09_30.xlsm]Osvětlení'!$E$25 | C104: Osvětlení | D104: $E$25
A105: =CELL("odkaz",Osvětlení!E26) -> '[12 - Kalkulačka_2024_09_30.xlsm]Osvětlení'!$E$26 | C105: Osvětlení | D105: $E$26 | E105: 500
A106: =CELL("odkaz",Osvětlení!E28) -> '[12 - Kalkulačka_2024_09_30.xlsm]Osvětlení'!$E$28 | C106: Osvětlení | D106: $E$28 | E106: ne
A107: =CELL("odkaz",Osvětlení!E29) -> '[12 - Kalkulačka_2024_09_30.xlsm]Osvětlení'!$E$29 | C107: Osvětlení | D107: $E$29
A108: =CELL("odkaz",Osvětlení!E30) -> '[12 - Kalkulačka_2024_09_30.xlsm]Osvětlení'!$E$30 | C108: Osvětlení | D108: $E$30
A109: =CELL("odkaz",Osvětlení!E31) -> '[12 - Kalkulačka_2024_09_30.xlsm]Osvětlení'!$E$31 | C109: Osvětlení | D109: $E$31
A110: =CELL("odkaz",Osvětlení!E32) -> '[12 - Kalkulačka_2024_09_30.xlsm]Osvětlení'!$E$32 | C110: Osvětlení | D110: $E$32
A111: =CELL("odkaz",Osvětlení!E35) -> '[12 - Kalkulačka_2024_09_30.xlsm]Osvětlení'!$E$35 | C111: Osvětlení | D111: $E$35 | E111: ne
A112: =CELL("odkaz",Osvětlení!E36) -> '[12 - Kalkulačka_2024_09_30.xlsm]Osvětlení'!$E$36 | C112: Osvětlení | D112: $E$36
A113: =CELL("odkaz",Osvětlení!E37) -> '[12 - Kalkulačka_2024_09_30.xlsm]Osvětlení'!$E$37 | C113: Osvětlení | D113: $E$37 | E113: 8
A114: =CELL("odkaz",Osvětlení!E38) -> '[12 - Kalkulačka_2024_09_30.xlsm]Osvětlení'!$E$38 | C114: Osvětlení | D114: $E$38 | E114: 220
A115: =CELL("odkaz",Osvětlení!E40) -> '[12 - Kalkulačka_2024_09_30.xlsm]Osvětlení'!$E$40 | C115: Osvětlení | D115: $E$40
A116: =CELL("odkaz",Zdroj!E4) -> '[12 - Kalkulačka_2024_09_30.xlsm]Zdroj'!$E$4 | C116: Zdroj | D116: $E$4 | E116: kotel na zemní plyn
A117: =CELL("odkaz",Zdroj!E5) -> '[12 - Kalkulačka_2024_09_30.xlsm]Zdroj'!$E$5 | C117: Zdroj | D117: $E$5 | E117: 2000-2010
A118: =CELL("odkaz",Zdroj!E6) -> '[12 - Kalkulačka_2024_09_30.xlsm]Zdroj'!$E$6 | C118: Zdroj | D118: $E$6
A119: =CELL("odkaz",Zdroj!E7) -> '[12 - Kalkulačka_2024_09_30.xlsm]Zdroj'!$E$7 | C119: Zdroj | D119: $E$7
A120: =CELL("odkaz",Zdroj!E8) -> '[12 - Kalkulačka_2024_09_30.xlsm]Zdroj'!$E$8 | C120: Zdroj | D120: $E$8 | E120: 10000
A121: =CELL("odkaz",Zdroj!E9) -> '[12 - Kalkulačka_2024_09_30.xlsm]Zdroj'!$E$9 | C121: Zdroj | D121: $E$9 | E121: ne
A122: =CELL("odkaz",Zdroj!E10) -> '[12 - Kalkulačka_2024_09_30.xlsm]Zdroj'!$E$10 | C122: Zdroj | D122: $E$10
A123: =CELL("odkaz",Zdroj!E11) -> '[12 - Kalkulačka_2024_09_30.xlsm]Zdroj'!$E$11 | C123: Zdroj | D123: $E$11
A124: =CELL("odkaz",Zdroj!E12) -> '[12 - Kalkulačka_2024_09_30.xlsm]Zdroj'!$E$12 | C124: Zdroj | D124: $E$12
A125: =CELL("odkaz",Zdroj!E13) -> '[12 - Kalkulačka_2024_09_30.xlsm]Zdroj'!$E$13 | C125: Zdroj | D125: $E$13 | E125: 50
A126: =CELL("odkaz",Zdroj!E16) -> '[12 - Kalkulačka_2024_09_30.xlsm]Zdroj'!$E$16 | C126: Zdroj | D126: $E$16 | E126: tepelné čerpadlo
A127: =CELL("odkaz",Zdroj!E17) -> '[12 - Kalkulačka_2024_09_30.xlsm]Zdroj'!$E$17 | C127: Zdroj | D127: $E$17
A128: =CELL("odkaz",Zdroj!E18) -> '[12 - Kalkulačka_2024_09_30.xlsm]Zdroj'!$E$18 | C128: Zdroj | D128: $E$18
A129: =CELL("odkaz",Zdroj!E19) -> '[12 - Kalkulačka_2024_09_30.xlsm]Zdroj'!$E$19 | C129: Zdroj | D129: $E$19 | E129: 25
A130: =CELL("odkaz",Zdroj!E20) -> '[12 - Kalkulačka_2024_09_30.xlsm]Zdroj'!$E$20 | C130: Zdroj | D130: $E$20 | E130: ano
A131: =CELL("odkaz",Zdroj!E21) -> '[12 - Kalkulačka_2024_09_30.xlsm]Zdroj'!$E$21 | C131: Zdroj | D131: $E$21 | E131: 4
A132: =CELL("odkaz",Zdroj!E24) -> '[12 - Kalkulačka_2024_09_30.xlsm]Zdroj'!$E$24 | C132: Zdroj | D132: $E$24
A133: =CELL("odkaz",FVE!E4) -> '[12 - Kalkulačka_2024_09_30.xlsm]FVE'!$E$4 | C133: FVE | D133: $E$4 | E133: 20
A134: =CELL("odkaz",FVE!E5) -> '[12 - Kalkulačka_2024_09_30.xlsm]FVE'!$E$5 | C134: =MID(SUBSTITUTE(A134,"'",""),FIND("]",SUBSTITUTE(A134,"'",""))+1,FIND("!",SUBSTITUTE(A134,"'",""))-FIND("]",SUBSTITUTE(A134,"'",""))-1) -> FVE | D134: =MID(A134,SEARCH("$",A134),20) -> $E$5 | E134: 20000
A135: =CELL("odkaz",FVE!E6) -> '[12 - Kalkulačka_2024_09_30.xlsm]FVE'!$E$6 | C135: FVE | D135: $E$6 | E135: ano
A136: =CELL("odkaz",FVE!E7) -> '[12 - Kalkulačka_2024_09_30.xlsm]FVE'!$E$7 | C136: FVE | D136: $E$7 | E136: 30
A137: =CELL("odkaz",FVE!E8) -> '[12 - Kalkulačka_2024_09_30.xlsm]FVE'!$E$8 | C137: FVE | D137: $E$8 | E137: 30000
A138: =CELL("odkaz",Protokol!F18) -> '[12 - Kalkulačka_2024_09_30.xlsm]Protokol'!$F$18 | C138: =MID(SUBSTITUTE(A138,"'",""),FIND("]",SUBSTITUTE(A138,"'",""))+1,FIND("!",SUBSTITUTE(A138,"'",""))-FIND("]",SUBSTITUTE(A138,"'",""))-1) -> Protokol | D138: =MID(A138,SEARCH("$",A138),20) -> $F$18 | E138: x
A139: =CELL("odkaz",Protokol!F19) -> '[12 - Kalkulačka_2024_09_30.xlsm]Protokol'!$F$19 | C139: Protokol | D139: $F$19 | E139: x
A140: =CELL("odkaz",Protokol!F20) -> '[12 - Kalkulačka_2024_09_30.xlsm]Protokol'!$F$20 | C140: Protokol | D140: $F$20
A141: =CELL("odkaz",Protokol!F21) -> '[12 - Kalkulačka_2024_09_30.xlsm]Protokol'!$F$21 | C141: Protokol | D141: $F$21
A142: =CELL("odkaz",Protokol!F24) -> '[12 - Kalkulačka_2024_09_30.xlsm]Protokol'!$F$24 | C142: Protokol | D142: $F$24
A143: =CELL("odkaz",Protokol!F25) -> '[12 - Kalkulačka_2024_09_30.xlsm]Protokol'!$F$25 | C143: Protokol | D143: $F$25
A144: =CELL("odkaz",Protokol!F26) -> '[12 - Kalkulačka_2024_09_30.xlsm]Protokol'!$F$26 | C144: Protokol | D144: $F$26 | E144: x
A145: =CELL("odkaz",Protokol!F28) -> '[12 - Kalkulačka_2024_09_30.xlsm]Protokol'!$F$28 | C145: Protokol | D145: $F$28
A146: =CELL("odkaz",Protokol!F29) -> '[12 - Kalkulačka_2024_09_30.xlsm]Protokol'!$F$29 | C146: Protokol | D146: $F$29
A147: =CELL("odkaz",Protokol!F30) -> '[12 - Kalkulačka_2024_09_30.xlsm]Protokol'!$F$30 | C147: Protokol | D147: $F$30 | E147: x
A148: =CELL("odkaz",Protokol!F31) -> '[12 - Kalkulačka_2024_09_30.xlsm]Protokol'!$F$31 | C148: Protokol | D148: $F$31
A149: =CELL("odkaz",Protokol!F32) -> '[12 - Kalkulačka_2024_09_30.xlsm]Protokol'!$F$32 | C149: Protokol | D149: $F$32
A150: =CELL("odkaz",Protokol!F33) -> '[12 - Kalkulačka_2024_09_30.xlsm]Protokol'!$F$33 | C150: Protokol | D150: $F$33 | E150: x
A151: =CELL("odkaz",Protokol!F34) -> '[12 - Kalkulačka_2024_09_30.xlsm]Protokol'!$F$34 | C151: Protokol | D151: $F$34 | E151: x
A152: =CELL("odkaz",Protokol!F35) -> '[12 - Kalkulačka_2024_09_30.xlsm]Protokol'!$F$35 | C152: Protokol | D152: $F$35
A153: =CELL("odkaz",Protokol!F36) -> '[12 - Kalkulačka_2024_09_30.xlsm]Protokol'!$F$36 | C153: Protokol | D153: $F$36 | E153: x
A154: =CELL("odkaz",Protokol!F39) -> '[12 - Kalkulačka_2024_09_30.xlsm]Protokol'!$F$39 | C154: Protokol | D154: $F$39
A155: =CELL("odkaz",Protokol!F40) -> '[12 - Kalkulačka_2024_09_30.xlsm]Protokol'!$F$40 | C155: Protokol | D155: $F$40
A156: =CELL("odkaz",Protokol!F41) -> '[12 - Kalkulačka_2024_09_30.xlsm]Protokol'!$F$41 | C156: Protokol | D156: $F$41
A157: =CELL("odkaz",Protokol!F42) -> '[12 - Kalkulačka_2024_09_30.xlsm]Protokol'!$F$42 | C157: Protokol | D157: $F$42
A158: =CELL("odkaz",Protokol!F43) -> '[12 - Kalkulačka_2024_09_30.xlsm]Protokol'!$F$43 | C158: Protokol | D158: $F$43
A159: =CELL("odkaz",Protokol!F44) -> '[12 - Kalkulačka_2024_09_30.xlsm]Protokol'!$F$44 | C159: Protokol | D159: $F$44 | E159: x
A160: =CELL("odkaz",Protokol!F45) -> '[12 - Kalkulačka_2024_09_30.xlsm]Protokol'!$F$45 | C160: Protokol | D160: $F$45
A161: =CELL("odkaz",Protokol!F49) -> '[12 - Kalkulačka_2024_09_30.xlsm]Protokol'!$F$49 | C161: Protokol | D161: $F$49 | E161: x
A162: =CELL("odkaz",Protokol!F50) -> '[12 - Kalkulačka_2024_09_30.xlsm]Protokol'!$F$50 | C162: Protokol | D162: $F$50 | E162: x
A163: =CELL("odkaz",Protokol!F51) -> '[12 - Kalkulačka_2024_09_30.xlsm]Protokol'!$F$51 | C163: Protokol | D163: $F$51
A164: =CELL("odkaz",Protokol!F52) -> '[12 - Kalkulačka_2024_09_30.xlsm]Protokol'!$F$52 | C164: Protokol | D164: $F$52
A165: =CELL("odkaz",Protokol!F53) -> '[12 - Kalkulačka_2024_09_30.xlsm]Protokol'!$F$53 | C165: Protokol | D165: $F$53
A166: =CELL("odkaz",Protokol!G18) -> '[12 - Kalkulačka_2024_09_30.xlsm]Protokol'!$G$18 | C166: Protokol | D166: $G$18
A167: =CELL("odkaz",Protokol!G19) -> '[12 - Kalkulačka_2024_09_30.xlsm]Protokol'!$G$19 | C167: Protokol | D167: $G$19
A168: =CELL("odkaz",Protokol!G20) -> '[12 - Kalkulačka_2024_09_30.xlsm]Protokol'!$G$20 | C168: Protokol | D168: $G$20
A169: =CELL("odkaz",Protokol!G21) -> '[12 - Kalkulačka_2024_09_30.xlsm]Protokol'!$G$21 | C169: Protokol | D169: $G$21
A170: =CELL("odkaz",Protokol!G24) -> '[12 - Kalkulačka_2024_09_30.xlsm]Protokol'!$G$24 | C170: Protokol | D170: $G$24
A171: =CELL("odkaz",Protokol!G25) -> '[12 - Kalkulačka_2024_09_30.xlsm]Protokol'!$G$25 | C171: Protokol | D171: $G$25
A172: =CELL("odkaz",Protokol!G26) -> '[12 - Kalkulačka_2024_09_30.xlsm]Protokol'!$G$26 | C172: Protokol | D172: $G$26
A173: =CELL("odkaz",Protokol!G28) -> '[12 - Kalkulačka_2024_09_30.xlsm]Protokol'!$G$28 | C173: Protokol | D173: $G$28
A174: =CELL("odkaz",Protokol!G29) -> '[12 - Kalkulačka_2024_09_30.xlsm]Protokol'!$G$29 | C174: Protokol | D174: $G$29
A175: =CELL("odkaz",Protokol!G30) -> '[12 - Kalkulačka_2024_09_30.xlsm]Protokol'!$G$30 | C175: Protokol | D175: $G$30
A176: =CELL("odkaz",Protokol!G31) -> '[12 - Kalkulačka_2024_09_30.xlsm]Protokol'!$G$31 | C176: Protokol | D176: $G$31
A177: =CELL("odkaz",Protokol!G32) -> '[12 - Kalkulačka_2024_09_30.xlsm]Protokol'!$G$32 | C177: Protokol | D177: $G$32
A178: =CELL("odkaz",Protokol!G33) -> '[12 - Kalkulačka_2024_09_30.xlsm]Protokol'!$G$33 | C178: Protokol | D178: $G$33
A179: =CELL("odkaz",Protokol!G34) -> '[12 - Kalkulačka_2024_09_30.xlsm]Protokol'!$G$34 | C179: Protokol | D179: $G$34
A180: =CELL("odkaz",Protokol!G35) -> '[12 - Kalkulačka_2024_09_30.xlsm]Protokol'!$G$35 | C180: Protokol | D180: $G$35
A181: =CELL("odkaz",Protokol!G36) -> '[12 - Kalkulačka_2024_09_30.xlsm]Protokol'!$G$36 | C181: Protokol | D181: $G$36
A182: =CELL("odkaz",Protokol!G39) -> '[12 - Kalkulačka_2024_09_30.xlsm]Protokol'!$G$39 | C182: Protokol | D182: $G$39
A183: =CELL("odkaz",Protokol!G40) -> '[12 - Kalkulačka_2024_09_30.xlsm]Protokol'!$G$40 | C183: Protokol | D183: $G$40
A184: =CELL("odkaz",Protokol!G41) -> '[12 - Kalkulačka_2024_09_30.xlsm]Protokol'!$G$41 | C184: Protokol | D184: $G$41
A185: =CELL("odkaz",Protokol!G42) -> '[12 - Kalkulačka_2024_09_30.xlsm]Protokol'!$G$42 | C185: Protokol | D185: $G$42
A186: =CELL("odkaz",Protokol!G43) -> '[12 - Kalkulačka_2024_09_30.xlsm]Protokol'!$G$43 | C186: Protokol | D186: $G$43
A187: =CELL("odkaz",Protokol!G44) -> '[12 - Kalkulačka_2024_09_30.xlsm]Protokol'!$G$44 | C187: Protokol | D187: $G$44
A188: =CELL("odkaz",Protokol!G45) -> '[12 - Kalkulačka_2024_09_30.xlsm]Protokol'!$G$45 | C188: Protokol | D188: $G$45
A189: =CELL("odkaz",Protokol!G49) -> '[12 - Kalkulačka_2024_09_30.xlsm]Protokol'!$G$49 | C189: Protokol | D189: $G$49
A190: =CELL("odkaz",Protokol!G50) -> '[12 - Kalkulačka_2024_09_30.xlsm]Protokol'!$G$50 | C190: Protokol | D190: $G$50
A191: =CELL("odkaz",Protokol!G51) -> '[12 - Kalkulačka_2024_09_30.xlsm]Protokol'!$G$51 | C191: Protokol | D191: $G$51
A192: =CELL("odkaz",Protokol!G52) -> '[12 - Kalkulačka_2024_09_30.xlsm]Protokol'!$G$52 | C192: Protokol | D192: $G$52
A193: =CELL("odkaz",Protokol!G53) -> '[12 - Kalkulačka_2024_09_30.xlsm]Protokol'!$G$53 | C193: Protokol | D193: $G$53
A194: =CELL("odkaz",Protokol!H20) -> '[12 - Kalkulačka_2024_09_30.xlsm]Protokol'!$H$20 | C194: Protokol | D194: $H$20 | E194: x
A195: =CELL("odkaz",Protokol!H21) -> '[12 - Kalkulačka_2024_09_30.xlsm]Protokol'!$H$21 | C195: Protokol | D195: $H$21 | E195: x
A196: =CELL("odkaz",Protokol!H28) -> '[12 - Kalkulačka_2024_09_30.xlsm]Protokol'!$H$28 | C196: Protokol | D196: $H$28 | E196: x
A197: =CELL("odkaz",Protokol!H29) -> '[12 - Kalkulačka_2024_09_30.xlsm]Protokol'!$H$29 | C197: Protokol | D197: $H$29 | E197: x
A198: =CELL("odkaz",Protokol!H30) -> '[12 - Kalkulačka_2024_09_30.xlsm]Protokol'!$H$30 | C198: Protokol | D198: $H$30
A199: =CELL("odkaz",Protokol!H31) -> '[12 - Kalkulačka_2024_09_30.xlsm]Protokol'!$H$31 | C199: Protokol | D199: $H$31 | E199: x
A200: =CELL("odkaz",Protokol!H32) -> '[12 - Kalkulačka_2024_09_30.xlsm]Protokol'!$H$32 | C200: Protokol | D200: $H$32
A201: =CELL("odkaz",Protokol!H33) -> '[12 - Kalkulačka_2024_09_30.xlsm]Protokol'!$H$33 | C201: Protokol | D201: $H$33
... 15 more rows

Sheet Bilance (hidden)
A1: Spotřeby výchozí | B1: přepočet na původní palivo [kWh] | C1: přepočet na užitečné teplo [kWh] | E1: Přičíst úsporu z osvětlení | F1: Přičíst rekuperaci k zateplení
A2: Spotřeba z listu zdroj | B2: =IFERROR(Zdroj!E8*Nositele!E22/3.6*1000,0) -> 0 | C2: =KS_z_listu_kotel*ParametryZdroje!B16 -> 0 | E2: =AND(je_osvětlení,OR(NOT(JePENB),Osvětlení!I40=ne)) -> FALSE | F2: =AND(je_rekuperace,OR(NOT(JePENB),Rekuperace!H6=ne)) -> FALSE
A3: Spotřeba z listu zateplení zadaná | B3: =IFERROR(Zateplení!J9*Nositele!E25/3.6*1000,0) -> 0 | C3: =KS_zateplení_zadaná*IF(je_zdroj,ParametryZdroje!B16,ParametryZateplení!B46) -> 0
A4: Spotřeba z listu zateplení bez zadání | B4: =IFERROR((ParametryZateplení!$G$1*Zateplení!F10)/1000*3.6,0) -> 0 | C4: =B4*IF(je_zdroj,ParametryZdroje!B16,ParametryZateplení!B46) -> 0
A5: Spotřeba z listu zateplení před zateplením - PENB | B5: =Zateplení!$J$21 -> 0 | C5: =KS_PENB_před*IF(je_zdroj,ParametryZdroje!B16,ParametryZateplení!B46) -> 0
A6: Spotřeba z listu zateplení po zateplení - PENB | B6: =Zateplení!$J$19 -> 0 | C6: =B6*IF(je_zdroj,ParametryZdroje!B16,ParametryZateplení!B46) -> 0
A7: Spotřeba z konstrukcí před zateplením | B7: =IFERROR(US_konstrukce_před/IF(je_zdroj,ParametryZdroje!B16,ParametryZateplení!B46),0) -> 0 | C7: =Parametry!J15 -> 0
A8: Spotřeba z konstrukcí po zateplení | B8: =IFERROR(US_konstrukce_po/IF(je_zdroj,ParametryZdroje!B16,ParametryZateplení!B46),0) -> 0 | C8: =Parametry!K15 -> 0
A9: Úspora z konstrukcí | B9: =IFERROR(C9/IF(je_zdroj,ParametryZdroje!B16,ParametryZateplení!B46),0) -> 0 | C9: =Parametry!L15 -> 0
A10: Výchozí spotřeba osvětlení | B10: =IF(je_zdroj,Osvětlení!$D$44,0) -> 0
A11: Koncová spotřeba osvětlení | B11: =IF(je_zdroj,Osvětlení!$D$45,0) -> 0
A12: Výchozí celková spotřeba budovy | B12: =IF(JePENB,Zateplení!$J$21,MAX(Parametry!$B$4,(1+ParametryZateplení!H1+ParametryZateplení!I1)*Parametry!S15/Účinnost_stará)) ->  | C12: =C14+C13 -> 
A13: Výchozí spotřeba elektřiny | B13: =B12/(1+Globální!B15+ParametryZateplení!H1)*ParametryZateplení!H1 ->  | C13: =B13*Účinnost_stará -> 
A14: Výchozí spotřeba pro zateplení a rekuperaci | B14: =(B12-B13) ->  | C14: =B14*Účinnost_stará -> 
B17: Užitečná spotřeba | E17: Konečná spotřeba | H17: Spotřeba PEZ | K17: Emise CO2 | N17: Emise TZL | Q17: Emise PM10 | T17: Emise PM2,5 | W17: Náklady za energii
B18: Výchozí [kWh] | C18: Konečná [kWh] | D18: Úspora [kWh] | E18: Výchozí [kWh] | F18: Konečná [kWh] | G18: Úspora [kWh] | H18: Výchozí [kWh] | I18: Konečná [kWh] | J18: Úspora [kWh] | K18: Výchozí [kg] | L18: Konečné [kg] | M18: Úspora [kg] | N18: Výchozí [kg] | O18: Konečné [kg] | P18: Úspora [kg] | Q18: Výchozí [kg] | R18: Konečné [kg] | S18: Úspora [kg] | T18: Výchozí [kg] | U18: Konečné [kg] | V18: Úspora [kg] | W18: Výchozí [Kč] | X18: Konečné [Kč] | Y18: Úspora [Kč]
A19: Výchozí elektřina | B19: =$C$13 ->  | C19: =$C$13 ->  | D19: 0 | E19: =$B$13 ->  | F19: =$B$13 ->  | G19: 0 | H19: =E19*Primární!$B$7 ->  | I19: =F19*Primární!$B$7 ->  | J19: 0 | K19: =E19*3.6/1000*Nositele!$G$7 ->  | L19: =F19*3.6/1000*Nositele!$G$7 ->  | M19: 0 | N19: =E19*Nositele!$M$7 ->  | O19: =F19*Nositele!$M$7 ->  | P19: 0 | Q19: =N19*Nositele!$O$7 ->  | R19: =O19*Nositele!$O$7 ->  | S19: 0 | T19: =N19*Nositele!$P$7 ->  | U19: =O19*Nositele!$P$7 ->  | V19: 0 | W19: =E19*Nositele!$H$7 ->  | X19: =F19*Nositele!$H$7 ->  | Y19: 0
A20: Osvětlení | B20: =Osvětlení!$D$44*$Z$20*Účinnost_stará -> 0 | C20: =Osvětlení!$D$45*$Z$20*Účinnost_stará -> 0 | D20: =B20-C20 -> 0 | E20: =Osvětlení!$D$44*$Z$20 -> 0 | F20: =Osvětlení!$D$45*$Z$20 -> 0 | G20: =E20-F20 -> 0 | H20: =E20*Primární!$B$7*$Z$20 -> 0 | I20: =F20*Primární!$B$7*$Z$20 -> 0 | J20: =H20-I20 -> 0 | K20: =E20*3.6/1000*Nositele!$G$7*$Z$20 -> 0 | L20: =F20*3.6/1000*Nositele!$G$7*$Z$20 -> 0 | M20: 0 | N20: =E20*Nositele!$M$7*$Z$20 -> 0 | O20: =F20*Nositele!$M$7*$Z$20 -> 0 | P20: =N20-O20 -> 0 | Q20: =N20*Nositele!$O$7*$Z$20 -> 0 | R20: =O20*Nositele!$O$7*$Z$20 -> 0 | S20: =Q20-R20 -> 0 | T20: =N20*Nositele!$P$7*$Z$20 -> 0 | U20: =O20*Nositele!$P$7*$Z$20 -> 0 | V20: =T20-U20 -> 0 | W20: =E20*Nositele!$H$7*$Z$20 -> 0 | X20: =F20*Nositele!$H$7*$Z$20*$Z$20 -> 0 | Y20: =W20-X20 -> 0 | Z20: =IF(je_osvětlení,1,0) -> 0
A21: Konečná elektřina | B21: =MAX(B19:B20) ->  | C21: =B21-D20 ->  | D21: =D20 -> 0 | E21: =MAX(E19:E20) ->  | F21: =E21-G20 ->  | G21: =G20 -> 0 | H21: =MAX(H19:H20) ->  | I21: =H21-J20 ->  | J21: =J20 -> 0 | K21: =MAX(K19:K20) ->  | L21: =K21-M20 ->  | M21: =M20 -> 0 | N21: =MAX(N19:N20) ->  | O21: =N21-P20 ->  | P21: =P20 -> 0 | Q21: =MAX(Q19:Q20) ->  | R21: =Q21-S20 ->  | S21: =S20 -> 0 | T21: =MAX(T19:T20) ->  | U21: =T21-V20 ->  | V21: =V20 -> 0 | W21: =MAX(W19:W20) ->  | X21: =W21-Y20 ->  | Y21: =Y20 -> 0
A22: Rekuperace | B22: =Parametry!J14*$Z$22 -> 0 | C22: =Parametry!K14*$Z$22*IF(AND(je_zdroj,JePENB,Zdroj!E24=ano),Účinnost_stará/Účinnost_nová,1) -> 0 | D22: =Parametry!L14*$Z$22 -> 0 | E22: =IFERROR(B22/IF(je_zdroj,Zdroj_a_zateplení!E13,Jen_zateplení!D13),0)*$Z$22 -> 0 | F22: =IFERROR(C22/IF(je_zdroj,Zdroj_a_zateplení!E38,Jen_zateplení!D28),0)*$Z$22 -> 0 | G22: =E22-F22 -> 0 | H22: =E22*IF(je_zdroj,Zdroj_a_zateplení!F13,Jen_zateplení!E13)*$Z$22 -> 0 | I22: =F22*IF(je_zdroj,Zdroj_a_zateplení!F38,Jen_zateplení!E28)*$Z$22 -> 0 | J22: 0 | K22: =H22*kWh_na_GJ*IF(je_zdroj,Zdroj_a_zateplení!J13,Jen_zateplení!I13)*$Z$22 -> 0 | L22: =I22*kWh_na_GJ*IF(je_zdroj,Zdroj_a_zateplení!J38,Jen_zateplení!I28)*$Z$22 -> 0 | M22: 0 | N22: =IFERROR(E22*kWh_na_GJ/IF(je_zdroj,Zdroj_a_zateplení!D13,Jen_zateplení!C13)*IF(je_zdroj,Zdroj_a_zateplení!G13,Jen_zateplení!F13),0)*$Z$22 -> 0 | O22: =IFERROR(F22*kWh_na_GJ/IF(je_zdroj,Zdroj_a_zateplení!D38,Jen_zateplení!C28)*IF(je_zdroj,Zdroj_a_zateplení!G38,Jen_zateplení!F28),0)*$Z$22 -> 0 | P22: 0 | Q22: =N22*IF(je_zdroj,Zdroj_a_zateplení!G13,Jen_zateplení!G13)*$Z$22 -> 0 | R22: =O22*IF(je_zdroj,Zdroj_a_zateplení!H38,Jen_zateplení!G28)*$Z$22 -> 0 | S22: 0 | T22: =N22*IF(je_zdroj,Zdroj_a_zateplení!I13,Jen_zateplení!H13)*$Z$22 -> 0 | U22: =O22*IF(je_zdroj,Zdroj_a_zateplení!I38,Jen_zateplení!H28)*$Z$22 -> 0 | V22: 0 | W22: =IFERROR(E22*kWh_na_GJ/IF(je_zdroj,Zdroj_a_zateplení!D13,Jen_zateplení!C13)*IF(je_zdroj,Zdroj_a_zateplení!K13,Jen_zateplení!J13),0)*$Z$22 -> 0 | X22: =IFERROR(F22*kWh_na_GJ/IF(je_zdroj,Zdroj_a_zateplení!D38,Jen_zateplení!C28)*IF(je_zdroj,Zdroj_a_zateplení!K38,Jen_zateplení!J28),0)*$Z$22 -> 0 | Y22: =W22-X22 -> 0 | Z22: =IF(je_rekuperace,1,0) -> 0
A23: Zdroj | B23: =US_z_listu_kotel -> 0 | C23: =US_z_listu_kotel -> 0 | D23: =B23-C23 -> 0 | E23: =Jen_zdroj!M13 -> 0 | F23: =Jen_zdroj!M23 -> 0 | G23: 0 | H23: =Jen_zdroj!O13 -> 0 | I23: =Jen_zdroj!O23 -> 0 | J23: 0 | K23: =Jen_zdroj!R13 -> 0 | L23: =Jen_zdroj!R23 -> 0 | M23: 0 | N23: =Jen_zdroj!S13 -> 0 | O23: =Jen_zdroj!S23 -> 0 | P23: 0 | Q23: =Jen_zdroj!T13 -> 0 | R23: =Jen_zdroj!T23 -> 0 | S23: 0 | T23: =Jen_zdroj!U13 -> 0 | U23: =Jen_zdroj!U23 -> 0 | V23: 0 | W23: =Jen_zdroj!V13 -> 0 | X23: =Jen_zdroj!V23 -> 0 | Y23: =W23-X23 -> 0
A24: Zateplení | B24: =Parametry!$S$15 -> 0 | C24: =B24-Parametry!$L$15*IF(AND(je_zdroj,JePENB,Zdroj!E24=ano),Účinnost_stará/Účinnost_nová,1) -> 0 | D24: 0 | E24: =Jen_zateplení!L13 -> 0 | F24: =Jen_zateplení!$L$28 -> 0 | G24: =Jen_zateplení!$L$32 -> 0 | H24: =Jen_zateplení!$N$13 -> 0 | I24: =Jen_zateplení!$N$28 -> 0 | J24: =Jen_zateplení!$N$32 -> 0 | K24: =Jen_zateplení!$O$13 -> 0 | L24: =Jen_zateplení!$O$28 -> 0 | M24: =Jen_zateplení!$O$32 -> 0 | N24: =Jen_zateplení!$P$13 -> 0 | O24: =Jen_zateplení!$P$28 -> 0 | P24: =Jen_zateplení!$P$32 -> 0 | Q24: =Jen_zateplení!$Q$13 -> 0 | R24: =Jen_zateplení!$Q$28 -> 0 | S24: =Jen_zateplení!$Q$32 -> 0 | T24: =Jen_zdroj!U23 -> 0 | U24: =Jen_zateplení!$R$28 -> 0 | V24: =Jen_zateplení!$R$32 -> 0 | W24: =Jen_zateplení!$S$13 -> 0 | X24: =Jen_zateplení!$S$28 -> 0 | Y24: =Jen_zateplení!$S$32 -> 0
A25: Zateplení + zdroj | B25: =Parametry!$S$15 -> 0 | C25: =B25-Parametry!$L$15*IF(AND(je_zdroj,JePENB,Zdroj!E24=ano),Účinnost_stará/Účinnost_nová,1) -> 0 | D25: =B25-C25 -> 0 | E25: =Zdroj_a_zateplení!M13 -> 0 | F25: =Zdroj_a_zateplení!$M$42 -> 0 | G25: =Zdroj_a_zateplení!$M$47 -> 0 | H25: =Zdroj_a_zateplení!$O$13 -> 0 | I25: =Zdroj_a_zateplení!$O$42 -> 0 | J25: =Zdroj_a_zateplení!$O$47 -> 0 | K25: =Zdroj_a_zateplení!$R$13 -> 0 | L25: =Zdroj_a_zateplení!$R$42 -> 0 | M25: =Zdroj_a_zateplení!$R$47 -> 0 | N25: =Zdroj_a_zateplení!$S$13 -> 0 | O25: =Zdroj_a_zateplení!$S$42 -> 0 | P25: =Zdroj_a_zateplení!$S$47 -> 0 | Q25: =Zdroj_a_zateplení!$T$13 -> 0 | R25: =Zdroj_a_zateplení!$T$42 -> 0 | S25: =Zdroj_a_zateplení!$T$47 -> 0 | T25: =Zdroj_a_zateplení!$U$13 -> 0 | U25: =Zdroj_a_zateplení!$U$42 -> 0 | V25: =Zdroj_a_zateplení!$U$47 -> 0 | W25: =Zdroj_a_zateplení!$V$13 -> 0 | X25: =Zdroj_a_zateplení!$V$42 -> 0 | Y25: =Zdroj_a_zateplení!$V$47 -> 0
A27: Potřeba pro budovu | B27: =$C$14 ->  | C27: =C24 -> 0 | D27: =D24 -> 0 | E27: =B27/Účinnost_stará ->  | F27: =C28/Účinnost_nová+C29/Účinnost_stará -> 
A28: Zdroj dodá | B28: =IF(US_z_listu_kotel>B27,B27,US_z_listu_kotel) ->  | C28: =B28*C$27/B$27 ->  | E28: =IF(KS_z_listu_kotel>B27,B27,KS_z_listu_kotel) ->  | F28: =C28/Účinnost_nová -> 
A29: Pokryto jinými zdroji | B29: =IF(B27>B28,B27-B28,0) ->  | C29: =B29*C$27/B$27 ->  | E29: =IF(E27>E28,E27-E28,0) ->  | F29: =C29/Účinnost_stará -> 
A31: FVE | B31: 0 | C31: =-FVE!$I$5 -> 0 | D31: =B31-C31 -> 0 | E31: 0 | F31: =-FVE!$I$5 -> 0 | G31: =E31-F31 -> 0 | H31: 0 | I31: =-FVE!$I$5 -> 0 | J31: =H31-I31 -> 0 | K31: 0 | L31: =C31*Nositele!G7*3.6/1000 -> 0 | M31: =K31-L31 -> 0 | N31: 0 | O31: =C31*Nositele!M7 -> 0 | P31: =N31-O31 -> 0 | Q31: 0 | R31: =O31*Nositele!O7 -> 0 | S31: =Q31-R31 -> 0 | T31: 0 | U31: =O31*Nositele!P7 -> 0 | V31: =T31-U31 -> 0 | W31: 0 | X31: =C31*Nositele!H7 -> 0 | Y31: =W31-X31 -> 0
A33: Výsledek bez zdrojů | B33: =$C$12 ->  | C33: =C24+$C$13+$B$22-IF($E$2,D$20,0)-IF($F$2,D$22,0) ->  | D33: =B33-C33 ->  | E33: =IF(JePENB,KS_PENB_před,$B$12) ->  | F33: =IF(JePENB,B6,F24+B13+B22)-IF($E$2,G$20,0)-IF($F$2,G$22,0) ->  | G33: =E33-F33 ->  | H33: =H$19+$B$14*IF(je_zdroj,Zdroj_a_zateplení!$F$13,Jen_zateplení!$E$13) ->  | I33: =I24+H$19+H$22-IF($E$2,J$21,0)-IF($F$2,J$22,0) ->  | J33: =H33-I33 ->  | K33: =K19+K24+$B$14*IF(je_zdroj,Zdroj_a_zateplení!J13,Jen_zateplení!I13)*kWh_na_GJ ->  | L33: =L24+K$19+K$22-IF($E$2,M$21,0)-IF($F$2,M$22,0) ->  | M33: =K33-L33 ->  | N33: =IFERROR(N$19+$B$14*kWh_na_GJ*IF(je_zdroj,Zdroj_a_zateplení!$G$13,Jen_zateplení!$F$13)/IF(je_zdroj,Zdroj_a_zateplení!$D$13,Jen_zateplení!$C$13),0) -> 0 | O33: =O24+N$19+N$22-IF($E$2,P$21,0)-IF($F$2,P$22,0) ->  | P33: =N33-O33 ->  | Q33: =Q$19+N33*IF(je_zdroj,Zdroj_a_zateplení!$H$13,Jen_zateplení!$G$13) ->  | R33: =R24+Q$19+Q$22-IF($E$2,S$21,0)-IF($F$2,S$22,0) ->  | S33: =Q33-R33 ->  | T33: =T$19+N33*IF(je_zdroj,Zdroj_a_zateplení!$I$13,Jen_zateplení!$H$13) ->  | U33: =U24+T$19+T$22-IF($E$2,V$21,0)-IF($F$2,V$22,0) ->  | V33: =T33-U33 ->  | W33: =W$19+IFERROR($B$14*kWh_na_GJ/IF(je_zdroj,Zdroj_a_zateplení!$D$13,Jen_zateplení!$C$13)*IF(je_zdroj,Zdroj_a_zateplení!$K$13,Jen_zateplení!$J$13),0) ->  | X33: =X24+W$19+W$22-IF($E$2,Y$21,0)-IF($F$2,Y$22,0) ->  | Y33: =W33-X33 -> 
A34: Výsledek se zdroji | B34: =$C$12 ->  | C34: =$C$13+$B$22-IF($E$2,D$20,0)-IF($F$2,D$22,0)+C25 ->  | D34: =B34-C34 ->  | E34: =IF(JePENB,KS_PENB_před,$B$12) ->  | F34: =IF(JePENB,B6,F25+B13+B22)-IF($E$2,G$20,0)-IF($F$2,G$22,0)-IF(AND(je_zdroj,JePENB,Výjimka),G25,0) ->  | G34: =E34-F34 ->  | H34: =H$19+$B$14*IF(je_zdroj,Zdroj_a_zateplení!$F$13,Jen_zateplení!$E$13) ->  | I34: =IF(je_zdroj,I25,I24)+H$19+H$22-IF($E$2,J$20,0)-IF($F$2,J$22,0) ->  | J34: =H34-I34 ->  | K34: =K19+K25+$B$14*IF(je_zdroj,Zdroj_a_zateplení!J13,Jen_zateplení!I13)*kWh_na_GJ ->  | L34: =IF(je_zdroj,L25,L24)+K$19+K$22-IF($E$2,M$20,0)-IF($F$2,M$22,0) ->  | M34: =K34-L34 ->  | N34: =N$19+IFERROR($B$14*kWh_na_GJ/IF(je_zdroj,Zdroj_a_zateplení!$D$13,Jen_zateplení!$C$13)*IF(je_zdroj,Zdroj_a_zateplení!$G$13,Jen_zateplení!$F$13),0) ->  | O34: =IF(je_zdroj,O25,O24)+N$19+N$22-IF($E$2,P$20,0)-IF($F$2,P$22,0) ->  | P34: =N34-O34 ->  | Q34: =Q$19+N34*IF(je_zdroj,Zdroj_a_zateplení!$H$13,Jen_zateplení!$G$13) ->  | R34: =IF(je_zdroj,R25,R24)+Q$19+Q$22-IF($E$2,S$20,0)-IF($F$2,S$22,0) ->  | S34: =Q34-R34 ->  | T34: =T$19+N34*IF(je_zdroj,Zdroj_a_zateplení!$I$13,Jen_zateplení!$H$13) ->  | U34: =IF(je_zdroj,U25,U24)+T$19+T$22-IF($E$2,V$20,0)-IF($F$2,V$22,0) ->  | V34: =T34-U34 ->  | W34: =W$19+IFERROR($B$14*kWh_na_GJ/IF(je_zdroj,Zdroj_a_zateplení!$D$13,Jen_zateplení!$C$13)*IF(je_zdroj,Zdroj_a_zateplení!$K$13,Jen_zateplení!$J$13),0) ->  | X34: =IF(je_zdroj,X25,X24)+W$19+W$22-IF($E$2,Y$20,0)-IF($F$2,Y$22,0) ->  | Y34: =W34-X34 -> 
A35: Výsledek se zdroji + FVE | B35: =B34+IF(je_FVE,B31,0) -> 

Sheet Globální (hidden)
A1: Je PENB | B1: =ZpůsobVýpočtu=2 -> FALSE | E1: =IFERROR(MATCH('Hlavní list'!D15,TPodpora[Podpora],0),0) -> 0
A2: ano | E2: Podpora
A3: ne | E3: de minimis
A4: kWh => GJ | B4: 0.0036 | E4: bloková výjimka
A5: Stará účinnost | B5: =IF(je_zdroj,ParametryZdroje!B16,EtaZdrBudova) -> 0
A6: Nová účinnost | B6: =IF(je_zdroj,ParametryZdroje!B36,EtaZdrBudova) -> 0
A7: Typ SZT | B7: =IF(je_zdroj,ParametryZdroje!K6,ParametryZateplení!I18) -> 0
A8: Maximální investice | B8: 5000000
A9: Maximální podíl FVE na úspoře KS projektu | B9: 0.3
A11: Kontrola | B11: =AND(OR(NOT(je_zdroj),Zdroj!L26),OR(NOT(je_zateplení),AND(JePENB,Výjimka,Zateplení!M21),AND(Zateplení!M81,NOT(Zateplení!I86))),OR(NOT(je_rekuperace),Rekuperace!K6),OR(NOT(je_osvětlení),Osvětlení!L41),OR(NOT(je_FVE),FVE!L8)) -> FALSE
A12: Způsobilost | B12: =NOT(OR(Zateplení!N26:N83,Rekuperace!L4:L6,Zdroj!M4:M24,FVE!M4:M9,'Hlavní list'!I72,'Hlavní list'!I73:I83)) -> FALSE
A13: Je PENB a kontrukce bez opatření vyhovuje | B13: =AND(JePENB,Zateplení!J5=ano) -> FALSE
A14: Maximální celková úspora | B14: 0.95
A15: Rezerva spotřeby na TV a ostatní neelektrickou spotřebu | B15: =ParametryZateplení!I1 -> 0

Sheet Listy (hidden)
A1: Název listu | B1: Zatržení | C1: Viditelnost | D1: Tlačítko | G1: Administrátorský přístup
A2: Zateplení | B2: TRUE | C2: =je_zateplení -> TRUE | D2: BtnGoZateplení | G2: FALSE
A3: Rekuperace | B3: FALSE | C3: =je_rekuperace -> FALSE | D3: BtnGoRekuperace
A4: Osvětlení | B4: FALSE | C4: =je_osvětlení -> FALSE | D4: BtnGoOsvětlení
A5: Zdroj | B5: FALSE | C5: =je_zdroj -> FALSE | D5: BtnGoZdroj
A6: FVE | B6: FALSE | C6: =je_FVE -> FALSE | D6: BtnGoFVE
A7: Protokol | B7: FALSE | C7: =je_protokol -> FALSE
A8: Export | B8: FALSE | C8: =je_export -> FALSE
A9: Budova | C9: FALSE
A10: Budova_Opatření | C10: FALSE
A11: Globální | C11: FALSE
A12: Jen_zateplení | C12: FALSE
A13: Jen_zdroj | C13: FALSE
A14: Listy | C14: FALSE
A15: Nositele | C15: FALSE | S15: =J15 -> 0
A16: Parametry | C16: FALSE
A17: ParametryFVE | C17: FALSE
A18: ParametryOsvětlení | C18: FALSE
A19: ParametryRekuperace | C19: FALSE
A20: ParametryZateplení | C20: FALSE
A21: ParametryZdroje | C21: FALSE
A22: Primární | C22: FALSE
A23: Vstupy | C23: FALSE
A24: Bilance | C24: FALSE
A25: Zdroj_a_zateplení | C25: FALSE

Sheet Parametry (hidden)
A1: Spotřeba zadaná | B1: =IF(Zateplení!F8="ano",Zateplení!F9,0) -> 0 | C1: kWh
A3: Základní měrná potřeba energie objektu na vytápění | B3: =IF(AND(ISNUMBER(B1),Zateplení!F8="ano"),(B1)/PodlahováPlocha,ParametryZateplení!G1) -> 0 | C3: kWh/m2
A4: Spotřeba celkem | B4: =IF(B1=0,PodlahováPlocha*B3,B1) -> 0 | C4: kWh
A5: Spotřeba celkem | B5: =B4/1000*3.6 -> 0 | C5: GJ | D5: pro porovnání zda budova spadá pod 700 GJ
A7: Opatření, která budou realizovaná investicí | B7: U před | C7: U po z PENB | D7: U po kalk | E7: Un20 | F7: Upož,20 | G7: U požadavek | I7: vyhodnocení | J7: potřeba před kWh | K7: potřeba po | L7: úspora kWh | M7: úspora GJ | N7: úspora energie realizací opatření - kWh/m2 | R7: Plocha celkem [m2] | S7: Celková spotřeba před [kWh]
A8: Stěny | B8: =Budova!K16 -> 0 | C8: =Zateplení!J46 -> 0 | D8: =IFERROR(1/(1/B8+TlIzolStěn/1000/LambdaStěny)+DeltaUStěny,0) -> 0 | E8: =Budova!L16 -> 0 | F8: =Budova!N16 -> 0 | G8: =IF(PamátkováOchrana=ano,"bez požadavku",F8*ParametryZateplení!$C$41) -> 0 | H8: =IF(PamátkováOchrana=ano,"bez požadavku","Upož,20*e1") -> Upož,20*e1 | I8: =IF(NOT(ZatepleníStěn),"",IF(PamátkováOchrana="ano","Bez požadavku na součinitel prostupu tepla",IF(C8<=G8,"Konstrukce splňuje požadavky programu","Konstrukce nesplňuje požadavky programu"))) ->  | J8: =(B8)*PlochaStěn*(VnitřníTeplota-VnějšíTeplota)/1000*24*Denostupně/(VnitřníTeplota-VnějšíTeplota) -> 0 | K8: =IF(NOT(ZatepleníStěn),J8,(D8)*PlochaStěn*(VnitřníTeplota-VnějšíTeplota)/1000*24*Denostupně/(VnitřníTeplota-VnějšíTeplota)) -> 0 | L8: =IF(NOT(ZatepleníStěn),0,J8-K8) -> 0 | M8: =L8/1000*3.6 -> 0 | N8: =L8/PodlahováPlocha ->  | R8: =Zateplení!J27 -> 0 | S8: =(B8)*R8*(VnitřníTeplota-VnějšíTeplota)/1000*24*Denostupně/(VnitřníTeplota-VnějšíTeplota) -> 0
A9: Střecha | B9: =Budova!K17 -> 0 | C9: =Zateplení!J54 -> 0 | D9: =IFERROR(1/(1/B9+TlIzolStřechy/1000/LambdaStřecha)+DeltaUStřecha,0) -> 0 | E9: =Budova!L17 -> 0 | F9: =Budova!N17 -> 0 | G9: =IF(PamátkováOchrana=ano,"bez požadavku",F9*ParametryZateplení!$C$41) -> 0 | H9: Upož,20*e1 | J9: =(B9)*PlochaStřechy*(VnitřníTeplota-VnějšíTeplota)/1000*24*Denostupně/(VnitřníTeplota-VnějšíTeplota) -> 0 | K9: =IF(NOT(ZatepleníStřechy),J9,(D9)*PlochaStřechy*(VnitřníTeplota-VnějšíTeplota)/1000*24*Denostupně/(VnitřníTeplota-VnějšíTeplota)) -> 0 | L9: =IF(NOT(ZatepleníStřechy),0,J9-K9) -> 0 | M9: =L9/1000*3.6 -> 0 | R9: =Zateplení!J30 -> 0 | S9: 0
A10: Podlaha | B10: =Budova!K18 -> 0 | C10: =Zateplení!J62 -> 0 | D10: =IFERROR(1/(1/B10+TlIzolPodlahy/1000/LambdaPodlaha)+DeltaUPodlaha,0) -> 0 | E10: =Budova!L18 -> 0 | F10: =Budova!N18 -> 0 | G10: =IF(PamátkováOchrana=ano,"bez požadavku",F10*ParametryZateplení!$C$41) -> 0 | H10: Upož,20*e1 | J10: =(B10)*PlochaPodlahy*(VnitřníTeplota-VnějšíTeplota)/1000*24*Denostupně/(VnitřníTeplota-VnějšíTeplota) -> 0 | K10: =IF(NOT(ZatepleníPodlahy),J10,(D10)*PlochaPodlahy*(VnitřníTeplota-VnějšíTeplota)/1000*24*Denostupně/(VnitřníTeplota-VnějšíTeplota)) -> 0 | L10: =IF(NOT(ZatepleníPodlahy),0,J10-K10) -> 0 | M10: 0 | R10: =Zateplení!J33 -> 0 | S10: 0
A11: Okna | B11: =Budova!K19 -> 0 | C11: =Zateplení!J69 -> 0 | D11: =Zateplení!J69 -> 0 | E11: =Budova!L19 -> 0 | F11: =Budova!N19 -> 0 | G11: =IF(PamátkováOchrana=ano,"bez požadavku",F11*ParametryZateplení!$C$41) -> 0 | H11: Upož,20*e1 | J11: =(B11)*PlochaOken*(VnitřníTeplota-VnějšíTeplota)/1000*24*Denostupně/(VnitřníTeplota-VnějšíTeplota) -> 0 | K11: =IF(NOT(VýměnaOken),J11,(D11)*PlochaOken*(VnitřníTeplota-VnějšíTeplota)/1000*24*Denostupně/(VnitřníTeplota-VnějšíTeplota)) -> 0 | L11: =IF(NOT(VýměnaOken),0,J11-K11) -> 0 | M11: 0 | R11: =Zateplení!J35 -> 0 | S11: 0
A12: Dveře | B12: =Budova!K20 -> 0 | C12: =Zateplení!J75 -> 0 | D12: =Zateplení!J75 -> 0 | E12: =Budova!L20 -> 0 | F12: =Budova!N20 -> 0 | G12: =IF(PamátkováOchrana=ano,"bez požadavku",F12*ParametryZateplení!$C$41) -> 0 | H12: Upož,20*e1 | J12: =(B12)*PlochaDveří*(VnitřníTeplota-VnějšíTeplota)/1000*24*Denostupně/(VnitřníTeplota-VnějšíTeplota) -> 0 | K12: =IF(NOT(VýměnaDveří),J12,(D12)*PlochaDveří*(VnitřníTeplota-VnějšíTeplota)/1000*24*Denostupně/(VnitřníTeplota-VnějšíTeplota)) -> 0 | L12: =IF(NOT(VýměnaDveří),0,J12-K12) -> 0 | M12: 0 | R12: =Zateplení!J37 -> 0 | S12: 0
A13: Světlíky | B13: =Budova!K21 -> 0 | C13: =Zateplení!J81 -> 0 | D13: =Zateplení!J81 -> 0 | E13: =Budova!L21 -> 0 | F13: =Budova!N21 -> 0 | G13: =IF(PamátkováOchrana=ano,"bez požadavku",F13*ParametryZateplení!$C$41) -> 0 | H13: Upož,20*e1 | J13: =(B13)*PlochaSvětlíků*(VnitřníTeplota-VnějšíTeplota)/1000*24*Denostupně/(VnitřníTeplota-VnějšíTeplota) -> 0 | K13: =IF(NOT(VýměnaSvětlíků),J13,(D13)*PlochaSvětlíků*(VnitřníTeplota-VnějšíTeplota)/1000*24*Denostupně/(VnitřníTeplota-VnějšíTeplota)) -> 0 | L13: =IF(NOT(VýměnaSvětlíků),0,J13-K13) -> 0 | M13: 0 | R13: =Zateplení!J39 -> 0 | S13: 0
A14: Rekuperace | I14: nucené větrání | J14: =0.34*Rekuperace!H5*24*Denostupně/1000 -> 0 | K14: =IFERROR(0.34*Rekuperace!H5*(1-Rekuperace!D4)*24*Denostupně/1000,0) -> 0 | L14: =J14-K14 -> 0 | M14: 0 | S14: =J14 -> 0
A15: Total | I15: kWh | J15: =SUM(J8:J13) -> 0 | K15: =SUM(K8:K13) -> 0 | L15: =SUM(L8:L13) -> 0 | M15: =SUM(M8:M13) -> 0 | S15: =SUM(S8:S13) -> 0
M16: kWh/m2 | N16: =J15/Zateplení!$F$10 ->  | O16: =K15/Zateplení!$F$10 ->  | P16: =L15/Zateplení!$F$10 ->  | Q16: =L15/J15 -> 
A17: Měrná potřeba energie objektu na vytápění po realizaci | C17: kWh/m2
A18: Spotřeba energie objektu na vytápění před realizací | B18: =IF(NOT(JePENB),$J$15,Zateplení!F21) -> 0 | C18: kWh | D18: =B18/1000*3.6 -> 0 | E18: GJ | F18: bráno z konstrukcí / z PENB
A19: Spotřeba energie objektu na vytápění po realizaci | B19: =IF(NOT(JePENB),$K$15,Zateplení!F19) -> 0 | C19: kWh | D19: =B19/1000*3.6 -> 0 | E19: GJ | F19: bráno z konstrukcí / z PENB
A20: úspora z PENB | B20: =B18-B19 -> 0 | C20: kWh | D20: =D18-D19 -> 0 | E20: GJ

Sheet ParametryZateplení (hidden)
A1: =IFERROR(MATCH(Zateplení!F4,TZadání[Zateplení],0),0) -> 0 | C1: =IFERROR(MATCH(Zateplení!F6,TTypBudovy[typ budovy],0),0) -> 0 | F1: =IFERROR(MATCH(Zateplení!F11,TObdobíVýstavby[Období výstavby],0),0) -> 0 | G1: =IF(F1=0,0,INDEX(TObdobíVýstavby[Měrná spotřeba energie budovy (kWh/m2) - původní stav],F1)) -> 0 | H1: =IF(F1=0,0,INDEX(TObdobíVýstavby[Podíl elektřiny],F1)) -> 0 | I1: =IF(F1=0,0,INDEX(TObdobíVýstavby[Podíl rekuperace],F1)) -> 0
A2: Zateplení | C2: typ budovy | E2: Období výstavby | F2: Měrná spotřeba energie budovy (kWh/m2) - původní stav | G2: Podíl elektřiny | H2: Podíl rekuperace
A3: Obecné zadaní projektu (vyplnění Kalkulačky) | C3: Administrativní budova | E3: do 1920 | F3: 170 | G3: 0.25 | H3: 0.3
A4: Zadání projektu na základě Průkazu energetické náročnosti | C4: Výrobní hala | E4: 1921 až 1945 | F4: 180 | G4: 0.25 | H4: 0.3
C5: Skladová hala | E5: 1946 až 1960 | F5: 180 | G5: 0.25 | H5: 0.3
C6: Zemědělská budova | E6: 1961 až 1980 | F6: 220 | G6: 0.2 | H6: 0.25
C7: Budova pro vzdělávání | E7: 1981 až 1994 | F7: 130 | G7: 0.3 | H7: 0.35
C8: Budova pro sport | E8: 1995 a dále | F8: 100 | G8: 0.35 | H8: 0.4
C9: Budova pro zdravotnictví
C10: Budova pro ubytování a stravování
C11: Budova pro obchodní účely
A13: Zdroj v budově
A15: Index vybraného typu zdroje | B15: =IFERROR(MATCH(Zateplení!F13,TZdrojBudova[#Headers],0),0) -> 0
A16: Počet nositelů energie vybraného zdroje | B16: =INDEX($B$17:$G$17,1,B15) -> 4 | C16: 1 | D16: 1 | E16: 1 | F16: 1 | G16: 7
A17: Počet nositelů energie | B17: =COUNTA(TZdrojBudova[kotel na tuhá paliva]) -> 4 | C17: =COUNTA(TZdrojBudova[kotel na zemní plyn]) -> 1 | D17: =COUNTA(TZdrojBudova[elektrokotel]) -> 1 | E17: =COUNTA(TZdrojBudova[kotel na topný olej]) -> 1 | F17: =COUNTA(TZdrojBudova[tepelné čerpadlo]) -> 1 | G17: =COUNTA(TZdrojBudova[centrální zásobování teplem]) -> 7
A18: Vybraný nositel energie je v daném sloupci | B18: =IFERROR(MATCH(Zateplení!$F$14,TZdrojBudova[kotel na tuhá paliva],0),0)>0 -> FALSE | C18: =IFERROR(MATCH(Zateplení!$F$14,TZdrojBudova[kotel na zemní plyn],0),0)>0 -> FALSE | D18: =IFERROR(MATCH(Zateplení!$F$14,TZdrojBudova[elektrokotel],0),0)>0 -> FALSE | E18: =IFERROR(MATCH(Zateplení!$F$14,TZdrojBudova[kotel na topný olej],0),0)>0 -> FALSE | F18: =IFERROR(MATCH(Zateplení!$F$14,TZdrojBudova[tepelné čerpadlo],0),0)>0 -> FALSE | G18: =IFERROR(MATCH(Zateplení!$F$14,TZdrojBudova[centrální zásobování teplem],0),0)>0 -> FALSE | I18: =IFERROR(MATCH(Zateplení!J15,TTypSZTBudova[typ SZT],0),0) -> 0 | L18: =IF(B15>0,INDEX(Tabulka9[Účinnost],B15),0) -> 0
A19: Paliva vybraného zdroje | B19: kotel na tuhá paliva | C19: kotel na zemní plyn | D19: elektrokotel | E19: kotel na topný olej | F19: tepelné čerpadlo | G19: centrální zásobování teplem | I19: typ SZT | K19: Zdroj v budově | L19: Účinnost
A20: =ADDRESS(ROW(),COLUMN()+B15,1,1,"ParametryZateplení") & ":" & ADDRESS(ROW(A20)+B16-1,COLUMN()+B15,1,1) -> ParametryZateplení!$A$20:$A$23 | B20: hnědé uhlí | C20: zemní plyn | D20: elektřina | E20: topný olej | F20: elektřina | G20: zemní plyn | I20: účinná SZT | K20: kotel na tuhá paliva | L20: 0.6
B21: černé uhlí | G21: hnědé uhlí | I21: ostatní SZT | K21: kotel na zemní plyn | L21: 0.89
B22: palivové dřevo | G22: černé uhlí | K22: elektrokotel | L22: 0.98
B23: pelety | G23: palivové dřevo | K23: kotel na topný olej | L23: 0.87
G24: pelety | K24: tepelné čerpadlo | L24: 2.7
G25: elektřina | K25: centrální zásobování teplem | L25: 1
G26: topný olej
A29: Minimální vnitřní teplota [°C] | B29: 5
A30: Minimální vnitřní teplota [°C] | B30: 30
A31: Minimální U [W/(m2K)] | B31: 0
A32: Minimální U [W/(m2K)] | B32: 5
A33: Minimální měrná spotřeba tepla na jednotku vztažné plochy [kWh/m2] | B33: 20
A34: Minimální úspora projektu [%] | B34: 0.1
A35: Minimální snížení U [%] | B35: 0.05
A36: Minimální snížení spotřeby energie [%] | B36: 0.1
A37: Maximální tloušťka izolace [mm] | B37: 500
A38: Minimální součinitel prostupu tepla konstrukce z PENB [W/(m2.K)] | B38: 0
A39: Maximální součinitel prostupu tepla konstrukce z PENB [W/(m2.K)] | B39: 7
A40: Venkovní teplota (implicitně) [°C] | B40: -12
A41: Vnitřní teplota | B41: =VnitřníTeplota -> 0 | C41: =IF(AND(VnitřníTeplota>=18,VnitřníTeplota<=22),1,16/(VnitřníTeplota-4)) -> -4
A42: Průměrná venkovní teplota v otopném období (implicitně) [°C] | B42: 3.9
A43: Délka otopného období (implicitně) [dny] | B43: 242
A44: Počet denostupňů teoretický [1] | B44: =(B41-B42)*B43 -> -943.8
A46: Výsledná účinnost: | B46: =EtaZdrBudova -> 0
A48: Maximální úspora zateplením | B48: 0.9

Sheet Budova (hidden)
A1: Index období | C1: =ParametryZateplení!F1 -> 0 | J1: =IFERROR(MATCH(Zateplení!F28,TStřecha[Střecha],0),0) -> 0 | L1: =IFERROR(MATCH(Zateplení!F31,TPodlaha[Podlaha],0),0) -> 0
J2: Střecha | L2: Podlaha
J3: plochá střecha | L3: nevytápěný suterén
A4: stěny | B4: =$C$1 -> 0 | C4: =C1 -> 0 | D4: =INDEX(D5:D10,C4) ->  | J4: šikmá střecha | L4: podlaha na zemině
A5: stěny | B5: =ParametryZateplení!$E$3 -> do 1920 | C5: 1 | D5: budova!$C$70:$C$70 | J5: strop půdy
A6: stěny | B6: =ParametryZateplení!$E$4 -> 1921 až 1945 | C6: 2 | D6: budova!$C$71:$C$73
A7: stěny | B7: =ParametryZateplení!$E$5 -> 1946 až 1960 | C7: 3 | D7: budova!$C$74:$C$77
A8: stěny | B8: =ParametryZateplení!$E$6 -> 1961 až 1980 | C8: 4 | D8: budova!$C$78:$C$85
A9: stěny | B9: =ParametryZateplení!$E$7 -> 1981 až 1994 | C9: 5 | D9: budova!$C$86:$C$89
A10: stěny | B10: =ParametryZateplení!$E$8 -> 1995 a dále | C10: 6 | D10: budova!$C$90:$C$95
A11: plochá střecha | B11: =$C$1 -> 0 | C11: =$C$4 -> 0 | D11: =INDEX(D12:D17,C11) ->  | J11: Střecha OK | L11: Podlaha OK
A12: plochá střecha | B12: =ParametryZateplení!$E$3 -> do 1920 | C12: 1 | D12: budova!$C$96:$C$96 | J12: =CHOOSE(J1,D11,D18,D25) ->  | L12: =CHOOSE(L1,D32,D60) -> 
A13: plochá střecha | B13: =ParametryZateplení!$E$4 -> 1921 až 1945 | C13: 2 | D13: budova!$C$97:$C$99 | J13: =IFERROR(MATCH(Zateplení!F29,INDIRECT(J12),0),0)>0 -> FALSE | L13: =IFERROR(MATCH(Zateplení!F32,INDIRECT(L12),0),0)>0 -> FALSE
A14: plochá střecha | B14: =ParametryZateplení!$E$5 -> 1946 až 1960 | C14: 3 | D14: budova!$C$100:$C$100
A15: plochá střecha | B15: =ParametryZateplení!$E$6 -> 1961 až 1980 | C15: 4 | D15: budova!$C$101:$C$103 | J15: Výsledné parametry | K15: Součinitel prostupu tepla | L15: Požadavek U | M15: U rec | N15: Upož | O15: období | P15: konstrukce
A16: plochá střecha | B16: =ParametryZateplení!$E$7 -> 1981 až 1994 | C16: 5 | D16: budova!$C$104:$C$105 | J16: stěny | K16: =SUMIFS(E$70:E$304,$B$70:$B$304,$O16,$C$70:$C$304,$P16,$I$70:$I$304,$J16) -> 0 | L16: =SUMIFS(F$70:F$304,$B$70:$B$304,$O16,$C$70:$C$304,$P16,$I$70:$I$304,$J16) -> 0 | M16: =SUMIFS(G$70:G$304,$B$70:$B$304,$O16,$C$70:$C$304,$P16,$I$70:$I$304,$J16) -> 0 | N16: 0 | O16: =Zateplení!$F$11 -> 0 | P16: =Zateplení!F26 -> 0
A17: plochá střecha | B17: =ParametryZateplení!$E$8 -> 1995 a dále | C17: 6 | D17: budova!$C$106:$C$110 | J17: střecha | K17: =SUMIFS(E$70:E$304,$B$70:$B$304,$O17,$C$70:$C$304,$P17,$I$70:$I$304,$J17) -> 0 | L17: 0 | M17: 0 | N17: 0 | O17: =Zateplení!$F$11 -> 0 | P17: =Zateplení!F29 -> 0
A18: šikmá střecha | B18: =$C$1 -> 0 | C18: =$C$4 -> 0 | D18: =INDEX(D19:D24,C18) ->  | J18: podlaha | K18: 0 | L18: 0 | M18: 0 | N18: 0 | O18: =Zateplení!$F$11 -> 0 | P18: =Zateplení!F32 -> 0
A19: šikmá střecha | B19: =ParametryZateplení!$E$3 -> do 1920 | C19: 1 | D19: budova!$C$111:$C$111 | J19: okna | K19: 0 | L19: 0 | M19: 0 | N19: 0 | O19: =Zateplení!$F$11 -> 0 | P19: =Zateplení!F34 -> 0
A20: šikmá střecha | B20: =ParametryZateplení!$E$4 -> 1921 až 1945 | C20: 2 | D20: budova!$C$112:$C$112 | J20: dveře | K20: 0 | L20: 0 | M20: 0 | N20: 0 | O20: =Zateplení!$F$11 -> 0 | P20: =Zateplení!F36 -> 0
A21: šikmá střecha | B21: =ParametryZateplení!$E$5 -> 1946 až 1960 | C21: 3 | D21: budova!$C$113:$C$113 | J21: světlíky | K21: 0 | L21: 0 | M21: 0 | N21: 0 | O21: =Zateplení!$F$11 -> 0 | P21: =Zateplení!F38 -> 0
A22: šikmá střecha | B22: =ParametryZateplení!$E$6 -> 1961 až 1980 | C22: 4 | D22: budova!$C$114:$C$114
A23: šikmá střecha | B23: =ParametryZateplení!$E$7 -> 1981 až 1994 | C23: 5 | D23: budova!$C$115:$C$115
A24: šikmá střecha | B24: =ParametryZateplení!$E$8 -> 1995 a dále | C24: 6 | D24: budova!$C$116:$C$117
A25: strop půdy | B25: =$C$1 -> 0 | C25: =$C$4 -> 0 | D25: =INDEX(D26:D31,C25) -> 
A26: strop půdy | B26: =ParametryZateplení!$E$3 -> do 1920 | C26: 1 | D26: budova!$C$118:$C$119
A27: strop půdy | B27: =ParametryZateplení!$E$4 -> 1921 až 1945 | C27: 2 | D27: budova!$C$120:$C$122
A28: strop půdy | B28: =ParametryZateplení!$E$5 -> 1946 až 1960 | C28: 3 | D28: budova!$C$123:$C$126
A29: strop půdy | B29: =ParametryZateplení!$E$6 -> 1961 až 1980 | C29: 4 | D29: budova!$C$127:$C$132
A30: strop půdy | B30: =ParametryZateplení!$E$7 -> 1981 až 1994 | C30: 5 | D30: budova!$C$133:$C$138
A31: strop půdy | B31: =ParametryZateplení!$E$8 -> 1995 a dále | C31: 6 | D31: budova!$C$1369:$C$141
A32: nevytápěný suterén | B32: =$C$1 -> 0 | C32: =$C$4 -> 0 | D32: =INDEX(D33:D38,C32) -> 
A33: nevytápěný suterén | B33: =ParametryZateplení!$E$3 -> do 1920 | C33: 1 | D33: budova!$C$142:$C$143
A34: nevytápěný suterén | B34: =ParametryZateplení!$E$4 -> 1921 až 1945 | C34: 2 | D34: budova!$C$144:$C$146
A35: nevytápěný suterén | B35: =ParametryZateplení!$E$5 -> 1946 až 1960 | C35: 3 | D35: budova!$C$147:$C$152
A36: nevytápěný suterén | B36: =ParametryZateplení!$E$6 -> 1961 až 1980 | C36: 4 | D36: budova!$C$153:$C$157
A37: nevytápěný suterén | B37: =ParametryZateplení!$E$7 -> 1981 až 1994 | C37: 5 | D37: budova!$C$158:$C$162
A38: nevytápěný suterén | B38: =ParametryZateplení!$E$8 -> 1995 a dále | C38: 6 | D38: budova!$C$163:$C$166
A39: okna | B39: =$C$1 -> 0 | C39: =$C$4 -> 0 | D39: =INDEX(D40:D45,C39) -> 
A40: okna | B40: =ParametryZateplení!$E$3 -> do 1920 | C40: 1 | D40: budova!$C$167:$C$174
A41: okna | B41: =ParametryZateplení!$E$4 -> 1921 až 1945 | C41: 2 | D41: budova!$C$175:$C$182
A42: okna | B42: =ParametryZateplení!$E$5 -> 1946 až 1960 | C42: 3 | D42: budova!$C$183:$C$190
A43: okna | B43: =ParametryZateplení!$E$6 -> 1961 až 1980 | C43: 4 | D43: budova!$C$191:$C$198
A44: okna | B44: =ParametryZateplení!$E$7 -> 1981 až 1994 | C44: 5 | D44: budova!$C$199:$C$207
A45: okna | B45: =ParametryZateplení!$E$8 -> 1995 a dále | C45: 6 | D45: budova!$C$208:$C$214
A46: dveře-vrata | B46: =$C$1 -> 0 | C46: =$C$4 -> 0 | D46: =INDEX(D47:D52,C46) -> 
A47: dveře-vrata | B47: =ParametryZateplení!$E$3 -> do 1920 | C47: 1 | D47: budova!$C$215:$C$221
A48: dveře-vrata | B48: =ParametryZateplení!$E$4 -> 1921 až 1945 | C48: 2 | D48: budova!$C$222:$C$228
A49: dveře-vrata | B49: =ParametryZateplení!$E$5 -> 1946 až 1960 | C49: 3 | D49: budova!$C$229:$C$235
A50: dveře-vrata | B50: =ParametryZateplení!$E$6 -> 1961 až 1980 | C50: 4 | D50: budova!$C$236:$C$242
A51: dveře-vrata | B51: =ParametryZateplení!$E$7 -> 1981 až 1994 | C51: 5 | D51: budova!$C$243:$C$249
A52: dveře-vrata | B52: =ParametryZateplení!$E$8 -> 1995 a dále | C52: 6 | D52: budova!$C$250:$C$256
A53: střešní okna-světlíky | B53: =$C$1 -> 0 | C53: =$C$4 -> 0 | D53: =INDEX(D54:D59,C53) -> 
A54: střešní okna-světlíky | B54: =ParametryZateplení!$E$3 -> do 1920 | C54: 1 | D54: budova!$C$257:$C$262
A55: střešní okna-světlíky | B55: =ParametryZateplení!$E$4 -> 1921 až 1945 | C55: 2 | D55: budova!$C$263:$C$268
A56: střešní okna-světlíky | B56: =ParametryZateplení!$E$5 -> 1946 až 1960 | C56: 3 | D56: budova!$C$269:$C$274
A57: střešní okna-světlíky | B57: =ParametryZateplení!$E$6 -> 1961 až 1980 | C57: 4 | D57: budova!$C$275:$C$280
A58: střešní okna-světlíky | B58: =ParametryZateplení!$E$7 -> 1981 až 1994 | C58: 5 | D58: budova!$C$281:$C$286
A59: střešní okna-světlíky | B59: =ParametryZateplení!$E$8 -> 1995 a dále | C59: 6 | D59: budova!$C$287:$C$289
A60: podlaha na zemině | B60: =$C$1 -> 0 | C60: =$C$4 -> 0 | D60: =INDEX(D61:D66,C60) -> 
A61: podlaha na zemině | B61: =ParametryZateplení!$E$3 -> do 1920 | C61: 1 | D61: budova!$C$290:$C$291
A62: podlaha na zemině | B62: =ParametryZateplení!$E$4 -> 1921 až 1945 | C62: 2 | D62: budova!$C$292:$C$293
A63: podlaha na zemině | B63: =ParametryZateplení!$E$5 -> 1946 až 1960 | C63: 3 | D63: budova!$C$294:$C$295
A64: podlaha na zemině | B64: =ParametryZateplení!$E$6 -> 1961 až 1980 | C64: 4 | D64: budova!$C$296:$C$297
A65: podlaha na zemině | B65: =ParametryZateplení!$E$7 -> 1981 až 1994 | C65: 5 | D65: budova!$C$298:$C$299
A66: podlaha na zemině | B66: =ParametryZateplení!$E$8 -> 1995 a dále | C66: 6 | D66: budova!$C$300:$C$304
A69: Konstrukce | B69: Období | C69: Konstrukce | D69: Kce | E69: Součinitel prostupu tepla | F69: Požadavek U | G69: U rec | H69: Upož | I69: Kategorie
A70: stěny | B70: =ParametryZateplení!$E$3 -> do 1920 | C70: zdivo z cihel pálených plných tloušťky 450 mm | D70: =CONCATENATE(B70,"-",C70) -> do 1920-zdivo z cihel pálených plných tloušťky 450 mm | E70: 1.4 | F70: 0.3 | G70: 0.25 | H70: 0.15 | I70: =$J$16 -> stěny
A71: stěny | B71: =ParametryZateplení!$E$4 -> 1921 až 1945 | C71: zdivo z cihel pálených plných tloušťky 450 mm | D71: =CONCATENATE(B71,"-",C71) -> 1921 až 1945-zdivo z cihel pálených plných tloušťky 450 mm | E71: 1.4 | F71: 0.3 | G71: 0.25 | H71: 0.15 | I71: =$J$16 -> stěny
A72: stěny | B72: =ParametryZateplení!$E$4 -> 1921 až 1945 | C72: zdivo z děrovaných cihel a tvárnic tloušťky cca 300 mm | D72: 1921 až 1945-zdivo z děrovaných cihel a tvárnic tloušťky cca 300 mm | E72: 1.3 | F72: 0.3 | G72: 0.25 | H72: 0.15 | I72: stěny
A73: stěny | B73: =ParametryZateplení!$E$4 -> 1921 až 1945 | C73: zdivo ze škvárobetonu tloušťky 250 mm až 300 mm | D73: 1921 až 1945-zdivo ze škvárobetonu tloušťky 250 mm až 300 mm | E73: 1.2 | F73: 0.3 | G73: 0.25 | H73: 0.15 | I73: stěny
A74: stěny | B74: =ParametryZateplení!$E$5 -> 1946 až 1960 | C74: zdivo z cihel pálených plných tloušťky 450 mm | D74: 1946 až 1960-zdivo z cihel pálených plných tloušťky 450 mm | E74: 1.4 | F74: 0.3 | G74: 0.25 | H74: 0.15 | I74: stěny
A75: stěny | B75: =ParametryZateplení!$E$5 -> 1946 až 1960 | C75: zdivo z děrovaných cihel a tvárnic | D75: 1946 až 1960-zdivo z děrovaných cihel a tvárnic | E75: 1.3 | F75: 0.3 | G75: 0.25 | H75: 0.15 | I75: stěny
A76: stěny | B76: =ParametryZateplení!$E$5 -> 1946 až 1960 | C76: zdivo ze škvárobetonu tloušťky 250 mm až 300 mm | D76: 1946 až 1960-zdivo ze škvárobetonu tloušťky 250 mm až 300 mm | E76: 1.2 | F76: 0.3 | G76: 0.25 | H76: 0.15 | I76: stěny
A77: stěny | B77: =ParametryZateplení!$E$5 -> 1946 až 1960 | C77: zdivo z lehkých betonů tloušťky cca 300 mm | D77: 1946 až 1960-zdivo z lehkých betonů tloušťky cca 300 mm | E77: 1.4 | F77: 0.3 | G77: 0.25 | H77: 0.15 | I77: stěny
A78: stěny | B78: =ParametryZateplení!$E$6 -> 1961 až 1980 | C78: zdivo z děrovaných cihel a tvárnic tloušťky cca 300 mm | D78: 1961 až 1980-zdivo z děrovaných cihel a tvárnic tloušťky cca 300 mm | E78: 1.3 | F78: 0.3 | G78: 0.25 | H78: 0.15 | I78: stěny
A79: stěny | B79: =ParametryZateplení!$E$6 -> 1961 až 1980 | C79: zdivo ze škvárobetonu tloušťky 250 mm až 300 mm | D79: 1961 až 1980-zdivo ze škvárobetonu tloušťky 250 mm až 300 mm | E79: 1.2 | F79: 0.3 | G79: 0.25 | H79: 0.15 | I79: stěny
A80: stěny | B80: =ParametryZateplení!$E$6 -> 1961 až 1980 | C80: zdivo z lehkých betonů tloušťky cca 300 mm | D80: 1961 až 1980-zdivo z lehkých betonů tloušťky cca 300 mm | E80: 1.4 | F80: 0.3 | G80: 0.25 | H80: 0.15 | I80: stěny
A81: stěny | B81: =ParametryZateplení!$E$6 -> 1961 až 1980 | C81: panel z lehkého betonu tloušťky 240 mm až 300 mm | D81: 1961 až 1980-panel z lehkého betonu tloušťky 240 mm až 300 mm | E81: 0.9 | F81: 0.3 | G81: 0.25 | H81: 0.15 | I81: stěny
A82: stěny | B82: =ParametryZateplení!$E$6 -> 1961 až 1980 | C82: zdivo z pórobetonu tloušťky cca 300 mm | D82: 1961 až 1980-zdivo z pórobetonu tloušťky cca 300 mm | E82: 0.7 | F82: 0.3 | G82: 0.25 | H82: 0.15 | I82: stěny
A83: stěny | B83: =ParametryZateplení!$E$6 -> 1961 až 1980 | C83: keramický panel tloušťky 250 mm až 300 mm bez tep. izolace | D83: 1961 až 1980-keramický panel tloušťky 250 mm až 300 mm bez tep. izolace | E83: 1.8 | F83: 0.3 | G83: 0.25 | H83: 0.15 | I83: stěny
A84: stěny | B84: =ParametryZateplení!$E$6 -> 1961 až 1980 | C84: kovoplastický panel (tzv. Boletický) tloušťky 120 mm | D84: =CONCATENATE(ZpůsobVýpočtu,"-",C84) -> 0-kovoplastický panel (tzv. Boletický) tloušťky 120 mm | E84: 1.1 | F84: 0.3 | G84: 0.2 | H84: 0.15 | I84: stěny
A85: stěny | B85: =ParametryZateplení!$E$6 -> 1961 až 1980 | C85: železobetonový panel sendvičový tloušťky 190 až 240 mm | D85: 1961 až 1980-železobetonový panel sendvičový tloušťky 190 až 240 mm | E85: 1 | F85: 0.3 | G85: 0.25 | H85: 0.15 | I85: stěny
A86: stěny | B86: =ParametryZateplení!$E$7 -> 1981 až 1994 | C86: zdivo z pórobetonových tvárnic tloušťky 400 mm | D86: 1981 až 1994-zdivo z pórobetonových tvárnic tloušťky 400 mm | E86: 0.7 | F86: 0.3 | G86: 0.25 | H86: 0.15 | I86: stěny
A87: stěny | B87: =ParametryZateplení!$E$7 -> 1981 až 1994 | C87: panel z lehkého betonu tloušťky cca 350 mm | D87: =CONCATENATE(Denostupně,"-",C87) -> -943,8-panel z lehkého betonu tloušťky cca 350 mm | E87: 0.9 | F87: 0.3 | G87: 0.25 | H87: 0.15 | I87: stěny
A88: stěny | B88: =ParametryZateplení!$E$7 -> 1981 až 1994 | C88: keramický panel tloušťky 300 mm s tepelnou izolací | D88: 1981 až 1994-keramický panel tloušťky 300 mm s tepelnou izolací | E88: 0.8 | F88: 0.3 | G88: 0.25 | H88: 0.15 | I88: stěny
A89: stěny | B89: =ParametryZateplení!$E$7 -> 1981 až 1994 | C89: železobetonový panel sendvičový tloušťky cca 300 mm | D89: 1981 až 1994-železobetonový panel sendvičový tloušťky cca 300 mm | E89: 0.6 | F89: 0.3 | G89: 0.25 | H89: 0.15 | I89: stěny
A90: stěny | B90: =ParametryZateplení!$E$8 -> 1995 a dále | C90: stěna rekonstruovaný objekt (1995 - 2001) | D90: 1995 a dále-stěna rekonstruovaný objekt (1995 - 2001) | E90: 0.7 | F90: 0.3 | G90: 0.25 | H90: 0.15 | I90: stěny
A91: stěny | B91: =ParametryZateplení!$E$8 -> 1995 a dále | C91: nová stěna (1995 - 2001) | D91: 1995 a dále-nová stěna (1995 - 2001) | E91: 0.33 | F91: 0.3 | G91: 0.25 | H91: 0.15 | I91: stěny
A92: stěny | B92: =ParametryZateplení!$E$8 -> 1995 a dále | C92: stěna lehká - nová od 2002 | D92: 1995 a dále-stěna lehká - nová od 2002 | E92: 0.3 | F92: 0.3 | G92: 0.2 | H92: 0.15 | I92: stěny
A93: stěny | B93: =ParametryZateplení!$E$8 -> 1995 a dále | C93: stěna těžká - nová od 2002 | D93: 1995 a dále-stěna těžká - nová od 2002 | E93: 0.38 | F93: 0.3 | G93: 0.25 | H93: 0.15 | I93: stěny
A94: stěny | B94: =ParametryZateplení!$E$8 -> 1995 a dále | C94: stěna těžká - nová od 2002 | D94: =CONCATENATE(B94,"-",C94) -> 1995 a dále-stěna těžká - nová od 2002 | E94: 0.38 | F94: 0.3 | G94: 0.25 | H94: 0.15 | I94: stěny
A95: stěny | B95: =ParametryZateplení!$E$8 -> 1995 a dále | C95: stěna nová od 2011 | D95: =CONCATENATE(B95,"-",C95) -> 1995 a dále-stěna nová od 2011 | E95: 0.3 | F95: 0.3 | G95: 0.25 | H95: 0.15 | I95: stěny
A96: plochá střecha | B96: =ParametryZateplení!$E$3 -> do 1920 | C96: plochá jednoplášťová střecha s vrstvou škvárobetonu | D96: do 1920-plochá jednoplášťová střecha s vrstvou škvárobetonu | E96: 2 | F96: 0.24 | G96: 0.16 | H96: 0.11 | I96: =$J$17 -> střecha
A97: plochá střecha | B97: =ParametryZateplení!$E$4 -> 1921 až 1945 | C97: plochá jednoplášťová střecha s vrstvou škvárobetonu | D97: 1921 až 1945-plochá jednoplášťová střecha s vrstvou škvárobetonu | E97: 2 | F97: 0.24 | G97: 0.16 | H97: 0.11 | I97: =$J$17 -> střecha
A98: plochá střecha | B98: =ParametryZateplení!$E$4 -> 1921 až 1945 | C98: plochá jednoplášťová střecha s tepelnou izolací z dutých cihel | D98: 1921 až 1945-plochá jednoplášťová střecha s tepelnou izolací z dutých cihel | E98: 1.4 | F98: 0.24 | G98: 0.16 | H98: 0.11 | I98: střecha
A99: plochá střecha | B99: =ParametryZateplení!$E$4 -> 1921 až 1945 | C99: plochá dvouplášťová střecha s násypem | D99: 1921 až 1945-plochá dvouplášťová střecha s násypem | E99: 1.2 | F99: 0.24 | G99: 0.16 | H99: 0.11 | I99: střecha
A100: plochá střecha | B100: =ParametryZateplení!$E$5 -> 1946 až 1960 | C100: plochá jednoplášťová střecha s pěnobetonem a heraklitem | D100: 1946 až 1960-plochá jednoplášťová střecha s pěnobetonem a heraklitem | E100: 0.9 | F100: 0.24 | G100: 0.16 | H100: 0.11 | I100: střecha
A101: plochá střecha | B101: =ParametryZateplení!$E$6 -> 1961 až 1980 | C101: plochá jednoplášťová střecha s tepelnou izolací z plynosilikátových desek nebo pěnoskla | D101: 1961 až 1980-plochá jednoplášťová střecha s tepelnou izolací z plynosilikátových desek nebo pěnoskla | E101: 0.7 | F101: 0.24 | G101: 0.16 | H101: 0.11 | I101: střecha
A102: plochá střecha | B102: =ParametryZateplení!$E$6 -> 1961 až 1980 | C102: plochá jednoplášťová střecha s tepelnou izolací z polystyrénu tl. 50 mm | D102: 1961 až 1980-plochá jednoplášťová střecha s tepelnou izolací z polystyrénu tl. 50 mm | E102: 0.6 | F102: 0.24 | G102: 0.16 | H102: 0.11 | I102: střecha
A103: plochá střecha | B103: =ParametryZateplení!$E$6 -> 1961 až 1980 | C103: plochá dvouplášťová střecha s tepelnou izolací s minerálních vláken tloušťky 60 až 80 mm | D103: 1961 až 1980-plochá dvouplášťová střecha s tepelnou izolací s minerálních vláken tloušťky 60 až 80 mm | E103: 0.7 | F103: 0.24 | G103: 0.16 | H103: 0.11 | I103: střecha
A104: plochá střecha | B104: =ParametryZateplení!$E$7 -> 1981 až 1994 | C104: plochá jednoplášťová střecha s tepelnou izolací z polystyrénu tl. 100 mm | D104: 1981 až 1994-plochá jednoplášťová střecha s tepelnou izolací z polystyrénu tl. 100 mm | E104: 0.4 | F104: 0.24 | G104: 0.16 | H104: 0.11 | I104: střecha
A105: plochá střecha | B105: =ParametryZateplení!$E$7 -> 1981 až 1994 | C105: plochá dvouplášťová střecha s tepelnou izolací s minerálních vláken tloušťky 120 mm | D105: 1981 až 1994-plochá dvouplášťová střecha s tepelnou izolací s minerálních vláken tloušťky 120 mm | E105: 0.4 | F105: 0.24 | G105: 0.16 | H105: 0.11 | I105: střecha
A106: plochá střecha | B106: =ParametryZateplení!$E$8 -> 1995 a dále | C106: plochá střecha 1995-2002 | D106: 1995 a dále-plochá střecha 1995-2002 | E106: =1/3 -> 0.3333333333 | F106: 0.24 | G106: 0.16 | H106: 0.11 | I106: střecha
A107: plochá střecha | B107: =ParametryZateplení!$E$8 -> 1995 a dále | C107: plochá střecha těžká po roce 2002 | D107: 1995 a dále-plochá střecha těžká po roce 2002 | E107: 0.3 | F107: 0.24 | G107: 0.16 | H107: 0.11 | I107: střecha
A108: plochá střecha | B108: =ParametryZateplení!$E$8 -> 1995 a dále | C108: plochá střecha lehká po roce 2002 | D108: 1995 a dále-plochá střecha lehká po roce 2002 | E108: 0.24 | F108: 0.24 | G108: 0.16 | H108: 0.11 | I108: střecha
A109: plochá střecha | B109: =ParametryZateplení!$E$8 -> 1995 a dále | C109: plochá střecha po roce 2002 | D109: 1995 a dále-plochá střecha po roce 2002 | E109: 0.24 | F109: 0.24 | G109: 0.16 | H109: 0.11 | I109: střecha
A110: plochá střecha | B110: =ParametryZateplení!$E$8 -> 1995 a dále | C110: plochá střecha po roce 2007 | D110: 1995 a dále-plochá střecha po roce 2007 | E110: 0.24 | F110: 0.24 | G110: 0.16 | H110: 0.11 | I110: střecha
A111: šikmá střecha | B111: =ParametryZateplení!$E$3 -> do 1920 | C111: šikmá střecha nezateplená | D111: do 1920-šikmá střecha nezateplená | E111: 4 | F111: 0.24 | G111: 0.16 | H111: 0.15 | I111: střecha
A112: šikmá střecha | B112: =ParametryZateplení!$E$4 -> 1921 až 1945 | C112: šikmá střecha nezateplená | D112: 1921 až 1945-šikmá střecha nezateplená | E112: 4 | F112: 0.24 | G112: 0.16 | H112: 0.15 | I112: střecha
A113: šikmá střecha | B113: =ParametryZateplení!$E$5 -> 1946 až 1960 | C113: šikmá střecha nezateplená | D113: 1946 až 1960-šikmá střecha nezateplená | E113: 4 | F113: 0.24 | G113: 0.16 | H113: 0.15 | I113: střecha
A114: šikmá střecha | B114: =ParametryZateplení!$E$6 -> 1961 až 1980 | C114: šikmá střecha zateplená | D114: 1961 až 1980-šikmá střecha zateplená | E114: =1/(0.05/0.065+0.1*2) -> 1.031746032 | F114: 0.24 | G114: 0.16 | H114: 0.15 | I114: střecha
A115: šikmá střecha | B115: =ParametryZateplení!$E$7 -> 1981 až 1994 | C115: šikmá střecha zateplená | D115: 1981 až 1994-šikmá střecha zateplená | E115: =1/(0.08/0.065+0.1*2) -> 0.6989247312 | F115: 0.24 | G115: 0.16 | H115: 0.15 | I115: střecha
A116: šikmá střecha | B116: =ParametryZateplení!$E$8 -> 1995 a dále | C116: šikmá střecha realizace 1995-2002 | D116: 1995 a dále-šikmá střecha realizace 1995-2002 | E116: =1/3 -> 0.3333333333 | F116: 0.24 | G116: 0.16 | H116: 0.15 | I116: střecha
A117: šikmá střecha | B117: =ParametryZateplení!$E$8 -> 1995 a dále | C117: šikmá střecha po roce 2002 | D117: 1995 a dále-šikmá střecha po roce 2002 | E117: 0.24 | F117: 0.24 | G117: 0.16 | H117: 0.15 | I117: střecha
A118: strop půdy | B118: =ParametryZateplení!$E$3 -> do 1920 | C118: stropy dřevěné trámové pod půdou s násypem škváry | D118: do 1920-stropy dřevěné trámové pod půdou s násypem škváry | E118: 1.6 | F118: 0.3 | G118: 0.2 | H118: 0.15 | I118: střecha
A119: strop půdy | B119: =ParametryZateplení!$E$3 -> do 1920 | C119: stropy keramické do ocelových nosníků pod půdou s násypem škváry | D119: do 1920-stropy keramické do ocelových nosníků pod půdou s násypem škváry | E119: 1 | F119: 0.3 | G119: 0.2 | H119: 0.12 | I119: střecha
A120: strop půdy | B120: =ParametryZateplení!$E$4 -> 1921 až 1945 | C120: stropy dřevěné trámové pod půdou s násypem škváry | D120: 1921 až 1945-stropy dřevěné trámové pod půdou s násypem škváry | E120: 1.6 | F120: 0.3 | G120: 0.2 | H120: 0.12 | I120: střecha
A121: strop půdy | B121: =ParametryZateplení!$E$4 -> 1921 až 1945 | C121: stropy keramické do ocelových nosníků pod půdou s násypem škváry | D121: 1921 až 1945-stropy keramické do ocelových nosníků pod půdou s násypem škváry | E121: 2.2 | F121: 0.3 | G121: 0.2 | H121: 0.12 | I121: střecha
A122: strop půdy | B122: =ParametryZateplení!$E$4 -> 1921 až 1945 | C122: stropy železobetonové pod půdou s násypem a potěrem | D122: 1921 až 1945-stropy železobetonové pod půdou s násypem a potěrem | E122: 1 | F122: 0.3 | G122: 0.2 | H122: 0.12 | I122: střecha
A123: strop půdy | B123: =ParametryZateplení!$E$5 -> 1946 až 1960 | C123: stropy dřevěné trámové pod půdou s násypem škváry | D123: 1946 až 1960-stropy dřevěné trámové pod půdou s násypem škváry | E123: 1.6 | F123: 0.3 | G123: 0.2 | H123: 0.12 | I123: střecha
A124: strop půdy | B124: =ParametryZateplení!$E$5 -> 1946 až 1960 | C124: stropy keramické do ocelových nosníků pod půdou s násypem škváry | D124: 1946 až 1960-stropy keramické do ocelových nosníků pod půdou s násypem škváry | E124: 2.2 | F124: 0.3 | G124: 0.2 | H124: 0.12 | I124: střecha
A125: strop půdy | B125: =ParametryZateplení!$E$5 -> 1946 až 1960 | C125: stropy železobetonové pod půdou s násypem a potěrem | D125: 1946 až 1960-stropy železobetonové pod půdou s násypem a potěrem | E125: 2.6 | F125: 0.3 | G125: 0.2 | H125: 0.12 | I125: střecha
A126: strop půdy | B126: =ParametryZateplení!$E$5 -> 1946 až 1960 | C126: stropy železobetonové pod půdou s vrstvou lehkého betonu | D126: 1946 až 1960-stropy železobetonové pod půdou s vrstvou lehkého betonu | E126: 1 | F126: 0.3 | G126: 0.2 | H126: 0.12 | I126: střecha
A127: strop půdy | B127: =ParametryZateplení!$E$6 -> 1961 až 1980 | C127: stropy dřevěné trámové pod půdou s násypem škváry | D127: 1961 až 1980-stropy dřevěné trámové pod půdou s násypem škváry | E127: 1.6 | F127: 0.3 | G127: 0.2 | H127: 0.12 | I127: střecha
A128: strop půdy | B128: =ParametryZateplení!$E$6 -> 1961 až 1980 | C128: stropy keramické do ocelových nosníků pod půdou s násypem škváry | D128: 1961 až 1980-stropy keramické do ocelových nosníků pod půdou s násypem škváry | E128: 2.2 | F128: 0.3 | G128: 0.2 | H128: 0.12 | I128: střecha
A129: strop půdy | B129: =ParametryZateplení!$E$6 -> 1961 až 1980 | C129: stropy železobetonové pod půdou s násypem a potěrem | D129: 1961 až 1980-stropy železobetonové pod půdou s násypem a potěrem | E129: 2.6 | F129: 0.3 | G129: 0.2 | H129: 0.12 | I129: střecha
A130: strop půdy | B130: =ParametryZateplení!$E$6 -> 1961 až 1980 | C130: stropy železobetonové pod půdou s vrstvou lehkého betonu | D130: 1961 až 1980-stropy železobetonové pod půdou s vrstvou lehkého betonu | E130: 2.6 | F130: 0.3 | G130: 0.2 | H130: 0.12 | I130: střecha
A131: strop půdy | B131: =ParametryZateplení!$E$6 -> 1961 až 1980 | C131: stropy železobetonové panelové pod půdou s potěrem | D131: 1961 až 1980-stropy železobetonové panelové pod půdou s potěrem | E131: 2 | F131: 0.3 | G131: 0.2 | H131: 0.12 | I131: střecha
A132: strop půdy | B132: =ParametryZateplení!$E$6 -> 1961 až 1980 | C132: stropy keramické z panelů a vložek pod půdou s potěrem | D132: 1961 až 1980-stropy keramické z panelů a vložek pod půdou s potěrem | E132: 1 | F132: 0.3 | G132: 0.2 | H132: 0.12 | I132: střecha
A133: strop půdy | B133: =ParametryZateplení!$E$7 -> 1981 až 1994 | C133: stropy dřevěné trámové pod půdou s násypem škváry | D133: 1981 až 1994-stropy dřevěné trámové pod půdou s násypem škváry | E133: 1.6 | F133: 0.3 | G133: 0.2 | H133: 0.12 | I133: střecha
A134: strop půdy | B134: =ParametryZateplení!$E$7 -> 1981 až 1994 | C134: stropy keramické do ocelových nosníků pod půdou s násypem škváry | D134: 1981 až 1994-stropy keramické do ocelových nosníků pod půdou s násypem škváry | E134: 2.2 | F134: 0.3 | G134: 0.2 | H134: 0.12 | I134: střecha
A135: strop půdy | B135: =ParametryZateplení!$E$7 -> 1981 až 1994 | C135: stropy železobetonové pod půdou s násypem a potěrem | D135: =CONCATENATE(B135,"-",C135) -> 1981 až 1994-stropy železobetonové pod půdou s násypem a potěrem | E135: 2.6 | F135: 0.3 | G135: 0.2 | H135: 0.12 | I135: střecha
A136: strop půdy | B136: =ParametryZateplení!$E$7 -> 1981 až 1994 | C136: stropy železobetonové pod půdou s vrstvou lehkého betonu | D136: 1981 až 1994-stropy železobetonové pod půdou s vrstvou lehkého betonu | E136: 2.6 | F136: 0.3 | G136: 0.2 | H136: 0.12 | I136: střecha
A137: strop půdy | B137: =ParametryZateplení!$E$7 -> 1981 až 1994 | C137: stropy železobetonové panelové pod půdou s potěrem | D137: 1981 až 1994-stropy železobetonové panelové pod půdou s potěrem | E137: 2 | F137: 0.3 | G137: 0.2 | H137: 0.12 | I137: střecha
A138: strop půdy | B138: =ParametryZateplení!$E$7 -> 1981 až 1994 | C138: stropy keramické z panelů a vložek pod půdou s potěrem | D138: 1981 až 1994-stropy keramické z panelů a vložek pod půdou s potěrem | E138: 0.48 | F138: 0.3 | G138: 0.2 | H138: 0.12 | I138: střecha
A139: strop půdy | B139: =ParametryZateplení!$E$8 -> 1995 a dále | C139: strop pod půdou - 1995-2002 - přípustná | D139: 1995 a dále-strop pod půdou - 1995-2002 - přípustná | E139: 0.31 | F139: 0.3 | G139: 0.2 | H139: 0.12 | I139: střecha
A140: strop půdy | B140: =ParametryZateplení!$E$8 -> 1995 a dále | C140: strop pod půdou - 1995-2002 - požadovaná | D140: 1995 a dále-strop pod půdou - 1995-2002 - požadovaná | E140: 0.22 | F140: 0.3 | G140: 0.2 | H140: 0.12 | I140: střecha
A141: strop půdy | B141: =ParametryZateplení!$E$8 -> 1995 a dále | C141: strop pod půdou - po roce 2002 | D141: 1995 a dále-strop pod půdou - po roce 2002 | E141: 0.3 | F141: 0.3 | G141: 0.2 | H141: 0.12 | I141: střecha
A142: nevytápěný suterén | B142: =ParametryZateplení!$E$3 -> do 1920 | C142: stropy dřevěné trámové nad suterénem s dřevěnou podlahou | D142: do 1920-stropy dřevěné trámové nad suterénem s dřevěnou podlahou | E142: 0.9 | F142: 0.6 | G142: 0.4 | H142: 0.3 | I142: =$J$18 -> podlaha
A143: nevytápěný suterén | B143: =ParametryZateplení!$E$3 -> do 1920 | C143: stropy keramické do ocelových nosníků nad suterénem s dřevěnou podlahou | D143: do 1920-stropy keramické do ocelových nosníků nad suterénem s dřevěnou podlahou | E143: 1.2 | F143: 0.6 | G143: 0.4 | H143: 0.3 | I143: =$J$18 -> podlaha
A144: nevytápěný suterén | B144: =ParametryZateplení!$E$4 -> 1921 až 1945 | C144: stropy dřevěné trámové nad suterénem s dřevěnou podlahou | D144: 1921 až 1945-stropy dřevěné trámové nad suterénem s dřevěnou podlahou | E144: 0.9 | F144: 0.6 | G144: 0.4 | H144: 0.3 | I144: podlaha
A145: nevytápěný suterén | B145: =ParametryZateplení!$E$4 -> 1921 až 1945 | C145: stropy keramické do ocelových nosníků nad suterénem s dřevěnou podlahou | D145: 1921 až 1945-stropy keramické do ocelových nosníků nad suterénem s dřevěnou podlahou | E145: 1.2 | F145: 0.6 | G145: 0.4 | H145: 0.3 | I145: podlaha
A146: nevytápěný suterén | B146: =ParametryZateplení!$E$4 -> 1921 až 1945 | C146: stropy železobetonové nad suterénem s dřevěnou podlahou | D146: 1921 až 1945-stropy železobetonové nad suterénem s dřevěnou podlahou | E146: 1.6 | F146: 0.6 | G146: 0.4 | H146: 0.3 | I146: podlaha
A147: nevytápěný suterén | B147: =ParametryZateplení!$E$5 -> 1946 až 1960 | C147: stropy dřevěné trámové nad suterénem s dřevěnou podlahou | D147: 1946 až 1960-stropy dřevěné trámové nad suterénem s dřevěnou podlahou | E147: 0.9 | F147: 0.6 | G147: 0.4 | H147: 0.3 | I147: podlaha
A148: nevytápěný suterén | B148: =ParametryZateplení!$E$5 -> 1946 až 1960 | C148: stropy keramické do ocelových nosníků nad suterénem s dřevěnou podlahou | D148: 1946 až 1960-stropy keramické do ocelových nosníků nad suterénem s dřevěnou podlahou | E148: 1.2 | F148: 0.6 | G148: 0.4 | H148: 0.3 | I148: podlaha
A149: nevytápěný suterén | B149: =ParametryZateplení!$E$5 -> 1946 až 1960 | C149: stropy železobetonové nad suterénem s dřevěnou podlahou | D149: 1946 až 1960-stropy železobetonové nad suterénem s dřevěnou podlahou | E149: 1.6 | F149: 0.6 | G149: 0.4 | H149: 0.3 | I149: podlaha
A150: nevytápěný suterén | B150: =ParametryZateplení!$E$5 -> 1946 až 1960 | C150: stropy železobetonové nad suterénem s podlahou s PVC | D150: 1946 až 1960-stropy železobetonové nad suterénem s podlahou s PVC | E150: 1.6 | F150: 0.6 | G150: 0.4 | H150: 0.3 | I150: podlaha
A151: nevytápěný suterén | B151: =ParametryZateplení!$E$5 -> 1946 až 1960 | C151: stropy železobetonové panelové nad suterénem s podlahou s PVC | D151: 1946 až 1960-stropy železobetonové panelové nad suterénem s podlahou s PVC | E151: 1.4 | F151: 0.6 | G151: 0.4 | H151: 0.3 | I151: podlaha
A152: nevytápěný suterén | B152: =ParametryZateplení!$E$5 -> 1946 až 1960 | C152: stropy keramické z panelů a vložek nad suterénem s podlahou s PVC | D152: 1946 až 1960-stropy keramické z panelů a vložek nad suterénem s podlahou s PVC | E152: 0.9 | F152: 0.6 | G152: 0.4 | H152: 0.3 | I152: podlaha
A153: nevytápěný suterén | B153: =ParametryZateplení!$E$6 -> 1961 až 1980 | C153: stropy keramické do ocelových nosníků nad suterénem s dřevěnou podlahou | D153: 1961 až 1980-stropy keramické do ocelových nosníků nad suterénem s dřevěnou podlahou | E153: 1.2 | F153: 0.6 | G153: 0.4 | H153: 0.3 | I153: podlaha
A154: nevytápěný suterén | B154: =ParametryZateplení!$E$6 -> 1961 až 1980 | C154: stropy železobetonové nad suterénem s dřevěnou podlahou | D154: 1961 až 1980-stropy železobetonové nad suterénem s dřevěnou podlahou | E154: 1.6 | F154: 0.6 | G154: 0.4 | H154: 0.3 | I154: podlaha
A155: nevytápěný suterén | B155: =ParametryZateplení!$E$6 -> 1961 až 1980 | C155: stropy železobetonové nad suterénem s podlahou s PVC | D155: 1961 až 1980-stropy železobetonové nad suterénem s podlahou s PVC | E155: 1.6 | F155: 0.6 | G155: 0.4 | H155: 0.3 | I155: podlaha
A156: nevytápěný suterén | B156: =ParametryZateplení!$E$6 -> 1961 až 1980 | C156: stropy železobetonové panelové nad suterénem s podlahou s PVC | D156: 1961 až 1980-stropy železobetonové panelové nad suterénem s podlahou s PVC | E156: 1.4 | F156: 0.6 | G156: 0.4 | H156: 0.3 | I156: podlaha
A157: nevytápěný suterén | B157: =ParametryZateplení!$E$6 -> 1961 až 1980 | C157: stropy keramické z panelů a vložek nad suterénem s podlahou s PVC | D157: 1961 až 1980-stropy keramické z panelů a vložek nad suterénem s podlahou s PVC | E157: 0.9 | F157: 0.6 | G157: 0.4 | H157: 0.3 | I157: podlaha
A158: nevytápěný suterén | B158: =ParametryZateplení!$E$7 -> 1981 až 1994 | C158: stropy keramické do ocelových nosníků nad suterénem s dřevěnou podlahou | D158: 1981 až 1994-stropy keramické do ocelových nosníků nad suterénem s dřevěnou podlahou | E158: 1.2 | F158: 0.6 | G158: 0.4 | H158: 0.3 | I158: podlaha
A159: nevytápěný suterén | B159: =ParametryZateplení!$E$7 -> 1981 až 1994 | C159: stropy železobetonové nad suterénem s dřevěnou podlahou | D159: 1981 až 1994-stropy železobetonové nad suterénem s dřevěnou podlahou | E159: 1.6 | F159: 0.6 | G159: 0.4 | H159: 0.3 | I159: podlaha
A160: nevytápěný suterén | B160: =ParametryZateplení!$E$7 -> 1981 až 1994 | C160: stropy železobetonové nad suterénem s podlahou s PVC | D160: 1981 až 1994-stropy železobetonové nad suterénem s podlahou s PVC | E160: 1.6 | F160: 0.6 | G160: 0.4 | H160: 0.3 | I160: podlaha
A161: nevytápěný suterén | B161: =ParametryZateplení!$E$7 -> 1981 až 1994 | C161: stropy železobetonové panelové nad suterénem s podlahou s PVC | D161: 1981 až 1994-stropy železobetonové panelové nad suterénem s podlahou s PVC | E161: 1 | F161: 0.6 | G161: 0.4 | H161: 0.3 | I161: podlaha
A162: nevytápěný suterén | B162: =ParametryZateplení!$E$7 -> 1981 až 1994 | C162: stropy keramické z panelů a vložek nad suterénem s podlahou s PVC | D162: 1981 až 1994-stropy keramické z panelů a vložek nad suterénem s podlahou s PVC | E162: 0.9 | F162: 0.6 | G162: 0.4 | H162: 0.3 | I162: podlaha
A163: nevytápěný suterén | B163: =ParametryZateplení!$E$8 -> 1995 a dále | C163: podlaha nad nevytápěným prostorem do roku 2002 | D163: 1995 a dále-podlaha nad nevytápěným prostorem do roku 2002 | E163: 0.77 | F163: 0.6 | G163: 0.4 | H163: 0.3 | I163: podlaha
A164: nevytápěný suterén | B164: =ParametryZateplení!$E$8 -> 1995 a dále | C164: podlaha s podlahovým vytápěním lehká | D164: 1995 a dále-podlaha s podlahovým vytápěním lehká | E164: 0.24 | F164: 0.6 | G164: 0.4 | H164: 0.3 | I164: podlaha
A165: nevytápěný suterén | B165: =ParametryZateplení!$E$8 -> 1995 a dále | C165: podlaha s podlahovým vytápěním těžká | D165: 1995 a dále-podlaha s podlahovým vytápěním těžká | E165: 0.3 | F165: 0.6 | G165: 0.4 | H165: 0.3 | I165: podlaha
A166: nevytápěný suterén | B166: =ParametryZateplení!$E$8 -> 1995 a dále | C166: strop nad nevytápěným prostorem po roce 2002 | D166: 1995 a dále-strop nad nevytápěným prostorem po roce 2002 | E166: 0.6 | F166: 0.6 | G166: 0.4 | H166: 0.3 | I166: podlaha
A167: okna | B167: =ParametryZateplení!$E$3 -> do 1920 | C167: okna dřevěná špaletová se 2 skly | D167: do 1920-okna dřevěná špaletová se 2 skly | E167: 2.35 | F167: 1.5 | G167: 1.2 | H167: 0.9 | I167: =$J$19 -> okna
A168: okna | B168: =ParametryZateplení!$E$3 -> do 1920 | C168: okna dřevěná jednoduchá s 1 sklem | D168: do 1920-okna dřevěná jednoduchá s 1 sklem | E168: 4.5 | F168: 1.5 | G168: 1.2 | H168: 0.9 | I168: =$J$19 -> okna
A169: okna | B169: =ParametryZateplení!$E$3 -> do 1920 | C169: okna dřevěná zdvojená se 2 skly | D169: do 1920-okna dřevěná zdvojená se 2 skly | E169: 2.4 | F169: 1.5 | G169: 1.2 | H169: 0.9 | I169: okna
A170: okna | B170: =ParametryZateplení!$E$3 -> do 1920 | C170: okna kovová zdvojená se 2 skly | D170: do 1920-okna kovová zdvojená se 2 skly | E170: 3.3 | F170: 1.5 | G170: 1.2 | H170: 0.9 | I170: okna
A171: okna | B171: =ParametryZateplení!$E$3 -> do 1920 | C171: kopility | D171: do 1920-kopility | E171: 2.7 | F171: 1.5 | G171: 1.2 | H171: 0.9 | I171: okna
A172: okna | B172: =ParametryZateplení!$E$3 -> do 1920 | C172: sklobetonová stěna (luxfery) | D172: do 1920-sklobetonová stěna (luxfery) | E172: 3.1 | F172: 1.5 | G172: 1.2 | H172: 0.9 | I172: okna
A173: okna | B173: =ParametryZateplení!$E$3 -> do 1920 | C173: okna vyměněná před 2011 | D173: do 1920-okna vyměněná před 2011 | E173: 1.7 | F173: 1.5 | G173: 1.2 | H173: 0.9 | I173: okna
A174: okna | B174: =ParametryZateplení!$E$3 -> do 1920 | C174: okna vyměněná po roce 2011 | D174: do 1920-okna vyměněná po roce 2011 | E174: 1.5 | F174: 1.5 | G174: 1.2 | H174: 0.9 | I174: okna
A175: okna | B175: =ParametryZateplení!$E$4 -> 1921 až 1945 | C175: okna dřevěná špaletová se 2 skly | D175: 1921 až 1945-okna dřevěná špaletová se 2 skly | E175: 2.35 | F175: 1.5 | G175: 1.2 | H175: 0.9 | I175: okna
A176: okna | B176: =ParametryZateplení!$E$4 -> 1921 až 1945 | C176: okna dřevěná jednoduchá s 1 sklem | D176: 1921 až 1945-okna dřevěná jednoduchá s 1 sklem | E176: 4.5 | F176: 1.5 | G176: 1.2 | H176: 0.9 | I176: okna
A177: okna | B177: =ParametryZateplení!$E$4 -> 1921 až 1945 | C177: okna dřevěná zdvojená se 2 skly | D177: 1921 až 1945-okna dřevěná zdvojená se 2 skly | E177: 2.4 | F177: 1.5 | G177: 1.2 | H177: 0.9 | I177: okna
A178: okna | B178: =ParametryZateplení!$E$4 -> 1921 až 1945 | C178: okna kovová zdvojená se 2 skly | D178: 1921 až 1945-okna kovová zdvojená se 2 skly | E178: 3.3 | F178: 1.5 | G178: 1.2 | H178: 0.9 | I178: okna
A179: okna | B179: =ParametryZateplení!$E$4 -> 1921 až 1945 | C179: kopility | D179: 1921 až 1945-kopility | E179: 2.7 | F179: 1.5 | G179: 1.2 | H179: 0.9 | I179: okna
A180: okna | B180: =ParametryZateplení!$E$4 -> 1921 až 1945 | C180: sklobetonová stěna (luxfery) | D180: 1921 až 1945-sklobetonová stěna (luxfery) | E180: 3.1 | F180: 1.5 | G180: 1.2 | H180: 0.9 | I180: okna
A181: okna | B181: =ParametryZateplení!$E$4 -> 1921 až 1945 | C181: okna vyměněná před 2011 | D181: 1921 až 1945-okna vyměněná před 2011 | E181: 1.7 | F181: 1.5 | G181: 1.2 | H181: 0.9 | I181: okna
A182: okna | B182: =ParametryZateplení!$E$4 -> 1921 až 1945 | C182: okna vyměněná po roce 2011 | D182: 1921 až 1945-okna vyměněná po roce 2011 | E182: 1.5 | F182: 1.5 | G182: 1.2 | H182: 0.9 | I182: okna
A183: okna | B183: =ParametryZateplení!$E$5 -> 1946 až 1960 | C183: okna dřevěná špaletová se 2 skly | D183: 1946 až 1960-okna dřevěná špaletová se 2 skly | E183: 2.35 | F183: 1.5 | G183: 1.2 | H183: 0.9 | I183: okna
A184: okna | B184: =ParametryZateplení!$E$5 -> 1946 až 1960 | C184: okna dřevěná jednoduchá s 1 sklem | D184: 1946 až 1960-okna dřevěná jednoduchá s 1 sklem | E184: 4.5 | F184: 1.5 | G184: 1.2 | H184: 0.9 | I184: okna
A185: okna | B185: =ParametryZateplení!$E$5 -> 1946 až 1960 | C185: okna dřevěná zdvojená se 2 skly | D185: 1946 až 1960-okna dřevěná zdvojená se 2 skly | E185: 2.4 | F185: 1.5 | G185: 1.2 | H185: 0.9 | I185: okna
A186: okna | B186: =ParametryZateplení!$E$5 -> 1946 až 1960 | C186: okna kovová zdvojená se 2 skly | D186: 1946 až 1960-okna kovová zdvojená se 2 skly | E186: 3.3 | F186: 1.5 | G186: 1.2 | H186: 0.9 | I186: okna
A187: okna | B187: =ParametryZateplení!$E$5 -> 1946 až 1960 | C187: kopility | D187: 1946 až 1960-kopility | E187: 2.7 | F187: 1.5 | G187: 1.2 | H187: 0.9 | I187: okna
A188: okna | B188: =ParametryZateplení!$E$5 -> 1946 až 1960 | C188: sklobetonová stěna (luxfery) | D188: 1946 až 1960-sklobetonová stěna (luxfery) | E188: 3.1 | F188: 1.5 | G188: 1.2 | H188: 0.9 | I188: okna
A189: okna | B189: =ParametryZateplení!$E$5 -> 1946 až 1960 | C189: okna vyměněná před 2011 | D189: 1946 až 1960-okna vyměněná před 2011 | E189: 1.7 | F189: 1.5 | G189: 1.2 | H189: 0.9 | I189: okna
A190: okna | B190: =ParametryZateplení!$E$5 -> 1946 až 1960 | C190: okna vyměněná po roce 2011 | D190: 1946 až 1960-okna vyměněná po roce 2011 | E190: 1.5 | F190: 1.5 | G190: 1.2 | H190: 0.9 | I190: okna
A191: okna | B191: =ParametryZateplení!$E$6 -> 1961 až 1980 | C191: okna dřevěná špaletová se 2 skly | D191: 1961 až 1980-okna dřevěná špaletová se 2 skly | E191: 2.35 | F191: 1.5 | G191: 1.2 | H191: 0.9 | I191: okna
A192: okna | B192: =ParametryZateplení!$E$6 -> 1961 až 1980 | C192: okna dřevěná jednoduchá s 1 sklem | D192: 1961 až 1980-okna dřevěná jednoduchá s 1 sklem | E192: 4.5 | F192: 1.5 | G192: 1.2 | H192: 0.9 | I192: okna
A193: okna | B193: =ParametryZateplení!$E$6 -> 1961 až 1980 | C193: okna dřevěná zdvojená se 2 skly | D193: 1961 až 1980-okna dřevěná zdvojená se 2 skly | E193: 2.4 | F193: 1.5 | G193: 1.2 | H193: 0.9 | I193: okna
A194: okna | B194: =ParametryZateplení!$E$6 -> 1961 až 1980 | C194: okna kovová zdvojená se 2 skly | D194: 1961 až 1980-okna kovová zdvojená se 2 skly | E194: 3.3 | F194: 1.5 | G194: 1.2 | H194: 0.9 | I194: okna
A195: okna | B195: =ParametryZateplení!$E$6 -> 1961 až 1980 | C195: kopility | D195: =CONCATENATE(B195,"-",C195) -> 1961 až 1980-kopility | E195: 2.7 | F195: 1.5 | G195: 1.2 | H195: 0.9 | I195: okna
A196: okna | B196: =ParametryZateplení!$E$6 -> 1961 až 1980 | C196: sklobetonová stěna (luxfery) | D196: =CONCATENATE(B196,"-",C196) -> 1961 až 1980-sklobetonová stěna (luxfery) | E196: 3.1 | F196: 1.5 | G196: 1.2 | H196: 0.9 | I196: okna
A197: okna | B197: =ParametryZateplení!$E$6 -> 1961 až 1980 | C197: okna vyměněná před 2011 | D197: =CONCATENATE(B197,"-",C197) -> 1961 až 1980-okna vyměněná před 2011 | E197: 1.7 | F197: 1.5 | G197: 1.2 | H197: 0.9 | I197: okna
A198: okna | B198: =ParametryZateplení!$E$6 -> 1961 až 1980 | C198: okna vyměněná po roce 2011 | D198: =CONCATENATE(B198,"-",C198) -> 1961 až 1980-okna vyměněná po roce 2011 | E198: 1.5 | F198: 1.5 | G198: 1.2 | H198: 0.9 | I198: okna
A199: okna | B199: =ParametryZateplení!$E$7 -> 1981 až 1994 | C199: okna dřevěná zdvojená se 2 skly | D199: 1981 až 1994-okna dřevěná zdvojená se 2 skly | E199: 2.4 | F199: 1.5 | G199: 1.2 | H199: 0.9 | I199: okna
A200: okna | B200: =ParametryZateplení!$E$7 -> 1981 až 1994 | C200: okna dřevěná jednoduchá s izolačním dvojsklem | D200: 1981 až 1994-okna dřevěná jednoduchá s izolačním dvojsklem | E200: 2.5 | F200: 1.5 | G200: 1.2 | H200: 0.9 | I200: okna
A201: okna | B201: =ParametryZateplení!$E$7 -> 1981 až 1994 | C201: okna kovová zdvojená se 2 skly | D201: 1981 až 1994-okna kovová zdvojená se 2 skly | E201: 2.8 | F201: 1.5 | G201: 1.2 | H201: 0.9 | I201: okna
A202: okna | B202: =ParametryZateplení!$E$7 -> 1981 až 1994 | C202: okna kovová jednoduchá s izolačním dvojsklem | D202: 1981 až 1994-okna kovová jednoduchá s izolačním dvojsklem | E202: 3.2 | F202: 1.5 | G202: 1.2 | H202: 0.9 | I202: okna
... 102 more rows

Sheet Budova_Opatření (hidden)
B2: opatření | C2: Lambda | D2: Delta U | H2: Výběr | I2: Index | J2: Lambda | K2: Delta U
A3: stěny | B3: zateplení kontaktní systém, MV | C3: 0.042 | D3: 0.02 | G3: stěny | H3: =IF(ISBLANK(Zateplení!F43),"",Zateplení!F43) ->  | I3: =IF(ISBLANK(Zateplení!F43),0,MATCH(Zateplení!F43,B$3:$B$13,0)) -> 0 | J3: =IF($I3=0,0,INDEX(C$3:C$13,$I3)) -> 0 | K3: =IF($I3=0,0,INDEX(D$3:D$13,$I3)) -> 0
A4: stěny | B4: zateplení kontaktní systém, EPS | C4: 0.04 | D4: 0.02 | G4: plochá střecha | H4: =IF(Budova!$J$1=1,IF(ISBLANK(Zateplení!F51),"",Zateplení!F51),"") ->  | I4: =IFERROR(IF(Budova!$J$1=1,IF(ISBLANK(Zateplení!F51),0,MATCH(Zateplení!F51,CHOOSE(Budova!$J$1,B$14:$B$19,$B$20:$B$23,$B$24:$B$27),0)),0),0) -> 0 | J4: =IF($I4=0,0,INDEX(CHOOSE(Budova!$J$1,C$14:C$19,C$20:C$23,C$24:C$27),$I4)) -> 0 | K4: =IF($I4=0,0,INDEX(CHOOSE(Budova!$J$1,D$14:D$19,D$20:D$23,D$24:D$27),$I4)) -> 0
A5: stěny | B5: zateplení kontaktní systém, šedý polystyren | C5: 0.034 | D5: 0.02 | G5: šikmá střecha | H5: =IF(Budova!$J$1=2,IF(ISBLANK(Zateplení!F51),"",Zateplení!F51),"") ->  | I5: =IFERROR(IF(Budova!$J$1=2,IF(ISBLANK(Zateplení!F51),0,MATCH(Zateplení!F51,CHOOSE(Budova!$J$1,B$14:$B$19,$B$20:$B$23,$B$24:$B$27),0)),0),0) -> 0 | J5: =IF($I5=0,0,INDEX(CHOOSE(Budova!$J$1,C$14:C$19,C$20:C$23,C$24:C$27),$I5)) -> 0 | K5: =IF($I5=0,0,INDEX(CHOOSE(Budova!$J$1,D$14:D$19,D$20:D$23,D$24:D$27),$I5)) -> 0
A6: stěny | B6: zateplení kontaktní systém, XPS | C6: 0.035 | D6: 0.02 | G6: strop půdy | H6: =IF(Budova!$J$1=3,IF(ISBLANK(Zateplení!F51),"",Zateplení!F51),"") ->  | I6: =IFERROR(IF(Budova!$J$1=3,IF(ISBLANK(Zateplení!F51),0,MATCH(Zateplení!F51,CHOOSE(Budova!$J$1,B$14:$B$19,$B$20:$B$23,$B$24:$B$27),0)),0),0) -> 0 | J6: =IF($I6=0,0,INDEX(CHOOSE(Budova!$J$1,C$14:C$19,C$20:C$23,C$24:C$27),$I6)) -> 0 | K6: =IF($I6=0,0,INDEX(CHOOSE(Budova!$J$1,D$14:D$19,D$20:D$23,D$24:D$27),$I6)) -> 0
A7: stěny | B7: zateplení kontaktní systém, fenolová pěna | C7: 0.023 | D7: 0.02 | G7: nevytápěný suterén | H7: =IF(Budova!$L$1=1,IF(ISBLANK(Zateplení!F59),"",Zateplení!F59),"") ->  | I7: =IFERROR(IF(Budova!$L$1=1,IF(ISBLANK(Zateplení!F59),0,MATCH(Zateplení!F59,CHOOSE(Budova!$L$1,$B$28:$B$34,$B$35:$B$38),0)),0),0) -> 0 | J7: =IF($I7=0,0,INDEX(CHOOSE(Budova!$J$1,C$14:C$19,C$20:C$23,C$24:C$27),$I7)) -> 0 | K7: =IF($I7=0,0,INDEX(CHOOSE(Budova!$J$1,D$14:D$19,D$20:D$23,D$24:D$27),$I7)) -> 0
A8: stěny | B8: zateplení, minerální tepelně-izolační desky (Multipor) | C8: 0.045 | D8: 0.02 | G8: podlaha na zemině | H8: =IF(Budova!$L$1=2,IF(ISBLANK(Zateplení!F59),"",Zateplení!F59),"") ->  | I8: =IFERROR(IF(Budova!$L$1=2,IF(ISBLANK(Zateplení!F59),0,MATCH(Zateplení!F59,CHOOSE(Budova!$L$1,$B$28:$B$34,$B$35:$B$38),0)),0),0) -> 0 | J8: =IF($I8=0,0,INDEX(CHOOSE(Budova!$J$1,C$14:C$19,C$20:C$23,C$24:C$27),$I8)) -> 0 | K8: =IF($I8=0,0,INDEX(CHOOSE(Budova!$J$1,D$14:D$19,D$20:D$23,D$24:D$27),$I8)) -> 0
A9: stěny | B9: zateplení PUR panel | C9: 0.023 | D9: 0.02 | G9: okna | H9: =IF(ISBLANK(Zateplení!F67),"",Zateplení!F67) ->  | I9: =IF(ISBLANK(Zateplení!F67),0,MATCH(Zateplení!F67,B$39:$B$48,0)) -> 0
A10: stěny | B10: zateplení panel z MV | C10: 0.042 | D10: 0.02 | G10: dveře-vrata | H10: =IF(ISBLANK(Zateplení!F73),"",Zateplení!F73) ->  | I10: =IF(ISBLANK(Zateplení!F73),0,MATCH(Zateplení!F73,B$49:$B$52,0)) -> 0
A11: stěny | B11: zateplení skládaný plášť s obkladem, izolace MV | C11: 0.042 | D11: 0.05 | G11: střešní okna-světlíky | H11: =IF(ISBLANK(Zateplení!F79),"",Zateplení!F79) ->  | I11: =IF(ISBLANK(Zateplení!F79),0,MATCH(Zateplení!F79,B$53:$B$59,0)) -> 0
A12: stěny | B12: zateplení skládaný plášť s obkladem, izolace EPS | C12: 0.039 | D12: 0.05
A13: stěny | B13: zateplení skládaný plášť s obkladem, izolace PUR | C13: 0.023 | D13: 0.02 | G13: stěny | J13: =IFERROR(J3,0) -> 0 | K13: =IFERROR(K3,0) -> 0
A14: plochá střecha | B14: zateplení ploché střechy, MV | C14: 0.04 | D14: 0.02 | G14: střecha | J14: =IFERROR(MAX(J4:J6),0) -> 0 | K14: =IFERROR(MAX(K4:K6),0) -> 0
A15: plochá střecha | B15: zateplení ploché střechy, EPS | C15: 0.039 | D15: 0.02 | G15: podlaha | J15: =IFERROR(MAX(J7:J8),0) -> 0 | K15: =IFERROR(MAX(K7:K8),0) -> 0
A16: plochá střecha | B16: zateplení ploché střechy, XPS | C16: 0.034 | D16: 0.02
A17: plochá střecha | B17: zateplení ploché střechy, polyuretan | C17: 0.025 | D17: 0.02
A18: plochá střecha | B18: zateplení ploché střechy, polyuretan - minerální rouno | C18: 0.03 | D18: 0.02
A19: plochá střecha | B19: zateplení ploché střechy, pěnové sklo | C19: 0.041 | D19: 0.02
A20: šikmá střecha | B20: zateplení šikmé střechy mezi a pod krokve, MV | C20: 0.05 | D20: 0
A21: šikmá střecha | B21: zateplení šikmé střechy mezi a pod krokve, celulózovou izolací | C21: 0.05 | D21: 0
A22: šikmá střecha | B22: zateplení šikmé střechy nad krokve, polyuretan | C22: 0.025 | D22: 0.02
A23: šikmá střecha | B23: zateplení šikmé střechy nad krokve, polystyren | C23: 0.035 | D23: 0.02
A24: strop půdy | B24: zateplení stropu půdy MV - volně ložená | C24: 0.04 | D24: 0.02
A25: strop půdy | B25: zateplení stropu půdy EPS - volně ložený | C25: 0.039 | D25: 0.02
A26: strop půdy | B26: zateplení stropu půdy MV - pochozí úprava | C26: 0.05 | D26: 0.02
A27: strop půdy | B27: zateplení stropu půdy EPS - pochozí úprava | C27: 0.046 | D27: 0.02
A28: nevytápěný suterén | B28: zateplení stropu, MV | C28: 0.04 | D28: 0.05
A29: nevytápěný suterén | B29: zateplení stropu, EPS | C29: 0.039 | D29: 0.05
A30: nevytápěný suterén | B30: zateplení stropu, XPS | C30: 0.034 | D30: 0.05
A31: nevytápěný suterén | B31: zateplení stropu, polyuretan | C31: 0.025 | D31: 0.05
A32: nevytápěný suterén | B32: zateplení stropu, šedý polystyren | C32: 0.034 | D32: 0.05
A33: nevytápěný suterén | B33: zateplení stropu celulózovou izolací | C33: 0.039 | D33: 0.05
A34: nevytápěný suterén | B34: zateplení, minerální tepelně-izolační desky (Multipor) | C34: 0.045 | D34: 0.05
A35: podlaha na zemině | B35: zateplení v konstrukci podlahy, EPS | C35: 0.044 | D35: 0.02
A36: podlaha na zemině | B36: zateplení v konstrukci podlahy, XPS | C36: 0.033 | D36: 0.02
A37: podlaha na zemině | B37: zateplení v konstrukci podlahy, šedý polystyren | C37: 0.032 | D37: 0.02
A38: podlaha na zemině | B38: zateplení v konstrukci podlahy, pěnové sklo | C38: 0.048 | D38: 0.02
A39: okna | B39: plastová s izolačním dvojsklem
A40: okna | B40: dřevěná s izolačním dvojsklem
A41: okna | B41: kovová s přerušeným tepelným mostem s izolačním dvojsklem
A42: okna | B42: dřevo-hliníková s izolačním dvojsklem
A43: okna | B43: plast-hliníková s izolačním dvojsklem
A44: okna | B44: dřevěná s izolačním trojsklem
A45: okna | B45: plastová s izolačním trojsklem
A46: okna | B46: kovová s přerušeným tepelným mostem s izolačním trojsklem
A47: okna | B47: dřevo-hliníková s izolačním trojsklem
A48: okna | B48: plast-hliníková s izolačním trojsklem
A49: dveře-vrata | B49: dveře dřevěné
A50: dveře-vrata | B50: dveře kovové
A51: dveře-vrata | B51: dveře plastové
A52: dveře-vrata | B52: vrata tepelně izolační
A53: střešní okna-světlíky | B53: plastová s izolačním dvojsklem
A54: střešní okna-světlíky | B54: dřevěná s izolačním dvojsklem
A55: střešní okna-světlíky | B55: kovová s přerušeným tepelným mostem s izolačním dvojsklem
A56: střešní okna-světlíky | B56: plastová s izolačním trojsklem
A57: střešní okna-světlíky | B57: dřevěná s izolačním trojsklem
A58: střešní okna-světlíky | B58: kovová s přerušeným tepelným mostem s izolačním trojsklem
A59: střešní okna-světlíky | B59: střešní světlíky

Sheet ParametryRekuperace (hidden)
A1: Minimální účinnost rekuperace [%] | B1: 0.67

Sheet ParametryZdroje (hidden)
B1: Starý zdroj
A3: Index vybraného typu zdroje | B3: =IFERROR(MATCH(Zdroj!E4,B7:G7,0),0) -> 0
A4: Počet nositelů energie vybraného zdroje | B4: =INDEX($B$5:$G$5,1,B3) -> 4 | C4: 1 | D4: 1 | E4: 1 | F4: 1 | G4: 7 | M4: Index paliva | N4: =MATCH(Zdroj!I6,TStarýKotelHelp[Nositel],0) -> 
A5: Počet nositelů energie | B5: =COUNTA(TStaréKotle[kotel na tuhá paliva]) -> 4 | C5: =COUNTA(TStaréKotle[kotel na zemní plyn]) -> 1 | D5: =COUNTA(TStaréKotle[elektrokotel]) -> 1 | E5: =COUNTA(TStaréKotle[kotel na topný olej]) -> 1 | F5: =COUNTA(TStaréKotle[tepelné čerpadlo]) -> 1 | G5: =COUNTA(TStaréKotle[centrální zásobování teplem]) -> 7 | M5: Jednotka | N5: =IFERROR(IF(ZdrojIdxOld=6,"GJ",INDEX(TStarýKotelHelp[Jednotka],N4)),"") -> 
A6: Vybraný nositel energie je v daném sloupci | B6: =IFERROR(MATCH(Zdroj!$E$6,TStaréKotle[kotel na tuhá paliva],0),0)>0 -> FALSE | C6: =IFERROR(MATCH(Zdroj!$E$6,TStaréKotle[kotel na zemní plyn],0),0)>0 -> FALSE | D6: =IFERROR(MATCH(Zdroj!$E$6,TStaréKotle[elektrokotel],0),0)>0 -> FALSE | E6: =IFERROR(MATCH(Zdroj!$E$6,TStaréKotle[kotel na topný olej],0),0)>0 -> FALSE | F6: =IFERROR(MATCH(Zdroj!$E$6,TStaréKotle[tepelné čerpadlo],0),0)>0 -> FALSE | G6: =IFERROR(MATCH(Zdroj!$E$6,TStaréKotle[centrální zásobování teplem],0),0)>0 -> FALSE | I6: =IFERROR(MATCH(Zdroj!E5,TStáříKotle[Stáří kotle],0),0) -> 0 | K6: =IF(ISBLANK(Zdroj!E7),0,MATCH(Zdroj!E7,TTypSZT[typ SZT],0)) -> 0 | M6: Text | N6: =IFERROR(IF(ZdrojIdxOld=6,"tepla",INDEX(TStarýKotelHelp[Text],N4)),"") ->  | U6: Účinnost vybraného zdroje | V6: =IF(AND(ZdrojIdxOld>0,I6>0),INDEX(TEtaZdrojOld[[kotel na tuhá paliva]:[centrální zásobování teplem]],I6,ZdrojIdxOld),0) -> 0
A7: Paliva vybraného zdroje | B7: kotel na tuhá paliva | C7: kotel na zemní plyn | D7: elektrokotel | E7: kotel na topný olej | F7: tepelné čerpadlo | G7: centrální zásobování teplem | I7: Stáří kotle | K7: typ SZT | M7: Nositel | N7: Jednotka | O7: Text | V7: Období | W7: kotel na tuhá paliva | X7: kotel na zemní plyn | Y7: elektrokotel | Z7: kotel na topný olej | AA7: tepelné čerpadlo | AB7: centrální zásobování teplem
A8: =ADDRESS(ROW(),COLUMN()+ZdrojIdxOld,1,1,"ParametryZdroje") & ":" & ADDRESS(ROW(A8)+ZdrojPočetPaliv-1,COLUMN()+ZdrojIdxOld,1,1) -> ParametryZdroje!$A$8:$A$11 | B8: hnědé uhlí | C8: zemní plyn | D8: elektřina | E8: topný olej | F8: elektřina | G8: zemní plyn | I8: před 1980 | K8: účinná SZT | M8: černé uhlí | N8: kg | O8: paliva | Q8: Minimální účinnost starého zdroje | R8: [%] | S8: 0.05 | V8: před 1980 | W8: 0.6 | X8: 0.65 | Y8: 0.95 | Z8: 0.6 | AA8: 1.5 | AB8: 1
B9: černé uhlí | G9: hnědé uhlí | I9: 1980-2000 | K9: ostatní SZT | M9: elektřina | N9: kWh | O9: elektřiny | Q9: Maximální účinnost starého zdroje | R9: [%] | S9: 0.95 | V9: 1980-2000 | W9: 0.72 | X9: 0.8 | Y9: 0.95 | Z9: 0.72 | AA9: 2 | AB9: 1
B10: palivové dřevo | G10: černé uhlí | I10: 2000-2010 | M10: hnědé uhlí | N10: kg | O10: paliva | Q10: Minimální COP starého TČ | R10: [1] | S10: 1 | V10: 2000-2010 | W10: 0.77 | X10: 0.85 | Y10: 0.95 | Z10: 0.77 | AA10: 2.5 | AB10: 1
B11: pelety | G11: palivové dřevo | I11: 2010 a novější | M11: palivové dřevo | N11: kg | O11: paliva | Q11: Maximální COP starého TČ | R11: [1] | S11: 6 | V11: 2010 a novější | W11: 0.79 | X11: 0.92 | Y11: 0.98 | Z11: 0.79 | AA11: 3 | AB11: 1
G12: pelety | M12: pelety | N12: kg | O12: paliva
G13: elektřina | M13: topný olej | N13: l | O13: paliva
G14: topný olej | M14: zemní plyn | N14: m3 | O14: paliva
A16: Výsledná účinnost: | B16: =IF(ZdrojIdxOld=5,Zdroj!I12,Zdroj!I10) -> 0
B21: Nový zdroj
A23: Index vybraného typu zdroje | B23: =IFERROR(MATCH(Zdroj!E16,TNovýKotel[kotel],0),0) -> 0
A24: Vstupní nositel energie | B24: =IF(ZdrojIdxNew<>0,INDEX(TNovýKotel[palivo],B23),"") -> 
A25: Minimální účiinost | B25: =IF(ZdrojIdxNew<>0,INDEX(TNovýKotel[minimální účinnost],B23),0) -> 0
A26: Defaultní účinnost | B26: =IF(ZdrojIdxNew<>0,INDEX(TNovýKotel[defaultní účinnost],B23),0) -> 0
A27: Maximální účinnost | B27: =IF(ZdrojIdxNew<>0,INDEX(TNovýKotel[maximální ůčinnost],B23),0) -> 0
A28: Maximální výkon | B28: =IF(ZdrojIdxNew<>0,INDEX(TNovýKotel[maximální výkon],B23),0) -> 0
B29: kotel | C29: palivo | D29: minimální účinnost | E29: defaultní účinnost | F29: maximální ůčinnost | G29: maximální výkon
B30: kotel na štěpku, pelety nebo brikety | C30: pelety | D30: 0.8 | E30: 0.81 | F30: 1.11 | G30: 5000
B31: kotel na odpadní dřevo | C31: odpadní dřevo | D31: 0.8 | E31: 0.81 | F31: 1.11 | G31: 5000
B32: kotel na bioplyn | C32: bioplyn | D32: 0.8 | E32: 0.92 | F32: 1.11 | G32: 5000
B33: tepelné čerpadlo | C33: elektřina | D33: 2.8 | E33: 3 | F33: 6 | G33: 50000
A36: Výsledná účinnost: | B36: =IF(ZdrojIdxNew=4,Zdroj!I21,Zdroj!I18) -> 0

Sheet Nositele (hidden)
C1: Nositel | D1: Jednotka | E1: LHV | F1: Jednotka LHV | G1: EF CO2 [kg CO2/GJ] | H1: Cena | I1: Jednotka ceny | J1: Rozmezí ceny | K1: TZL_t | L1: Jednotka TZL_t | M1: TZL_kg | N1: Jednotka TZL_kg | O1: PM10 [%] | P1: PM2,5 [%] | Q1: idx
C2: hnědé uhlí | D2: kg | E2: 0.018 | F2: GJ/kg | G2: 99.1 | H2: 3.4 | I2: Kč/kg | J2: 3,4 Kč/kg | K2: 0.704 | L2: TZL kg/t | M2: =K2/1000 -> 0.000704 | N2: kg/kg | O2: 0.995 | P2: 0.952 | Q2: 1
C3: černé uhlí | D3: kg | E3: 0.031 | F3: GJ/kg | G3: 92.4 | H3: 5.5 | I3: Kč/kg | J3: 5,5 Kč/kg | K3: 1.23 | L3: TZL kg/t | M3: =K3/1000 -> 0.00123 | N3: kg/kg | O3: 0.998 | P3: 0.981 | Q3: 2
C4: palivové dřevo | D4: kg | E4: 0.014 | F4: GJ/kg | G4: 0 | H4: 3.5 | I4: Kč/kg | J4: 3,5 Kč/kg | K4: 2.12 | L4: TZL kg/t | M4: =K4/1000 -> 0.00212 | N4: kg/kg | O4: 0.998 | P4: 0.991 | Q4: 3
C5: pelety | D5: kg | E5: 0.017 | F5: GJ/kg | G5: 0 | H5: 5.4 | I5: Kč/kg | J5: 5,4 Kč/kg | K5: 0.264 | L5: kg/t | M5: =K5/1000 -> 0.000264 | N5: kg/kg | O5: 0.998 | P5: 0.988 | Q5: 4
C6: zemní plyn | D6: m3 | E6: 0.034 | F6: GJ/m3 | G6: 55.4 | H6: 10 | I6: Kč/m3 | J6: 10 Kč/m3 6,28-18,66 Kč za 1 m3 | K6: 6.9 | L6: TZL kg/10^6m3 | M6: =K6/1000000 -> 6.9e-06 | N6: kg/m3 | O6: 1 | P6: 1 | Q6: 5
C7: elektřina | D7: kWh | E7: 0.0036 | F7: GJ/kWh | G7: 239 | H7: 2.67 | I7: Kč/kWh | J7: 2,67 Kč/kWh akumulace 2,29-3,47, přímotop 2,67-2,86 Kč/kWh | K7: 0.0368 | L7: kg/MWh | M7: =K7/1000 -> 3.68e-05 | N7: kg/kWh | O7: 0.85 | P7: 0.65 | Q7: 6
C8: topný olej | D8: l | E8: =0.041*0.845 -> 0.034645 | F8: GJ/l | G8: 73.3 | H8: 29.83 | I8: Kč/l | J8: 29,83 Kč/l | K8: 0.064 | L8: kg/t | M8: =K8/1000*0.92 -> 5.888e-05 | N8: kg/l | O8: 0.93 | P8: 0.67 | Q8: 7
C9: odpadní dřevo | D9: kg | E9: 0.017 | F9: GJ/kg | G9: 0 | H9: 0 | I9: Kč/kg | J9: 0 Kč/kg | K9: 2.12 | L9: TZL kg/t | M9: =K9/1000 -> 0.00212 | N9: kg/kg | O9: 0.998 | P9: 0.991 | Q9: 8
C10: bioplyn | D10: m3 | E10: 0.034 | F10: GJ/m3 | G10: 0 | H10: 0 | I10: Kč/m3 | J10: 0 Kč/m3 - bioplyn z vlastního zdroje | K10: 6.9 | L10: TZL kg/10^6m3 | M10: =K10/1000000 -> 6.9e-06 | N10: kg/m3 | O10: 1 | P10: 1 | Q10: 9
C11: elektřina ostatní | D11: kWh | E11: 0.0036 | F11: GJ/kWh | G11: 281 | H11: 5 | I11: Kč/kWh | J11: 5 Kč/kWh | K11: 0.0368 | L11: kg/MWh | M11: =K11/1000 -> 3.68e-05 | N11: kg/kWh | O11: 0.85 | P11: 0.65 | Q11: 10
C12: teplo | D12: GJ | E12: 1 | F12: GJ/GJ | H12: 400 | I12: Kč/GJ | Q12: 11
A14: Zdroj | B14: Index | C14: Nositel | D14: Jednotka | E14: LHV | F14: Jednotka LHV | G14: EF CO2 [kg CO2/GJ] | H14: Cena | I14: Jednotka ceny | J14: Rozmezí ceny | K14: TZL_t | L14: Jednotka TZL_t | M14: TZL_kg | N14: Jednotka TZL_kg | O14: PM10 [%] | P14: PM2,5 [%]
A15: zdroj budova | B15: =IF(je_zdroj,0,MATCH(C15,TNositele[Nositel],0)) ->  | C15: =IF(je_zdroj,"",Zateplení!J14) ->  | D15: =IF(je_zdroj,"",INDEX(TNositele[Jednotka],$B15)) ->  | E15: =IF(je_zdroj,0,INDEX(TNositele[LHV],$B15)) ->  | F15: =IF(je_zdroj,"",INDEX(TNositele[Jednotka LHV],$B15)) ->  | G15: =IF(je_zdroj,0,INDEX(TNositele[EF CO2 '[kg CO2/GJ']],$B15)) ->  | H15: =IF(je_zdroj,0,INDEX(TNositele[Cena],$B15)) ->  | I15: =IF(je_zdroj,"",INDEX(TNositele[Jednotka ceny],$B15)) ->  | J15: =IF(je_zdroj,"",INDEX(TNositele[Rozmezí ceny],$B15)) ->  | K15: =IF(je_zdroj,0,INDEX(TNositele[TZL_t],$B15)) ->  | L15: =IF(je_zdroj,"",INDEX(TNositele[Jednotka TZL_t],$B15)) ->  | M15: =IF(je_zdroj,0,INDEX(TNositele[TZL_kg],$B15)) ->  | N15: =IF(je_zdroj,"",INDEX(TNositele[Jednotka TZL_kg],$B15)) ->  | O15: =IF(je_zdroj,0,INDEX(TNositele[PM10 '[%']],$B15)) ->  | P15: =IF(je_zdroj,0,INDEX(TNositele[PM2,5 '[%']],$B15)) -> 
A16: zdroj starý | B16: =IF(je_zdroj,MATCH(C16,TNositele[Nositel],0),0) -> 0 | C16: =IF(je_zdroj,Zdroj!I6,"") ->  | D16: =IF(NOT(je_zdroj),"",INDEX(TNositele[Jednotka],$B16)) ->  | E16: =IF(NOT(je_zdroj),0,INDEX(TNositele[LHV],$B16)) -> 0 | F16: =IF(NOT(je_zdroj),"",INDEX(TNositele[Jednotka LHV],$B16)) ->  | G16: =IF(NOT(je_zdroj),0,INDEX(TNositele[EF CO2 '[kg CO2/GJ']],$B16)) -> 0 | H16: =IF(NOT(je_zdroj),0,INDEX(TNositele[Cena],$B16)) -> 0 | I16: =IF(NOT(je_zdroj),"",INDEX(TNositele[Jednotka ceny],$B16)) ->  | J16: =IF(NOT(je_zdroj),"",INDEX(TNositele[Rozmezí ceny],$B16)) ->  | K16: =IF(NOT(je_zdroj),0,INDEX(TNositele[TZL_t],$B16)) -> 0 | L16: =IF(NOT(je_zdroj),"",INDEX(TNositele[Jednotka TZL_t],$B16)) ->  | M16: =IF(NOT(je_zdroj),0,INDEX(TNositele[TZL_kg],$B16)) -> 0 | N16: =IF(NOT(je_zdroj),"",INDEX(TNositele[Jednotka TZL_kg],$B16)) ->  | O16: =IF(NOT(je_zdroj),0,INDEX(TNositele[PM10 '[%']],$B16)) -> 0 | P16: =IF(NOT(je_zdroj),0,INDEX(TNositele[PM2,5 '[%']],$B16)) -> 0
A17: zdroj nový | B17: =IF(je_zdroj,MATCH(C17,TNositele[Nositel],0),0) -> 0 | C17: =IF(je_zdroj,ParametryZdroje!B24,"") ->  | D17: =IF(NOT(je_zdroj),"",INDEX(TNositele[Jednotka],$B17)) ->  | E17: =IF(NOT(je_zdroj),0,INDEX(TNositele[LHV],$B17)) -> 0 | F17: =IF(NOT(je_zdroj),"",INDEX(TNositele[Jednotka LHV],$B17)) ->  | G17: =IF(NOT(je_zdroj),0,INDEX(TNositele[EF CO2 '[kg CO2/GJ']],$B17)) -> 0 | H17: =IF(NOT(je_zdroj),0,INDEX(TNositele[Cena],$B17)) -> 0 | I17: =IF(NOT(je_zdroj),"",INDEX(TNositele[Jednotka ceny],$B17)) ->  | J17: =IF(NOT(je_zdroj),"",INDEX(TNositele[Rozmezí ceny],$B17)) ->  | K17: =IF(NOT(je_zdroj),0,INDEX(TNositele[TZL_t],$B17)) -> 0 | L17: =IF(NOT(je_zdroj),"",INDEX(TNositele[Jednotka TZL_t],$B17)) ->  | M17: =IF(NOT(je_zdroj),0,INDEX(TNositele[TZL_kg],$B17)) -> 0 | N17: =IF(NOT(je_zdroj),"",INDEX(TNositele[Jednotka TZL_kg],$B17)) ->  | O17: =IF(NOT(je_zdroj),0,INDEX(TNositele[PM10 '[%']],$B17)) -> 0 | P17: =IF(NOT(je_zdroj),0,INDEX(TNositele[PM2,5 '[%']],$B17)) -> 0
A18: CZT budova | B18: =IF(je_zdroj,0,MATCH(C15,TNositele[Nositel],0)) ->  | C18: =IF(je_zdroj,"",Zateplení!J14) ->  | D18: =D12 -> GJ | E18: =E12 -> 1 | F18: =F12 -> GJ/GJ | G18: =IF(je_zdroj,0,INDEX(TNositele[EF CO2 '[kg CO2/GJ']],$B18)) ->  | H18: =IF(je_zdroj,0,INDEX(TNositele[Cena],$B18)) ->  | I18: =IF(je_zdroj,"",INDEX(TNositele[Jednotka ceny],$B18)) ->  | J18: =IF(je_zdroj,"",INDEX(TNositele[Rozmezí ceny],$B18)) ->  | K18: =IF(je_zdroj,0,INDEX(TNositele[TZL_t],$B18)) ->  | L18: =IF(je_zdroj,"",INDEX(TNositele[Jednotka TZL_t],$B18)) ->  | M18: =IF(je_zdroj,0,INDEX(TNositele[TZL_kg],$B18)) ->  | N18: =IF(je_zdroj,"",INDEX(TNositele[Jednotka TZL_kg],$B18)) ->  | O18: =IF(je_zdroj,0,INDEX(TNositele[PM10 '[%']],$B18)) ->  | P18: =IF(je_zdroj,0,INDEX(TNositele[PM2,5 '[%']],$B18)) -> 
A19: CZT starý zdroj | B19: =IF(je_zdroj,MATCH(C16,TNositele[Nositel],0),0) -> 0 | C19: =IF(je_zdroj,Zdroj!I6,"") ->  | D19: =D12 -> GJ | E19: =E12 -> 1 | F19: =F12 -> GJ/GJ | G19: =IF(NOT(je_zdroj),0,INDEX(TNositele[EF CO2 '[kg CO2/GJ']],$B19)) -> 0 | H19: =IF(NOT(je_zdroj),0,INDEX(TNositele[Cena],$B19)) -> 0 | I19: =IF(NOT(je_zdroj),"",INDEX(TNositele[Jednotka ceny],$B19)) ->  | J19: =IF(NOT(je_zdroj),"",INDEX(TNositele[Rozmezí ceny],$B19)) ->  | K19: =IF(NOT(je_zdroj),0,INDEX(TNositele[TZL_t],$B19)) -> 0 | L19: =IF(NOT(je_zdroj),"",INDEX(TNositele[Jednotka TZL_t],$B19)) ->  | M19: =IF(NOT(je_zdroj),0,INDEX(TNositele[TZL_kg],$B19)) -> 0 | N19: =IF(NOT(je_zdroj),"",INDEX(TNositele[Jednotka TZL_kg],$B19)) ->  | O19: =IF(NOT(je_zdroj),0,INDEX(TNositele[PM10 '[%']],$B19)) -> 0 | P19: =IF(NOT(je_zdroj),0,INDEX(TNositele[PM2,5 '[%']],$B19)) -> 0
A21: budova | C21: =IF(ZdrojIdxBudova=6,Nositele!C18,Nositele!C15) ->  | D21: =IF(ZdrojIdxBudova=6,Nositele!D18,Nositele!D15) ->  | E21: =IF(ZdrojIdxBudova=6,Nositele!E18,Nositele!E15) ->  | F21: =IF(ZdrojIdxBudova=6,Nositele!F18,Nositele!F15) ->  | G21: =IF(ZdrojIdxBudova=6,Nositele!G18,Nositele!G15) ->  | H21: =IF(ZdrojIdxBudova=6,Nositele!H18,Nositele!H15) ->  | I21: =IF(ZdrojIdxBudova=6,Nositele!I18,Nositele!I15) ->  | J21: =IF(ZdrojIdxBudova=6,Nositele!J18,Nositele!J15) ->  | K21: =IF(ZdrojIdxBudova=6,Nositele!K18,Nositele!K15) ->  | L21: =IF(ZdrojIdxBudova=6,Nositele!L18,Nositele!L15) ->  | M21: =IF(ZdrojIdxBudova=6,Nositele!M18,Nositele!M15) ->  | N21: =IF(ZdrojIdxBudova=6,Nositele!N18,Nositele!N15) ->  | O21: =IF(ZdrojIdxBudova=6,Nositele!O18,Nositele!O15) ->  | P21: =IF(ZdrojIdxBudova=6,Nositele!P18,Nositele!P15) -> 
A22: starý | C22: =IF(ZdrojIdxOld=6,Nositele!C19,Nositele!C16) ->  | D22: =IF(ZdrojIdxOld=6,Nositele!D19,Nositele!D16) ->  | E22: =IF(ZdrojIdxOld=6,Nositele!E19,Nositele!E16) -> 0 | F22: =IF(ZdrojIdxOld=6,Nositele!F19,Nositele!F16) ->  | G22: =IF(ZdrojIdxOld=6,Nositele!G19,Nositele!G16) -> 0 | H22: =IF(ZdrojIdxOld=6,Nositele!H19,Nositele!H16) -> 0 | I22: =IF(ZdrojIdxOld=6,Nositele!I19,Nositele!I16) ->  | J22: =IF(ZdrojIdxOld=6,Nositele!J19,Nositele!J16) ->  | K22: =IF(ZdrojIdxOld=6,Nositele!K19,Nositele!K16) -> 0 | L22: =IF(ZdrojIdxOld=6,Nositele!L19,Nositele!L16) ->  | M22: =IF(ZdrojIdxOld=6,Nositele!M19,Nositele!M16) -> 0 | N22: =IF(ZdrojIdxOld=6,Nositele!N19,Nositele!N16) ->  | O22: =IF(ZdrojIdxOld=6,Nositele!O19,Nositele!O16) -> 0 | P22: =IF(ZdrojIdxOld=6,Nositele!P19,Nositele!P16) -> 0
A23: nový | C23: =C17 ->  | D23: =D17 ->  | E23: 0 | G23: 0 | H23: 0 | K23: 0 | M23: 0 | O23: 0 | P23: 0
A25: starý | C25: =IF(je_zdroj,C22,C21) -> 
A26: nový | C26: =IF(je_zdroj,C23,C21) -> 
C29: Kotel - období - palivo | D29: TZL | E29: jednotka | F29: TZL2 | G29: jednotka3 | H29: PM10 v % | I29: PM2,5 v %
C30: kotel na tuhá paliva-před 1980-hnědé uhlí | D30: 44.3 | E30: TZL kg/t | F30: =D30/1000 -> 0.0443 | G30: TZL v kg/kg | H30: 0.993 | I30: 0.992
C31: kotel na tuhá paliva-1980-2000-hnědé uhlí | D31: 44.3 | E31: TZL kg/t | F31: =D31/1000 -> 0.0443 | G31: TZL v kg/kg | H31: 0.993 | I31: 0.992
C32: kotel na tuhá paliva-2000-2010-hnědé uhlí | D32: 17.2 | E32: TZL kg/t | F32: 0.0172 | G32: TZL v kg/kg | H32: 0.999 | I32: 0.998
C33: kotel na tuhá paliva-2010 a novější-hnědé uhlí | D33: 2.24 | E33: TZL kg/t | F33: 0.00224 | G33: TZL v kg/kg | H33: 0.981 | I33: 0.941
C34: kotel na tuhá paliva-před 1980-černé uhlí | D34: 67.7 | E34: TZL kg/t | F34: =D34/1000 -> 0.0677 | G34: TZL v kg/kg | H34: 0.997 | I34: 0.99
C35: kotel na tuhá paliva-1980-2000-černé uhlí | D35: 67.7 | E35: TZL kg/t | F35: =D35/1000 -> 0.0677 | G35: TZL v kg/kg | H35: 0.997 | I35: 0.99
C36: kotel na tuhá paliva-2000-2010-černé uhlí | D36: 6.94 | E36: TZL kg/t | F36: 0.00694 | G36: TZL v kg/kg | H36: 0.994 | I36: 0.969
C37: kotel na tuhá paliva-2010 a novější-černé uhlí | D37: 2.25 | E37: TZL kg/t | F37: 0.00225 | G37: TZL v kg/kg | H37: 0.998 | I37: 0.981
C38: kotel na tuhá paliva-před 1980-palivové dřevo | D38: 7.22 | E38: TZL kg/t | F38: =D38/1000 -> 0.00722 | G38: TZL v kg/kg | H38: 0.998 | I38: 0.995
C39: kotel na tuhá paliva-1980-2000-palivové dřevo | D39: 7.22 | E39: TZL kg/t | F39: =D39/1000 -> 0.00722 | G39: TZL v kg/kg | H39: 0.998 | I39: 0.995
C40: kotel na tuhá paliva-2000-2010-palivové dřevo | D40: 5.78 | E40: TZL kg/t | F40: 0.00578 | G40: TZL v kg/kg | H40: 0.998 | I40: 0.993
C41: kotel na tuhá paliva-2010 a novější-palivové dřevo | D41: 2.12 | E41: TZL kg/t | F41: 0.00212 | G41: TZL v kg/kg | H41: 0.998 | I41: 0.991
C42: kotel na tuhá paliva-před 1980-pelety | D42: 7.22 | E42: TZL kg/t | F42: =D42/1000 -> 0.00722 | G42: TZL v kg/kg | H42: 0.998 | I42: 0.988
C43: kotel na tuhá paliva-1980-2000-pelety | D43: 7.22 | E43: TZL kg/t | F43: =D43/1000 -> 0.00722 | G43: TZL v kg/kg | H43: 0.998 | I43: 0.988
C44: kotel na tuhá paliva-2000-2010-pelety | D44: 5.78 | E44: TZL kg/t | F44: 0.00578 | G44: TZL v kg/kg | H44: 0.998 | I44: 0.988
C45: kotel na tuhá paliva-2010 a novější-pelety | D45: 2.12 | E45: TZL kg/t | F45: 0.00212 | G45: TZL v kg/kg | H45: 0.998 | I45: 0.988

Sheet ParametryOsvětlení (hidden)
A1: klasika | B1: halogen | C1: výbojka | D1: CFL | E1: zářivka | F1: příkon led | G1: světelný tok | J1: Průměrný příkon [W] | M1: Typické parametry zdrojů
A2: 40 | B2: 30 | C2: =ROUND((C3/F3)*F2,2) -> 6.62 | D2: =ROUND((D3/F3)*F2,2) -> 5 | E2: =ROUND((E3/F3)*F2,2) -> 3.67 | F2: 3 | G2: =F2*H3 -> 0 | J2: Minimální | K2: Maximální | M2: typ | N2: příkon | O2: světelný tok | P2: lm/W
A3: =A2+($A$5-$A$2)/3 -> 46.66666667 | B3: =B2+($B$5-$B$2)/3 -> 35.33333333 | C3: =(C4/F4)*F3 -> 12.13352685 | D3: =(D4/F4)*F3 -> 9.166666667 | E3: =(E4/F4)*F3 -> 6.722222222 | F3: 5.5 | G3: 470 | I3: Klasické žárovky | J3: 40 | K3: 1000 | M3: klasika | N3: 25 | O3: 200 | P3: =O3/N3 -> 8
A4: =A3+($A$5-$A$2)/3 -> 53.33333333 | B4: =B3+($B$5-$B$2)/3 -> 40.66666667 | C4: 13.23657475 | D4: 10 | E4: =(E5/F5)*F4 -> 7.333333333 | F4: 6 | G4: =G3+($G$6-$G$3)/3 -> 582 | I4: Halogenové žárovky | J4: 30 | K4: 500 | M4: klasika | N4: 40 | O4: 280 | P4: 7
A5: 60 | B5: 46 | C5: 15.44267054 | D5: =D4+(D7-D4)/3 -> 12 | E5: =(E6/F6)*F5 -> 8.555555556 | F5: 7 | G5: =G4+($G$6-$G$3)/3 -> 694 | I5: Zářivky | J5: 4 | K5: 500 | M5: klasika | N5: 60 | O5: 630 | P5: 10.5
A6: =A5+(A8-A5)/3 -> 65 | B6: =B5+(B7-B5)/2 -> 51.5 | C6: 17.64876633 | D6: =D5+(D7-D4)/3 -> 14 | E6: =(E7/F7)*F6 -> 9.777777778 | F6: 8 | G6: 806 | I6: Rtuťové výbojky | J6: 7 | K6: 500 | M6: klasika | N6: 75 | O6: 1000 | P6: 13.33333333
A7: 70 | B7: 57 | C7: 19.85486212 | D7: 16 | E7: 11 | F7: 9 | G7: =(G6+G8)/2 -> 930.5 | I7: Kompaktní zářivky (CFL) | J7: 5 | K7: 500 | M7: klasika | N7: 100 | O7: 1340 | P7: 13.4
A8: 75 | B8: =B7+(B10-B7)/3 -> 63.66666667 | C8: 22.06095791 | D8: =D7+($D$32-$D$7)/25 -> 16.8 | E8: =E7+($E$10-$E$7)/3 -> 13.33333333 | F8: 10 | G8: 1055 | M8: klasika | N8: 150 | O8: 2140 | P8: 14.26666667
A9: =(A8+A10)/2 -> 87.5 | B9: =B8+(B10-B7)/3 -> 70.33333333 | C9: 24.2670537 | D9: =D8+($D$32-$D$7)/25 -> 17.6 | E9: =E8+($E$10-$E$7)/3 -> 15.66666667 | F9: 11 | G9: =G8+(G11-G8)/3 -> 1210.333333 | M9: klasika | N9: 200 | O9: 2800 | P9: 14
A10: 100 | B10: 77 | C10: 26.47314949 | D10: 18.4 | E10: 18 | F10: 12 | G10: =G9+(G11-G8)/3 -> 1365.666667 | M10: klasika | N10: 300 | O10: 4200 | P10: 14
A11: =A10+($A$19-$A$10)/9 -> 105.5555556 | B11: =B10+($B$33-$B$10)/23 -> 80.17391304 | C11: 28.67924528 | D11: 19.2 | E11: =E10+($E$14-$E$10)/4 -> 20.5 | F11: 13 | G11: 1521 | M11: výbojka | N11: 80 | O11: 3600 | P11: 45
A12: =A11+($A$19-$A$10)/9 -> 111.1111111 | B12: =B11+($B$33-$B$10)/23 -> 83.34782609 | C12: 30.88534107 | D12: 20 | E12: =E11+($E$14-$E$10)/4 -> 23 | F12: 14 | G12: =G11+($G$18-$G$11)/7 -> 1603.714286 | M12: výbojka | N12: 125 | O12: 6000 | P12: 48
A13: 116.6666667 | B13: 86.52173913 | C13: 33.09143687 | D13: 20.8 | E13: =E12+($E$14-$E$10)/4 -> 25.5 | F13: 15 | G13: 1686.428571 | M13: výbojka | N13: 250 | O13: 12700 | P13: 50.8
A14: 122.2222222 | B14: 89.69565217 | C14: 35.29753266 | D14: 21.6 | E14: 28 | F14: 16 | G14: 1769.142857 | M14: CFL | N14: 10 | O14: 600 | P14: 60
A15: 127.7777778 | B15: 92.86956522 | C15: 37.50362845 | D15: 22.4 | E15: =E14+($E$43-$E$14)/28 -> 28.28571429 | F15: 17 | G15: 1851.857143 | M15: CFL | N15: 16 | O15: 980 | P15: 61.25
A16: 133.3333333 | B16: 96.04347826 | C16: 39.70972424 | D16: 23.2 | E16: =E15+($E$43-$E$14)/28 -> 28.57142857 | F16: 18 | G16: 1934.571429 | M16: CFL | N16: 36 | O16: 2800 | P16: 77.77777778
A17: 138.8888889 | B17: 99.2173913 | C17: 41.91582003 | D17: 24 | E17: 28.85714286 | F17: 19 | G17: 2017.285714 | M17: CFL | N17: 80 | O17: 6000 | P17: 75
A18: 144.4444444 | B18: 102.3913043 | C18: 44.12191582 | D18: 24.8 | E18: 29.14285714 | F18: 20 | G18: 2100 | M18: zářivka | N18: 80 | O18: 7000 | P18: 87.5
A19: 150 | B19: 105.5652174 | C19: 46.32801161 | D19: 25.6 | E19: 29.42857143 | F19: 21 | G19: =G18+($G$28-$G$18)/10 -> 2150 | M19: zářivka | N19: 58 | O19: 5250 | P19: 90.51724138
A20: =A19+($A$32-$A$19)/13 -> 153.8461538 | B20: 108.7391304 | C20: 48.5341074 | D20: 26.4 | E20: 29.71428571 | F20: 22 | G20: =G19+($G$28-$G$18)/10 -> 2200 | M20: zářivka | N20: 49 | O20: 4900 | P20: 100
A21: =A20+($A$32-$A$19)/13 -> 157.6923077 | B21: 111.9130435 | C21: 50.74020319 | D21: 27.2 | E21: 30 | F21: 23 | G21: 2250 | M21: zářivka | N21: 36 | O21: 3350 | P21: 93.05555556
A22: 161.5384615 | B22: 115.0869565 | C22: 51.82389937 | D22: 28 | E22: =E21+($E$43-$E$14)/28 -> 30.28571429 | F22: =F21+($F$76-$F$20)/57 -> 23.49122807 | G22: 2300 | M22: zářivka | N22: 28 | O22: 1700 | P22: 60.71428571
A23: 165.3846154 | B23: 118.2608696 | C23: 52.90759555 | D23: 28.8 | E23: 30.57142857 | F23: =F22+($F$76-$F$20)/57 -> 23.98245614 | G23: 2350 | M23: zářivka | N23: 18 | O23: 1350 | P23: 75
A24: 169.2307692 | B24: 121.4347826 | C24: 53.99129173 | D24: 29.6 | E24: 30.85714286 | F24: 24.47368421 | G24: 2400 | M24: zářivka | N24: 11 | O24: 900 | P24: 81.81818182
A25: 173.0769231 | B25: 124.6086957 | C25: 55.07498791 | D25: 30.4 | E25: 31.14285714 | F25: 24.96491228 | G25: 2450 | M25: led | N25: 5.5 | O25: 470 | P25: 85.45454545
A26: 176.9230769 | B26: 127.7826087 | C26: 56.15868408 | D26: 31.2 | E26: 31.42857143 | F26: 25.45614035 | G26: 2500 | M26: led | N26: 8 | O26: 806 | P26: 100.75
A27: 180.7692308 | B27: 130.9565217 | C27: 57.24238026 | D27: 32 | E27: 31.71428571 | F27: 25.94736842 | G27: 2550 | M27: led | N27: 10 | O27: 1055 | P27: 105.5
A28: 184.6153846 | B28: 134.1304348 | C28: 58.32607644 | D28: 32.8 | E28: 32 | F28: 26.43859649 | G28: 2600 | M28: led | N28: 13 | O28: 1521 | P28: 117
A29: 188.4615385 | B29: 137.3043478 | C29: 59.40977262 | D29: 33.6 | E29: 32.28571429 | F29: 26.92982456 | G29: 2650 | M29: led | N29: 20 | O29: 2100 | P29: 105
A30: 192.3076923 | B30: 140.4782609 | C30: 60.4934688 | D30: 34.4 | E30: 32.57142857 | F30: 27.42105263 | G30: 2700 | M30: led | N30: 30 | O30: 2600 | P30: 86.66666667
A31: 196.1538462 | B31: 143.6521739 | C31: 61.57716497 | D31: 35.2 | E31: 32.85714286 | F31: 27.9122807 | G31: 2750
A32: 200 | B32: 146.826087 | C32: 62.66086115 | D32: 36 | E32: 33.14285714 | F32: 28.40350877 | G32: 2800
A33: =A32+($A$60-$A$32)/28 -> 203.5714286 | B33: 150 | C33: 63.74455733 | D33: =D32+($D$96-$D$32)/65 -> 36.67692308 | E33: 33.42857143 | F33: 28.89473684 | G33: 2850
A34: =A33+($A$60-$A$32)/28 -> 207.1428571 | B34: =B33-B32+B33 -> 153.173913 | C34: 64.82825351 | D34: =D33+($D$96-$D$32)/65 -> 37.35384615 | E34: 33.71428571 | F34: 29.38596491 | G34: 2900
A35: 210.7142857 | B35: =B34-B33+B34 -> 156.3478261 | C35: 65.91194969 | D35: 38.03076923 | E35: 34 | F35: 29.87719298 | G35: 2950
A36: 214.2857143 | B36: 159.5217391 | C36: 66.99564586 | D36: 38.70769231 | E36: 34.28571429 | F36: 30.36842105 | G36: 3000
A37: 217.8571429 | B37: 162.6956522 | C37: 68.07934204 | D37: 39.38461538 | E37: 34.57142857 | F37: 30.85964912 | G37: 3050
A38: 221.4285714 | B38: 165.8695652 | C38: 69.16303822 | D38: 40.06153846 | E38: 34.85714286 | F38: 31.35087719 | G38: 3100
A39: 225 | B39: 169.0434783 | C39: 70.2467344 | D39: 40.73846154 | E39: 35.14285714 | F39: 31.84210526 | G39: 3150
A40: 228.5714286 | B40: 172.2173913 | C40: 71.33043058 | D40: 41.41538462 | E40: 35.42857143 | F40: 32.33333333 | G40: 3200
A41: 232.1428571 | B41: 175.3913043 | C41: 72.41412675 | D41: 42.09230769 | E41: 35.71428571 | F41: 32.8245614 | G41: 3250
A42: 235.7142857 | B42: 178.5652174 | C42: 73.49782293 | D42: 42.76923077 | E42: 36 | F42: 33.31578947 | G42: 3300
A43: 239.2857143 | B43: 181.7391304 | C43: 74.58151911 | D43: 43.44615385 | E43: 36 | F43: 33.80701754 | G43: 3350
A44: 242.8571429 | B44: 184.9130435 | C44: 75.66521529 | D44: 44.12307692 | E44: =E43+($E$74-$E$43)/31 -> 36.51612903 | F44: 34.29824561 | G44: 3400
A45: 246.4285714 | B45: 188.0869565 | C45: 76.74891147 | D45: 44.8 | E45: =E44+($E$74-$E$43)/31 -> 37.03225806 | F45: 34.78947368 | G45: 3450
A46: 250 | B46: 191.2608696 | C46: 77.83260764 | D46: 45.47692308 | E46: 37.5483871 | F46: 35.28070175 | G46: 3500
A47: 253.5714286 | B47: 194.4347826 | C47: 78.91630382 | D47: 46.15384615 | E47: 38.06451613 | F47: 35.77192982 | G47: 3550
A48: 257.1428571 | B48: 197.6086957 | C48: 80 | D48: 46.83076923 | E48: 38.58064516 | F48: 36.26315789 | G48: 3600
A49: 260.7142857 | B49: 200.7826087 | C49: =C48+($C$96-$C$48)/48 -> 80.9375 | D49: 47.50769231 | E49: 39.09677419 | F49: 36.75438596 | G49: 3650
A50: 264.2857143 | B50: 203.9565217 | C50: =C49+($C$96-$C$48)/48 -> 81.875 | D50: 48.18461538 | E50: 39.61290323 | F50: 37.24561404 | G50: 3700
A51: 267.8571429 | B51: =B50-B49+B50 -> 207.1304348 | C51: 82.8125 | D51: 48.86153846 | E51: 40.12903226 | F51: 37.73684211 | G51: 3750
A52: 271.4285714 | B52: 210.3043478 | C52: 83.75 | D52: 49.53846154 | E52: 40.64516129 | F52: 38.22807018 | G52: 3800
A53: 275 | B53: 213.4782609 | C53: 84.6875 | D53: 50.21538462 | E53: 41.16129032 | F53: 38.71929825 | G53: 3850
A54: 278.5714286 | B54: 216.6521739 | C54: 85.625 | D54: 50.89230769 | E54: 41.67741935 | F54: 39.21052632 | G54: 3900
A55: 282.1428571 | B55: 219.826087 | C55: 86.5625 | D55: 51.56923077 | E55: 42.19354839 | F55: 39.70175439 | G55: 3950
A56: 285.7142857 | B56: 223 | C56: 87.5 | D56: 52.24615385 | E56: 42.70967742 | F56: 40.19298246 | G56: 4000
A57: 289.2857143 | B57: 226.173913 | C57: 88.4375 | D57: 52.92307692 | E57: 43.22580645 | F57: 40.68421053 | G57: 4050
A58: 292.8571429 | B58: 229.3478261 | C58: 89.375 | D58: 53.6 | E58: 43.74193548 | F58: 41.1754386 | G58: 4100
A59: 296.4285714 | B59: 232.5217391 | C59: 90.3125 | D59: 54.27692308 | E59: 44.25806452 | F59: 41.66666667 | G59: 4150
A60: 300 | B60: 235.6956522 | C60: 91.25 | D60: 54.95384615 | E60: 44.77419355 | F60: 42.15789474 | G60: 4200
A61: 303.5714286 | B61: 238.8695652 | C61: 92.1875 | D61: 55.63076923 | E61: 45.29032258 | F61: 42.64912281 | G61: 4250
A62: 307.1428571 | B62: 242.0434783 | C62: 93.125 | D62: 56.30769231 | E62: 45.80645161 | F62: 43.14035088 | G62: 4300
A63: 310.7142857 | B63: 245.2173913 | C63: 94.0625 | D63: 56.98461538 | E63: 46.32258065 | F63: 43.63157895 | G63: 4350
A64: 314.2857143 | B64: 248.3913043 | C64: 95 | D64: 57.66153846 | E64: 46.83870968 | F64: 44.12280702 | G64: 4400
A65: 317.8571429 | B65: 251.5652174 | C65: 95.9375 | D65: 58.33846154 | E65: 47.35483871 | F65: 44.61403509 | G65: 4450
A66: 321.4285714 | B66: 254.7391304 | C66: 96.875 | D66: 59.01538462 | E66: 47.87096774 | F66: 45.10526316 | G66: 4500
A67: =A66-A65+A66 -> 325 | B67: 257.9130435 | C67: 97.8125 | D67: 59.69230769 | E67: 48.38709677 | F67: 45.59649123 | G67: 4550
A68: 328.5714286 | B68: 261.0869565 | C68: 98.75 | D68: 60.36923077 | E68: 48.90322581 | F68: 46.0877193 | G68: 4600
A69: 332.1428571 | B69: 264.2608696 | C69: 99.6875 | D69: 61.04615385 | E69: 49.41935484 | F69: 46.57894737 | G69: 4650
A70: 335.7142857 | B70: 267.4347826 | C70: 100.625 | D70: 61.72307692 | E70: 49.93548387 | F70: 47.07017544 | G70: 4700
A71: 339.2857143 | B71: 270.6086957 | C71: 101.5625 | D71: 62.4 | E71: 50.4516129 | F71: 47.56140351 | G71: 4750
A72: 342.8571429 | B72: 273.7826087 | C72: 102.5 | D72: 63.07692308 | E72: 50.96774194 | F72: 48.05263158 | G72: 4800
A73: 346.4285714 | B73: 276.9565217 | C73: 103.4375 | D73: 63.75384615 | E73: 51.48387097 | F73: 48.54385965 | G73: 4850
A74: 350 | B74: 280.1304348 | C74: 104.375 | D74: 64.43076923 | E74: 52 | F74: 49.03508772 | G74: 4900
A75: 353.5714286 | B75: 283.3043478 | C75: 105.3125 | D75: 65.10769231 | E75: =E74+($E$81-$E$74)/7 -> 52.85714286 | F75: =F74+($F$76-$F$20)/40 -> 49.73508772 | G75: 4950
A76: 357.1428571 | B76: 286.4782609 | C76: 106.25 | D76: 65.78461538 | E76: 53.71428571 | F76: 50 | G76: 5000
A77: 360.7142857 | B77: 289.6521739 | C77: 107.1875 | D77: 66.46153846 | E77: 54.57142857 | F77: =F76+($F$116-$F$76)/40 -> 50.325 | G77: 5050
A78: 364.2857143 | B78: 292.826087 | C78: 108.125 | D78: 67.13846154 | E78: 55.42857143 | F78: =F77+($F$116-$F$76)/40 -> 50.65 | G78: 5100
A79: 367.8571429 | B79: 296 | C79: 109.0625 | D79: 67.81538462 | E79: 56.28571429 | F79: 50.975 | G79: 5150
A80: 371.4285714 | B80: 299.173913 | C80: 110 | D80: 68.49230769 | E80: 57.14285714 | F80: 51.3 | G80: 5200
A81: 375 | B81: 302.3478261 | C81: 110.9375 | D81: 69.16923077 | E81: 58 | F81: 51.625 | G81: 5250
A82: 378.5714286 | B82: 305.5217391 | C82: 111.875 | D82: 69.84615385 | E82: =E81+($E$116-$E$81)/35 -> 58.62857143 | F82: 51.95 | G82: 5300
A83: =A82-A81+A82 -> 382.1428571 | B83: 308.6956522 | C83: 112.8125 | D83: 70.52307692 | E83: =E82+($E$116-$E$81)/35 -> 59.25714286 | F83: 52.275 | G83: 5350
A84: 385.7142857 | B84: 311.8695652 | C84: 113.75 | D84: 71.2 | E84: 59.88571429 | F84: 52.6 | G84: 5400
A85: 389.2857143 | B85: =ZpůsobVýpočtu-B83+ZpůsobVýpočtu -> -308.6956522 | C85: 114.6875 | D85: 71.87692308 | E85: 60.51428571 | F85: 52.925 | G85: 5450
A86: 392.8571429 | B86: =B85-ZpůsobVýpočtu+B85 -> -617.3913043 | C86: 115.625 | D86: 72.55384615 | E86: 61.14285714 | F86: 53.25 | G86: 5500
A87: 396.4285714 | B87: -926.0869565 | C87: 116.5625 | D87: 73.23076923 | E87: 61.77142857 | F87: 53.575 | G87: 5550
A88: 400 | B88: =Denostupně-B86+Denostupně -> -1270.208696 | C88: 117.5 | D88: 73.90769231 | E88: 62.4 | F88: 53.9 | G88: 5600
A89: 403.5714286 | B89: =B88-Denostupně+B88 -> -1596.617391 | C89: 118.4375 | D89: 74.58461538 | E89: 63.02857143 | F89: 54.225 | G89: 5650
A90: 407.1428571 | B90: -1923.026087 | C90: 119.375 | D90: 75.26153846 | E90: 63.65714286 | F90: 54.55 | G90: 5700
A91: 410.7142857 | B91: -2249.434783 | C91: 120.3125 | D91: 75.93846154 | E91: 64.28571429 | F91: 54.875 | G91: 5750
A92: 414.2857143 | B92: -2575.843478 | C92: 121.25 | D92: 76.61538462 | E92: 64.91428571 | F92: 55.2 | G92: 5800
A93: 417.8571429 | B93: -2902.252174 | C93: 122.1875 | D93: 77.29230769 | E93: 65.54285714 | F93: 55.525 | G93: 5850
A94: 421.4285714 | B94: -3228.66087 | C94: 123.125 | D94: 77.96923077 | E94: 66.17142857 | F94: 55.85 | G94: 5900
A95: 425 | B95: -3555.069565 | C95: 124.0625 | D95: 78.64615385 | E95: 66.8 | F95: 56.175 | G95: 5950
A96: 428.5714286 | B96: -3881.478261 | C96: 125 | D96: 80 | E96: 67.42857143 | F96: 56.5 | G96: 6000
A97: 432.1428571 | B97: -4207.886957 | C97: =C96-C95+C96 -> 125.9375 | D97: =D96-D95+D96 -> 81.35384615 | E97: 68.05714286 | F97: 56.825 | G97: 6050
A98: 435.7142857 | B98: -4534.295652 | C98: 126.875 | D98: 82.70769231 | E98: 68.68571429 | F98: 57.15 | G98: 6100
A99: =A98-A97+A98 -> 439.2857143 | B99: -4860.704348 | C99: 127.8125 | D99: 84.06153846 | E99: 69.31428571 | F99: 57.475 | G99: 6150
A100: 442.8571429 | B100: -5187.113043 | C100: 128.75 | D100: 85.41538462 | E100: 69.94285714 | F100: 57.8 | G100: 6200
A101: 446.4285714 | B101: -5513.521739 | C101: 129.6875 | D101: 86.76923077 | E101: 70.57142857 | F101: 58.125 | G101: 6250
A102: 450 | B102: -5839.930435 | C102: 130.625 | D102: 88.12307692 | E102: 71.2 | F102: 58.45 | G102: 6300
A103: 453.5714286 | B103: -6166.33913 | C103: 131.5625 | D103: 89.47692308 | E103: 71.82857143 | F103: 58.775 | G103: 6350
A104: 457.1428571 | B104: -6492.747826 | C104: 132.5 | D104: 90.83076923 | E104: 72.45714286 | F104: 59.1 | G104: 6400
A105: 460.7142857 | B105: -6819.156522 | C105: 133.4375 | D105: 92.18461538 | E105: 73.08571429 | F105: 59.425 | G105: 6450
A106: 464.2857143 | B106: -7145.565217 | C106: 134.375 | D106: 93.53846154 | E106: 73.71428571 | F106: 59.75 | G106: 6500
A107: 467.8571429 | B107: -7471.973913 | C107: 135.3125 | D107: 94.89230769 | E107: 74.34285714 | F107: 60.075 | G107: 6550
A108: 471.4285714 | B108: -7798.382609 | C108: 136.25 | D108: 96.24615385 | E108: 74.97142857 | F108: 60.4 | G108: 6600
A109: 475 | B109: -8124.791304 | C109: 137.1875 | D109: 97.6 | E109: 75.6 | F109: 60.725 | G109: 6650
A110: 478.5714286 | B110: -8451.2 | C110: 138.125 | D110: 98.95384615 | E110: 76.22857143 | F110: 61.05 | G110: 6700
A111: 482.1428571 | B111: -8777.608696 | C111: 139.0625 | D111: 100.3076923 | E111: 76.85714286 | F111: 61.375 | G111: 6750
A112: 485.7142857 | B112: -9104.017391 | C112: 140 | D112: 101.6615385 | E112: 77.48571429 | F112: 61.7 | G112: 6800
A113: 489.2857143 | B113: -9430.426087 | C113: 140.9375 | D113: 103.0153846 | E113: 78.11428571 | F113: 62.025 | G113: 6850
A114: 492.8571429 | B114: -9756.834783 | C114: 141.875 | D114: 104.3692308 | E114: 78.74285714 | F114: 62.35 | G114: 6900
A115: =A114-A113+A114 -> 496.4285714 | B115: -10083.24348 | C115: 142.8125 | D115: 105.7230769 | E115: 79.37142857 | F115: 62.675 | G115: 6950
A116: 500 | B116: -10409.65217 | C116: 143.75 | D116: 107.0769231 | E116: 80 | F116: 63 | G116: 7000

Sheet ParametryFVE (hidden)
A1: Název | B1: Jednotka | C1: Hodnota
A2: Minimální využití instalovaného výkonu FVE | B2: h/r | C2: 500
A3: Maximální využití instalovaného výkonu FVE | B3: h/r | C3: 4000
A4: Minimální podíl kapacity baterie k výkonu baterie | B4: 1 | C4: 1
A5: Maximální podíl kapacity baterie k výkonu baterie | B5: 1 | C5: 2
A6: Maximální výkon FVE | B6: kWp | C6: 1000
A7: Maximální kapacita baterie | B7: kWh | C7: 1000

Sheet Jen_zdroj (hidden)
A1: Starý zdroj
A3: Zdroj/palivo | B3: Zadaný zdroj | C3: Instalovaný výkon [kWt] | D3: Výhřevnost [GJ/m.j.] | E3: Účinnost [%] | F3: Faktor primární energie [1] | G3: Faktor TZL [kg/m.j.] | H3: Faktor PM10 [%] | I3: Faktor PM2,5 [%] | J3: Faktor CO2 [kg/GJ] | K3: Měrná cena vstupu [Kč/m.j.] | L3: Spotřeba na vstupu [m.j.] | M3: Spotřeba na vstupu [kWh] | N3: Výroba tepla [kWh] | O3: Spotřeba primární energie [kWh] | P3: Využití instalovaného výkonu [h] | Q3: Využití OK | R3: Emise CO2 [kg] | S3: Emise TZL [kg] | T3: Emise PM10 [kg] | U3: Emise PM2,5 [kg] | V3: Výdaje za vstupy [Kč]
A4: =ParametryZdroje!M10 -> hnědé uhlí | B4: =AND(ZdrojIdxOld=1,Zdroj!$I$6=A4) -> FALSE | C4: =Zdroj!$E$13 -> 0 | D4: =Nositele!E2 -> 0.018 | E4: =Účinnost_stará -> 0 | F4: =VLOOKUP($A4,Primární!$A$2:$B$14,2,FALSE) -> 1 | G4: =VLOOKUP(TStaréKotle[[#Headers],[kotel na tuhá paliva]] & "-" & Zdroj!$I$5 & "-" & $A4,TKotleTP[],4,FALSE) ->  | H4: =VLOOKUP(TStaréKotle[[#Headers],[kotel na tuhá paliva]] & "-" & Zdroj!$I$5 & "-" & $A4,TKotleTP[],6,FALSE) ->  | I4: =VLOOKUP(TStaréKotle[[#Headers],[kotel na tuhá paliva]] & "-" & Zdroj!$I$5 & "-" & $A4,TKotleTP[],7,FALSE) ->  | J4: =Nositele!G2 -> 99.1 | K4: =Nositele!H2 -> 3.4 | L4: =$M4*kWh_na_GJ/D4 -> 0 | M4: =IFERROR(N4/$E4,0) -> 0 | N4: =US_z_listu_kotel -> 0 | O4: =M4*F4 -> 0 | P4: =IFERROR(N4/$C4,0) -> 0 | Q4: =AND(P4>=1000,P4<=7000) -> FALSE | R4: =IFERROR(M4*kWh_na_GJ*$J4,0) -> 0 | S4: =L4*$G4 ->  | T4: =S4*$H4 ->  | U4: =T4*$I4 ->  | V4: =K4*L4 -> 0
A5: =ParametryZdroje!M8 -> černé uhlí | B5: =AND(ZdrojIdxOld=1,Zdroj!$I$6=A5) -> FALSE | C5: =Zdroj!$E$13 -> 0 | D5: =Nositele!E3 -> 0.031 | E5: 0 | F5: =VLOOKUP($A5,Primární!$A$2:$B$14,2,FALSE) -> 1 | G5: =VLOOKUP(TStaréKotle[[#Headers],[kotel na tuhá paliva]] & "-" & Zdroj!$I$5 & "-" & $A5,TKotleTP[],4,FALSE) ->  | H5: =VLOOKUP(TStaréKotle[[#Headers],[kotel na tuhá paliva]] & "-" & Zdroj!$I$5 & "-" & $A5,TKotleTP[],6,FALSE) ->  | I5: =VLOOKUP(TStaréKotle[[#Headers],[kotel na tuhá paliva]] & "-" & Zdroj!$I$5 & "-" & $A5,TKotleTP[],7,FALSE) ->  | J5: =Nositele!G3 -> 92.4 | K5: =Nositele!H3 -> 5.5 | L5: 0 | M5: 0 | N5: 0 | O5: 0 | P5: =IFERROR(N5/$C5,0) -> 0 | Q5: =AND(P5>=1000,P5<=7000) -> FALSE | R5: 0 | S5: =L5*$G5 ->  | T5: =S5*$H5 ->  | U5: =T5*$I5 ->  | V5: =K5*L5 -> 0
A6: =ParametryZdroje!M11 -> palivové dřevo | B6: =AND(ZdrojIdxOld=1,Zdroj!$I$6=A6) -> FALSE | C6: =Zdroj!$E$13 -> 0 | D6: =Nositele!E4 -> 0.014 | E6: 0 | F6: =VLOOKUP($A6,Primární!$A$2:$B$14,2,FALSE) -> 1 | G6: =VLOOKUP(TStaréKotle[[#Headers],[kotel na tuhá paliva]] & "-" & Zdroj!$I$5 & "-" & $A6,TKotleTP[],4,FALSE) ->  | H6: =VLOOKUP(TStaréKotle[[#Headers],[kotel na tuhá paliva]] & "-" & Zdroj!$I$5 & "-" & $A6,TKotleTP[],6,FALSE) ->  | I6: =VLOOKUP(TStaréKotle[[#Headers],[kotel na tuhá paliva]] & "-" & Zdroj!$I$5 & "-" & $A6,TKotleTP[],7,FALSE) ->  | J6: =Nositele!G4 -> 0 | K6: =Nositele!H4 -> 3.5 | L6: 0 | M6: 0 | N6: 0 | O6: 0 | P6: 0 | Q6: FALSE | R6: 0 | V6: 0
A7: =ParametryZdroje!M12 -> pelety | B7: =AND(ZdrojIdxOld=1,Zdroj!$I$6=A7) -> FALSE | C7: =Zdroj!$E$13 -> 0 | D7: =Nositele!E5 -> 0.017 | E7: 0 | F7: =VLOOKUP($A7,Primární!$A$2:$B$14,2,FALSE) -> 1 | G7: =VLOOKUP(TStaréKotle[[#Headers],[kotel na tuhá paliva]] & "-" & Zdroj!$I$5 & "-" & $A7,TKotleTP[],4,FALSE) ->  | H7: =VLOOKUP(TStaréKotle[[#Headers],[kotel na tuhá paliva]] & "-" & Zdroj!$I$5 & "-" & $A7,TKotleTP[],6,FALSE) ->  | I7: =VLOOKUP(TStaréKotle[[#Headers],[kotel na tuhá paliva]] & "-" & Zdroj!$I$5 & "-" & $A7,TKotleTP[],7,FALSE) ->  | J7: =Nositele!G5 -> 0 | K7: =Nositele!H5 -> 5.4 | L7: 0 | M7: 0 | N7: 0 | O7: 0 | P7: 0 | Q7: FALSE | R7: 0 | V7: 0
A8: =ParametryZdroje!M14 -> zemní plyn | B8: =ZdrojIdxOld=2 -> FALSE | C8: =Zdroj!$E$13 -> 0 | D8: =Nositele!E6 -> 0.034 | E8: 0 | F8: =VLOOKUP($A8,Primární!$A$2:$B$14,2,FALSE) -> 1 | G8: =Nositele!M6 -> 6.9e-06 | H8: =Nositele!O6 -> 1 | I8: =Nositele!P6 -> 1 | J8: =Nositele!G6 -> 55.4 | K8: =Nositele!H6 -> 10 | L8: 0 | M8: 0 | N8: 0 | O8: 0 | P8: 0 | Q8: FALSE | R8: 0 | S8: 0 | T8: 0 | U8: 0 | V8: 0
A9: =TStarýKotelHelp[[#This Row],[Nositel]] -> elektřina | B9: =ZdrojIdxOld=3 -> FALSE | C9: =Zdroj!$E$13 -> 0 | D9: =Nositele!E7 -> 0.0036 | E9: 0 | F9: =VLOOKUP($A9,Primární!$A$2:$B$14,2,FALSE) -> 2.3 | G9: =Nositele!M7 -> 3.68e-05 | H9: =Nositele!O7 -> 0.85 | I9: =Nositele!P7 -> 0.65 | J9: =Nositele!G7 -> 239 | K9: =Nositele!H7 -> 2.67 | L9: 0 | M9: 0 | N9: 0 | O9: 0 | P9: 0 | Q9: FALSE | R9: 0 | S9: 0 | T9: 0 | U9: 0 | V9: 0
A10: =ParametryZdroje!M13 -> topný olej | B10: =ZdrojIdxOld=4 -> FALSE | C10: =Zdroj!$E$13 -> 0 | D10: =Nositele!E8 -> 0.034645 | E10: 0 | F10: =VLOOKUP($A10,Primární!$A$2:$B$14,2,FALSE) -> 1.2 | G10: =Nositele!M8 -> 5.888e-05 | H10: =Nositele!O8 -> 0.93 | I10: =Nositele!P8 -> 0.67 | J10: =Nositele!G8 -> 73.3 | K10: =Nositele!H8 -> 29.83 | L10: 0 | M10: 0 | N10: 0 | O10: 0 | P10: 0 | Q10: FALSE | R10: 0 | S10: 0 | T10: 0 | U10: 0 | V10: 0
A11: =TStaréKotle[[#Headers],[tepelné čerpadlo]] -> tepelné čerpadlo | B11: =ZdrojIdxOld=5 -> FALSE | C11: =Zdroj!$E$13 -> 0 | D11: =Nositele!E7 -> 0.0036 | E11: 0 | F11: =F9 -> 2.3 | G11: =Nositele!M7 -> 3.68e-05 | H11: =Nositele!O7 -> 0.85 | I11: =Nositele!P7 -> 0.65 | J11: =Nositele!G7 -> 239 | K11: =Nositele!H7 -> 2.67 | L11: 0 | M11: 0 | N11: 0 | O11: 0 | P11: 0 | Q11: FALSE | R11: 0 | S11: 0 | T11: 0 | U11: 0 | V11: 0
A12: =TStaréKotle[[#Headers],[centrální zásobování teplem]] & " - energie" -> centrální zásobování teplem - energie | B12: =ZdrojIdxOld=6 -> FALSE | C12: 0 | D12: =Nositele!E12 -> 1 | E12: 0 | F12: =IF(Typ_SZT=1,Primární!$E$2,IF(Typ_SZT=2,Primární!$E$3,0)) -> 0 | G12: =IFERROR(VLOOKUP(Zdroj!$I$6,TNositele[],11,FALSE),0) -> 0 | H12: =IFERROR(VLOOKUP(Zdroj!$I$6,TNositele[],13,FALSE),0) -> 0 | I12: =IFERROR(VLOOKUP(Zdroj!$I$6,TNositele[],14,FALSE),0) -> 0 | J12: =IFERROR(VLOOKUP(Zdroj!$I$6,TNositele[],5,FALSE)/100,0) -> 0 | K12: =Nositele!H12 -> 400 | L12: 0 | M12: 0 | N12: 0 | O12: 0 | P12: 0 | Q12: TRUE | R12: =IFERROR(M12*kWh_na_GJ*$J12*$F$12,0) -> 0 | S12: 0 | T12: 0 | U12: 0 | V12: 0
A13: =IFERROR(INDEX(A$4:A$12,$B$13),0) -> 0 | B13: =IFERROR(MATCH(TRUE,$B$4:$B$12,0),0) -> 0 | L13: =IFERROR(INDEX(L$4:L$12,$B$13),0) -> 0 | M13: 0 | N13: 0 | O13: 0 | P13: 0 | Q13: 0 | R13: 0 | S13: 0 | T13: 0 | U13: 0 | V13: 0
A16: Nový zdroj
A18: Zdroj/palivo | B18: Zadaný zdroj | C18: Instalovaný výkon [kWt] | D18: Výhřevnost [GJ/m.j.] | E18: Účinnost [%] | F18: Faktor primární energie [1] | G18: Faktor TZL [kg/m.j.] | H18: Faktor PM10 [%] | I18: Faktor PM2,5 [%] | J18: Faktor CO2 [kg/GJ] | K18: Měrná cena vstupu [Kč/m.j.] | L18: Spotřeba na vstupu [m.j.] | M18: Spotřeba na vstupu [kWh] | N18: Výroba tepla [kWh] | O18: Spotřeba primární energie [kWh] | P18: Využití instalovaného výkonu [h] | Q18: Využití OK | R18: Emise CO2 [kg] | S18: Emise TZL [kg] | T18: Emise PM10 [kg] | U18: Emise PM2,5 [kg] | V18: Výdaje za vstupy [Kč]
A19: =ParametryZdroje!$B$30:$B$33 -> kotel na štěpku, pelety nebo brikety | B19: =ZdrojIdxNew=1 -> FALSE | C19: =Zdroj!$E$19 -> 0 | D19: =Nositele!E5 -> 0.017 | E19: =Účinnost_nová -> 0 | F19: =F7 -> 1 | G19: =Nositele!$F$45 -> 0.00212 | H19: =Nositele!H45 -> 0.998 | I19: =Nositele!I45 -> 0.988 | J19: =Nositele!G5 -> 0 | K19: =Nositele!H5 -> 5.4 | L19: =M19*kWh_na_GJ/$D19 -> 0 | M19: =IFERROR(N19/$E19,0) -> 0 | N19: =US_z_listu_kotel -> 0 | O19: =M19*$F19 -> 0 | P19: =IFERROR(N19/$C19,0) -> 0 | Q19: =AND(P19>=1000,P19<=7000) -> FALSE | R19: =IFERROR(M19*kWh_na_GJ*$J19,0) -> 0 | S19: =L19*$G19 -> 0 | T19: =S19*$H19 -> 0 | U19: =T19*$I19 -> 0 | V19: =K19*L19 -> 0
A20: kotel na odpadní dřevo | B20: =ZdrojIdxNew=2 -> FALSE | C20: =Zdroj!$E$19 -> 0 | D20: =Nositele!E9 -> 0.017 | E20: =Účinnost_nová -> 0 | F20: =VLOOKUP("odpadní dřevo",Primární!$A$2:$B$14,2,FALSE) -> 1 | G20: =Nositele!$F$41 -> 0.00212 | H20: =Nositele!H41 -> 0.998 | I20: =Nositele!I41 -> 0.991 | J20: =Nositele!G9 -> 0 | K20: =Nositele!H9 -> 0 | L20: =M20*kWh_na_GJ/$D20 -> 0 | M20: =IFERROR(N20/$E20,0) -> 0 | N20: =US_z_listu_kotel -> 0 | O20: =M20*$F20 -> 0 | P20: 0 | Q20: FALSE | R20: =IFERROR(M20*kWh_na_GJ*$J20,0) -> 0 | S20: 0 | T20: 0 | U20: =S20*$I20 -> 0 | V20: 0
A21: kotel na bioplyn | B21: =ZdrojIdxNew=3 -> FALSE | C21: =Zdroj!$E$19 -> 0 | D21: =Nositele!E10 -> 0.034 | E21: =Účinnost_nová -> 0 | F21: =VLOOKUP("bioplyn",Primární!$A$2:$B$14,2,FALSE) -> 1.2 | G21: =Nositele!M10 -> 6.9e-06 | H21: =Nositele!O10 -> 1 | I21: =Nositele!P10 -> 1 | J21: =Nositele!G10 -> 0 | K21: =Nositele!H10 -> 0 | L21: =M21*kWh_na_GJ/$D21 -> 0 | M21: 0 | N21: =US_z_listu_kotel -> 0 | O21: 0 | P21: 0 | Q21: FALSE | R21: =IFERROR(M21*kWh_na_GJ*$J21,0) -> 0 | S21: 0 | T21: 0 | U21: =S21*$I21 -> 0 | V21: 0
A22: tepelné čerpadlo | B22: =ZdrojIdxNew=4 -> FALSE | C22: =Zdroj!$E$19 -> 0 | D22: =Nositele!E7 -> 0.0036 | E22: =Účinnost_nová -> 0 | F22: =F11 -> 2.3 | G22: =Nositele!M7 -> 3.68e-05 | H22: =Nositele!O7 -> 0.85 | I22: =Nositele!P7 -> 0.65 | J22: =Nositele!G7 -> 239 | K22: =Nositele!H7 -> 2.67 | L22: =M22*kWh_na_GJ/$D22 -> 0 | M22: 0 | N22: =US_z_listu_kotel -> 0 | O22: 0 | P22: 0 | Q22: FALSE | R22: =IFERROR(M22*kWh_na_GJ*$J22,0) -> 0 | S22: 0 | T22: 0 | U22: =S22*$I22 -> 0 | V22: 0
A23: =IFERROR(INDEX(A$19:A$21,$B$23),0) -> 0 | B23: =IFERROR(MATCH(TRUE,$B$19:$B$22,0),0) -> 0 | C23: =IFERROR(INDEX(C$19:C$22,$B$23),0) -> 0 | D23: =IFERROR(INDEX(D$19:D$22,$B$23),0) -> 0 | E23: =IFERROR(INDEX(E$19:E$22,$B$23),0) -> 0 | F23: 0 | G23: 0 | H23: 0 | I23: 0 | L23: =IFERROR(INDEX(L$19:L$22,$B$23),0) -> 0 | M23: 0 | N23: 0 | O23: 0 | P23: 0 | Q23: 0 | R23: 0 | S23: 0 | T23: 0 | U23: 0 | V23: 0
A27: Zdroj/palivo | B27: Zadaný zdroj | C27: Instalovaný výkon [kWt] | D27: Výhřevnost [GJ/m.j.] | E27: Účinnost [%] | F27: Faktor primární energie [1] | G27: Faktor TZL [kg/m.j.] | H27: Faktor PM10 [%] | I27: Faktor PM2,5 [%] | J27: Faktor CO2 [kg/GJ] | K27: Měrná cena vstupu [Kč/m.j.] | L27: Spotřeba na vstupu [m.j.] | M27: Spotřeba na vstupu [kWh] | N27: Výroba tepla [kWh] | O27: Spotřeba primární energie [kWh] | P27: Využití instalovaného výkonu [h] | Q27: Využití OK | R27: Emise CO2 [kg] | S27: Emise TZL [kg] | T27: Emise PM10 [kg] | U27: Emise PM2,5 [kg] | V27: Výdaje za vstupy [Kč]
A28: ÚSPORA | M28: =M13-M23 -> 0 | O28: =O13-O23 -> 0 | R28: =R13-R23 -> 0 | S28: =S13-S23 -> 0 | T28: =T13-T23 -> 0 | U28: =U13-U23 -> 0 | V28: =V13-V23 -> 0

Sheet Jen_zateplení (hidden)
A1: Před zateplením
A3: Zdroj/palivo | B3: Zadaný zdroj | C3: Výhřevnost [GJ/m.j.] | D3: Účinnost [%] | E3: Faktor primární energie [1] | F3: Faktor TZL [kg/m.j.] | G3: Faktor PM10 [%] | H3: Faktor PM2,5 [%] | I3: Faktor CO2 [kg/GJ] | J3: Měrná cena vstupu [Kč/m.j.] | K3: Spotřeba na vstupu [m.j.] | L3: Spotřeba na vstupu [kWh] | M3: Výroba tepla [kWh] | N3: Spotřeba primární energie [kWh] | O3: Emise CO2 [kg] | P3: Emise TZL [kg] | Q3: Emise PM10 [kg] | R3: Emise PM2,5 [kg] | S3: Výdaje za vstupy [Kč]
A4: =ParametryZdroje!M10 -> hnědé uhlí | B4: =OR(AND(ZdrojIdxBudova=1,Zateplení!$J$14=A19,NOT(je_zdroj)),AND(ZdrojIdxOld=1,Zdroj!$I$6=A4)) -> FALSE | C4: =Nositele!E2 -> 0.018 | D4: =Účinnost_stará -> 0 | E4: =VLOOKUP($A4,Primární!$A$2:$B$14,2,FALSE) -> 1 | F4: =Nositele!M2 -> 0.000704 | G4: =Nositele!O2 -> 0.995 | H4: =Nositele!P2 -> 0.952 | I4: =Nositele!G2 -> 99.1 | J4: =Nositele!H2 -> 3.4 | K4: =L4*kWh_na_GJ/$C4 ->  | L4: =M4/$D4 ->  | M4: =Bilance!$B$24 -> 0 | N4: =L4*E4 ->  | O4: =IFERROR(L4*kWh_na_GJ*$I4,0) -> 0 | P4: =K4*$F4 ->  | Q4: =P4*$G4 ->  | R4: =Q4*$H4 ->  | S4: =J4*K4 -> 
A5: =ParametryZdroje!M8 -> černé uhlí | B5: =OR(AND(ZdrojIdxBudova=1,Zateplení!$J$14=A20,NOT(je_zdroj)),AND(ZdrojIdxOld=1,Zdroj!$I$6=A5)) -> FALSE | C5: =Nositele!E3 -> 0.031 | D5: 0 | E5: =VLOOKUP($A5,Primární!$A$2:$B$14,2,FALSE) -> 1 | F5: =Nositele!M3 -> 0.00123 | G5: =Nositele!O3 -> 0.998 | H5: =Nositele!P3 -> 0.981 | I5: =Nositele!G3 -> 92.4 | J5: =Nositele!H3 -> 5.5 | L5: =M5/$D5 ->  | M5: =Bilance!$B$24 -> 0 | O5: 0 | Q5: =P5*$G5 ->  | R5: =Q5*$H5 -> 
A6: =ParametryZdroje!M11 -> palivové dřevo | B6: =OR(AND(ZdrojIdxBudova=1,Zateplení!$J$14=A21,NOT(je_zdroj)),AND(ZdrojIdxOld=1,Zdroj!$I$6=A6)) -> FALSE | C6: =Nositele!E4 -> 0.014 | D6: 0 | E6: =VLOOKUP($A6,Primární!$A$2:$B$14,2,FALSE) -> 1 | F6: =Nositele!M4 -> 0.00212 | G6: =Nositele!O4 -> 0.998 | H6: =Nositele!P4 -> 0.991 | I6: =Nositele!G4 -> 0 | J6: =Nositele!H4 -> 3.5 | M6: =Bilance!$B$24 -> 0 | O6: 0
A7: =ParametryZdroje!M12 -> pelety | B7: =OR(AND(ZdrojIdxBudova=1,Zateplení!$J$14=A22,NOT(je_zdroj)),AND(ZdrojIdxOld=1,Zdroj!$I$6=A7)) -> FALSE | C7: =Nositele!E5 -> 0.017 | D7: 0 | E7: =VLOOKUP($A7,Primární!$A$2:$B$14,2,FALSE) -> 1 | F7: =Nositele!M5 -> 0.000264 | G7: =Nositele!O5 -> 0.998 | H7: =Nositele!P5 -> 0.988 | I7: =Nositele!G5 -> 0 | J7: =Nositele!H5 -> 5.4 | M7: =Bilance!$B$24 -> 0 | O7: 0
A8: =ParametryZdroje!M14 -> zemní plyn | B8: =OR(AND(ZdrojIdxBudova=2,NOT(je_zdroj)),ZdrojIdxOld=2) -> FALSE | C8: =Nositele!E6 -> 0.034 | D8: 0 | E8: =VLOOKUP($A8,Primární!$A$2:$B$14,2,FALSE) -> 1 | F8: =Nositele!M6 -> 6.9e-06 | G8: =Nositele!O6 -> 1 | H8: =Nositele!P6 -> 1 | I8: =Nositele!G6 -> 55.4 | J8: =Nositele!H6 -> 10 | M8: =Bilance!$B$24 -> 0 | O8: 0
A9: =TStarýKotelHelp[[#This Row],[Nositel]] -> elektřina | B9: =OR(AND(ZdrojIdxBudova=3,NOT(je_zdroj)),ZdrojIdxOld=3) -> FALSE | C9: =Nositele!E7 -> 0.0036 | D9: 0 | E9: =VLOOKUP($A9,Primární!$A$2:$B$14,2,FALSE) -> 2.3 | F9: =Nositele!M7 -> 3.68e-05 | G9: =Nositele!O7 -> 0.85 | H9: =Nositele!P7 -> 0.65 | I9: =Nositele!G7 -> 239 | J9: =Nositele!H7 -> 2.67 | M9: =Bilance!$B$24 -> 0 | O9: 0
A10: =ParametryZdroje!M13 -> topný olej | B10: =OR(AND(ZdrojIdxBudova=4,NOT(je_zdroj)),ZdrojIdxOld=4) -> FALSE | C10: =Nositele!E8 -> 0.034645 | D10: 0 | E10: =VLOOKUP($A10,Primární!$A$2:$B$14,2,FALSE) -> 1.2 | F10: =Nositele!M8 -> 5.888e-05 | G10: =Nositele!O8 -> 0.93 | H10: =Nositele!P8 -> 0.67 | I10: =Nositele!G8 -> 73.3 | J10: =Nositele!H8 -> 29.83 | M10: =Bilance!$B$24 -> 0 | O10: 0
A11: =TStaréKotle[[#Headers],[tepelné čerpadlo]] -> tepelné čerpadlo | B11: =OR(AND(ZdrojIdxBudova=5,NOT(je_zdroj)),ZdrojIdxOld=5) -> FALSE | C11: =Nositele!E7 -> 0.0036 | D11: 0 | E11: =E9 -> 2.3 | F11: =Nositele!M7 -> 3.68e-05 | G11: =Nositele!O7 -> 0.85 | H11: =Nositele!P7 -> 0.65 | I11: =Nositele!G7 -> 239 | J11: =Nositele!H7 -> 2.67 | M11: =Bilance!$B$24 -> 0 | O11: 0
A12: =TStaréKotle[[#Headers],[centrální zásobování teplem]] & " - energie" -> centrální zásobování teplem - energie | B12: =OR(AND(ZdrojIdxBudova=6,NOT(je_zdroj)),ZdrojIdxOld=6) -> FALSE | C12: =Nositele!E12 -> 1 | D12: 0 | E12: =IF(Typ_SZT=1,Primární!$E$2,IF(Typ_SZT=2,Primární!$E$3,0)) -> 0 | F12: =IFERROR(VLOOKUP(Zdroj!$I$6,TNositele[],11,FALSE),0) -> 0 | G12: =IFERROR(VLOOKUP(Zdroj!$I$6,TNositele[],13,FALSE),0) -> 0 | H12: =IFERROR(VLOOKUP(Zdroj!$I$6,TNositele[],14,FALSE),0) -> 0 | I12: =IFERROR(VLOOKUP(Zdroj!$I$6,TNositele[],5,FALSE)/100,0) -> 0 | J12: =Nositele!H12 -> 400 | M12: =Bilance!$B$24 -> 0 | O12: =IFERROR(L12*kWh_na_GJ*$I12*$E$12,0) -> 0
A13: =IFERROR(INDEX(A$4:A$12,$B$13),0) -> 0 | B13: =IFERROR(MATCH(TRUE,$B$4:$B$12,0),0) -> 0 | C13: =IFERROR(INDEX(C$4:C$12,$B$13),0) -> 0 | D13: 0 | E13: 0 | F13: 0 | G13: 0 | H13: 0 | I13: 0 | J13: 0 | K13: =IFERROR(INDEX(K$4:K$12,$B$13),0) -> 0 | L13: 0 | M13: 0 | N13: 0 | O13: 0 | P13: 0 | Q13: 0 | R13: 0 | S13: 0
A16: Po zateplení
A18: Zdroj/palivo | B18: Zadaný zdroj | C18: Výhřevnost [GJ/m.j.] | D18: Účinnost [%] | E18: Faktor primární energie [1] | F18: Faktor TZL [kg/m.j.] | G18: Faktor PM10 [%] | H18: Faktor PM2,5 [%] | I18: Faktor CO2 [kg/GJ] | J18: Měrná cena vstupu [Kč/m.j.] | K18: Spotřeba na vstupu [m.j.] | L18: Spotřeba na vstupu [kWh] | M18: Výroba tepla [kWh] | N18: Spotřeba primární energie [kWh] | O18: Emise CO2 [kg] | P18: Emise TZL [kg] | Q18: Emise PM10 [kg] | R18: Emise PM2,5 [kg] | S18: Výdaje za vstupy [Kč]
A19: =A4 -> hnědé uhlí | B19: =B4 -> FALSE | C19: =C4 -> 0.018 | D19: =Účinnost_stará -> 0 | E19: =E4 -> 1 | F19: 0.000704 | G19: 0.995 | H19: 0.952 | I19: 99.1 | J19: 3.4 | K19: =L19*kWh_na_GJ/$C19 ->  | L19: =M19/$D19 ->  | M19: =Bilance!$C$24 -> 0 | N19: =L19*E19 ->  | O19: =IFERROR(L19*kWh_na_GJ*$I19,0) -> 0 | P19: =K19*$F19 ->  | Q19: =P19*$G19 ->  | R19: =Q19*$H19 ->  | S19: =J19*K19 -> 
A20: =A5 -> černé uhlí | B20: FALSE | C20: =C5 -> 0.031 | D20: 0 | E20: 1 | F20: 0.00123 | G20: 0.998 | H20: 0.981 | I20: 92.4 | J20: 5.5 | L20: =M20/$D20 ->  | M20: =Bilance!$C$24 -> 0 | O20: 0 | Q20: =P20*$G20 ->  | R20: =Q20*$H20 -> 
A21: palivové dřevo | B21: FALSE | C21: =C6 -> 0.014 | D21: 0 | E21: 1 | F21: 0.00212 | G21: 0.998 | H21: 0.991 | I21: 0 | J21: 3.5 | M21: =Bilance!$C$24 -> 0 | O21: 0
A22: pelety | B22: FALSE | C22: =C7 -> 0.017 | D22: 0 | E22: 1 | F22: 0.000264 | G22: 0.998 | H22: 0.988 | I22: 0 | J22: 5.4 | M22: =Bilance!$C$24 -> 0 | O22: 0
A23: zemní plyn | B23: FALSE | C23: =C8 -> 0.034 | D23: 0 | E23: 1 | F23: 6.9e-06 | G23: 1 | H23: 1 | I23: 55.4 | J23: 10 | M23: =Bilance!$C$24 -> 0 | O23: 0
A24: elektřina | B24: FALSE | C24: =C9 -> 0.0036 | D24: 0 | E24: 2.3 | F24: 3.68e-05 | G24: 0.85 | H24: 0.65 | I24: 239 | J24: 2.67 | M24: =Bilance!$C$24 -> 0 | O24: 0
A25: topný olej | B25: FALSE | C25: =C10 -> 0.034645 | D25: 0 | E25: 1.2 | F25: 5.888e-05 | G25: 0.93 | H25: 0.67 | I25: 73.3 | J25: 29.83 | M25: =Bilance!$C$24 -> 0 | O25: 0
A26: tepelné čerpadlo | B26: FALSE | C26: =C11 -> 0.0036 | D26: 0 | E26: 2.3 | F26: 3.68e-05 | G26: 0.85 | H26: 0.65 | I26: 239 | J26: 2.67 | M26: =Bilance!$C$24 -> 0 | O26: 0
A27: centrální zásobování teplem - energie | B27: FALSE | C27: =C12 -> 1 | D27: 0 | E27: =IF(Typ_SZT=1,Primární!$E$2,IF(Typ_SZT=2,Primární!$E$3,0)) -> 0 | F27: 0 | G27: 0 | H27: 0 | I27: 0 | J27: 400 | M27: =Bilance!$C$24 -> 0 | O27: =IFERROR(L27*kWh_na_GJ*$I27*$E$27,0) -> 0
A28: =IFERROR(INDEX(A$4:A$12,$B$13),0) -> 0 | B28: =IFERROR(MATCH(TRUE,$B$19:$B$27,0),0) -> 0 | C28: =IFERROR(INDEX(C$19:C$27,$B$13),0) -> 0 | D28: 0 | E28: 0 | F28: 0 | G28: 0 | H28: 0 | I28: 0 | J28: 0 | K28: =IFERROR(INDEX(K$19:K$27,$B$13),0) -> 0 | L28: 0 | M28: 0 | N28: 0 | O28: 0 | P28: 0 | Q28: 0 | R28: 0 | S28: 0
A31: Zdroj/palivo | B31: Zadaný zdroj | C31: Výhřevnost [GJ/m.j.] | D31: Účinnost [%] | E31: Faktor primární energie [1] | F31: Faktor TZL [kg/m.j.] | G31: Faktor PM10 [%] | H31: Faktor PM2,5 [%] | I31: Faktor CO2 [kg/GJ] | J31: Měrná cena vstupu [Kč/m.j.] | K31: Spotřeba na vstupu [m.j.] | L31: Spotřeba na vstupu [kWh] | M31: Výroba tepla [kWh] | N31: Spotřeba primární energie [kWh] | O31: Emise CO2 [kg] | P31: Emise TZL [kg] | Q31: Emise PM10 [kg] | R31: Emise PM2,5 [kg] | S31: Výdaje za vstupy [Kč]
A32: ÚSPORA | K32: =K13-K28 -> 0 | L32: =L13-L28 -> 0 | M32: =M13-M28 -> 0 | N32: =N13-N28 -> 0 | O32: 0 | P32: 0 | Q32: 0 | R32: 0 | S32: 0

Sheet Zdroj_a_zateplení (hidden)
A1: Bez zateplení + starý zdroj
A3: Zdroj/palivo | B3: Zadaný zdroj | C3: Instalovaný výkon [kWt] | D3: Výhřevnost [GJ/m.j.] | E3: Účinnost [%] | F3: Faktor primární energie [1] | G3: Faktor TZL [kg/m.j.] | H3: Faktor PM10 [%] | I3: Faktor PM2,5 [%] | J3: Faktor CO2 [kg/GJ] | K3: Měrná cena vstupu [Kč/m.j.] | L3: Spotřeba na vstupu [m.j.] | M3: Spotřeba na vstupu [kWh] | N3: Výroba tepla [kWh] | O3: Spotřeba primární energie [kWh] | P3: Využití instalovaného výkonu [h] | Q3: Využití OK | R3: Emise CO2 [kg] | S3: Emise TZL [kg] | T3: Emise PM10 [kg] | U3: Emise PM2,5 [kg] | V3: Výdaje za vstupy [Kč]
A4: =ParametryZdroje!M10 -> hnědé uhlí | B4: =OR(AND(ZdrojIdxBudova=1,Zateplení!$J$14=A19,NOT(je_zdroj)),AND(ZdrojIdxOld=1,Zdroj!$I$6=A4)) -> FALSE | C4: =Zdroj!$E$13 -> 0 | D4: =Nositele!E2 -> 0.018 | E4: =Účinnost_stará -> 0 | F4: =VLOOKUP($A4,Primární!$A$2:$B$14,2,FALSE) -> 1 | G4: =VLOOKUP(TStaréKotle[[#Headers],[kotel na tuhá paliva]] & "-" & Zdroj!$I$5 & "-" & $A4,TKotleTP[],4,FALSE) ->  | H4: =VLOOKUP(TStaréKotle[[#Headers],[kotel na tuhá paliva]] & "-" & Zdroj!$I$5 & "-" & $A4,TKotleTP[],6,FALSE) ->  | I4: =VLOOKUP(TStaréKotle[[#Headers],[kotel na tuhá paliva]] & "-" & Zdroj!$I$5 & "-" & $A4,TKotleTP[],7,FALSE) ->  | J4: =Nositele!G2 -> 99.1 | K4: =Nositele!H2 -> 3.4 | L4: =$M4*kWh_na_GJ/D4 ->  | M4: =N4/E4 ->  | N4: =Bilance!$B$24 -> 0 | O4: =M4*F4 ->  | P4: =IFERROR(N4/$C4,0) -> 0 | Q4: =AND(P4>=1000,P4<=7000) -> FALSE | R4: =IFERROR(M4*kWh_na_GJ*$J4,0) -> 0 | S4: =L4*$G4 ->  | T4: =S4*$H4 ->  | U4: =T4*$I4 ->  | V4: =K4*L4 -> 
A5: =ParametryZdroje!M8 -> černé uhlí | B5: =OR(AND(ZdrojIdxBudova=1,Zateplení!$J$14=A20,NOT(je_zdroj)),AND(ZdrojIdxOld=1,Zdroj!$I$6=A5)) -> FALSE | C5: =Zdroj!$E$13 -> 0 | D5: =Nositele!E3 -> 0.031 | E5: 0 | F5: =VLOOKUP($A5,Primární!$A$2:$B$14,2,FALSE) -> 1 | G5: =VLOOKUP(TStaréKotle[[#Headers],[kotel na tuhá paliva]] & "-" & Zdroj!$I$5 & "-" & $A5,TKotleTP[],4,FALSE) ->  | H5: =VLOOKUP(TStaréKotle[[#Headers],[kotel na tuhá paliva]] & "-" & Zdroj!$I$5 & "-" & $A5,TKotleTP[],6,FALSE) ->  | I5: =VLOOKUP(TStaréKotle[[#Headers],[kotel na tuhá paliva]] & "-" & Zdroj!$I$5 & "-" & $A5,TKotleTP[],7,FALSE) ->  | J5: =Nositele!G3 -> 92.4 | K5: =Nositele!H3 -> 5.5 | M5: =N5/E5 ->  | N5: =Bilance!$B$24 -> 0 | P5: =IFERROR(N5/$C5,0) -> 0 | Q5: =AND(P5>=1000,P5<=7000) -> FALSE | R5: 0 | S5: =L5*$G5 ->  | T5: =S5*$H5 ->  | U5: =T5*$I5 ->  | V5: =K5*L5 -> 
A6: =ParametryZdroje!M11 -> palivové dřevo | B6: =OR(AND(ZdrojIdxBudova=1,Zateplení!$J$14=A21,NOT(je_zdroj)),AND(ZdrojIdxOld=1,Zdroj!$I$6=A6)) -> FALSE | C6: =Zdroj!$E$13 -> 0 | D6: =Nositele!E4 -> 0.014 | E6: 0 | F6: =VLOOKUP($A6,Primární!$A$2:$B$14,2,FALSE) -> 1 | G6: =VLOOKUP(TStaréKotle[[#Headers],[kotel na tuhá paliva]] & "-" & Zdroj!$I$5 & "-" & $A6,TKotleTP[],4,FALSE) ->  | H6: =VLOOKUP(TStaréKotle[[#Headers],[kotel na tuhá paliva]] & "-" & Zdroj!$I$5 & "-" & $A6,TKotleTP[],6,FALSE) ->  | I6: =VLOOKUP(TStaréKotle[[#Headers],[kotel na tuhá paliva]] & "-" & Zdroj!$I$5 & "-" & $A6,TKotleTP[],7,FALSE) ->  | J6: =Nositele!G4 -> 0 | K6: =Nositele!H4 -> 3.5 | N6: =Bilance!$B$24 -> 0 | P6: 0 | Q6: FALSE | R6: 0
A7: =ParametryZdroje!M12 -> pelety | B7: =OR(AND(ZdrojIdxBudova=1,Zateplení!$J$14=A22,NOT(je_zdroj)),AND(ZdrojIdxOld=1,Zdroj!$I$6=A7)) -> FALSE | C7: =Zdroj!$E$13 -> 0 | D7: =Nositele!E5 -> 0.017 | E7: 0 | F7: =VLOOKUP($A7,Primární!$A$2:$B$14,2,FALSE) -> 1 | G7: =VLOOKUP(TStaréKotle[[#Headers],[kotel na tuhá paliva]] & "-" & Zdroj!$I$5 & "-" & $A7,TKotleTP[],4,FALSE) ->  | H7: =VLOOKUP(TStaréKotle[[#Headers],[kotel na tuhá paliva]] & "-" & Zdroj!$I$5 & "-" & $A7,TKotleTP[],6,FALSE) ->  | I7: =VLOOKUP(TStaréKotle[[#Headers],[kotel na tuhá paliva]] & "-" & Zdroj!$I$5 & "-" & $A7,TKotleTP[],7,FALSE) ->  | J7: =Nositele!G5 -> 0 | K7: =Nositele!H5 -> 5.4 | N7: =Bilance!$B$24 -> 0 | P7: 0 | Q7: FALSE | R7: 0
A8: =ParametryZdroje!M14 -> zemní plyn | B8: =OR(AND(ZdrojIdxBudova=2,NOT(je_zdroj)),ZdrojIdxOld=2) -> FALSE | C8: =Zdroj!$E$13 -> 0 | D8: =Nositele!E6 -> 0.034 | E8: 0 | F8: =VLOOKUP($A8,Primární!$A$2:$B$14,2,FALSE) -> 1 | G8: =Nositele!M6 -> 6.9e-06 | H8: =Nositele!O6 -> 1 | I8: =Nositele!P6 -> 1 | J8: =Nositele!G6 -> 55.4 | K8: =Nositele!H6 -> 10 | N8: =Bilance!$B$24 -> 0 | P8: 0 | Q8: FALSE | R8: 0
A9: =TStarýKotelHelp[[#This Row],[Nositel]] -> elektřina | B9: =OR(AND(ZdrojIdxBudova=3,NOT(je_zdroj)),ZdrojIdxOld=3) -> FALSE | C9: =Zdroj!$E$13 -> 0 | D9: =Nositele!E7 -> 0.0036 | E9: 0 | F9: =VLOOKUP($A9,Primární!$A$2:$B$14,2,FALSE) -> 2.3 | G9: =Nositele!M7 -> 3.68e-05 | H9: =Nositele!O7 -> 0.85 | I9: =Nositele!P7 -> 0.65 | J9: =Nositele!G7 -> 239 | K9: =Nositele!H7 -> 2.67 | N9: =Bilance!$B$24 -> 0 | P9: 0 | Q9: FALSE | R9: 0
A10: =ParametryZdroje!M13 -> topný olej | B10: =OR(AND(ZdrojIdxBudova=4,NOT(je_zdroj)),ZdrojIdxOld=4) -> FALSE | C10: =Zdroj!$E$13 -> 0 | D10: =Nositele!E8 -> 0.034645 | E10: 0 | F10: =VLOOKUP($A10,Primární!$A$2:$B$14,2,FALSE) -> 1.2 | G10: =Nositele!M8 -> 5.888e-05 | H10: =Nositele!O8 -> 0.93 | I10: =Nositele!P8 -> 0.67 | J10: =Nositele!G8 -> 73.3 | K10: =Nositele!H8 -> 29.83 | N10: =Bilance!$B$24 -> 0 | P10: 0 | Q10: FALSE | R10: 0
A11: =TStaréKotle[[#Headers],[tepelné čerpadlo]] -> tepelné čerpadlo | B11: =OR(AND(ZdrojIdxBudova=5,NOT(je_zdroj)),ZdrojIdxOld=5) -> FALSE | C11: =Zdroj!$E$13 -> 0 | D11: =Nositele!E7 -> 0.0036 | E11: 0 | F11: =F9 -> 2.3 | G11: =Nositele!M7 -> 3.68e-05 | H11: =Nositele!O7 -> 0.85 | I11: =Nositele!P7 -> 0.65 | J11: =Nositele!G7 -> 239 | K11: =Nositele!H7 -> 2.67 | N11: =Bilance!$B$24 -> 0 | P11: 0 | Q11: FALSE | R11: 0
A12: =TStaréKotle[[#Headers],[centrální zásobování teplem]] & " - energie" -> centrální zásobování teplem - energie | B12: =OR(AND(ZdrojIdxBudova=6,NOT(je_zdroj)),ZdrojIdxOld=6) -> FALSE | C12: 0 | D12: =Nositele!E12 -> 1 | E12: 0 | F12: =IF(Typ_SZT=1,Primární!$E$2,IF(Typ_SZT=2,Primární!$E$3,0)) -> 0 | G12: =IFERROR(VLOOKUP(Zdroj!$I$6,TNositele[],11,FALSE),0) -> 0 | H12: =IFERROR(VLOOKUP(Zdroj!$I$6,TNositele[],13,FALSE),0) -> 0 | I12: =IFERROR(VLOOKUP(Zdroj!$I$6,TNositele[],14,FALSE),0) -> 0 | J12: =IFERROR(VLOOKUP(Zdroj!$I$6,TNositele[],5,FALSE)/100,0) -> 0 | K12: =Nositele!H12 -> 400 | N12: =Bilance!$B$24 -> 0 | P12: 0 | Q12: TRUE | R12: =IFERROR(M12*kWh_na_GJ*$J12*$F$12,0) -> 0
A13: =IFERROR(INDEX(A$4:A$12,$B$13),0) -> 0 | B13: =IFERROR(MATCH(TRUE,$B$4:$B$12,0),0) -> 0 | C13: =IFERROR(INDEX(C$4:C$12,$B$13),0) -> 0 | D13: 0 | E13: 0 | F13: 0 | G13: 0 | H13: 0 | I13: 0 | J13: 0 | K13: 0 | L13: =IFERROR(INDEX(L$4:L$12,$B$13),0) -> 0 | M13: 0 | N13: 0 | O13: 0 | P13: 0 | Q13: 0 | R13: 0 | S13: 0 | T13: 0 | U13: 0 | V13: 0
A16: Starý zdroj na nepokrytou novou spotřebu
A18: Zdroj/palivo | B18: Zadaný zdroj | C18: Instalovaný výkon [kWt] | D18: Výhřevnost [GJ/m.j.] | E18: Účinnost [%] | F18: Faktor primární energie [1] | G18: Faktor TZL [kg/m.j.] | H18: Faktor PM10 [%] | I18: Faktor PM2,5 [%] | J18: Faktor CO2 [kg/GJ] | K18: Měrná cena vstupu [Kč/m.j.] | L18: Spotřeba na vstupu [m.j.] | M18: Spotřeba na vstupu [kWh] | N18: Výroba tepla [kWh] | O18: Spotřeba primární energie [kWh] | P18: Využití instalovaného výkonu [h] | Q18: Využití OK | R18: Emise CO2 [kg] | S18: Emise TZL [kg] | T18: Emise PM10 [kg] | U18: Emise PM2,5 [kg] | V18: Výdaje za vstupy [Kč]
A19: =A4 -> hnědé uhlí | B19: =B4 -> FALSE | C19: =Zdroj!$E$13 -> 0 | D19: =D4 -> 0.018 | E19: =Účinnost_stará -> 0 | F19: =F4 -> 1 | J19: 99.1 | K19: 3.4 | L19: =$M19*kWh_na_GJ/D19 ->  | M19: =N19/E19 ->  | N19: =IF(je_zdroj,Bilance!$C$29,Bilance!$C$24) -> 0 | O19: =M19*F19 ->  | P19: =IFERROR(N19/$C19,0) -> 0 | Q19: =AND(P19>=1000,P19<=7000) -> FALSE | R19: =IFERROR(M19*kWh_na_GJ*$J19,0) -> 0 | S19: =L19*$G19 ->  | T19: =S19*$H19 ->  | U19: =T19*$I19 ->  | V19: =K19*L19 -> 
A20: černé uhlí | B20: FALSE | C20: =Zdroj!$E$13 -> 0 | D20: 0.031 | E20: 0 | F20: 1 | J20: 92.4 | K20: 5.5 | M20: =N20/E20 ->  | N20: =IF(je_zdroj,Bilance!$C$29,Bilance!$C$24) -> 0 | P20: =IFERROR(N20/$C20,0) -> 0 | Q20: =AND(P20>=1000,P20<=7000) -> FALSE | R20: 0 | S20: =L20*$G20 ->  | T20: =S20*$H20 ->  | U20: =T20*$I20 ->  | V20: =K20*L20 -> 
A21: palivové dřevo | B21: FALSE | C21: =Zdroj!$E$13 -> 0 | D21: 0.014 | E21: 0 | F21: 1 | J21: 0 | K21: 3.5 | N21: =IF(je_zdroj,Bilance!$C$29,Bilance!$C$24) -> 0 | P21: 0 | Q21: FALSE | R21: 0
A22: pelety | B22: FALSE | C22: =Zdroj!$E$13 -> 0 | D22: 0.017 | E22: 0 | F22: 1 | J22: 0 | K22: 5.4 | N22: =IF(je_zdroj,Bilance!$C$29,Bilance!$C$24) -> 0 | P22: 0 | Q22: FALSE | R22: 0
